Workbook

Sheet Wyniki
A1: Populacja docelowa do programu profilaktyki grypy za pomocą szczepień
C4: Wybór czynnika ryzyka (nacisnij na pole poniżej)
C6: Dzieci poniżej 4 roku życia
A36: Możliwość rozszerzenia widoku na powiaty poprzez kliknięcie na znak + w panelu bocznym.
C40: =INDEX('Odsetki grupy ryzyka'!$F$34:$T$34,MATCH('Wyniki '!$C$6,'Odsetki grupy ryzyka'!$F$19:$T$19,0)) -> 0.05094434837
A41: Województwo/powiat | B41: Ludność[2] | C41: Dzieci poniżej 4 roku życia[3] | D41: Zachorowania i podejrzenia zachorowań na grypę w całej populacji[1] | E41: Odsetek zachorowań/województwo
A42: Dolnośląskie | B42: =SUM(B43:B72) -> 2900163 | C42: =$B42*$C$40 -> 147746.9142 | D42: ='Wybór powiązań'!D74 -> 216747 | E42: =D42/B42 -> 0.07473614414
A43: bolesławiecki | B43: 90103 | C43: =$B43*$C$40 -> 4590.238621 | D43: =$B43*$E$42 -> 6733.950796
A44: dzierżoniowski | B44: 100813 | C44: =$B44*$C$40 -> 5135.852592 | D44: 7534.374899
A45: głogowski | B45: 89102 | C45: 4539.243328 | D45: 6659.139915
A46: górowski | B46: 34870 | C46: 1776.429428 | D46: 2606.049346
A47: jaworski | B47: 50116 | C47: 2553.126963 | D47: 3745.4766
A48: Jelenia Góra | B48: 79061 | C48: 4027.711126 | D48: 5908.714292
A49: jeleniogórski | B49: 63591 | C49: 3239.602057 | D49: 4752.546142
A50: kamiennogórski | B50: 43239 | C50: 2202.782679 | D50: 3231.516137
A51: kłodzki | B51: 157996 | C51: 8049.003264 | D51: 11808.01183
A52: Legnica | B52: 99350 | C52: 5061.32101 | D52: 7425.03592
A53: legnicki | B53: 55166 | C53: 2810.395922 | D53: 4122.894128
A54: lubański | B54: 54254 | C54: 2763.934676 | D54: 4054.734764
A55: lubiński | B55: 106150 | C55: 5407.742579 | D55: 7933.241701
A56: lwówecki | B56: 45925 | C56: 2339.619199 | D56: 3432.25742
A57: milicki | B57: 36999 | C57: 1884.889945 | D57: 2765.162597
A58: oleśnicki | B58: 107269 | C58: 5464.749305 | D58: 8016.871446
A59: oławski | B59: 76752 | C59: 3910.080626 | D59: 5736.148535
A60: polkowicki | B60: 63065 | C60: 3212.80533 | D60: 4713.23493
A61: strzeliński | B61: 43570 | C61: 2219.645258 | D61: 3256.2538
A62: średzki | B62: 55079 | C62: 2805.963764 | D62: 4116.392083
A63: świdnicki | B63: 156921 | C63: 7994.23809 | D63: 11727.67047
A64: trzebnicki | B64: 85253 | C64: 4343.158531 | D64: 6371.480496
A65: Wałbrzych | B65: 111356 | C65: 5672.958857 | D65: 8322.318067
A66: wałbrzyski | B66: 55611 | C66: 2833.066157 | D66: 4156.151712
A67: wołowski | B67: 46818 | C67: 2385.112502 | D67: 3498.996796
A68: Wrocław | B68: 642869 | C68: 32750.54229 | D68: 48045.55025
A69: wrocławski | B69: 151385 | C69: 7712.210177 | D69: 11313.93118
A70: ząbkowicki | B70: 64802 | C70: 3301.295663 | D70: 4843.051613
A71: zgorzelecki | B71: 89188 | C71: 4543.624542 | D71: 6665.567224
A72: złotoryjski | B72: 43490 | C72: 2215.56971 | D72: 3250.274909
C73: 0 | D73: 0
C74: 0 | D74: 0
A75: Lubelskie | B75: =SUM(B76:B99) -> 2108270 | C75: 107404.4413 | D75: ='Wybór powiązań'!D75 -> 149860 | E75: =D75/B75 -> 0.07108197717
A76: bialski | B76: 110772 | C76: 5643.207357 | D76: =$B76*$E$75 -> 7873.892775
A77: Biała Podlaska | B77: 57170 | C77: 2912.488396 | D77: 4063.756635
A78: biłgorajski | B78: 100919 | C78: 5141.252693 | D78: 7173.522054
A79: Chełm | B79: 61932 | C79: 3155.085383 | D79: 4402.24901
A80: chełmski | B80: 78014 | C80: 3974.372393 | D80: 5545.389367
A81: hrubieszowski | B81: 62847 | C81: 3201.699462 | D81: 4467.289019
A82: janowski | B82: 45709 | C82: 2328.615219 | D82: 3249.086094
A83: krasnostawski | B83: 63258 | C83: 3222.637589 | D83: 4496.503712
A84: kraśnicki | B84: 95348 | C84: 4857.441728 | D84: 6777.524359
A85: lubartowski | B85: 88352 | C85: 4501.035067 | D85: 6280.234847
A86: lubelski | B86: 155566 | C86: 7925.208498 | D86: 11057.93886
A87: Lublin | B87: 339784 | C87: 17310.07447 | D87: 24152.51853
A88: łęczyński | B88: 57331 | C88: 2920.690436 | D88: 4075.200833
A89: łukowski | B89: 106816 | C89: 5441.671515 | D89: 7592.692473
A90: opolski | B90: 59208 | C90: 3016.312978 | D90: 4208.621704
A91: parczewski | B91: 34711 | C91: 1768.329276 | D91: 2467.326509
A92: puławski | B92: 113173 | C92: 5765.524738 | D92: 8044.560602
A93: radzyński | B93: 58858 | C93: 2998.482456 | D93: 4183.743012
A94: rycki | B94: 55988 | C94: 2852.272176 | D94: 3979.737738
A95: świdnicki | B95: 71840 | C95: 3659.841987 | D95: 5106.52924
A96: tomaszowski | B96: 82762 | C96: 4216.256159 | D96: 5882.886594
A97: włodawski | B97: 38353 | C97: 1953.868593 | D97: 2726.20707
A98: zamojski | B98: 106122 | C98: 5406.316137 | D98: 7543.361581
A99: Zamość | B99: 63437 | C99: 3231.756627 | D99: 4509.227385
A100: Lubuskie | B100: =SUM(B102:B114) -> 939756 | C100: 47875.25704 | D100: ='Wybór powiązań'!D76 -> 42634 | E100: =D100/B100 -> 0.04536709529
A101: gorzowski | B101: 71836 | C101: 3659.638209 | D101: =$B101*$E$100 -> 3258.990657
A102: Gorzów Wielkopolski | B102: 123609 | C102: 6297.179957 | D102: 5607.781282
A103: krośnieński | B103: 54829 | C103: 2793.227677 | D103: 2487.432468
A104: międzyrzecki | B104: 57565 | C104: 2932.611414 | D104: 2611.55684
A105: nowosolski | B105: 86156 | C105: 4389.161278 | D105: 3908.647462
A106: słubicki | B106: 46929 | C106: 2390.767324 | D106: 2129.032415
A107: strzelecko-drezdenecki | B107: 49009 | C107: 2496.731569 | D107: 2223.395973
A108: sulęciński | B108: 35193 | C108: 1792.884452 | D108: 1596.604184
A109: świebodziński | B109: 55790 | C109: =$B109*$C$40 -> 2842.185195 | D109: 2531.030246
A110: wschowski | B110: 38831 | C110: 1978.219991 | D110: 1761.649677
A111: Zielona Góra | B111: 141222 | C111: 7194.462765 | D111: 6406.831931
A112: zielonogórski | B112: 75559 | C112: 3849.304018 | D112: 3427.892353
A113: żagański | B113: 78953 | C113: 4022.209136 | D113: 3581.868274
A114: żarski | B114: 96111 | C114: 4896.312266 | D114: 4360.276895
A115: Łódzkie | B115: =SUM(B116:B139) -> 2454779 | C115: 125057.1165 | D115: ='Wybór powiązań'!D77 -> 198599 | E115: =D115/B115 -> 0.08090300593
A116: bełchatowski | B116: 112779 | C116: 5745.452664 | D116: =$B116*$E$115 -> 9124.160106
A117: brzeziński | B117: 30833 | C117: 1570.767093 | D117: 2494.482382
A118: kutnowski | B118: 96569 | C118: 4919.644777 | D118: 7812.72238
A119: łaski | B119: 49918 | C119: 2543.039982 | D119: 4038.51625
A120: łęczycki | B120: 49747 | C120: 2534.328498 | D120: 4024.681836
A121: łowicki | B121: 78099 | C121: 3978.702663 | D121: 6318.44386
A122: łódzki wschodni | B122: 72179 | C122: 3677.112121 | D122: 5839.498065
A123: Łódź | B123: 679941 | C123: 34639.15117 | D123: 55009.27076
A124: opoczyński | B124: 76106 | C124: 3877.170577 | D124: 6157.204169
A125: pabianicki | B125: 119291 | C125: 6077.202261 | D125: 9651.000481
A126: pajęczański | B126: 51220 | C126: 2609.369523 | D126: 4143.851964
A127: piotrkowski | B127: 91353 | C127: 4653.919056 | D127: 7390.732301
A128: Piotrków Trybunalski | B128: 73090 | C128: 3723.522422 | D128: 5913.200704
A129: poddębicki | B129: 41108 | C129: 2094.220273 | D129: 3325.760768
A130: radomszczański | B130: 112644 | C130: 5738.575177 | D130: 9113.2382
A131: rawski | B131: 48592 | C131: 2475.487776 | D131: 3931.238864
A132: sieradzki | B132: 117674 | C132: 5994.82525 | D132: 9520.18032
A133: Skierniewice | B133: 48089 | C133: 2449.862769 | D133: 3890.544652
A134: skierniewicki | B134: 38174 | C134: 1944.749555 | D134: 3088.391348
A135: tomaszowski | B135: 116519 | C135: 5935.984527 | D135: 9426.737348
A136: wieluński | B136: 76256 | C136: 3884.812229 | D136: 6169.33962
A137: wieruszowski | B137: 42105 | C137: 2145.011788 | D137: 3406.421065
A138: zduńskowolski | B138: 66380 | C138: 3381.685844 | D138: 5370.341534
A139: zgierski | B139: 166113 | C139: 8462.51854 | D139: 13439.04102
A140: Małopolskie | B140: =SUM(B141:B162) -> 3410901 | C140: 173766.1288 | D140: ='Wybór powiązań'!D78 -> 372222 | E140: =D140/B140 -> 0.1091271778
A141: bocheński | B141: 106858 | C141: 5443.811178 | D141: =$B141*$E$140 -> 11661.11197
A142: brzeski | B142: 93201 | C142: 4748.064212 | D142: 10170.7621
A143: chrzanowski | B143: 124536 | C143: 6344.405368 | D143: 13590.26222
A144: dąbrowski | B144: 59174 | C144: 3014.58087 | D144: 6457.491621
A145: gorlicki | B145: 108886 | C145: 5547.126316 | D145: 11882.42189
A146: krakowski | B146: 279239 | C146: 14225.64889 | D146: 30472.56401
A147: Kraków | B147: 779115 | C147: 39691.50598 | D147: 85022.62116
A148: limanowski | B148: 131764 | C148: 6712.631118 | D148: 14379.03346
A149: miechowski | B149: 48818 | C149: 2487.001199 | D149: 5327.370567
A150: myślenicki | B150: 127600 | C150: 6500.498851 | D150: 13924.62789
A151: nowosądecki | B151: 216796 | C151: 11044.53095 | D151: 23658.33565
A152: nowotarski | B152: 191782 | C152: 9770.209018 | D152: 20928.62842
A153: Nowy Sącz | B153: 83794 | C153: 4268.830727 | D153: 9144.202739
A154: olkuski | B154: 111217 | C154: 5665.877592 | D154: 12136.79734
A155: oświęcimski | B155: 153486 | C155: 7819.244253 | D155: 16749.49402
A156: proszowicki | B156: 43222 | C156: 2201.916625 | D156: 4716.69488
A157: suski | B157: 84232 | C157: 4291.144352 | D157: 9192.000443
A158: tarnowski | B158: 201497 | C158: 10265.13336 | D158: 21988.79895
A159: Tarnów | B159: 108470 | C159: 5525.933467 | D159: 11837.02498
A160: tatrzański | B160: 68072 | C160: 3467.883682 | D160: 7428.505249
A161: wadowicki | B161: 160006 | C161: 8151.401405 | D161: 17461.00322
A162: wielicki | B162: 129136 | C162: 6578.749371 | D162: 14092.24724
A163: Mazowieckie | B163: =SUM(B164:B205) -> 5423168 | C163: 276279.7598 | D163: ='Wybór powiązań'!D79 -> 685500 | E163: =D163/B163 -> 0.1264021325
A164: białobrzeski | B164: 33410 | C164: 1702.050679 | D164: =$B164*$E$163 -> 4223.095246
A165: ciechanowski | B165: 89423 | C165: 4555.596464 | D165: 11303.25789
A166: garwoliński | B166: 108981 | C166: 5551.966029 | D166: 13775.4308
A167: gostyniński | B167: 44899 | C167: 2287.350297 | D167: 5675.329346
A168: grodziski | B168: 95963 | C168: 4888.772502 | D168: 12129.92784
A169: grójecki | B169: 98311 | C169: 5008.389832 | D169: 12426.72005
A170: kozienicki | B170: 59997 | C170: 3056.508069 | D170: 7583.748742
A171: legionowski | B171: 118585 | C171: 6041.235551 | D171: 14989.39688
A172: lipski | B172: 33874 | C172: =$B172*$C$40 -> 1725.688857 | D172: 4281.745836
A173: łosicki | B173: 30774 | C173: 1567.761377 | D173: 3889.899225
A174: makowski | B174: 44892 | C174: 2286.993687 | D174: 5674.444531
A175: miński | B175: 154526 | C175: 7872.226376 | D175: 19532.41592
A176: mławski | B176: 72626 | C176: 3699.884244 | D176: 9180.081274
A177: nowodworski | B177: 79378 | C177: 4043.860485 | D177: 10033.54847
A178: ostrołęcki | B178: 88654 | C178: 4516.42026 | D178: 11206.05465
A179: Ostrołęka | B179: 52055 | C179: 2651.908054 | D179: 6579.863006
A180: ostrowski | B180: 72328 | C180: 3684.702829 | D180: 9142.413438
A181: otwocki | B181: 124352 | C181: 6335.031608 | D181: 15718.35798
A182: piaseczyński | B182: 188281 | C182: 9591.852855 | D182: 23799.11991
A183: Płock | B183: 119425 | C183: 6084.028804 | D183: 15095.57467
A184: płocki | B184: 110952 | C184: 5652.37734 | D184: 14024.5694
A185: płoński | B185: 87054 | C185: 4434.909303 | D185: 11003.81124
A186: pruszkowski | B186: 165912 | C186: 8452.278726 | D186: 20971.6306
A187: przasnyski | B187: 52511 | C187: 2675.138677 | D187: 6637.502379
A188: przysuski | B188: 41455 | C188: 2111.897961 | D188: 5240.000402
A189: pułtuski | B189: 51824 | C189: 2640.13991 | D189: 6550.664114
A190: Radom | B190: 211371 | C190: 10768.15786 | D190: 26717.74514
A191: radomski | B191: 152291 | C191: 7758.365757 | D191: 19249.90716
A192: Siedlce | B192: 78185 | C192: 3983.083877 | D192: 9882.750728
A193: siedlecki | B193: 81362 | C193: 4144.934072 | D193: 10284.3303
A194: sierpecki | B194: 51954 | C194: 2646.762675 | D194: 6567.096391
A195: sochaczewski | B195: 85045 | C195: 4332.562107 | D195: 10749.86936
A196: sokołowski | B196: 53804 | C196: 2741.009719 | D196: 6800.940336
A197: szydłowiecki | B197: 39672 | C197: 2021.064188 | D197: 5014.6254
A198: Warszawa | B198: 1790658 | C198: 91223.90496 | D198: 226342.9897
A199: warszawski zachodni | B199: 118613 | C199: 6042.661993 | D199: 14992.93614
A200: węgrowski | B200: 65822 | C200: 3353.258898 | D200: 8320.041164
A201: wołomiński | B201: 249299 | C201: 12700.3751 | D201: 31511.92523
A202: wyszkowski | B202: 74220 | C202: 3781.089536 | D202: 9381.566273
A203: zwoleński | B203: 36166 | C203: 1842.453303 | D203: 4571.459523
A204: żuromiński | B204: 38515 | C204: 1962.121577 | D204: 4868.378132
A205: żyrardowski | B205: 75749 | C205: 3858.983444 | D205: 9574.835133
A206: Opolskie | B206: =SUM(B207:B218) -> 982626 | C206: 50059.24126 | D206: ='Wybór powiązań'!D80 -> 43318 | E206: =D206/B206 -> 0.04408391392
A207: brzeski | B207: 89804 | C207: 4575.006261 | D207: =$B207*$E$206 -> 3958.911806
A208: głubczycki | B208: 45552 | C208: 2320.616957 | D208: 2008.110447
A209: kędzierzyńsko-kozielski | B209: 93880 | C209: 4782.655425 | D209: 4138.597839
A210: kluczborski | B210: 65470 | C210: 3335.326487 | D210: 2886.173844
A211: krapkowicki | B211: 63747 | C211: 3247.549375 | D211: 2810.217261
A212: namysłowski | B212: 42634 | C212: 2171.961348 | D212: 1879.473586
A213: nyski | B213: 135948 | C213: 6925.782272 | D213: 5993.11993
A214: oleski | B214: 64293 | C214: 3275.364989 | D214: 2834.287078
A215: Opole | B215: 128035 | C215: 6522.659643 | D215: 5644.283919
A216: opolski | B216: 123726 | C216: 6303.140446 | D216: 5454.326334
A217: prudnicki | B217: 55237 | C217: 2814.012971 | D217: 2435.063153
A218: strzelecki | B218: 74300 | C218: 3785.165084 | D218: 3275.434804
A219: Podkarpackie | B219: =SUM(B220:B244) -> 2127164 | C219: 108366.9838 | D219: ='Wybór powiązań'!D81 -> 75593 | E219: =D219/B219 -> 0.03553698728
A220: bieszczadzki | B220: 21664 | C220: 1103.658363 | D220: =$B220*$E$219 -> 769.8732923
A221: brzozowski | B221: 65567 | C221: 3340.268089 | D221: 2330.053645
A222: dębicki | B222: 135299 | C222: 6892.719389 | D222: 4808.118841
A223: jarosławski | B223: 120247 | C223: 6125.905058 | D223: 4273.216109
A224: jasielski | B224: 113450 | C224: 5779.636322 | D224: 4031.671206
A225: kolbuszowski | B225: 62246 | C225: 3171.081908 | D225: 2212.03531
A226: Krosno | B226: 46291 | C226: 2358.26483 | D226: 1645.042678
A227: krośnieński | B227: 112283 | C227: 5720.184268 | D227: 3990.199542
A228: leski | B228: 26441 | C228: 1347.019515 | D228: 939.6334805
A229: leżajski | B229: 69370 | C229: 3534.009446 | D229: 2465.200807
A230: lubaczowski | B230: 55217 | C230: 2812.994084 | D230: 1962.245826
A231: łańcucki | B231: 81049 | C231: 4128.988491 | D231: 2880.237282
A232: mielecki | B232: 136660 | C232: 6962.054648 | D232: 4856.484681
A233: niżański | B233: 66589 | C233: 3392.333213 | D233: 2366.372446
A234: przemyski | B234: 74061 | C234: 3772.989384 | D234: 2631.904815
A235: Przemyśl | B235: 60689 | C235: 3091.761558 | D235: 2156.704221
... 209 more rows

Sheet Odsetki grupy ryzyka (hidden)
A2: Czynnik Ryzyka | B2: Odsetek | F2: Astma | H2: Astma[3]
A3: Astma | F3: Przewlekłe zapalenie oskrzeli, przewlekła zaporowa (obturacyjna) choroba płuc (POCHP), rozedma płuc | H3: Przewlekłe zapalenie oskrzeli, przewlekła zaporowa (obturacyjna) choroba płuc (POCHP), rozedma płuc[3]
A4: Ogółem | B4: =('Czynniki Ryzyka 15-'!B9+'Czynniki ryzyka dzieci '!B10)/Ludność!B7 -> 0.04058621614 | F4: Choroba wieńcowa (choroba niedokrwienna serca) lub dusznica bolesna | H4: Choroba wieńcowa (choroba niedokrwienna serca) lub dusznica bolesna[3]
A5: 0 - 4 | B5: =('Czynniki ryzyka dzieci '!C10/Ludność!C7) -> 0.03085177733 | F5: Wysokie ciśnienie krwii (nadciśnienie) | H5: Wysokie ciśnienie krwii (nadciśnienie)[3]
A6: 5 - 9 | B6: ='Czynniki ryzyka dzieci '!D10/Ludność!D7 -> 0.04345477757 | F6: Udar mózgu (wylew krwi do mózgu, zator mózgowy) lub jego przewlekłe konsekwencje | H6: Udar mózgu (wylew krwi do mózgu, zator mózgowy) lub jego przewlekłe konsekwencje[3]
A7: 10 - 14 | B7: ='Czynniki ryzyka dzieci '!E10/Ludność!E7 -> 0.05016044587 | F7: Cukrzyca | H7: Cukrzyca[3]
A8: 15 - 19 | B8: ='Czynniki Ryzyka 15-'!C9/Ludność!F7 -> 0.03914760025 | F8: Marskość wątroby | H8: Marskość wątroby[3]
A9: 20-29 | B9: ='Czynniki Ryzyka 15-'!D9/Ludność!G7 -> 0.0207624565 | F9: Problemy z nerkami | H9: Problemy z nerkami[3]
A10: 30-39 | B10: ='Czynniki Ryzyka 15-'!E9/Ludność!H7 -> 0.02456186284 | F10: HIV i AIDS | G10: 20.558 | H10: HIV i AIDS[3]
A11: 40-49 | B11: ='Czynniki Ryzyka 15-'!F9/Ludność!I7 -> 0.02609515207 | F11: Ciąża | G11: 373.229 | H11: Ciąża[3]
A12: 50-59 | B12: ='Czynniki Ryzyka 15-'!G9/Ludność!J7 -> 0.04136253041 | F12: Osoby 65+ | G12: 6186.885 | H12: Osoby 65+[3]
A13: 60-69 | B13: ='Czynniki Ryzyka 15-'!H9/Ludność!K7 -> 0.06424344886 | F13: Dzieci poniżej 4 roku życia | G13: =Ludność!C7 -> 1938.3 | H13: Dzieci poniżej 4 roku życia[3] | I13: asfgj h,j
A14: 70-79 | B14: ='Czynniki Ryzyka 15-'!I9/Ludność!L7 -> 0.07924480379 | F14: Dzieci poniżej 2 roku życia | G14: 1124.9 | H14: Dzieci poniżej 2 roku życia[3]
A15: 80 lat i więcej | B15: ='Czynniki Ryzyka 15-'!J9/Ludność!M7 -> 0.08443431024 | F15: BMI > 40 | G15: 1500 | H15: BMI > 40[3]
A16: Przewlekłe zapalenie oskrzeli, przewlekła zaporowa (obturacyjna) choroba płuc (POCHP), rozedma płuc | F16: Nowotwory | G16: 364.052 | H16: Nowotwory[3]
A17: Ogółem | B17: ='Czynniki Ryzyka 15-'!B13/Ludność!B7 -> 0.02665622355
A18: 0 - 4
A19: 5 - 9 | F19: Astma | G19: Przewlekłe zapalenie oskrzeli, przewlekła zaporowa (obturacyjna) choroba płuc (POCHP), rozedma płuc | H19: Choroba wieńcowa (choroba niedokrwienna serca) lub dusznica bolesna | I19: Wysokie ciśnienie krwii (nadciśnienie) | J19: Udar mózgu (wylew krwi do mózgu, zator mózgowy) lub jego przewlekłe konsekwencje | K19: Cukrzyca | L19: Marskość wątroby | M19: Problemy z nerkami | N19: HIV i AIDS | O19: Ciąża | P19: Osoby 65+ | Q19: Dzieci poniżej 4 roku życia | R19: Dzieci poniżej 2 roku życia | S19: BMI > 40 | T19: Nowotwory
A20: 10 - 14 | E20: 0 - 4 | F20: =B5 -> 0.03085177733 | G20: =B18 -> 0
A21: 15 - 19 | B21: ='Czynniki Ryzyka 15-'!C13/Ludność!F7 -> 0.006231270513 | E21: 5 - 9 | F21: =B6 -> 0.04345477757 | G21: =B19 -> 0
A22: 20-29 | B22: ='Czynniki Ryzyka 15-'!D13/Ludność!G7 -> 0.007231866871 | E22: 10 - 14 | F22: 0.05016044587 | G22: =B20 -> 0
A23: 30-39 | B23: ='Czynniki Ryzyka 15-'!E13/Ludność!H7 -> 0.01292729623 | E23: 15 - 19 | F23: 0.03914760025 | G23: =B21 -> 0.006231270513
A24: 40-49 | B24: ='Czynniki Ryzyka 15-'!F13/Ludność!I7 -> 0.01886940643 | E24: 20 - 24 | F24: 0.0207624565 | G24: =B22 -> 0.007231866871 | H24: =B35 -> 0.0008359416007 | I24: =B48 -> 0.01957658586 | J24: =B61 -> 0.001283073155 | K24: =B74 -> 0.007951165458 | L24: =B87 -> 0.001807966718 | M24: =B100 -> 0.01508582982
A25: 50-59 | B25: ='Czynniki Ryzyka 15-'!G13/Ludność!J7 -> 0.03794099757 | E25: 25 - 29 | F25: 0.02456186284 | G25: =B22 -> 0.007231866871 | H25: =B35 -> 0.0008359416007 | I25: =B48 -> 0.01957658586 | J25: =B61 -> 0.001283073155 | K25: =B74 -> 0.007951165458 | L25: =B87 -> 0.001807966718 | M25: =B100 -> 0.01508582982
A26: 60-69 | B26: ='Czynniki Ryzyka 15-'!H13/Ludność!K7 -> 0.05906593407 | E26: 30 - 34 | F26: 0.02609515207 | G26: =B23 -> 0.01292729623 | H26: =B36 -> 0.007363649752 | I26: =B49 -> 0.05076009229 | J26: =B62 -> 0.001030910965 | K26: =B75 -> 0.01168365761 | L26: =B88 -> 0.002372731587 | M26: =B101 -> 0.02228731325
A27: 70-79 | B27: ='Czynniki Ryzyka 15-'!I13/Ludność!L7 -> 0.07606993185 | E27: 35 - 39 | F27: 0.04136253041 | G27: =B23 -> 0.01292729623 | H27: =B36 -> 0.007363649752 | I27: =B49 -> 0.05076009229 | J27: =B62 -> 0.001030910965 | K27: =B75 -> 0.01168365761 | L27: =B88 -> 0.002372731587 | M27: =B101 -> 0.02228731325
A28: 80 lat i więcej | B28: ='Czynniki Ryzyka 15-'!J13/Ludność!M7 -> 0.08711689357 | E28: 40 - 44 | F28: 0.06424344886 | G28: =B24 -> 0.01886940643 | H28: =B37 -> 0.01949773214 | I28: =B50 -> 0.1503858313 | J28: =B63 -> 0.003573602466 | K28: =B76 -> 0.02444579709 | L28: =B89 -> 0.002964911936 | M28: =B102 -> 0.02695909992
A29: Choroba wieńcowa (choroba niedokrwienna serca) lub dusznica bolesna | E29: 45 - 49 | F29: 0.07924480379 | G29: =B24 -> 0.01886940643 | H29: =B37 -> 0.01949773214 | I29: =B50 -> 0.1503858313 | J29: =B63 -> 0.003573602466 | K29: =B76 -> 0.02444579709 | L29: =B89 -> 0.002964911936 | M29: =B102 -> 0.02695909992
A30: Ogółem | B30: ='Czynniki Ryzyka 15-'!B21/Ludność!B7 -> 0.0759105747 | E30: 50 - 54 | F30: 0.08443431024 | G30: =B25 -> 0.03794099757 | H30: =B38 -> 0.08508211679 | I30: =B51 -> 0.3301208942 | J30: =B64 -> 0.0188754562 | K30: =B77 -> 0.0718711983 | L30: =B90 -> 0.007033150852 | M30: =B103 -> 0.04752128954
A31: 0 - 4 | E31: 55 - 59 | F31: 0 | G31: =B25 -> 0.03794099757 | H31: =B38 -> 0.08508211679 | I31: =B51 -> 0.3301208942 | J31: =B64 -> 0.0188754562 | K31: =B77 -> 0.0718711983 | L31: =B90 -> 0.007033150852 | M31: =B103 -> 0.04752128954
A32: 5 - 9 | E32: 60 - 64 | F32: 0.02665622355 | G32: =B26 -> 0.05906593407 | H32: =B39 -> 0.1817413356 | I32: =B52 -> 0.4742814877 | J32: =B65 -> 0.04448436179 | K32: =B78 -> 0.1451394759 | L32: =B91 -> 0.009847844463 | M32: =B104 -> 0.06418005072
A33: 10 - 14 | E33: 65+ | F33: =((Ludność!$K$7*'Odsetki grupy ryzyka'!B13)+(Ludność!$K$8*'Odsetki grupy ryzyka'!B14)+(Ludność!$K$9*'Odsetki grupy ryzyka'!B15))/(Ludność!$K$7+Ludność!$K$8+Ludność!$K$9) -> 0.07261833242 | G33: =((Ludność!$K$7*B26)+(Ludność!$K$8*B27)+(Ludność!$K$9*B28))/(Ludność!$K$7+Ludność!$K$8+Ludność!$K$9) -> 0.06942894433 | H33: =((Ludność!$K$7*B39)+(Ludność!$K$8*B40)+(Ludność!$K$9*B41))/(Ludność!$K$7+Ludność!$K$8+Ludność!$K$9) -> 0.2746809787 | I33: =((Ludność!$K$7*B52)+(Ludność!$K$8*B53)+(Ludność!$K$9*B54))/(Ludność!$K$7+Ludność!$K$8+Ludność!$K$9) -> 0.5306726608 | J33: =((Ludność!$K$7*B65)+(Ludność!$K$8*B66)+(Ludność!$K$9*B67))/(Ludność!$K$7+Ludność!$K$8+Ludność!$K$9) -> 0.06271632587 | K33: =((Ludność!$K$7*B78)+(Ludność!$K$8*B79)+(Ludność!$K$9*B80))/(Ludność!$K$7+Ludność!$K$8+Ludność!$K$9) -> 0.1803184487 | L33: =((Ludność!$K$7*B91)+(Ludność!$K$8*B92)+(Ludność!$K$9*B93))/(Ludność!$K$7+Ludność!$K$8+Ludność!$K$9) -> 0.01218426192 | M33: =((Ludność!$K$7*B104)+(Ludność!$K$8*B105)+(Ludność!$K$9*B106))/(Ludność!$K$7+Ludność!$K$8+Ludność!$K$9) -> 0.08302571976
A34: 15 - 19 | E34: Ogółem | F34: =B4 -> 0.04058621614 | G34: =B17 -> 0.02665622355 | H34: =B30 -> 0.0759105747 | I34: =B43 -> 0.195437796 | J34: =B56 -> 0.01727319081 | K34: =B69 -> 0.05622723235 | L34: =B82 -> 0.004751967283 | M34: =B95 -> 0.0344254798 | N34: =B108 -> 0.0005403260144 | O34: =B121 -> 0.00980957963 | P34: =B134 -> 0.1626099287 | Q34: =B147 -> 0.05094434837 | R34: =B160 -> 0.02956575219 | S34: =B174 -> 0.03942450733 | T34: =B188 -> 0.009568380494
A35: 20-29 | B35: ='Czynniki Ryzyka 15-'!D21/Ludność!G7 -> 0.0008359416007
A36: 30-39 | B36: ='Czynniki Ryzyka 15-'!E21/Ludność!H7 -> 0.007363649752
A37: 40-49 | B37: ='Czynniki Ryzyka 15-'!F21/Ludność!I7 -> 0.01949773214
A38: 50-59 | B38: ='Czynniki Ryzyka 15-'!G21/Ludność!J7 -> 0.08508211679
A39: 60-69 | B39: ='Czynniki Ryzyka 15-'!H21/Ludność!K7 -> 0.1817413356
A40: 70-79 | B40: ='Czynniki Ryzyka 15-'!I21/Ludność!L7 -> 0.3405155992
A41: 80 lat i więcej | B41: ='Czynniki Ryzyka 15-'!J21/Ludność!M7 -> 0.4209643887
A42: Wysokie ciśnienie krwii (nadciśnienie)
A43: Ogółem | B43: ='Czynniki Ryzyka 15-'!B25/Ludność!B7 -> 0.195437796
A44: 0 - 4
A45: 5 - 9
A46: 10 - 14
A47: 15 - 19 | B47: ='Czynniki Ryzyka 15-'!C25/Ludność!F7 -> 0.006754506969
A48: 20-29 | B48: ='Czynniki Ryzyka 15-'!D25/Ludność!G7 -> 0.01957658586
A49: 30-39 | B49: ='Czynniki Ryzyka 15-'!E25/Ludność!H7 -> 0.05076009229
A50: 40-49 | B50: ='Czynniki Ryzyka 15-'!F25/Ludność!I7 -> 0.1503858313
A51: 50-59 | B51: ='Czynniki Ryzyka 15-'!G25/Ludność!J7 -> 0.3301208942
A52: 60-69 | B52: ='Czynniki Ryzyka 15-'!H25/Ludność!K7 -> 0.4742814877
A53: 70-79 | B53: ='Czynniki Ryzyka 15-'!I25/Ludność!L7 -> 0.5842611015
A54: 80 lat i więcej | B54: ='Czynniki Ryzyka 15-'!J25/Ludność!M7 -> 0.5925826571
A55: Udar mózgu (wylew krwi do mózgu, zator mózgowy) lub jego przewlekłe konsekwencje
A56: Ogółem | B56: ='Czynniki Ryzyka 15-'!B29/Ludność!B7 -> 0.01727319081
A57: 0 - 4
A58: 5 - 9
A59: 10 - 14
A60: 15 - 19 | B60: ='Czynniki Ryzyka 15-'!C29/Ludność!F7 -> 0.0008562051087
A61: 20-29 | B61: ='Czynniki Ryzyka 15-'!D29/Ludność!G7 -> 0.001283073155
A62: 30-39 | B62: ='Czynniki Ryzyka 15-'!E29/Ludność!H7 -> 0.001030910965
A63: 40-49 | B63: ='Czynniki Ryzyka 15-'!F29/Ludność!I7 -> 0.003573602466
A64: 50-59 | B64: ='Czynniki Ryzyka 15-'!G29/Ludność!J7 -> 0.0188754562
A65: 60-69 | B65: ='Czynniki Ryzyka 15-'!H29/Ludność!K7 -> 0.04448436179
A66: 70-79 | B66: ='Czynniki Ryzyka 15-'!I29/Ludność!L7 -> 0.07645091648
A67: 80 lat i więcej | B67: ='Czynniki Ryzyka 15-'!J29/Ludność!M7 -> 0.0897994769
A68: Cukrzyca
A69: Ogółem | B69: ='Czynniki Ryzyka 15-'!B49/Ludność!B7 -> 0.05622723235
A70: 0 - 4
A71: 5 - 9
A72: 10 - 14
A73: 15 - 19 | B73: ='Czynniki Ryzyka 15-'!C49/Ludność!F7 -> 0.003472387385
A74: 20-29 | B74: ='Czynniki Ryzyka 15-'!D49/Ludność!G7 -> 0.007951165458
A75: 30-39 | B75: ='Czynniki Ryzyka 15-'!E49/Ludność!H7 -> 0.01168365761
A76: 40-49 | B76: ='Czynniki Ryzyka 15-'!F49/Ludność!I7 -> 0.02444579709
A77: 50-59 | B77: ='Czynniki Ryzyka 15-'!G49/Ludność!J7 -> 0.0718711983
A78: 60-69 | B78: ='Czynniki Ryzyka 15-'!H49/Ludność!K7 -> 0.1451394759
A79: 70-79 | B79: ='Czynniki Ryzyka 15-'!I49/Ludność!L7 -> 0.2158489608
A80: 80 lat i więcej | B80: ='Czynniki Ryzyka 15-'!J49/Ludność!M7 -> 0.21480786
A81: Marskość wątroby
A82: Ogółem | B82: ='Czynniki Ryzyka 15-'!B57/Ludność!B7 -> 0.004751967283
A83: 0 - 4
A84: 5 - 9
A85: 10 - 14
A86: 15 - 19 | B86: ='Czynniki Ryzyka 15-'!C57/Ludność!F7 -> 0.001046472911
A87: 20-29 | B87: ='Czynniki Ryzyka 15-'!D57/Ludność!G7 -> 0.001807966718
A88: 30-39 | B88: ='Czynniki Ryzyka 15-'!E57/Ludność!H7 -> 0.002372731587
A89: 40-49 | B89: ='Czynniki Ryzyka 15-'!F57/Ludność!I7 -> 0.002964911936
A90: 50-59 | B90: ='Czynniki Ryzyka 15-'!G57/Ludność!J7 -> 0.007033150852
A91: 60-69 | B91: ='Czynniki Ryzyka 15-'!H57/Ludność!K7 -> 0.009847844463
A92: 70-79 | B92: ='Czynniki Ryzyka 15-'!I57/Ludność!L7 -> 0.01426575795
A93: 80 lat i więcej | B93: ='Czynniki Ryzyka 15-'!J57/Ludność!M7 -> 0.01502246664
A94: Problemy z nerkami
A95: Ogółem | B95: ='Czynniki Ryzyka 15-'!B69/Ludność!B7 -> 0.0344254798
A96: 0 - 4
A97: 5 - 9
A98: 10 - 14
A99: 15 - 19 | B99: ='Czynniki Ryzyka 15-'!C69/Ludność!F7 -> 0.005422632355
A100: 20-29 | B100: ='Czynniki Ryzyka 15-'!D69/Ludność!G7 -> 0.01508582982
A101: 30-39 | B101: ='Czynniki Ryzyka 15-'!E69/Ludność!H7 -> 0.02228731325
A102: 40-49 | B102: ='Czynniki Ryzyka 15-'!F69/Ludność!I7 -> 0.02695909992
A103: 50-59 | B103: ='Czynniki Ryzyka 15-'!G69/Ludność!J7 -> 0.04752128954
A104: 60-69 | B104: ='Czynniki Ryzyka 15-'!H69/Ludność!K7 -> 0.06418005072
A105: 70-79 | B105: ='Czynniki Ryzyka 15-'!I69/Ludność!L7 -> 0.09969097913
A106: 80 lat i więcej | B106: ='Czynniki Ryzyka 15-'!J69/Ludność!M7 -> 0.1061632352
A107: HIV i AIDS
A108: Ogółem | B108: =G10/Ludność!B7 -> 0.0005403260144
A109: 0 - 4
A110: 5 - 9
A111: 10 - 14
A112: 15 - 19
A113: 20-29
A114: 30-39
A115: 40-49
A116: 50-59
A117: 60-69
A118: 70-79
A119: 80 lat i więcej
A120: Ciąża
A121: Ogółem | B121: =G11/Ludność!B7 -> 0.00980957963
A122: 0 - 4
A123: 5 - 9
A124: 10 - 14
A125: 15 - 19
A126: 20-29
A127: 30-39
A128: 40-49
A129: 50-59
A130: 60-69
A131: 70-79
A132: 80 lat i więcej
A133: Osoby 65+
A134: Ogółem | B134: =G12/Ludność!B7 -> 0.1626099287
A135: 0 - 4
A136: 5 - 9
A137: 10 - 14
A138: 15 - 19
A139: 20-29
A140: 30-39
A141: 40-49
A142: 50-59
A143: 60-69
A144: 70-79
A145: 80 lat i więcej
A146: Dzieci poniżej 4 roku życia
A147: Ogółem | B147: =G13/Ludność!B7 -> 0.05094434837
A148: 0 - 4
A149: 5 - 9
A150: 10 - 14
A151: 15 - 19
A152: 20-29
A153: 30-39
A154: 40-49
A155: 50-59
A156: 60-69
A157: 70-79
A158: 80 lat i więcej
A159: Dzieci poniżej 2 roku życia
A160: Ogółem | B160: =G14/Ludność!B7 -> 0.02956575219
A161: 0 - 4
A162: 5 - 9
A163: 10 - 14
A164: 15 - 19
A165: 20-29
A166: 30-39
A167: 40-49
A168: 50-59
A169: 60-69
A170: 70-79
A171: 80 lat i więcej
A172: 70-79
A173: 80 lat i więcej
A174: BMI > 40 | B174: =G15/Ludność!B7 -> 0.03942450733
A175: Ogółem
A176: 0 - 4
A177: 5 - 9
A178: 10 - 14
A179: 15 - 19
A180: 20-29
A181: 30-39
A182: 40-49
A183: 50-59
A184: 60-69
A185: 70-79
A186: 80 lat i więcej
A187: Nowotwory
A188: Ogółem | B188: =G16/Ludność!B7 -> 0.009568380494
A189: 0 - 4
A190: 5 - 9
A191: 10 - 14
A192: 15 - 19
A193: 20-29
A194: 30-39
A195: 40-49
A196: 50-59
A197: 60-69
A198: 70-79
A199: 80 lat i więcej

Sheet Wybór powiązań (hidden)
C5: Małopolskie | E5: Kraków | F5: Dzieci poniżej 4 roku życia
C7: =MATCH(woj,wyb_woj,0) -> 6 | F7: =MATCH(cho,wyb_cho,0) -> 12
C15: Przedział wiekowy | D15: Liczba osób w województwie | E15: Liczba osób w powiecie | F15: Odsetek ogółem | G15: Liczba osób w danym województwie będących w danej grupie ryzyka | H15: Liczba osób w danych województwie i powiecie będących w danej grupie ryzyka
C16: 0 - 4 | D16: =SUMIFS('Wszystkie województwa'!D:D,'Wszystkie województwa'!$A:$A,woj,'Wszystkie województwa'!$B:$B,'Wszystkie województwa'!B4,'Wszystkie województwa'!$C:$C,'Wybór powiązań'!C16) -> 185734 | E16: =SUMIFS('Wszystkie województwa'!D:D,'Wszystkie województwa'!$A:$A,woj,'Wszystkie województwa'!$B:$B,'Wybór powiązań'!$E$5,'Wszystkie województwa'!$C:$C,'Wybór powiązań'!C16) -> 45445 | F16: =INDEX('Odsetki grupy ryzyka'!$F20:$T20,,MATCH(cho,'Odsetki grupy ryzyka'!$F$19:$T$19,0)) -> 0 | G16: =D16*F16 -> 0 | H16: =E16*F16 -> 0
C17: 5 - 9 | D17: =SUMIFS('Wszystkie województwa'!D:D,'Wszystkie województwa'!$A:$A,woj,'Wszystkie województwa'!$B:$B,'Wszystkie województwa'!B5,'Wszystkie województwa'!$C:$C,'Wybór powiązań'!C17) -> 181358 | E17: =SUMIFS('Wszystkie województwa'!D:D,'Wszystkie województwa'!$A:$A,woj,'Wszystkie województwa'!$B:$B,'Wybór powiązań'!$E$5,'Wszystkie województwa'!$C:$C,'Wybór powiązań'!C17) -> 36939 | F17: =INDEX('Odsetki grupy ryzyka'!$F21:$T21,,MATCH(cho,'Odsetki grupy ryzyka'!$F$19:$T$19,0)) -> 0 | G17: =D17*F17 -> 0 | H17: =E17*F17 -> 0
C18: 10 - 14 | D18: =SUMIFS('Wszystkie województwa'!D:D,'Wszystkie województwa'!$A:$A,woj,'Wszystkie województwa'!$B:$B,'Wszystkie województwa'!B6,'Wszystkie województwa'!$C:$C,'Wybór powiązań'!C18) -> 183113 | E18: =SUMIFS('Wszystkie województwa'!D:D,'Wszystkie województwa'!$A:$A,woj,'Wszystkie województwa'!$B:$B,'Wybór powiązań'!$E$5,'Wszystkie województwa'!$C:$C,'Wybór powiązań'!C18) -> 33867 | F18: =INDEX('Odsetki grupy ryzyka'!$F22:$T22,,MATCH(cho,'Odsetki grupy ryzyka'!$F$19:$T$19,0)) -> 0 | G18: 0 | H18: 0
C19: 15 - 19 | D19: =SUMIFS('Wszystkie województwa'!D:D,'Wszystkie województwa'!$A:$A,woj,'Wszystkie województwa'!$B:$B,'Wszystkie województwa'!B7,'Wszystkie województwa'!$C:$C,'Wybór powiązań'!C19) -> 169284 | E19: =SUMIFS('Wszystkie województwa'!D:D,'Wszystkie województwa'!$A:$A,woj,'Wszystkie województwa'!$B:$B,'Wybór powiązań'!$E$5,'Wszystkie województwa'!$C:$C,'Wybór powiązań'!C19) -> 30556 | F19: =INDEX('Odsetki grupy ryzyka'!$F23:$T23,,MATCH(cho,'Odsetki grupy ryzyka'!$F$19:$T$19,0)) -> 0 | G19: 0 | H19: 0
C20: 20 - 24 | D20: =SUMIFS('Wszystkie województwa'!D:D,'Wszystkie województwa'!$A:$A,woj,'Wszystkie województwa'!$B:$B,'Wszystkie województwa'!B8,'Wszystkie województwa'!$C:$C,'Wybór powiązań'!C20) -> 188924 | E20: =SUMIFS('Wszystkie województwa'!D:D,'Wszystkie województwa'!$A:$A,woj,'Wszystkie województwa'!$B:$B,'Wybór powiązań'!$E$5,'Wszystkie województwa'!$C:$C,'Wybór powiązań'!C20) -> 31581 | F20: =INDEX('Odsetki grupy ryzyka'!$F24:$T24,,MATCH(cho,'Odsetki grupy ryzyka'!$F$19:$T$19,0)) -> 0 | G20: 0 | H20: 0
C21: 25 - 29 | D21: =SUMIFS('Wszystkie województwa'!D:D,'Wszystkie województwa'!$A:$A,woj,'Wszystkie województwa'!$B:$B,'Wszystkie województwa'!B9,'Wszystkie województwa'!$C:$C,'Wybór powiązań'!C21) -> 234818 | E21: =SUMIFS('Wszystkie województwa'!D:D,'Wszystkie województwa'!$A:$A,woj,'Wszystkie województwa'!$B:$B,'Wybór powiązań'!$E$5,'Wszystkie województwa'!$C:$C,'Wybór powiązań'!C21) -> 46339 | F21: =INDEX('Odsetki grupy ryzyka'!$F25:$T25,,MATCH(cho,'Odsetki grupy ryzyka'!$F$19:$T$19,0)) -> 0 | G21: 0 | H21: 0
C22: 30 - 34 | D22: =SUMIFS('Wszystkie województwa'!D:D,'Wszystkie województwa'!$A:$A,woj,'Wszystkie województwa'!$B:$B,'Wszystkie województwa'!B10,'Wszystkie województwa'!$C:$C,'Wybór powiązań'!C22) -> 271815 | E22: =SUMIFS('Wszystkie województwa'!D:D,'Wszystkie województwa'!$A:$A,woj,'Wszystkie województwa'!$B:$B,'Wybór powiązań'!$E$5,'Wszystkie województwa'!$C:$C,'Wybór powiązań'!C22) -> 72390 | F22: =INDEX('Odsetki grupy ryzyka'!$F26:$T26,,MATCH(cho,'Odsetki grupy ryzyka'!$F$19:$T$19,0)) -> 0 | G22: 0 | H22: 0
C23: 35 - 39 | D23: =SUMIFS('Wszystkie województwa'!D:D,'Wszystkie województwa'!$A:$A,woj,'Wszystkie województwa'!$B:$B,'Wszystkie województwa'!B11,'Wszystkie województwa'!$C:$C,'Wybór powiązań'!C23) -> 288510 | E23: =SUMIFS('Wszystkie województwa'!D:D,'Wszystkie województwa'!$A:$A,woj,'Wszystkie województwa'!$B:$B,'Wybór powiązań'!$E$5,'Wszystkie województwa'!$C:$C,'Wybór powiązań'!C23) -> 76092 | F23: =INDEX('Odsetki grupy ryzyka'!$F27:$T27,,MATCH(cho,'Odsetki grupy ryzyka'!$F$19:$T$19,0)) -> 0 | G23: 0 | H23: 0
C24: 40 - 44 | D24: =SUMIFS('Wszystkie województwa'!D:D,'Wszystkie województwa'!$A:$A,woj,'Wszystkie województwa'!$B:$B,'Wszystkie województwa'!B12,'Wszystkie województwa'!$C:$C,'Wybór powiązań'!C24) -> 265025 | E24: =SUMIFS('Wszystkie województwa'!D:D,'Wszystkie województwa'!$A:$A,woj,'Wszystkie województwa'!$B:$B,'Wybór powiązań'!$E$5,'Wszystkie województwa'!$C:$C,'Wybór powiązań'!C24) -> 64320 | F24: =INDEX('Odsetki grupy ryzyka'!$F28:$T28,,MATCH(cho,'Odsetki grupy ryzyka'!$F$19:$T$19,0)) -> 0 | G24: 0 | H24: 0
C25: 45 - 49 | D25: =SUMIFS('Wszystkie województwa'!D:D,'Wszystkie województwa'!$A:$A,woj,'Wszystkie województwa'!$B:$B,'Wszystkie województwa'!B13,'Wszystkie województwa'!$C:$C,'Wybór powiązań'!C25) -> 229268 | E25: =SUMIFS('Wszystkie województwa'!D:D,'Wszystkie województwa'!$A:$A,woj,'Wszystkie województwa'!$B:$B,'Wybór powiązań'!$E$5,'Wszystkie województwa'!$C:$C,'Wybór powiązań'!C25) -> 51357 | F25: =INDEX('Odsetki grupy ryzyka'!$F29:$T29,,MATCH(cho,'Odsetki grupy ryzyka'!$F$19:$T$19,0)) -> 0 | G25: 0 | H25: 0
C26: 50 - 54 | D26: =SUMIFS('Wszystkie województwa'!D:D,'Wszystkie województwa'!$A:$A,woj,'Wszystkie województwa'!$B:$B,'Wszystkie województwa'!B14,'Wszystkie województwa'!$C:$C,'Wybór powiązań'!C26) -> 204168 | E26: =SUMIFS('Wszystkie województwa'!D:D,'Wszystkie województwa'!$A:$A,woj,'Wszystkie województwa'!$B:$B,'Wybór powiązań'!$E$5,'Wszystkie województwa'!$C:$C,'Wybór powiązań'!C26) -> 41341 | F26: =INDEX('Odsetki grupy ryzyka'!$F30:$T30,,MATCH(cho,'Odsetki grupy ryzyka'!$F$19:$T$19,0)) -> 0 | G26: 0 | H26: 0
C27: 55 - 59 | D27: =SUMIFS('Wszystkie województwa'!D:D,'Wszystkie województwa'!$A:$A,woj,'Wszystkie województwa'!$B:$B,'Wszystkie województwa'!B15,'Wszystkie województwa'!$C:$C,'Wybór powiązań'!C27) -> 207622 | E27: =SUMIFS('Wszystkie województwa'!D:D,'Wszystkie województwa'!$A:$A,woj,'Wszystkie województwa'!$B:$B,'Wybór powiązań'!$E$5,'Wszystkie województwa'!$C:$C,'Wybór powiązań'!C27) -> 42144 | F27: =INDEX('Odsetki grupy ryzyka'!$F31:$T31,,MATCH(cho,'Odsetki grupy ryzyka'!$F$19:$T$19,0)) -> 0 | G27: 0 | H27: 0
C28: 60 - 64 | D28: =SUMIFS('Wszystkie województwa'!D:D,'Wszystkie województwa'!$A:$A,woj,'Wszystkie województwa'!$B:$B,'Wszystkie województwa'!B16,'Wszystkie województwa'!$C:$C,'Wybór powiązań'!C28) -> 220893 | E28: =SUMIFS('Wszystkie województwa'!D:D,'Wszystkie województwa'!$A:$A,woj,'Wszystkie województwa'!$B:$B,'Wybór powiązań'!$E$5,'Wszystkie województwa'!$C:$C,'Wybór powiązań'!C28) -> 51382 | F28: =INDEX('Odsetki grupy ryzyka'!$F32:$T32,,MATCH(cho,'Odsetki grupy ryzyka'!$F$19:$T$19,0)) -> 0 | G28: 0 | H28: 0
C29: 65+ | D29: =SUMIFS('Wszystkie województwa'!D:D,'Wszystkie województwa'!$A:$A,woj,'Wszystkie województwa'!$B:$B,'Wszystkie województwa'!B17,'Wszystkie województwa'!$C:$C,'Wybór powiązań'!C29) -> 580369 | E29: =SUMIFS('Wszystkie województwa'!D:D,'Wszystkie województwa'!$A:$A,woj,'Wszystkie województwa'!$B:$B,'Wybór powiązań'!$E$5,'Wszystkie województwa'!$C:$C,'Wybór powiązań'!C29) -> 155362 | F29: =INDEX('Odsetki grupy ryzyka'!$F33:$T33,,MATCH(cho,'Odsetki grupy ryzyka'!$F$19:$T$19,0)) -> 0 | G29: 0 | H29: 0
C30: Ogółem | D30: =SUM(D16:D29) -> 3410901 | E30: =SUM(E16:E29) -> 779115 | F30: =INDEX('Odsetki grupy ryzyka'!$F34:$T34,,MATCH(cho,'Odsetki grupy ryzyka'!$F$19:$T$19,0)) -> 0.05094434837 | G30: 173766.1288 | H30: 39691.50598
G31: =SUM(G16:G30) -> 173766.1288 | H31: =SUM(H16:H30) -> 39691.50598
A34: Dolnośląskie | B34: ='Wszystkie województwa'!D4 -> 2900163 | C34: =ROUNDUP(B34/1000000,0)-1 -> 2
A35: Lubelskie | B35: 2108270 | C35: 2
A36: Lubuskie | B36: 1011592 | C36: 1
A37: Łódzkie | B37: 2454779 | C37: 2
A38: Małopolskie | B38: 3410901 | C38: 3
A39: Mazowieckie | B39: 5423168 | C39: 5
A40: Opolskie | B40: 982626 | C40: 0
A41: Podkarpackie | B41: 2127164 | C41: 2
A42: Podlaskie | B42: 1178353 | C42: 1
A43: Pomorskie | B43: 2343928 | C43: 2
A44: Śląskie | B44: 4517635 | C44: 4
A45: Świętokrzyskie | B45: 1233961 | C45: 1
A46: Warmińsko-Mazurskie | B46: 1422737 | C46: 1
A47: Wielkopolskie | B47: 3498733 | C47: 3
A48: Zachodniopomorskie | B48: 1696193 | C48: 1
A49: Kujawsko-Pomorskie | B49: ='Wszystkie województwa'!D531 -> 2072373 | C49: 2
A51: =MIN(B34:B49) -> 982626
A52: =MAX(B34:B49) -> 5423168
B63: R | C63: G | D63: B
B64: 10 | C64: 28 | D64: 78 | E64: =C39 -> 5
B65: 14 | C65: 77 | D65: 116 | E65: =C44 -> 4
B66: 52 | C66: 104 | D66: 162 | E66: =C38 -> 3
B67: 124 | C67: 160 | D67: 232 | E67: =C37 -> 2
B68: 197 | C68: 207 | D68: 237 | E68: =C36 -> 1
B69: 240 | C69: 244 | D69: 250 | E69: =C40 -> 0
A72: Województwo | B72: l.mieszkańców | C72: Osoby 65+ | D72: Zapadalność - Grypa
A73: Odsetek bedących w grupie ryzyka | C73: =INDEX('Odsetki grupy ryzyka'!$F$34:$T$34,MATCH('Wybór powiązań'!$C$72,'Odsetki grupy ryzyka'!$F$19:$T$19,0)) -> 0.1626099287
A74: Dolnośląskie | B74: 2900163 | C74: =C$73*$B74 -> 471595.2986 | D74: 216747
A75: Lubelskie | B75: 2108270 | C75: =C$73*$B75 -> 342825.6343 | D75: 149860
A76: Lubuskie | B76: 1011592 | C76: 164494.903 | D76: 42634
A77: Łódzkie | B77: 2454779 | C77: 399171.4381 | D77: 198599
A78: Małopolskie | B78: 3410901 | C78: 554646.3683 | D78: 372222
A79: Mazowieckie | B79: 5423168 | C79: 881860.9616 | D79: 685500
A80: Opolskie | B80: 982626 | C80: 159784.7438 | D80: 43318
A81: Podkarpackie | B81: 2127164 | C81: 345897.9863 | D81: 75593
A82: Podlaskie | B82: 1178353 | C82: 191611.8973 | D82: 72223
A83: Pomorskie | B83: 2343928 | C83: 381145.9649 | D83: 666803
A84: Śląskie | B84: 4517635 | C84: 734612.3051 | D84: 376857
A85: Świętokrzyskie | B85: 1233961 | C85: 200654.3102 | D85: 81359
A86: Warmińsko-Mazurskie | B86: 1422737 | C86: 231351.1621 | D86: 85011
A87: Wielkopolskie | B87: 3498733 | C87: 568928.7236 | D87: 619477
A88: Zachodniopomorskie | B88: 1696193 | C88: 275817.8227 | D88: 67555
A89: Kujawsko-Pomorskie | B89: 2072373 | C89: 336988.4257 | D89: 215316
A90: Polska | B90: =SUM(B74:B89) -> 38382576 | C90: =B90*C73 -> 6241387.945 | D90: 3969074

Sheet Zachorowania grypa (hidden)
A2: Meldunki Epidemiologiczne
A3: Zachorowania i podejrzenia zachorowań na grypę w Polsce
A4: Narodowy Instytut Zdrowia Publicznego - Państwowy Zakład Higieny • Zakład Epidemiologii oraz Zakład Badania Wirusów Grypy. Krajowy Ośrodek ds. Grypy
A5: Główny Inspektorat Sanitarny • Departament Zapobiegania oraz Zwalczania Zakażeń i Chorób Zakaźnych u Ludzi
D8: Ogółem | I8: Wiek (ukończone lata)
A9: Województwo | F9: 0 - 4 | H9: 5 - 14 | J9: 15 - 64 | L9: 65+
C10: liczba | D10: zapadal- | E10: wzrost/spa- | F10: liczba | G10: zapadal- | H10: liczba | I10: zapadal- | J10: liczba | K10: zapadal- | L10: liczba | M10: zapadal-
D11: ność 1) | E11: dek zap. 2,3) | G11: ność 1) | I11: ność 1) | K11: ność 1) | M11: ność 1)
A12: POLSKA | C12: 4310075 | D12: 1483.07 | E12: 17.9 | F12: 1009082 | G12: 6978.37 | H12: 1026319 | I12: 3534.76 | J12: 1924427 | K12: 838.69 | L12: 313350.81 | M12: 37683.16
A13: Dolnośląskie | C13: 192757 | D13: 876.92 | E13: 8.64 | F13: 40696 | G13: 3939.24 | H13: 42639 | I13: 2082.21 | J13: 90174 | K13: 519.1 | L13: 17210.08 | M13: 2584.2
A14: Kujawsko-Pomorskie | C14: 280269 | D14: 1778.56 | E14: 9.43 | F14: 66339 | G14: 8636.31 | H14: 74120 | I14: 4618.48 | J14: 119026 | K14: 940.33 | L14: 18555.09 | M14: 3122.81
A15: Lubelskie | C15: 99436 | D15: 610.43 | E15: 19.94 | F15: 19183 | G15: 2488.22 | H15: 20749 | I15: 1271.4 | J15: 47613 | K15: 2267.99 | L15: 9072.82 | M15: 1318.05
A16: Lubuskie | C16: 57933 | D16: 754.13 | E16: 4.89 | F16: 15174 | G16: 3972.43 | H16: 16144 | I16: 2066.63 | J16: 21070 | K16: 2760.29 | L16: 2985.17 | M16: 492.01
A17: Łódzkie | C17: 238373 | D17: 1263.43 | E17: 11.33 | F17: 53224 | G17: 6062.4 | H17: 58296 | I17: 3302.99 | J17: 102475 | K17: 706.34 | L17: 22136.93 | M17: 2981.22
A18: Małopolskie | C18: 425668 | D18: 1669.63 | E18: 32.83 | F18: 95342 | G18: 7094.27 | H18: 103283 | I18: 3879.4 | J18: 191382 | K18: 964.18 | L18: 32437.49 | M18: 4152.27
A19: Mazowieckie | C19: 808925 | D19: 2003.52 | E19: 34.53 | F19: 190981 | G19: 8766.57 | H19: 191651 | I19: 4618.18 | J19: 365348 | K19: 1144.67 | L19: 53740.3 | M19: 8186.16
A20: Opolskie | C20: 52098 | D20: 692.54 | E20: 4.34 | F20: 11114 | G20: 3431.11 | H20: 10869 | I20: 1631.12 | J20: 21443 | K20: 3514.28 | L20: 5004.86 | M20: 1010.91
A21: Podkarpackie | C21: 70004 | D21: 438.35 | E21: 11.17 | F21: 13271 | G21: 1701.79 | H21: 16495 | I21: 991.1 | J21: 30907 | K21: 2146.67 | L21: 6970.53 | M21: 794.25
A22: Podlaskie | C22: 107992 | D22: 1201.72 | E22: 30.37 | F22: 25264 | G22: 6065.08 | H22: 25836 | I22: 2952.26 | J22: 43235 | K22: 4196.13 | L22: 9435.23 | M22: 1403.54
A23: Pomorskie | C23: 841702 | D23: 4814.17 | E23: 12.75 | F23: 221649 | G23: 23275.53 | H23: 192638 | I23: 10150.63 | J23: 367963 | K23: 2652.62 | L23: 52989.42 | M23: 8879.01
A24: Śląskie | C24: 287108 | D24: 832.91 | E24: 7.92 | F24: 62661 | G24: 3800.36 | H24: 66810 | I24: 2089.05 | J24: 134778 | K24: 492.86 | L24: 20397.59 | M24: 2881.7
A25: Świętokrzyskie | C25: 88789 | D25: 939.29 | E25: 23.57 | F25: 18151 | G25: 4340.85 | H25: 22225 | I25: 2498.48 | J25: 36090 | K25: 4110.99 | L25: 8116.11 | M25: 1188.71
A26: Warmińsko-Mazurskie | C26: 77627 | D26: 717.37 | E26: 5.85 | F26: 14605 | G26: 2722.86 | H26: 20514 | I26: 1821.78 | J26: 32769 | K26: 2721.35 | L26: 7003.1 | M26: 925.99
A27: Wielkopolskie | C27: 605382 | D27: 2307.9 | E27: 25.97 | F27: 144399 | G27: 10159.61 | H27: 146277 | I27: 5252.37 | J27: 266017 | K27: 1281.17 | L27: 43541.95 | M27: 6444.98
A28: Zachodniopomorskie | C28: 76012 | D28: 585.99 | E28: 8.98 | F28: 17029 | G28: 2823.62 | H28: 17773 | I28: 1401.74 | J28: 31769 | K28: 4099.99 | L28: 5242.48 | M28: 744.44

Sheet Ciąża (hidden)
A1: TABL. 08.4. URODZENIA WEDŁUG PŁCI NOWORODKA I WOJEWÓDZTW
A2: BIRTHS BY SEX OF INFANT AND VOIVODSHIP
A4: LATA YEARS WOJEWÓDZTWA VOIVODSHIPS | B4: Ogółem Total | C4: Chłopcy Males | D4: Dziew- częta Females | E4: Miasta Urban areas | H4: Wieś Rural areas
E5: razem total | F5: chłopcy males | G5: dziew- częta females | H5: razem total | I5: chłopcy males | J5: dziew- częta females
A6: URODZENIA ŻYWE LIVE BIRTHS
A7: POLSKA 1980 | B7: 695759 | C7: 357117 | D7: 338642 | E7: 383387 | F7: 196678 | G7: 186709 | H7: 312372 | I7: 160439 | J7: 151933
A8: POLSKA 1980 | B8: 695759 | C8: 357117 | D8: 338642 | E8: 383387 | F8: 196678 | G8: 186709 | H8: 312372 | I8: 160439 | J8: 151933
A9: POLAND 1990 | B9: 547720 | C9: 281664 | D9: 266056 | E9: 292490 | F9: 150700 | G9: 141790 | H9: 255230 | I9: 130964 | J9: 124266
A10: 2000 | B10: 378348 | C10: 194824 | D10: 183524 | E10: 208328 | F10: 107590 | G10: 100738 | H10: 170020 | I10: 87234 | J10: 82786 | M10: =B12-'Ciąża wielorakie'!U9 -> 383291.9167
A11: 2010 | B11: 413300 | C11: 214428 | D11: 198872 | E11: 241920 | F11: 125291 | G11: 116629 | H11: 171380 | I11: 89137 | J11: 82243
A12: 2018 | B12: 388178 | C12: 199820 | D12: 188358 | E12: 228714 | F12: 117564 | G12: 111150 | H12: 159464 | I12: 82256 | J12: 77208
A13: 2019 | B13: 374954 | C13: 192685 | D13: 182269 | E13: 220300 | F13: 113299 | G13: 107001 | H13: 154654 | I13: 79386 | J13: 75268
A14: Dolnośląskie | B14: 26922 | C14: 14001 | D14: 12921 | E14: 18159 | F14: 9396 | G14: 8763 | H14: 8763 | I14: 4605 | J14: 4158
A15: Kujawsko-pomorskie | B15: 19342 | C15: 9996 | D15: 9346 | E15: 10974 | F15: 5686 | G15: 5288 | H15: 8368 | I15: 4310 | J15: 4058
A16: Lubelskie | B16: 19286 | C16: 9918 | D16: 9368 | E16: 8868 | F16: 4590 | G16: 4278 | H16: 10418 | I16: 5328 | J16: 5090
A17: Lubuskie | B17: 9036 | C17: 4541 | D17: 4495 | E17: 5851 | F17: 2987 | G17: 2864 | H17: 3185 | I17: 1554 | J17: 1631
A18: Łódzkie | B18: 21644 | C18: 10994 | D18: 10650 | E18: 12991 | F18: 6554 | G18: 6437 | H18: 8653 | I18: 4440 | J18: 4213
A19: Małopolskie | B19: 36946 | C19: 18844 | D19: 18102 | E19: 17553 | F19: 8958 | G19: 8595 | H19: 19393 | I19: 9886 | J19: 9507
A20: Mazowieckie | B20: 59577 | C20: 30732 | D20: 28845 | E20: 39199 | F20: 20260 | G20: 18939 | H20: 20378 | I20: 10472 | J20: 9906
A21: Opolskie | B21: 8493 | C21: 4273 | D21: 4220 | E21: 4441 | F21: 2218 | G21: 2223 | H21: 4052 | I21: 2055 | J21: 1997
A22: Podkarpackie | B22: 20613 | C22: 10707 | D22: 9906 | E22: 8030 | F22: 4182 | G22: 3848 | H22: 12583 | I22: 6525 | J22: 6058
A23: Podlaskie | B23: 11342 | C23: 5829 | D23: 5513 | E23: 7314 | F23: 3734 | G23: 3580 | H23: 4028 | I23: 2095 | J23: 1933
A24: Pomorskie | B24: 26041 | C24: 13426 | D24: 12615 | E24: 15399 | F24: 7947 | G24: 7452 | H24: 10642 | I24: 5479 | J24: 5163
A25: Śląskie | B25: 40508 | C25: 20753 | D25: 19755 | E25: 30364 | F25: 15610 | G25: 14754 | H25: 10144 | I25: 5143 | J25: 5001
A26: Świętokrzyskie | B26: 10220 | C26: 5213 | D26: 5007 | E26: 4214 | F26: 2142 | G26: 2072 | H26: 6006 | I26: 3071 | J26: 2935
A27: Warmińsko-mazurskie | B27: 12911 | C27: 6632 | D27: 6279 | E27: 7797 | F27: 3987 | G27: 3810 | H27: 5114 | I27: 2645 | J27: 2469
A28: Wielkopolskie | B28: 37459 | C28: 19270 | D28: 18189 | E28: 19176 | F28: 9880 | G28: 9296 | H28: 18283 | I28: 9390 | J28: 8893
A29: Zachodniopomorskie | B29: 14614 | C29: 7556 | D29: 7058 | E29: 9970 | F29: 5168 | G29: 4802 | H29: 4644 | I29: 2388 | J29: 2256
A31: URODZENIA MARTWE STILLBIRTHS
A33: POLSKA 1980 | B33: 5794 | C33: 3085 | D33: 2709 | E33: 3228 | F33: 1700 | G33: 1528 | H33: 2566 | I33: 1385 | J33: 1181
A34: POLAND 1990 | B34: 3940 | C34: 2059 | D34: 1881 | E34: 2089 | F34: 1085 | G34: 1004 | H34: 1851 | I34: 974 | J34: 877
A35: 2000 | B35: 2128 | C35: 1129 | D35: 999 | E35: 1125 | F35: 593 | G35: 532 | H35: 1003 | I35: 536 | J35: 467
A36: 2010 | B36: 1730 | C36: 896 | D36: 834 | E36: 980 | F36: 484 | G36: 496 | H36: 750 | I36: 412 | J36: 338
A37: 2018a | B37: 1277 | C37: 648 | D37: 629 | E37: 734 | F37: 377 | G37: 357 | H37: 543 | I37: 271 | J37: 272
A38: 2019a | B38: 1238 | C38: 642 | D38: 596 | E38: 734 | F38: 374 | G38: 360 | H38: 504 | I38: 268 | J38: 236
A39: Dolnośląskie | B39: 76 | C39: 32 | D39: 44 | E39: 57 | F39: 23 | G39: 34 | H39: 19 | I39: 9 | J39: 10
A40: Kujawsko-pomorskie | B40: 85 | C40: 45 | D40: 40 | E40: 45 | F40: 20 | G40: 25 | H40: 40 | I40: 25 | J40: 15
A41: Lubelskie | B41: 52 | C41: 26 | D41: 26 | E41: 22 | F41: 12 | G41: 10 | H41: 30 | I41: 14 | J41: 16
A42: Lubuskie | B42: 27 | C42: 10 | D42: 17 | E42: 19 | F42: 8 | G42: 11 | H42: 8 | I42: 2 | J42: 6
A43: Łódzkie | B43: 68 | C43: 38 | D43: 30 | E43: 39 | F43: 23 | G43: 16 | H43: 29 | I43: 15 | J43: 14
A44: Małopolskie | B44: 95 | C44: 51 | D44: 44 | E44: 46 | F44: 19 | G44: 27 | H44: 49 | I44: 32 | J44: 17
A45: Mazowieckie | B45: 195 | C45: 96 | D45: 99 | E45: 122 | F45: 62 | G45: 60 | H45: 73 | I45: 34 | J45: 39
A46: Opolskie | B46: 31 | C46: 15 | D46: 16 | E46: 16 | F46: 9 | G46: 7 | H46: 15 | I46: 6 | J46: 9
A47: Podkarpackie | B47: 65 | C47: 44 | D47: 21 | E47: 28 | F47: 22 | G47: 6 | H47: 37 | I47: 22 | J47: 15
A48: Podlaskie | B48: 37 | C48: 16 | D48: 21 | E48: 23 | F48: 8 | G48: 15 | H48: 14 | I48: 8 | J48: 6
A49: Pomorskie | B49: 110 | C49: 56 | D49: 54 | E49: 65 | F49: 31 | G49: 34 | H49: 45 | I49: 25 | J49: 20
A50: Śląskie | B50: 138 | C50: 68 | D50: 70 | E50: 105 | F50: 52 | G50: 53 | H50: 33 | I50: 16 | J50: 17
A51: Świętokrzyskie | B51: 32 | C51: 17 | D51: 15 | E51: 11 | F51: 7 | G51: 4 | H51: 21 | I51: 10 | J51: 11
A52: Warmińsko-mazurskie | B52: 39 | C52: 23 | D52: 16 | E52: 26 | F52: 15 | G52: 11 | H52: 13 | I52: 8 | J52: 5
A53: Wielkopolskie | B53: 128 | C53: 69 | D53: 59 | E53: 72 | F53: 41 | G53: 31 | H53: 56 | I53: 28 | J53: 28
A54: Zachodniopomorskie | B54: 60 | C54: 36 | D54: 24 | E54: 38 | F54: 22 | G54: 16 | H54: 22 | I54: 14 | J54: 8
A56: a Patrz uwagi do działu II, pkt 15.
A57: a See notes to part II, item 15.
B58: 2014 | C58: 158026 | D58: 157461 | E58: 124366 | F58: 33095 | G58: 565 | H58: =D58/C58*100 -> 99.6424639 | I58: =F58/D58*100 -> 21.01790285
A60: Chłopcy | B60: 1980 | C60: 161824 | D60: 160439 | E60: 153674 | F60: 6765 | G60: 1385 | H60: 99.1 | I60: 4.2
A61: Males | B61: 1990 | C61: 131938 | D61: 130964 | E61: 125175 | F61: 5789 | G61: 974 | H61: 99.3 | I61: 4.4
B62: 2000 | C62: 87770 | D62: 87234 | E62: 79667 | F62: 7567 | G62: 536 | H62: 99.4 | I62: 8.7
B63: 2010 | C63: 89549 | D63: 89137 | E63: 74017 | F63: 15120 | G63: 412 | H63: 99.5 | I63: 17
B64: 2013 | C64: 80209 | D64: 79894 | E64: 63742 | F64: 16152 | G64: 315 | H64: 99.6 | I64: 20.1
B65: 2014 | C65: 81445 | D65: 81132 | E65: 64144 | F65: 16988 | G65: 313 | H65: =D65/C65*100 -> 99.61569157 | I65: =F65/D65*100 -> 20.93871715
A67: Dziewczęta | B67: 1980 | C67: 153114 | D67: 151933 | E67: 145538 | F67: 6395 | G67: 1181 | H67: 99.2 | I67: 4.2
A68: Females | B68: 1990 | C68: 125143 | D68: 124266 | E68: 118812 | F68: 5454 | G68: 877 | H68: 99.3 | I68: 4.4
B69: 2000 | C69: 83253 | D69: 82786 | E69: 75364 | F69: 7422 | G69: 467 | H69: 99.4 | I69: 9
B70: 2010 | C70: 82581 | D70: 82243 | E70: 68165 | F70: 14078 | G70: 338 | H70: 99.6 | I70: 17.1
B71: 2013 | C71: 76223 | D71: 75933 | E71: 60619 | F71: 15314 | G71: 290 | H71: 99.6 | I71: 20.2
B72: 2014 | C72: 76581 | D72: 76329 | E72: 60222 | F72: 16107 | G72: 252 | H72: =D72/C72*100 -> 99.67093666 | I72: =F72/D72*100 -> 21.1020713
A75: a Patrz uwagi do działu II, punkty 18 i 32.
A76: a See notes to part II, items 18 and 32.

Sheet Ciąża wielorakie (hidden)
A1: TABL. 08.28. URODZENIA I PORODY WEDŁUG WOJEWÓDZTW W 2019 R.
A2: BIRTHS AND DELIVERIES BY VOIVODSHIP IN 2018
A4: WYSZCZEGÓLNIENIE SPECIFICATION | B4: Urodzeniaa Birthsa | G4: Porody Deliveries
B5: ogółem total | C5: pojedyn- cze single | D5: wielorakie multiple by kind of birth | G5: ogółem total | H5: w tym wielorakieb of witch multipleb by kind of birth
D6: bliźnięta twins | E6: trojaczki triplets | F6: czwo- raczki quad- ruples | H6: bliźniacze twin | I6: trojacze triple | J6: czwo- racze quad- ruples
A8: P O L S K A P O L A N D | B8: 376192 | C8: 366334 | D8: 9606 | E8: 241 | F8: 11 | G8: 371250 | H8: 4831 | I8: 83 | J8: 2
A9: miasta urban areas | B9: 221034 | C9: 215136 | D9: 5768 | E9: 130 | F9: – | G9: 218080 | H9: 2899 | I9: 45 | J9: – | O9: =D8/2 -> 4803 | Q9: =E8/3 -> 80.33333333 | S9: =F8/4 -> 2.75 | U9: =SUM(O9:S9) -> 4886.083333
A10: wieś rural areas | B10: 155158 | C10: 151198 | D10: 3838 | E10: 111 | F10: 11 | G10: 153170 | H10: 1932 | I10: 38 | J10: 2
A11: Dolnośląskie | B11: 26998 | C11: 26240 | D11: 745 | E11: 13 | F11: – | G11: 26620 | H11: 375 | I11: 5 | J11: –
A12: Kujawsko-pomorskie | B12: 19427 | C12: 18913 | D12: 493 | E12: 21 | F12: – | G12: 19168 | H12: 248 | I12: 7 | J12: –
A13: Lubelskie | B13: 19338 | C13: 18870 | D13: 458 | E13: 10 | F13: – | G13: 19103 | H13: 229 | I13: 4 | J13: –
A14: Lubuskie | B14: 9063 | C14: 8843 | D14: 214 | E14: 6 | F14: – | G14: 8952 | H14: 107 | I14: 2 | J14: –
A15: Łódzkie | B15: 21712 | C15: 21202 | D15: 488 | E15: 22 | F15: – | G15: 21454 | H15: 244 | I15: 8 | J15: –
A16: Małopolskie | B16: 37041 | C16: 36104 | D16: 899 | E16: 32 | F16: 6 | G16: 36570 | H16: 454 | I16: 11 | J16: 1
A17: Mazowieckie | B17: 59772 | C17: 58104 | D17: 1647 | E17: 21 | F17: – | G17: 58939 | H17: 828 | I17: 7 | J17: –
A18: Opolskie | B18: 8524 | C18: 8322 | D18: 196 | E18: 6 | F18: – | G18: 8422 | H18: 98 | I18: 2 | J18: –
A19: Podkarpackie | B19: 20678 | C19: 20130 | D19: 536 | E19: 12 | F19: – | G19: 20403 | H19: 269 | I19: 4 | J19: –
A20: Podlaskie | B20: 11379 | C20: 11083 | D20: 287 | E20: 9 | F20: – | G20: 11230 | H20: 144 | I20: 3 | J20: –
A21: Pomorskie | B21: 26151 | C21: 25444 | D21: 689 | E21: 18 | F21: – | G21: 25797 | H21: 347 | I21: 6 | J21: –
A22: Śląskie | B22: 40646 | C22: 39532 | D22: 1082 | E22: 27 | F22: 5 | G22: 40089 | H22: 547 | I22: 9 | J22: 1
A23: Świętokrzyskie | B23: 10252 | C23: 10013 | D23: 233 | E23: 6 | F23: – | G23: 10132 | H23: 117 | I23: 2 | J23: –
A24: Warmińsko-mazurskie | B24: 12950 | C24: 12646 | D24: 299 | E24: 5 | F24: – | G24: 12798 | H24: 150 | I24: 2 | J24: –
A25: Wielkopolskie | B25: 37587 | C25: 36572 | D25: 991 | E25: 24 | F25: – | G25: 37078 | H25: 498 | I25: 8 | J25: –
A26: Zachodniopomorskie | B26: 14674 | C26: 14316 | D26: 349 | E26: 9 | F26: – | G26: 14495 | H26: 176 | I26: 3 | J26: –
A29: a Żywe i martwe.
A30: b Wynikiem których były urodzenie żywe oraz martwe, w tym z wagą poniżej 500g - z definicji nieujmowane w statystyce urodzeń martwych. Patrz uwagi do działu II, pkt 16.
A31: a Live births and stillbirths.
A32: a Including cases which concern live births and stillbirths weighting below 500 g but exluded from stillbirth's statistics. See notes to part II, item 16.

Sheet NEW_TEMP (hidden)
C10: 3725918
C11: 35400 | E11: 119224
C12: 53568 | E12: 102272
C13: =C10-C12-C11 -> 3636950 | E13: =E11/E12 -> 1.165754068 | H13: 4310075
H14: =H13/C13 -> 1.185079531
H15: =1-C13/H13 -> 0.1561747765
L17: 1 | M17: 5
L18: 2 | M18: 6
L19: 3 | M19: 7
L20: 4 | M20: 8
L22: =INDEX(L17:M20,1) -> 
D27: POLSKA | E27: 24021 | F27: 8.94 | G27: -2.59 | H27: 2408 | I27: 17.97 | J27: 2763 | K27: 9.97 | L27: 15715 | M27: 8.74 | N27: 3135 | O27: 6.55
D28: Dolnośląskie | E28: 1499 | F28: 7.38 | G28: 0.53 | H28: 125 | I28: 12.98 | J28: 145 | K28: 7.3 | L28: 999 | M28: 7.37 | N28: 230 | O28: 6.06
D29: Kujawsko-Pomorskie | E29: 997 | F29: 6.87 | G29: -1.41 | H29: 154 | I29: 22.31 | J29: 145 | K29: 9.62 | L29: 553 | M29: 5.65 | N29: 145 | O29: 5.73
D30: Lubelskie | E30: 737 | F30: 4.98 | G30: 0.5 | H30: 70 | I30: 10.17 | J30: 72 | K30: 4.84 | L30: 505 | M30: 5.1 | N30: 90 | O30: 3.33
D31: Lubuskie | E31: 161 | F31: 2.27 | G31: -0.19 | H31: 23 | I31: 6.81 | J31: 13 | K31: 1.74 | L31: 103 | M31: 2.15 | N31: 22 | O31: 1.8
D32: Łódzkie | E32: 1121 | F32: 6.51 | G32: -1.37 | H32: 93 | I32: 11.78 | J32: 115 | K32: 6.85 | L32: 753 | M32: 6.64 | N32: 160 | O32: 4.69
D33: Małopolskie | E33: 2345 | F33: 9.84 | G33: 0.61 | H33: 265 | I33: 20.54 | J33: 285 | K33: 11.22 | L33: 1539 | M33: 9.62 | N33: 256 | O33: 6.39
D34: Mazowieckie | E34: 4119 | F34: 10.87 | G34: -7.72 | H34: 393 | I34: 18.8 | J34: 459 | K34: 11.17 | L34: 2732 | M34: 10.97 | N34: 535 | O34: 7.89
D35: Opolskie | E35: 307 | F35: 4.46 | G35: 0.01 | H35: 22 | I35: 7.3 | J35: 19 | K35: 3.05 | L35: 217 | M35: 4.63 | N35: 49 | O35: 3.84
D36: Podkarpackie | E36: 413 | F36: 2.77 | G36: 0.3 | H36: 33 | I36: 4.54 | J36: 62 | K36: 4.05 | L36: 261 | M36: 2.57 | N36: 57 | O36: 2.3
D37: Podlaskie | E37: 185 | F37: 2.24 | G37: 0.5 | H37: 23 | I37: 5.76 | J37: 22 | K37: 2.73 | L37: 118 | M37: 2.11 | N37: 22 | O37: 1.52
D38: Pomorskie | E38: 3778 | F38: 23.09 | G38: -7.82 | H38: 435 | I38: 47.57 | J38: 393 | K38: 21.5 | L38: 2521 | M38: 23.13 | N38: 429 | O38: 15.75
D39: Śląskie | E39: 3130 | F39: 9.88 | G39: -3.25 | H39: 329 | I39: 22.14 | J39: 381 | K39: 12.27 | L39: 2065 | M39: 9.79 | N39: 355 | O39: 5.94
D40: Świętokrzyskie | E40: 390 | F40: 4.5 | G40: -6.98 | H40: 33 | I40: 8.92 | J40: 43 | K40: 5.23 | L40: 266 | M40: 4.59 | N40: 48 | O40: 2.86
D41: Warmińsko-Mazurskie | E41: 616 | F41: 6.17 | G41: -0.23 | H41: 78 | I41: 16.45 | J41: 86 | K41: 8.15 | L41: 303 | M41: 4.44 | N41: 149 | O41: 9.19
D42: Wielkopolskie | E42: 3996 | F42: 16.33 | G42: -3.64 | H42: 327 | I42: 24.5 | J42: 502 | K42: 18.6 | L42: 2609 | M42: 15.92 | N42: 558 | O42: 13.79
D43: Zachodniopomorskie | E43: 227 | F43: 1.91 | G43: -1.37 | H43: 5 | I43: 0.93 | J43: 21 | K43: 1.77 | L43: 171 | M43: 2.13 | N43: 30 | O43: 1.4

Sheet Arkusz1 (hidden)
A2: rok_kod_bez_litery | B2: (Wiele elementów)
A4: Etykiety wierszy | B4: Suma z liczba
A5: Dolnośląskie | B5: 216747
A6: Kujawsko-Pomorskie | B6: 215316
A7: Lubelskie | B7: 149860
A8: Lubuskie | B8: 42634
A9: Łódzkie | B9: 198599
A10: Małopolskie | B10: 372222
A11: Mazowieckie | B11: 685500
A12: Opolskie | B12: 43318
A13: Podkarpackie | B13: 75593
A14: Podlaskie | B14: 72223
A15: Pomorskie | B15: 666803
A16: Śląskie | B16: 376857
A17: Świętokrzyskie | B17: 81359
A18: Warmińsko-Mazurskie | B18: 85011
A19: Wielkopolskie | B19: 619477
A20: Zachodniopomorskie | B20: 67555
A21: Suma końcowa | B21: 3969074

Sheet NEW_Zapadalnosc (hidden)
G1: Ogółem | J1: 0-4 | L1: 4-15 | N1: 15-64 | P1: 65+ | R1: 0-4 | S1: 4+ | T1: skierowania do szpitala
A2: rok | B2: kod | C2: sort | D2: miesiac | E2: data | F2: Obszar | G2: liczba | H2: zapadalnosc | I2: wsrost/spadek | J2: liczba2 | K2: zapadalnosc3 | L2: liczba4 | M2: zapadalnosc5 | N2: liczba6 | O2: zapadalnosc7 | P2: liczba8 | Q2: zapadalnosc9 | R2: zgony | S2: zgony10 | T2: liczba3 | U2: odsetek | V2: rok_kod | W2: rok_kod_bez_litery
A3: 2019 | B3: 9A | C3: 545 | D3: =MID(zapadalnosc[[#This Row],[data]],FIND(" ",zapadalnosc[[#This Row],[data]])+1,3) -> wrz | E3: =_xlfn.XLOOKUP(zapadalnosc[[#This Row],[kod]],NEW_pomoc!$B$5:$B$52,NEW_pomoc!$C$5:$C$52) -> 1-7 wrz | F3: POLSKA | G3: 29553 | H3: 10.99 | I3: 2.76 | J3: 8715 | K3: 65.28 | L3: 4762 | M3: 17.27 | N3: 13125 | O3: 7.23 | P3: 2951 | Q3: 6.37 | T3: 78 | U3: 0.26 | V3: =_xlfn.CONCAT(zapadalnosc[[#This Row],[rok]],"-",zapadalnosc[[#This Row],[kod]]) -> 2019-9A | W3: =MID(zapadalnosc[[#This Row],[rok_kod]],1,LEN(zapadalnosc[[#This Row],[rok_kod]])-1) -> 2019-9
A4: 2019 | B4: 9A | C4: 546 | D4: =MID(zapadalnosc[[#This Row],[data]],FIND(" ",zapadalnosc[[#This Row],[data]])+1,3) -> wrz | E4: =_xlfn.XLOOKUP(zapadalnosc[[#This Row],[kod]],NEW_pomoc!$B$5:$B$52,NEW_pomoc!$C$5:$C$52) -> 1-7 wrz | F4: Dolnośląskie | G4: 1424 | H4: 7.01 | I4: 2.22 | J4: 409 | K4: 42.73 | L4: 233 | M4: 11.84 | N4: 621 | O4: 4.53 | P4: 161 | Q4: 4.4 | V4: =_xlfn.CONCAT(zapadalnosc[[#This Row],[rok]],"-",zapadalnosc[[#This Row],[kod]]) -> 2019-9A | W4: =MID(zapadalnosc[[#This Row],[rok_kod]],1,LEN(zapadalnosc[[#This Row],[rok_kod]])-1) -> 2019-9
A5: 2019 | B5: 9A | C5: 547 | D5: =MID(zapadalnosc[[#This Row],[data]],FIND(" ",zapadalnosc[[#This Row],[data]])+1,3) -> wrz | E5: =_xlfn.XLOOKUP(zapadalnosc[[#This Row],[kod]],NEW_pomoc!$B$5:$B$52,NEW_pomoc!$C$5:$C$52) -> 1-7 wrz | F5: Kujawsko-Pomorskie | G5: 1621 | H5: 11.13 | I5: 2.88 | J5: 463 | K5: 66.62 | L5: 307 | M5: 20.36 | N5: 706 | O5: 7.12 | P5: 145 | Q5: 5.93 | V5: =_xlfn.CONCAT(zapadalnosc[[#This Row],[rok]],"-",zapadalnosc[[#This Row],[kod]]) -> 2019-9A | W5: =MID(zapadalnosc[[#This Row],[rok_kod]],1,LEN(zapadalnosc[[#This Row],[rok_kod]])-1) -> 2019-9
A6: 2019 | B6: 9A | C6: 548 | D6: =MID(zapadalnosc[[#This Row],[data]],FIND(" ",zapadalnosc[[#This Row],[data]])+1,3) -> wrz | E6: =_xlfn.XLOOKUP(zapadalnosc[[#This Row],[kod]],NEW_pomoc!$B$5:$B$52,NEW_pomoc!$C$5:$C$52) -> 1-7 wrz | F6: Lubelskie | G6: 635 | H6: 4.28 | I6: 1.46 | J6: 148 | K6: 21.44 | L6: 104 | M6: 6.96 | N6: 289 | O6: 2.88 | P6: 94 | Q6: 3.58 | V6: =_xlfn.CONCAT(zapadalnosc[[#This Row],[rok]],"-",zapadalnosc[[#This Row],[kod]]) -> 2019-9A | W6: =MID(zapadalnosc[[#This Row],[rok_kod]],1,LEN(zapadalnosc[[#This Row],[rok_kod]])-1) -> 2019-9
A7: 2019 | B7: 9A | C7: 549 | D7: =MID(zapadalnosc[[#This Row],[data]],FIND(" ",zapadalnosc[[#This Row],[data]])+1,3) -> wrz | E7: =_xlfn.XLOOKUP(zapadalnosc[[#This Row],[kod]],NEW_pomoc!$B$5:$B$52,NEW_pomoc!$C$5:$C$52) -> 1-7 wrz | F7: Lubuskie | G7: 264 | H7: 3.71 | I7: 1.38 | J7: 103 | K7: 30.11 | L7: 56 | M7: 7.52 | N7: 98 | O7: 2.02 | P7: 7 | Q7: 0.6 | V7: =_xlfn.CONCAT(zapadalnosc[[#This Row],[rok]],"-",zapadalnosc[[#This Row],[kod]]) -> 2019-9A | W7: =MID(zapadalnosc[[#This Row],[rok_kod]],1,LEN(zapadalnosc[[#This Row],[rok_kod]])-1) -> 2019-9
A8: 2019 | B8: 9A | C8: 550 | D8: =MID(zapadalnosc[[#This Row],[data]],FIND(" ",zapadalnosc[[#This Row],[data]])+1,3) -> wrz | E8: =_xlfn.XLOOKUP(zapadalnosc[[#This Row],[kod]],NEW_pomoc!$B$5:$B$52,NEW_pomoc!$C$5:$C$52) -> 1-7 wrz | F8: Łódzkie | G8: 872 | H8: 5.04 | I8: 1 | J8: 259 | K8: 32.65 | L8: 126 | M8: 7.53 | N8: 381 | O8: 3.31 | P8: 106 | Q8: 3.19 | V8: =_xlfn.CONCAT(zapadalnosc[[#This Row],[rok]],"-",zapadalnosc[[#This Row],[kod]]) -> 2019-9A | W8: =MID(zapadalnosc[[#This Row],[rok_kod]],1,LEN(zapadalnosc[[#This Row],[rok_kod]])-1) -> 2019-9
A9: 2019 | B9: 9A | C9: 551 | D9: =MID(zapadalnosc[[#This Row],[data]],FIND(" ",zapadalnosc[[#This Row],[data]])+1,3) -> wrz | E9: =_xlfn.XLOOKUP(zapadalnosc[[#This Row],[kod]],NEW_pomoc!$B$5:$B$52,NEW_pomoc!$C$5:$C$52) -> 1-7 wrz | F9: Małopolskie | G9: 2508 | H9: 10.55 | I9: 2.77 | J9: 640 | K9: 50.41 | L9: 399 | M9: 15.8 | N9: 1226 | O9: 7.62 | P9: 243 | Q9: 6.25 | V9: =_xlfn.CONCAT(zapadalnosc[[#This Row],[rok]],"-",zapadalnosc[[#This Row],[kod]]) -> 2019-9A | W9: =MID(zapadalnosc[[#This Row],[rok_kod]],1,LEN(zapadalnosc[[#This Row],[rok_kod]])-1) -> 2019-9
A10: 2019 | B10: 9A | C10: 552 | D10: =MID(zapadalnosc[[#This Row],[data]],FIND(" ",zapadalnosc[[#This Row],[data]])+1,3) -> wrz | E10: =_xlfn.XLOOKUP(zapadalnosc[[#This Row],[kod]],NEW_pomoc!$B$5:$B$52,NEW_pomoc!$C$5:$C$52) -> 1-7 wrz | F10: Mazowieckie | G10: 6655 | H10: 17.63 | I10: 7.03 | J10: 1827 | K10: 88.49 | L10: 1015 | M10: 25.03 | N10: 3064 | O10: 12.23 | P10: 749 | Q10: 11.4 | T10: 24 | U10: 0.36 | V10: =_xlfn.CONCAT(zapadalnosc[[#This Row],[rok]],"-",zapadalnosc[[#This Row],[kod]]) -> 2019-9A | W10: =MID(zapadalnosc[[#This Row],[rok_kod]],1,LEN(zapadalnosc[[#This Row],[rok_kod]])-1) -> 2019-9
A11: 2019 | B11: 9A | C11: 553 | D11: =MID(zapadalnosc[[#This Row],[data]],FIND(" ",zapadalnosc[[#This Row],[data]])+1,3) -> wrz | E11: =_xlfn.XLOOKUP(zapadalnosc[[#This Row],[kod]],NEW_pomoc!$B$5:$B$52,NEW_pomoc!$C$5:$C$52) -> 1-7 wrz | F11: Opolskie | G11: 252 | H11: 3.64 | I11: -1.17 | J11: 63 | K11: 21.03 | L11: 28 | M11: 4.51 | N11: 130 | O11: 2.73 | P11: 31 | Q11: 2.5 | V11: =_xlfn.CONCAT(zapadalnosc[[#This Row],[rok]],"-",zapadalnosc[[#This Row],[kod]]) -> 2019-9A | W11: =MID(zapadalnosc[[#This Row],[rok_kod]],1,LEN(zapadalnosc[[#This Row],[rok_kod]])-1) -> 2019-9
A12: 2019 | B12: 9A | C12: 554 | D12: =MID(zapadalnosc[[#This Row],[data]],FIND(" ",zapadalnosc[[#This Row],[data]])+1,3) -> wrz | E12: =_xlfn.XLOOKUP(zapadalnosc[[#This Row],[kod]],NEW_pomoc!$B$5:$B$52,NEW_pomoc!$C$5:$C$52) -> 1-7 wrz | F12: Podkarpackie | G12: 173 | H12: 1.16 | I12: 0.3 | J12: 47 | K12: 6.52 | L12: 27 | M12: 1.76 | N12: 71 | O12: 0.69 | P12: 28 | Q12: 1.16 | V12: =_xlfn.CONCAT(zapadalnosc[[#This Row],[rok]],"-",zapadalnosc[[#This Row],[kod]]) -> 2019-9A | W12: =MID(zapadalnosc[[#This Row],[rok_kod]],1,LEN(zapadalnosc[[#This Row],[rok_kod]])-1) -> 2019-9
A13: 2019 | B13: 9A | C13: 555 | D13: =MID(zapadalnosc[[#This Row],[data]],FIND(" ",zapadalnosc[[#This Row],[data]])+1,3) -> wrz | E13: =_xlfn.XLOOKUP(zapadalnosc[[#This Row],[kod]],NEW_pomoc!$B$5:$B$52,NEW_pomoc!$C$5:$C$52) -> 1-7 wrz | F13: Podlaskie | G13: 316 | H13: 3.82 | I13: 1.43 | J13: 112 | K13: 28.41 | L13: 53 | M13: 6.56 | N13: 127 | O13: 2.24 | P13: 24 | Q13: 1.7 | V13: =_xlfn.CONCAT(zapadalnosc[[#This Row],[rok]],"-",zapadalnosc[[#This Row],[kod]]) -> 2019-9A | W13: =MID(zapadalnosc[[#This Row],[rok_kod]],1,LEN(zapadalnosc[[#This Row],[rok_kod]])-1) -> 2019-9
A14: 2019 | B14: 9A | C14: 556 | D14: =MID(zapadalnosc[[#This Row],[data]],FIND(" ",zapadalnosc[[#This Row],[data]])+1,3) -> wrz | E14: =_xlfn.XLOOKUP(zapadalnosc[[#This Row],[kod]],NEW_pomoc!$B$5:$B$52,NEW_pomoc!$C$5:$C$52) -> 1-7 wrz | F14: Pomorskie | G14: 6396 | H14: 39.25 | I14: 6.54 | J14: 2183 | K14: 241.84 | L14: 972 | M14: 53.68 | N14: 2654 | O14: 24.21 | P14: 587 | Q14: 22.38 | V14: =_xlfn.CONCAT(zapadalnosc[[#This Row],[rok]],"-",zapadalnosc[[#This Row],[kod]]) -> 2019-9A | W14: =MID(zapadalnosc[[#This Row],[rok_kod]],1,LEN(zapadalnosc[[#This Row],[rok_kod]])-1) -> 2019-9
A15: 2019 | B15: 9A | C15: 557 | D15: =MID(zapadalnosc[[#This Row],[data]],FIND(" ",zapadalnosc[[#This Row],[data]])+1,3) -> wrz | E15: =_xlfn.XLOOKUP(zapadalnosc[[#This Row],[kod]],NEW_pomoc!$B$5:$B$52,NEW_pomoc!$C$5:$C$52) -> 1-7 wrz | F15: Śląskie | G15: 2631 | H15: 8.28 | I15: 1.76 | J15: 808 | K15: 53.94 | L15: 425 | M15: 13.81 | N15: 1155 | O15: 5.4 | P15: 243 | Q15: 4.19 | V15: =_xlfn.CONCAT(zapadalnosc[[#This Row],[rok]],"-",zapadalnosc[[#This Row],[kod]]) -> 2019-9A | W15: =MID(zapadalnosc[[#This Row],[rok_kod]],1,LEN(zapadalnosc[[#This Row],[rok_kod]])-1) -> 2019-9
A16: 2019 | B16: 9A | C16: 558 | D16: =MID(zapadalnosc[[#This Row],[data]],FIND(" ",zapadalnosc[[#This Row],[data]])+1,3) -> wrz | E16: =_xlfn.XLOOKUP(zapadalnosc[[#This Row],[kod]],NEW_pomoc!$B$5:$B$52,NEW_pomoc!$C$5:$C$52) -> 1-7 wrz | F16: Świętokrzyskie | G16: 429 | H16: 4.92 | I16: 1.81 | J16: 105 | K16: 28.21 | L16: 79 | M16: 9.56 | N16: 207 | O16: 3.52 | P16: 38 | Q16: 2.33 | V16: =_xlfn.CONCAT(zapadalnosc[[#This Row],[rok]],"-",zapadalnosc[[#This Row],[kod]]) -> 2019-9A | W16: =MID(zapadalnosc[[#This Row],[rok_kod]],1,LEN(zapadalnosc[[#This Row],[rok_kod]])-1) -> 2019-9
A17: 2019 | B17: 9A | C17: 559 | D17: =MID(zapadalnosc[[#This Row],[data]],FIND(" ",zapadalnosc[[#This Row],[data]])+1,3) -> wrz | E17: =_xlfn.XLOOKUP(zapadalnosc[[#This Row],[kod]],NEW_pomoc!$B$5:$B$52,NEW_pomoc!$C$5:$C$52) -> 1-7 wrz | F17: Warmińsko-Mazurskie | G17: 310 | H17: 3.09 | I17: 0.78 | J17: 78 | K17: 16.32 | L17: 53 | M17: 5.01 | N17: 141 | O17: 2.04 | P17: 38 | Q17: 2.43 | V17: =_xlfn.CONCAT(zapadalnosc[[#This Row],[rok]],"-",zapadalnosc[[#This Row],[kod]]) -> 2019-9A | W17: =MID(zapadalnosc[[#This Row],[rok_kod]],1,LEN(zapadalnosc[[#This Row],[rok_kod]])-1) -> 2019-9
A18: 2019 | B18: 9A | C18: 560 | D18: =MID(zapadalnosc[[#This Row],[data]],FIND(" ",zapadalnosc[[#This Row],[data]])+1,3) -> wrz | E18: =_xlfn.XLOOKUP(zapadalnosc[[#This Row],[kod]],NEW_pomoc!$B$5:$B$52,NEW_pomoc!$C$5:$C$52) -> 1-7 wrz | F18: Wielkopolskie | G18: 4700 | H18: 19.24 | I18: 3 | J18: 1356 | K18: 102.23 | L18: 822 | M18: 30.71 | N18: 2099 | O18: 12.7 | P18: 423 | Q18: 10.82 | V18: =_xlfn.CONCAT(zapadalnosc[[#This Row],[rok]],"-",zapadalnosc[[#This Row],[kod]]) -> 2019-9A | W18: =MID(zapadalnosc[[#This Row],[rok_kod]],1,LEN(zapadalnosc[[#This Row],[rok_kod]])-1) -> 2019-9
A19: 2019 | B19: 9A | C19: 561 | D19: =MID(zapadalnosc[[#This Row],[data]],FIND(" ",zapadalnosc[[#This Row],[data]])+1,3) -> wrz | E19: =_xlfn.XLOOKUP(zapadalnosc[[#This Row],[kod]],NEW_pomoc!$B$5:$B$52,NEW_pomoc!$C$5:$C$52) -> 1-7 wrz | F19: Zachodniopomorskie | G19: 367 | H19: 3.08 | I19: 0.59 | J19: 114 | K19: 20.89 | L19: 63 | M19: 5.32 | N19: 156 | O19: 1.92 | P19: 34 | Q19: 1.65 | V19: =_xlfn.CONCAT(zapadalnosc[[#This Row],[rok]],"-",zapadalnosc[[#This Row],[kod]]) -> 2019-9A | W19: =MID(zapadalnosc[[#This Row],[rok_kod]],1,LEN(zapadalnosc[[#This Row],[rok_kod]])-1) -> 2019-9
A20: 2019 | B20: 9B | C20: 562 | D20: =MID(zapadalnosc[[#This Row],[data]],FIND(" ",zapadalnosc[[#This Row],[data]])+1,3) -> wrz | E20: =_xlfn.XLOOKUP(zapadalnosc[[#This Row],[kod]],NEW_pomoc!$B$5:$B$52,NEW_pomoc!$C$5:$C$52) -> 8-15 wrz | F20: POLSKA | G20: 54216 | H20: 17.64 | I20: 6.65 | J20: 17255 | K20: 113.1 | L20: 12680 | M20: 40.25 | N20: 20628 | O20: 9.94 | P20: 3653 | Q20: 6.9 | V20: =_xlfn.CONCAT(zapadalnosc[[#This Row],[rok]],"-",zapadalnosc[[#This Row],[kod]]) -> 2019-9B | W20: =MID(zapadalnosc[[#This Row],[rok_kod]],1,LEN(zapadalnosc[[#This Row],[rok_kod]])-1) -> 2019-9
A21: 2019 | B21: 9B | C21: 563 | D21: =MID(zapadalnosc[[#This Row],[data]],FIND(" ",zapadalnosc[[#This Row],[data]])+1,3) -> wrz | E21: =_xlfn.XLOOKUP(zapadalnosc[[#This Row],[kod]],NEW_pomoc!$B$5:$B$52,NEW_pomoc!$C$5:$C$52) -> 8-15 wrz | F21: Dolnośląskie | G21: 2967 | H21: 12.78 | I21: 5.77 | J21: 861 | K21: 78.7 | L21: 688 | M21: 30.6 | N21: 1205 | O21: 7.68 | P21: 213 | Q21: 5.09 | V21: =_xlfn.CONCAT(zapadalnosc[[#This Row],[rok]],"-",zapadalnosc[[#This Row],[kod]]) -> 2019-9B | W21: =MID(zapadalnosc[[#This Row],[rok_kod]],1,LEN(zapadalnosc[[#This Row],[rok_kod]])-1) -> 2019-9
A22: 2019 | B22: 9B | C22: 564 | D22: =MID(zapadalnosc[[#This Row],[data]],FIND(" ",zapadalnosc[[#This Row],[data]])+1,3) -> wrz | E22: =_xlfn.XLOOKUP(zapadalnosc[[#This Row],[kod]],NEW_pomoc!$B$5:$B$52,NEW_pomoc!$C$5:$C$52) -> 8-15 wrz | F22: Kujawsko-Pomorskie | G22: 3357 | H22: 20.18 | I22: 9.04 | J22: 1146 | K22: 144.28 | L22: 1001 | M22: 58.08 | N22: 1050 | O22: 9.27 | P22: 160 | Q22: 5.72 | V22: =_xlfn.CONCAT(zapadalnosc[[#This Row],[rok]],"-",zapadalnosc[[#This Row],[kod]]) -> 2019-9B | W22: =MID(zapadalnosc[[#This Row],[rok_kod]],1,LEN(zapadalnosc[[#This Row],[rok_kod]])-1) -> 2019-9
A23: 2019 | B23: 9B | C23: 565 | D23: =MID(zapadalnosc[[#This Row],[data]],FIND(" ",zapadalnosc[[#This Row],[data]])+1,3) -> wrz | E23: =_xlfn.XLOOKUP(zapadalnosc[[#This Row],[kod]],NEW_pomoc!$B$5:$B$52,NEW_pomoc!$C$5:$C$52) -> 8-15 wrz | F23: Lubelskie | G23: 1291 | H23: 7.61 | I23: 3.33 | J23: 353 | K23: 44.75 | L23: 317 | M23: 18.56 | N23: 540 | O23: 4.71 | P23: 81 | Q23: 2.7 | V23: =_xlfn.CONCAT(zapadalnosc[[#This Row],[rok]],"-",zapadalnosc[[#This Row],[kod]]) -> 2019-9B | W23: =MID(zapadalnosc[[#This Row],[rok_kod]],1,LEN(zapadalnosc[[#This Row],[rok_kod]])-1) -> 2019-9
A24: 2019 | B24: 9B | C24: 566 | D24: =MID(zapadalnosc[[#This Row],[data]],FIND(" ",zapadalnosc[[#This Row],[data]])+1,3) -> wrz | E24: =_xlfn.XLOOKUP(zapadalnosc[[#This Row],[kod]],NEW_pomoc!$B$5:$B$52,NEW_pomoc!$C$5:$C$52) -> 8-15 wrz | F24: Lubuskie | G24: 595 | H24: 7.32 | I24: 3.61 | J24: 287 | K24: 73.42 | L24: 178 | M24: 20.92 | N24: 124 | O24: 2.24 | P24: 6 | Q24: 0.45 | V24: =_xlfn.CONCAT(zapadalnosc[[#This Row],[rok]],"-",zapadalnosc[[#This Row],[kod]]) -> 2019-9B | W24: =MID(zapadalnosc[[#This Row],[rok_kod]],1,LEN(zapadalnosc[[#This Row],[rok_kod]])-1) -> 2019-9
A25: 2019 | B25: 9B | C25: 567 | D25: =MID(zapadalnosc[[#This Row],[data]],FIND(" ",zapadalnosc[[#This Row],[data]])+1,3) -> wrz | E25: =_xlfn.XLOOKUP(zapadalnosc[[#This Row],[kod]],NEW_pomoc!$B$5:$B$52,NEW_pomoc!$C$5:$C$52) -> 8-15 wrz | F25: Łódzkie | G25: 1326 | H25: 6.71 | I25: 1.67 | J25: 416 | K25: 45.88 | L25: 348 | M25: 18.19 | N25: 463 | O25: 3.52 | P25: 99 | Q25: 2.61 | V25: =_xlfn.CONCAT(zapadalnosc[[#This Row],[rok]],"-",zapadalnosc[[#This Row],[kod]]) -> 2019-9B | W25: =MID(zapadalnosc[[#This Row],[rok_kod]],1,LEN(zapadalnosc[[#This Row],[rok_kod]])-1) -> 2019-9
A26: 2019 | B26: 9B | C26: 568 | D26: =MID(zapadalnosc[[#This Row],[data]],FIND(" ",zapadalnosc[[#This Row],[data]])+1,3) -> wrz | E26: =_xlfn.XLOOKUP(zapadalnosc[[#This Row],[kod]],NEW_pomoc!$B$5:$B$52,NEW_pomoc!$C$5:$C$52) -> 8-15 wrz | F26: Małopolskie | G26: 4843 | H26: 17.83 | I26: 7.28 | J26: 1421 | K26: 97.93 | L26: 1052 | M26: 36.46 | N26: 2052 | O26: 11.16 | P26: 318 | Q26: 7.15 | V26: =_xlfn.CONCAT(zapadalnosc[[#This Row],[rok]],"-",zapadalnosc[[#This Row],[kod]]) -> 2019-9B | W26: =MID(zapadalnosc[[#This Row],[rok_kod]],1,LEN(zapadalnosc[[#This Row],[rok_kod]])-1) -> 2019-9
A27: 2019 | B27: 9B | C27: 569 | D27: =MID(zapadalnosc[[#This Row],[data]],FIND(" ",zapadalnosc[[#This Row],[data]])+1,3) -> wrz | E27: =_xlfn.XLOOKUP(zapadalnosc[[#This Row],[kod]],NEW_pomoc!$B$5:$B$52,NEW_pomoc!$C$5:$C$52) -> 8-15 wrz | F27: Mazowieckie | G27: 9756 | H27: 22.62 | I27: 4.99 | J27: 3009 | K27: 127.52 | L27: 2153 | M27: 46.46 | N27: 3846 | O27: 13.43 | P27: 748 | Q27: 9.96 | T27: 17 | U27: 0.17 | V27: =_xlfn.CONCAT(zapadalnosc[[#This Row],[rok]],"-",zapadalnosc[[#This Row],[kod]]) -> 2019-9B | W27: =MID(zapadalnosc[[#This Row],[rok_kod]],1,LEN(zapadalnosc[[#This Row],[rok_kod]])-1) -> 2019-9
A28: 2019 | B28: 9B | C28: 570 | D28: =MID(zapadalnosc[[#This Row],[data]],FIND(" ",zapadalnosc[[#This Row],[data]])+1,3) -> wrz | E28: =_xlfn.XLOOKUP(zapadalnosc[[#This Row],[kod]],NEW_pomoc!$B$5:$B$52,NEW_pomoc!$C$5:$C$52) -> 8-15 wrz | F28: Opolskie | G28: 581 | H28: 7.35 | I28: 3.71 | J28: 205 | K28: 59.88 | L28: 128 | M28: 18.03 | N28: 205 | O28: 3.77 | P28: 43 | Q28: 3.04 | V28: =_xlfn.CONCAT(zapadalnosc[[#This Row],[rok]],"-",zapadalnosc[[#This Row],[kod]]) -> 2019-9B | W28: =MID(zapadalnosc[[#This Row],[rok_kod]],1,LEN(zapadalnosc[[#This Row],[rok_kod]])-1) -> 2019-9
A29: 2019 | B29: 9B | C29: 571 | D29: =MID(zapadalnosc[[#This Row],[data]],FIND(" ",zapadalnosc[[#This Row],[data]])+1,3) -> wrz | E29: =_xlfn.XLOOKUP(zapadalnosc[[#This Row],[kod]],NEW_pomoc!$B$5:$B$52,NEW_pomoc!$C$5:$C$52) -> 8-15 wrz | F29: Podkarpackie | G29: 324 | H29: 1.9 | I29: 0.74 | J29: 87 | K29: 10.56 | L29: 63 | M29: 3.59 | N29: 136 | O29: 1.16 | P29: 38 | Q29: 1.38 | V29: =_xlfn.CONCAT(zapadalnosc[[#This Row],[rok]],"-",zapadalnosc[[#This Row],[kod]]) -> 2019-9B | W29: =MID(zapadalnosc[[#This Row],[rok_kod]],1,LEN(zapadalnosc[[#This Row],[rok_kod]])-1) -> 2019-9
A30: 2019 | B30: 9B | C30: 572 | D30: =MID(zapadalnosc[[#This Row],[data]],FIND(" ",zapadalnosc[[#This Row],[data]])+1,3) -> wrz | E30: =_xlfn.XLOOKUP(zapadalnosc[[#This Row],[kod]],NEW_pomoc!$B$5:$B$52,NEW_pomoc!$C$5:$C$52) -> 8-15 wrz | F30: Podlaskie | G30: 534 | H30: 5.64 | I30: 1.83 | J30: 199 | K30: 44.17 | L30: 120 | M30: 12.99 | N30: 173 | O30: 2.67 | P30: 42 | Q30: 2.6 | V30: =_xlfn.CONCAT(zapadalnosc[[#This Row],[rok]],"-",zapadalnosc[[#This Row],[kod]]) -> 2019-9B | W30: =MID(zapadalnosc[[#This Row],[rok_kod]],1,LEN(zapadalnosc[[#This Row],[rok_kod]])-1) -> 2019-9
A31: 2019 | B31: 9B | C31: 573 | D31: =MID(zapadalnosc[[#This Row],[data]],FIND(" ",zapadalnosc[[#This Row],[data]])+1,3) -> wrz | E31: =_xlfn.XLOOKUP(zapadalnosc[[#This Row],[kod]],NEW_pomoc!$B$5:$B$52,NEW_pomoc!$C$5:$C$52) -> 8-15 wrz | F31: Pomorskie | G31: 13240 | H31: 71.08 | I31: 31.84 | J31: 4522 | K31: 438.34 | L31: 3084 | M31: 149.02 | N31: 4794 | O31: 38.27 | P31: 840 | Q31: 28.02 | V31: =_xlfn.CONCAT(zapadalnosc[[#This Row],[rok]],"-",zapadalnosc[[#This Row],[kod]]) -> 2019-9B | W31: =MID(zapadalnosc[[#This Row],[rok_kod]],1,LEN(zapadalnosc[[#This Row],[rok_kod]])-1) -> 2019-9
A32: 2019 | B32: 9B | C32: 574 | D32: =MID(zapadalnosc[[#This Row],[data]],FIND(" ",zapadalnosc[[#This Row],[data]])+1,3) -> wrz | E32: =_xlfn.XLOOKUP(zapadalnosc[[#This Row],[kod]],NEW_pomoc!$B$5:$B$52,NEW_pomoc!$C$5:$C$52) -> 8-15 wrz | F32: Śląskie | G32: 4635 | H32: 12.76 | I32: 4.48 | J32: 1578 | K32: 92.18 | L32: 1057 | M32: 30.04 | N32: 1732 | O32: 7.08 | P32: 268 | Q32: 4.04 | V32: =_xlfn.CONCAT(zapadalnosc[[#This Row],[rok]],"-",zapadalnosc[[#This Row],[kod]]) -> 2019-9B | W32: =MID(zapadalnosc[[#This Row],[rok_kod]],1,LEN(zapadalnosc[[#This Row],[rok_kod]])-1) -> 2019-9
A33: 2019 | B33: 9B | C33: 575 | D33: =MID(zapadalnosc[[#This Row],[data]],FIND(" ",zapadalnosc[[#This Row],[data]])+1,3) -> wrz | E33: =_xlfn.XLOOKUP(zapadalnosc[[#This Row],[kod]],NEW_pomoc!$B$5:$B$52,NEW_pomoc!$C$5:$C$52) -> 8-15 wrz | F33: Świętokrzyskie | G33: 828 | H33: 8.32 | I33: 3.39 | J33: 235 | K33: 55.25 | L33: 134 | M33: 14.19 | N33: 384 | O33: 5.71 | P33: 75 | Q33: 4.03 | V33: =_xlfn.CONCAT(zapadalnosc[[#This Row],[rok]],"-",zapadalnosc[[#This Row],[kod]]) -> 2019-9B | W33: =MID(zapadalnosc[[#This Row],[rok_kod]],1,LEN(zapadalnosc[[#This Row],[rok_kod]])-1) -> 2019-9
A34: 2019 | B34: 9B | C34: 576 | D34: =MID(zapadalnosc[[#This Row],[data]],FIND(" ",zapadalnosc[[#This Row],[data]])+1,3) -> wrz | E34: =_xlfn.XLOOKUP(zapadalnosc[[#This Row],[kod]],NEW_pomoc!$B$5:$B$52,NEW_pomoc!$C$5:$C$52) -> 8-15 wrz | F34: Warmińsko-Mazurskie | G34: 604 | H34: 5.27 | I34: 2.18 | J34: 144 | K34: 26.37 | L34: 170 | M34: 14.06 | N34: 245 | O34: 3.1 | P34: 45 | Q34: 2.52 | V34: =_xlfn.CONCAT(zapadalnosc[[#This Row],[rok]],"-",zapadalnosc[[#This Row],[kod]]) -> 2019-9B | W34: =MID(zapadalnosc[[#This Row],[rok_kod]],1,LEN(zapadalnosc[[#This Row],[rok_kod]])-1) -> 2019-9
A35: 2019 | B35: 9B | C35: 577 | D35: =MID(zapadalnosc[[#This Row],[data]],FIND(" ",zapadalnosc[[#This Row],[data]])+1,3) -> wrz | E35: =_xlfn.XLOOKUP(zapadalnosc[[#This Row],[kod]],NEW_pomoc!$B$5:$B$52,NEW_pomoc!$C$5:$C$52) -> 8-15 wrz | F35: Wielkopolskie | G35: 8723 | H35: 31.24 | I35: 12 | J35: 2580 | K35: 170.2 | L35: 2053 | M35: 67.12 | N35: 3459 | O35: 18.32 | P35: 631 | Q35: 14.13 | V35: =_xlfn.CONCAT(zapadalnosc[[#This Row],[rok]],"-",zapadalnosc[[#This Row],[kod]]) -> 2019-9B | W35: =MID(zapadalnosc[[#This Row],[rok_kod]],1,LEN(zapadalnosc[[#This Row],[rok_kod]])-1) -> 2019-9
A36: 2019 | B36: 9B | C36: 578 | D36: =MID(zapadalnosc[[#This Row],[data]],FIND(" ",zapadalnosc[[#This Row],[data]])+1,3) -> wrz | E36: =_xlfn.XLOOKUP(zapadalnosc[[#This Row],[kod]],NEW_pomoc!$B$5:$B$52,NEW_pomoc!$C$5:$C$52) -> 8-15 wrz | F36: Zachodniopomorskie | G36: 612 | H36: 4.49 | I36: 1.41 | J36: 212 | K36: 34 | L36: 134 | M36: 9.9 | N36: 220 | O36: 2.37 | P36: 46 | Q36: 1.95 | V36: =_xlfn.CONCAT(zapadalnosc[[#This Row],[rok]],"-",zapadalnosc[[#This Row],[kod]]) -> 2019-9B | W36: =MID(zapadalnosc[[#This Row],[rok_kod]],1,LEN(zapadalnosc[[#This Row],[rok_kod]])-1) -> 2019-9
A37: 2019 | B37: 9C | C37: 579 | D37: =MID(zapadalnosc[[#This Row],[data]],FIND(" ",zapadalnosc[[#This Row],[data]])+1,3) -> wrz | E37: =_xlfn.XLOOKUP(zapadalnosc[[#This Row],[kod]],NEW_pomoc!$B$5:$B$52,NEW_pomoc!$C$5:$C$52) -> 16-22 wrz | F37: POLSKA | G37: 87589 | H37: 32.57 | I37: 14.93 | J37: 25224 | K37: 188.95 | L37: 21436 | M37: 77.76 | N37: 35374 | O37: 19.47 | P37: 5555 | Q37: 11.99 | V37: =_xlfn.CONCAT(zapadalnosc[[#This Row],[rok]],"-",zapadalnosc[[#This Row],[kod]]) -> 2019-9C | W37: =MID(zapadalnosc[[#This Row],[rok_kod]],1,LEN(zapadalnosc[[#This Row],[rok_kod]])-1) -> 2019-9
A38: 2019 | B38: 9C | C38: 580 | D38: =MID(zapadalnosc[[#This Row],[data]],FIND(" ",zapadalnosc[[#This Row],[data]])+1,3) -> wrz | E38: =_xlfn.XLOOKUP(zapadalnosc[[#This Row],[kod]],NEW_pomoc!$B$5:$B$52,NEW_pomoc!$C$5:$C$52) -> 16-22 wrz | F38: Dolnośląskie | G38: 5350 | H38: 26.35 | I38: 13.56 | J38: 1317 | K38: 137.58 | L38: 1314 | M38: 66.8 | N38: 2295 | O38: 16.72 | P38: 424 | Q38: 11.59 | V38: =_xlfn.CONCAT(zapadalnosc[[#This Row],[rok]],"-",zapadalnosc[[#This Row],[kod]]) -> 2019-9C | W38: =MID(zapadalnosc[[#This Row],[rok_kod]],1,LEN(zapadalnosc[[#This Row],[rok_kod]])-1) -> 2019-9
A39: 2019 | B39: 9C | C39: 581 | D39: =MID(zapadalnosc[[#This Row],[data]],FIND(" ",zapadalnosc[[#This Row],[data]])+1,3) -> wrz | E39: =_xlfn.XLOOKUP(zapadalnosc[[#This Row],[kod]],NEW_pomoc!$B$5:$B$52,NEW_pomoc!$C$5:$C$52) -> 16-22 wrz | F39: Kujawsko-Pomorskie | G39: 5314 | H39: 36.5 | I39: 16.32 | J39: 1516 | K39: 218.13 | L39: 1419 | M39: 94.09 | N39: 2103 | O39: 21.22 | P39: 276 | Q39: 11.28 | V39: =_xlfn.CONCAT(zapadalnosc[[#This Row],[rok]],"-",zapadalnosc[[#This Row],[kod]]) -> 2019-9C | W39: =MID(zapadalnosc[[#This Row],[rok_kod]],1,LEN(zapadalnosc[[#This Row],[rok_kod]])-1) -> 2019-9
A40: 2019 | B40: 9C | C40: 582 | D40: =MID(zapadalnosc[[#This Row],[data]],FIND(" ",zapadalnosc[[#This Row],[data]])+1,3) -> wrz | E40: =_xlfn.XLOOKUP(zapadalnosc[[#This Row],[kod]],NEW_pomoc!$B$5:$B$52,NEW_pomoc!$C$5:$C$52) -> 16-22 wrz | F40: Lubelskie | G40: 1719 | H40: 11.57 | I40: 3.97 | J40: 398 | K40: 57.66 | L40: 425 | M40: 28.43 | N40: 764 | O40: 7.61 | P40: 132 | Q40: 5.02 | V40: =_xlfn.CONCAT(zapadalnosc[[#This Row],[rok]],"-",zapadalnosc[[#This Row],[kod]]) -> 2019-9C | W40: =MID(zapadalnosc[[#This Row],[rok_kod]],1,LEN(zapadalnosc[[#This Row],[rok_kod]])-1) -> 2019-9
A41: 2019 | B41: 9C | C41: 583 | D41: =MID(zapadalnosc[[#This Row],[data]],FIND(" ",zapadalnosc[[#This Row],[data]])+1,3) -> wrz | E41: =_xlfn.XLOOKUP(zapadalnosc[[#This Row],[kod]],NEW_pomoc!$B$5:$B$52,NEW_pomoc!$C$5:$C$52) -> 16-22 wrz | F41: Lubuskie | G41: 1229 | H41: 17.29 | I41: 9.97 | J41: 447 | K41: 130.69 | L41: 384 | M41: 51.58 | N41: 377 | O41: 7.78 | P41: 21 | Q41: 1.79 | V41: =_xlfn.CONCAT(zapadalnosc[[#This Row],[rok]],"-",zapadalnosc[[#This Row],[kod]]) -> 2019-9C | W41: =MID(zapadalnosc[[#This Row],[rok_kod]],1,LEN(zapadalnosc[[#This Row],[rok_kod]])-1) -> 2019-9
A42: 2019 | B42: 9C | C42: 584 | D42: =MID(zapadalnosc[[#This Row],[data]],FIND(" ",zapadalnosc[[#This Row],[data]])+1,3) -> wrz | E42: =_xlfn.XLOOKUP(zapadalnosc[[#This Row],[kod]],NEW_pomoc!$B$5:$B$52,NEW_pomoc!$C$5:$C$52) -> 16-22 wrz | F42: Łódzkie | G42: 4400 | H42: 25.44 | I42: 18.73 | J42: 1370 | K42: 172.69 | L42: 1218 | M42: 72.77 | N42: 1511 | O42: 13.13 | P42: 301 | Q42: 9.07 | V42: =_xlfn.CONCAT(zapadalnosc[[#This Row],[rok]],"-",zapadalnosc[[#This Row],[kod]]) -> 2019-9C | W42: =MID(zapadalnosc[[#This Row],[rok_kod]],1,LEN(zapadalnosc[[#This Row],[rok_kod]])-1) -> 2019-9
A43: 2019 | B43: 9C | C43: 585 | D43: =MID(zapadalnosc[[#This Row],[data]],FIND(" ",zapadalnosc[[#This Row],[data]])+1,3) -> wrz | E43: =_xlfn.XLOOKUP(zapadalnosc[[#This Row],[kod]],NEW_pomoc!$B$5:$B$52,NEW_pomoc!$C$5:$C$52) -> 16-22 wrz | F43: Małopolskie | G43: 6918 | H43: 29.1 | I43: 11.28 | J43: 1844 | K43: 145.23 | L43: 1517 | M43: 60.08 | N43: 2993 | O43: 18.61 | P43: 564 | Q43: 14.5 | V43: =_xlfn.CONCAT(zapadalnosc[[#This Row],[rok]],"-",zapadalnosc[[#This Row],[kod]]) -> 2019-9C | W43: =MID(zapadalnosc[[#This Row],[rok_kod]],1,LEN(zapadalnosc[[#This Row],[rok_kod]])-1) -> 2019-9
A44: 2019 | B44: 9C | C44: 586 | D44: =MID(zapadalnosc[[#This Row],[data]],FIND(" ",zapadalnosc[[#This Row],[data]])+1,3) -> wrz | E44: =_xlfn.XLOOKUP(zapadalnosc[[#This Row],[kod]],NEW_pomoc!$B$5:$B$52,NEW_pomoc!$C$5:$C$52) -> 16-22 wrz | F44: Mazowieckie | G44: 15667 | H44: 41.51 | I44: 18.89 | J44: 4495 | K44: 217.71 | L44: 3791 | M44: 93.5 | N44: 6374 | O44: 25.44 | P44: 1007 | Q44: 15.33 | T44: 13 | U44: 0.08 | V44: =_xlfn.CONCAT(zapadalnosc[[#This Row],[rok]],"-",zapadalnosc[[#This Row],[kod]]) -> 2019-9C | W44: =MID(zapadalnosc[[#This Row],[rok_kod]],1,LEN(zapadalnosc[[#This Row],[rok_kod]])-1) -> 2019-9
A45: 2019 | B45: 9C | C45: 587 | D45: =MID(zapadalnosc[[#This Row],[data]],FIND(" ",zapadalnosc[[#This Row],[data]])+1,3) -> wrz | E45: =_xlfn.XLOOKUP(zapadalnosc[[#This Row],[kod]],NEW_pomoc!$B$5:$B$52,NEW_pomoc!$C$5:$C$52) -> 16-22 wrz | F45: Opolskie | G45: 1221 | H45: 17.65 | I45: 10.3 | J45: 310 | K45: 103.49 | L45: 280 | M45: 45.08 | N45: 507 | O45: 10.66 | P45: 124 | Q45: 10.01 | V45: =_xlfn.CONCAT(zapadalnosc[[#This Row],[rok]],"-",zapadalnosc[[#This Row],[kod]]) -> 2019-9C | W45: =MID(zapadalnosc[[#This Row],[rok_kod]],1,LEN(zapadalnosc[[#This Row],[rok_kod]])-1) -> 2019-9
A46: 2019 | B46: 9C | C46: 588 | D46: =MID(zapadalnosc[[#This Row],[data]],FIND(" ",zapadalnosc[[#This Row],[data]])+1,3) -> wrz | E46: =_xlfn.XLOOKUP(zapadalnosc[[#This Row],[kod]],NEW_pomoc!$B$5:$B$52,NEW_pomoc!$C$5:$C$52) -> 16-22 wrz | F46: Podkarpackie | G46: 450 | H46: 3.02 | I46: 1.12 | J46: 159 | K46: 22.05 | L46: 72 | M46: 4.69 | N46: 178 | O46: 1.74 | P46: 41 | Q46: 1.71 | V46: =_xlfn.CONCAT(zapadalnosc[[#This Row],[rok]],"-",zapadalnosc[[#This Row],[kod]]) -> 2019-9C | W46: =MID(zapadalnosc[[#This Row],[rok_kod]],1,LEN(zapadalnosc[[#This Row],[rok_kod]])-1) -> 2019-9
A47: 2019 | B47: 9C | C47: 589 | D47: =MID(zapadalnosc[[#This Row],[data]],FIND(" ",zapadalnosc[[#This Row],[data]])+1,3) -> wrz | E47: =_xlfn.XLOOKUP(zapadalnosc[[#This Row],[kod]],NEW_pomoc!$B$5:$B$52,NEW_pomoc!$C$5:$C$52) -> 16-22 wrz | F47: Podlaskie | G47: 869 | H47: 10.5 | I47: 4.85 | J47: 315 | K47: 79.9 | L47: 147 | M47: 18.19 | N47: 355 | O47: 6.27 | P47: 52 | Q47: 3.68 | V47: =_xlfn.CONCAT(zapadalnosc[[#This Row],[rok]],"-",zapadalnosc[[#This Row],[kod]]) -> 2019-9C | W47: =MID(zapadalnosc[[#This Row],[rok_kod]],1,LEN(zapadalnosc[[#This Row],[rok_kod]])-1) -> 2019-9
A48: 2019 | B48: 9C | C48: 590 | D48: =MID(zapadalnosc[[#This Row],[data]],FIND(" ",zapadalnosc[[#This Row],[data]])+1,3) -> wrz | E48: =_xlfn.XLOOKUP(zapadalnosc[[#This Row],[kod]],NEW_pomoc!$B$5:$B$52,NEW_pomoc!$C$5:$C$52) -> 16-22 wrz | F48: Pomorskie | G48: 19610 | H48: 120.33 | I48: 49.24 | J48: 6116 | K48: 677.54 | L48: 4751 | M48: 262.36 | N48: 7691 | O48: 70.17 | P48: 1052 | Q48: 40.1 | V48: =_xlfn.CONCAT(zapadalnosc[[#This Row],[rok]],"-",zapadalnosc[[#This Row],[kod]]) -> 2019-9C | W48: =MID(zapadalnosc[[#This Row],[rok_kod]],1,LEN(zapadalnosc[[#This Row],[rok_kod]])-1) -> 2019-9
A49: 2019 | B49: 9C | C49: 591 | D49: =MID(zapadalnosc[[#This Row],[data]],FIND(" ",zapadalnosc[[#This Row],[data]])+1,3) -> wrz | E49: =_xlfn.XLOOKUP(zapadalnosc[[#This Row],[kod]],NEW_pomoc!$B$5:$B$52,NEW_pomoc!$C$5:$C$52) -> 16-22 wrz | F49: Śląskie | G49: 6777 | H49: 21.32 | I49: 8.56 | J49: 1895 | K49: 126.51 | L49: 1862 | M49: 60.48 | N49: 2603 | O49: 12.16 | P49: 417 | Q49: 7.19 | V49: =_xlfn.CONCAT(zapadalnosc[[#This Row],[rok]],"-",zapadalnosc[[#This Row],[kod]]) -> 2019-9C | W49: =MID(zapadalnosc[[#This Row],[rok_kod]],1,LEN(zapadalnosc[[#This Row],[rok_kod]])-1) -> 2019-9
A50: 2019 | B50: 9C | C50: 592 | D50: =MID(zapadalnosc[[#This Row],[data]],FIND(" ",zapadalnosc[[#This Row],[data]])+1,3) -> wrz | E50: =_xlfn.XLOOKUP(zapadalnosc[[#This Row],[kod]],NEW_pomoc!$B$5:$B$52,NEW_pomoc!$C$5:$C$52) -> 16-22 wrz | F50: Świętokrzyskie | G50: 1247 | H50: 14.32 | I50: 6 | J50: 388 | K50: 104.26 | L50: 337 | M50: 40.79 | N50: 457 | O50: 7.77 | P50: 65 | Q50: 3.99 | V50: =_xlfn.CONCAT(zapadalnosc[[#This Row],[rok]],"-",zapadalnosc[[#This Row],[kod]]) -> 2019-9C | W50: =MID(zapadalnosc[[#This Row],[rok_kod]],1,LEN(zapadalnosc[[#This Row],[rok_kod]])-1) -> 2019-9
A51: 2019 | B51: 9C | C51: 593 | D51: =MID(zapadalnosc[[#This Row],[data]],FIND(" ",zapadalnosc[[#This Row],[data]])+1,3) -> wrz | E51: =_xlfn.XLOOKUP(zapadalnosc[[#This Row],[kod]],NEW_pomoc!$B$5:$B$52,NEW_pomoc!$C$5:$C$52) -> 16-22 wrz | F51: Warmińsko-Mazurskie | G51: 826 | H51: 8.24 | I51: 2.97 | J51: 419 | K51: 87.68 | L51: 132 | M51: 12.48 | N51: 231 | O51: 3.34 | P51: 44 | Q51: 2.82 | V51: =_xlfn.CONCAT(zapadalnosc[[#This Row],[rok]],"-",zapadalnosc[[#This Row],[kod]]) -> 2019-9C | W51: =MID(zapadalnosc[[#This Row],[rok_kod]],1,LEN(zapadalnosc[[#This Row],[rok_kod]])-1) -> 2019-9
A52: 2019 | B52: 9C | C52: 594 | D52: =MID(zapadalnosc[[#This Row],[data]],FIND(" ",zapadalnosc[[#This Row],[data]])+1,3) -> wrz | E52: =_xlfn.XLOOKUP(zapadalnosc[[#This Row],[kod]],NEW_pomoc!$B$5:$B$52,NEW_pomoc!$C$5:$C$52) -> 16-22 wrz | F52: Wielkopolskie | G52: 14419 | H52: 59.01 | I52: 27.77 | J52: 3818 | K52: 287.85 | L52: 3384 | M52: 126.43 | N52: 6281 | O52: 38.01 | P52: 936 | Q52: 23.95 | V52: =_xlfn.CONCAT(zapadalnosc[[#This Row],[rok]],"-",zapadalnosc[[#This Row],[kod]]) -> 2019-9C | W52: =MID(zapadalnosc[[#This Row],[rok_kod]],1,LEN(zapadalnosc[[#This Row],[rok_kod]])-1) -> 2019-9
A53: 2019 | B53: 9C | C53: 595 | D53: =MID(zapadalnosc[[#This Row],[data]],FIND(" ",zapadalnosc[[#This Row],[data]])+1,3) -> wrz | E53: =_xlfn.XLOOKUP(zapadalnosc[[#This Row],[kod]],NEW_pomoc!$B$5:$B$52,NEW_pomoc!$C$5:$C$52) -> 16-22 wrz | F53: Zachodniopomorskie | G53: 1573 | H53: 13.2 | I53: 8.7 | J53: 417 | K53: 76.42 | L53: 403 | M53: 34.02 | N53: 654 | O53: 8.05 | P53: 99 | Q53: 4.8 | V53: =_xlfn.CONCAT(zapadalnosc[[#This Row],[rok]],"-",zapadalnosc[[#This Row],[kod]]) -> 2019-9C | W53: =MID(zapadalnosc[[#This Row],[rok_kod]],1,LEN(zapadalnosc[[#This Row],[rok_kod]])-1) -> 2019-9
A54: 2019 | B54: 9D | C54: 596 | D54: =MID(zapadalnosc[[#This Row],[data]],FIND(" ",zapadalnosc[[#This Row],[data]])+1,3) -> wrz | E54: =_xlfn.XLOOKUP(zapadalnosc[[#This Row],[kod]],NEW_pomoc!$B$5:$B$52,NEW_pomoc!$C$5:$C$52) -> 23-30 wrz | F54: POLSKA | G54: 115689 | H54: 37.65 | I54: 5.07 | J54: 31865 | K54: 208.86 | L54: 22645 | M54: 71.88 | N54: 52850 | O54: 25.46 | P54: 8329 | Q54: 15.73 | V54: =_xlfn.CONCAT(zapadalnosc[[#This Row],[rok]],"-",zapadalnosc[[#This Row],[kod]]) -> 2019-9D | W54: =MID(zapadalnosc[[#This Row],[rok_kod]],1,LEN(zapadalnosc[[#This Row],[rok_kod]])-1) -> 2019-9
A55: 2019 | B55: 9D | C55: 597 | D55: =MID(zapadalnosc[[#This Row],[data]],FIND(" ",zapadalnosc[[#This Row],[data]])+1,3) -> wrz | E55: =_xlfn.XLOOKUP(zapadalnosc[[#This Row],[kod]],NEW_pomoc!$B$5:$B$52,NEW_pomoc!$C$5:$C$52) -> 23-30 wrz | F55: Dolnośląskie | G55: 6063 | H55: 26.12 | I55: -0.22 | J55: 1413 | K55: 129.16 | L55: 1257 | M55: 55.91 | N55: 2891 | O55: 18.43 | P55: 502 | Q55: 12 | V55: =_xlfn.CONCAT(zapadalnosc[[#This Row],[rok]],"-",zapadalnosc[[#This Row],[kod]]) -> 2019-9D | W55: =MID(zapadalnosc[[#This Row],[rok_kod]],1,LEN(zapadalnosc[[#This Row],[rok_kod]])-1) -> 2019-9
A56: 2019 | B56: 9D | C56: 598 | D56: =MID(zapadalnosc[[#This Row],[data]],FIND(" ",zapadalnosc[[#This Row],[data]])+1,3) -> wrz | E56: =_xlfn.XLOOKUP(zapadalnosc[[#This Row],[kod]],NEW_pomoc!$B$5:$B$52,NEW_pomoc!$C$5:$C$52) -> 23-30 wrz | F56: Kujawsko-Pomorskie | G56: 6369 | H56: 38.28 | I56: 1.78 | J56: 1817 | K56: 228.76 | L56: 1353 | M56: 78.5 | N56: 2787 | O56: 24.61 | P56: 412 | Q56: 14.73 | V56: =_xlfn.CONCAT(zapadalnosc[[#This Row],[rok]],"-",zapadalnosc[[#This Row],[kod]]) -> 2019-9D | W56: =MID(zapadalnosc[[#This Row],[rok_kod]],1,LEN(zapadalnosc[[#This Row],[rok_kod]])-1) -> 2019-9
A57: 2019 | B57: 9D | C57: 599 | D57: =MID(zapadalnosc[[#This Row],[data]],FIND(" ",zapadalnosc[[#This Row],[data]])+1,3) -> wrz | E57: =_xlfn.XLOOKUP(zapadalnosc[[#This Row],[kod]],NEW_pomoc!$B$5:$B$52,NEW_pomoc!$C$5:$C$52) -> 23-30 wrz | F57: Lubelskie | G57: 3021 | H57: 17.8 | I57: 6.22 | J57: 683 | K57: 86.59 | L57: 541 | M57: 31.67 | N57: 1498 | O57: 13.06 | P57: 299 | Q57: 9.96 | V57: =_xlfn.CONCAT(zapadalnosc[[#This Row],[rok]],"-",zapadalnosc[[#This Row],[kod]]) -> 2019-9D | W57: =MID(zapadalnosc[[#This Row],[rok_kod]],1,LEN(zapadalnosc[[#This Row],[rok_kod]])-1) -> 2019-9
A58: 2019 | B58: 9D | C58: 600 | D58: =MID(zapadalnosc[[#This Row],[data]],FIND(" ",zapadalnosc[[#This Row],[data]])+1,3) -> wrz | E58: =_xlfn.XLOOKUP(zapadalnosc[[#This Row],[kod]],NEW_pomoc!$B$5:$B$52,NEW_pomoc!$C$5:$C$52) -> 23-30 wrz | F58: Lubuskie | G58: 1160 | H58: 14.28 | I58: -3.01 | J58: 411 | K58: 105.14 | L58: 300 | M58: 35.26 | N58: 408 | O58: 7.37 | P58: 41 | Q58: 3.05 | V58: =_xlfn.CONCAT(zapadalnosc[[#This Row],[rok]],"-",zapadalnosc[[#This Row],[kod]]) -> 2019-9D | W58: =MID(zapadalnosc[[#This Row],[rok_kod]],1,LEN(zapadalnosc[[#This Row],[rok_kod]])-1) -> 2019-9
A59: 2019 | B59: 9D | C59: 601 | D59: =MID(zapadalnosc[[#This Row],[data]],FIND(" ",zapadalnosc[[#This Row],[data]])+1,3) -> wrz | E59: =_xlfn.XLOOKUP(zapadalnosc[[#This Row],[kod]],NEW_pomoc!$B$5:$B$52,NEW_pomoc!$C$5:$C$52) -> 23-30 wrz | F59: Łódzkie | G59: 4631 | H59: 23.43 | I59: -2.01 | J59: 1167 | K59: 128.71 | L59: 1014 | M59: 53.01 | N59: 1952 | O59: 14.84 | P59: 498 | Q59: 13.13 | V59: =_xlfn.CONCAT(zapadalnosc[[#This Row],[rok]],"-",zapadalnosc[[#This Row],[kod]]) -> 2019-9D | W59: =MID(zapadalnosc[[#This Row],[rok_kod]],1,LEN(zapadalnosc[[#This Row],[rok_kod]])-1) -> 2019-9
A60: 2019 | B60: 9D | C60: 602 | D60: =MID(zapadalnosc[[#This Row],[data]],FIND(" ",zapadalnosc[[#This Row],[data]])+1,3) -> wrz | E60: =_xlfn.XLOOKUP(zapadalnosc[[#This Row],[kod]],NEW_pomoc!$B$5:$B$52,NEW_pomoc!$C$5:$C$52) -> 23-30 wrz | F60: Małopolskie | G60: 10137 | H60: 37.32 | I60: 8.21 | J60: 2833 | K60: 195.24 | L60: 2140 | M60: 74.16 | N60: 4449 | O60: 24.2 | P60: 715 | Q60: 16.08 | V60: =_xlfn.CONCAT(zapadalnosc[[#This Row],[rok]],"-",zapadalnosc[[#This Row],[kod]]) -> 2019-9D | W60: =MID(zapadalnosc[[#This Row],[rok_kod]],1,LEN(zapadalnosc[[#This Row],[rok_kod]])-1) -> 2019-9
A61: 2019 | B61: 9D | C61: 603 | D61: =MID(zapadalnosc[[#This Row],[data]],FIND(" ",zapadalnosc[[#This Row],[data]])+1,3) -> wrz | E61: =_xlfn.XLOOKUP(zapadalnosc[[#This Row],[kod]],NEW_pomoc!$B$5:$B$52,NEW_pomoc!$C$5:$C$52) -> 23-30 wrz | F61: Mazowieckie | G61: 22829 | H61: 52.93 | I61: 11.42 | J61: 6143 | K61: 260.33 | L61: 4696 | M61: 101.35 | N61: 10434 | O61: 36.44 | P61: 1556 | Q61: 20.72 | T61: 29 | U61: 0.13 | V61: =_xlfn.CONCAT(zapadalnosc[[#This Row],[rok]],"-",zapadalnosc[[#This Row],[kod]]) -> 2019-9D | W61: =MID(zapadalnosc[[#This Row],[rok_kod]],1,LEN(zapadalnosc[[#This Row],[rok_kod]])-1) -> 2019-9
A62: 2019 | B62: 9D | C62: 604 | D62: =MID(zapadalnosc[[#This Row],[data]],FIND(" ",zapadalnosc[[#This Row],[data]])+1,3) -> wrz | E62: =_xlfn.XLOOKUP(zapadalnosc[[#This Row],[kod]],NEW_pomoc!$B$5:$B$52,NEW_pomoc!$C$5:$C$52) -> 23-30 wrz | F62: Opolskie | G62: 1293 | H62: 16.36 | I62: -1.3 | J62: 277 | K62: 80.91 | L62: 224 | M62: 31.56 | N62: 673 | O62: 12.38 | P62: 119 | Q62: 8.4 | V62: =_xlfn.CONCAT(zapadalnosc[[#This Row],[rok]],"-",zapadalnosc[[#This Row],[kod]]) -> 2019-9D | W62: =MID(zapadalnosc[[#This Row],[rok_kod]],1,LEN(zapadalnosc[[#This Row],[rok_kod]])-1) -> 2019-9
A63: 2019 | B63: 9D | C63: 605 | D63: =MID(zapadalnosc[[#This Row],[data]],FIND(" ",zapadalnosc[[#This Row],[data]])+1,3) -> wrz | E63: =_xlfn.XLOOKUP(zapadalnosc[[#This Row],[kod]],NEW_pomoc!$B$5:$B$52,NEW_pomoc!$C$5:$C$52) -> 23-30 wrz | F63: Podkarpackie | G63: 713 | H63: 4.19 | I63: 1.17 | J63: 195 | K63: 23.66 | L63: 133 | M63: 7.58 | N63: 330 | O63: 2.82 | P63: 55 | Q63: 2 | V63: =_xlfn.CONCAT(zapadalnosc[[#This Row],[rok]],"-",zapadalnosc[[#This Row],[kod]]) -> 2019-9D | W63: =MID(zapadalnosc[[#This Row],[rok_kod]],1,LEN(zapadalnosc[[#This Row],[rok_kod]])-1) -> 2019-9
A64: 2019 | B64: 9D | C64: 606 | D64: =MID(zapadalnosc[[#This Row],[data]],FIND(" ",zapadalnosc[[#This Row],[data]])+1,3) -> wrz | E64: =_xlfn.XLOOKUP(zapadalnosc[[#This Row],[kod]],NEW_pomoc!$B$5:$B$52,NEW_pomoc!$C$5:$C$52) -> 23-30 wrz | F64: Podlaskie | G64: 1333 | H64: 14.09 | I64: 3.59 | J64: 469 | K64: 104.1 | L64: 226 | M64: 24.47 | N64: 550 | O64: 8.5 | P64: 88 | Q64: 5.45 | V64: =_xlfn.CONCAT(zapadalnosc[[#This Row],[rok]],"-",zapadalnosc[[#This Row],[kod]]) -> 2019-9D | W64: =MID(zapadalnosc[[#This Row],[rok_kod]],1,LEN(zapadalnosc[[#This Row],[rok_kod]])-1) -> 2019-9
A65: 2019 | B65: 9D | C65: 607 | D65: =MID(zapadalnosc[[#This Row],[data]],FIND(" ",zapadalnosc[[#This Row],[data]])+1,3) -> wrz | E65: =_xlfn.XLOOKUP(zapadalnosc[[#This Row],[kod]],NEW_pomoc!$B$5:$B$52,NEW_pomoc!$C$5:$C$52) -> 23-30 wrz | F65: Pomorskie | G65: 23723 | H65: 127.37 | I65: 7.04 | J65: 7482 | K65: 725.26 | L65: 4068 | M65: 196.56 | N65: 10691 | O65: 85.35 | P65: 1482 | Q65: 49.43 | V65: =_xlfn.CONCAT(zapadalnosc[[#This Row],[rok]],"-",zapadalnosc[[#This Row],[kod]]) -> 2019-9D | W65: =MID(zapadalnosc[[#This Row],[rok_kod]],1,LEN(zapadalnosc[[#This Row],[rok_kod]])-1) -> 2019-9
A66: 2019 | B66: 9D | C66: 608 | D66: =MID(zapadalnosc[[#This Row],[data]],FIND(" ",zapadalnosc[[#This Row],[data]])+1,3) -> wrz | E66: =_xlfn.XLOOKUP(zapadalnosc[[#This Row],[kod]],NEW_pomoc!$B$5:$B$52,NEW_pomoc!$C$5:$C$52) -> 23-30 wrz | F66: Śląskie | G66: 10087 | H66: 27.77 | I66: 6.45 | J66: 2950 | K66: 172.32 | L66: 2173 | M66: 61.76 | N66: 4337 | O66: 17.73 | P66: 627 | Q66: 9.46 | V66: =_xlfn.CONCAT(zapadalnosc[[#This Row],[rok]],"-",zapadalnosc[[#This Row],[kod]]) -> 2019-9D | W66: =MID(zapadalnosc[[#This Row],[rok_kod]],1,LEN(zapadalnosc[[#This Row],[rok_kod]])-1) -> 2019-9
A67: 2019 | B67: 9D | C67: 609 | D67: =MID(zapadalnosc[[#This Row],[data]],FIND(" ",zapadalnosc[[#This Row],[data]])+1,3) -> wrz | E67: =_xlfn.XLOOKUP(zapadalnosc[[#This Row],[kod]],NEW_pomoc!$B$5:$B$52,NEW_pomoc!$C$5:$C$52) -> 23-30 wrz | F67: Świętokrzyskie | G67: 1857 | H67: 18.65 | I67: 4.34 | J67: 525 | K67: 123.44 | L67: 466 | M67: 49.36 | N67: 753 | O67: 11.2 | P67: 113 | Q67: 6.07 | V67: =_xlfn.CONCAT(zapadalnosc[[#This Row],[rok]],"-",zapadalnosc[[#This Row],[kod]]) -> 2019-9D | W67: =MID(zapadalnosc[[#This Row],[rok_kod]],1,LEN(zapadalnosc[[#This Row],[rok_kod]])-1) -> 2019-9
A68: 2019 | B68: 9D | C68: 610 | D68: =MID(zapadalnosc[[#This Row],[data]],FIND(" ",zapadalnosc[[#This Row],[data]])+1,3) -> wrz | E68: =_xlfn.XLOOKUP(zapadalnosc[[#This Row],[kod]],NEW_pomoc!$B$5:$B$52,NEW_pomoc!$C$5:$C$52) -> 23-30 wrz | F68: Warmińsko-Mazurskie | G68: 1374 | H68: 12 | I68: 3.76 | J68: 297 | K68: 54.38 | L68: 265 | M68: 21.92 | N68: 691 | O68: 8.73 | P68: 121 | Q68: 6.78 | V68: =_xlfn.CONCAT(zapadalnosc[[#This Row],[rok]],"-",zapadalnosc[[#This Row],[kod]]) -> 2019-9D | W68: =MID(zapadalnosc[[#This Row],[rok_kod]],1,LEN(zapadalnosc[[#This Row],[rok_kod]])-1) -> 2019-9
A69: 2019 | B69: 9D | C69: 611 | D69: =MID(zapadalnosc[[#This Row],[data]],FIND(" ",zapadalnosc[[#This Row],[data]])+1,3) -> wrz | E69: =_xlfn.XLOOKUP(zapadalnosc[[#This Row],[kod]],NEW_pomoc!$B$5:$B$52,NEW_pomoc!$C$5:$C$52) -> 23-30 wrz | F69: Wielkopolskie | G69: 19526 | H69: 69.92 | I69: 10.91 | J69: 4803 | K69: 316.85 | L69: 3489 | M69: 114.06 | N69: 9639 | O69: 51.04 | P69: 1595 | Q69: 35.71 | V69: =_xlfn.CONCAT(zapadalnosc[[#This Row],[rok]],"-",zapadalnosc[[#This Row],[kod]]) -> 2019-9D | W69: =MID(zapadalnosc[[#This Row],[rok_kod]],1,LEN(zapadalnosc[[#This Row],[rok_kod]])-1) -> 2019-9
A70: 2019 | B70: 9D | C70: 612 | D70: =MID(zapadalnosc[[#This Row],[data]],FIND(" ",zapadalnosc[[#This Row],[data]])+1,3) -> wrz | E70: =_xlfn.XLOOKUP(zapadalnosc[[#This Row],[kod]],NEW_pomoc!$B$5:$B$52,NEW_pomoc!$C$5:$C$52) -> 23-30 wrz | F70: Zachodniopomorskie | G70: 1573 | H70: 11.55 | I70: -1.65 | J70: 400 | K70: 64.14 | L70: 300 | M70: 22.16 | N70: 767 | O70: 8.26 | P70: 106 | Q70: 4.49 | V70: =_xlfn.CONCAT(zapadalnosc[[#This Row],[rok]],"-",zapadalnosc[[#This Row],[kod]]) -> 2019-9D | W70: =MID(zapadalnosc[[#This Row],[rok_kod]],1,LEN(zapadalnosc[[#This Row],[rok_kod]])-1) -> 2019-9
A71: 2019 | B71: 10A | C71: 613 | D71: =MID(zapadalnosc[[#This Row],[data]],FIND(" ",zapadalnosc[[#This Row],[data]])+1,3) -> paź | E71: =_xlfn.XLOOKUP(zapadalnosc[[#This Row],[kod]],NEW_pomoc!$B$5:$B$52,NEW_pomoc!$C$5:$C$52) -> 1-7 paź | F71: POLSKA | G71: 111154 | H71: 41.34 | I71: 3.69 | J71: 30177 | K71: 226.05 | L71: 19839 | M71: 71.97 | N71: 51965 | O71: 28.61 | P71: 9173 | Q71: 19.8 | V71: =_xlfn.CONCAT(zapadalnosc[[#This Row],[rok]],"-",zapadalnosc[[#This Row],[kod]]) -> 2019-10A | W71: =MID(zapadalnosc[[#This Row],[rok_kod]],1,LEN(zapadalnosc[[#This Row],[rok_kod]])-1) -> 2019-10
A72: 2019 | B72: 10A | C72: 614 | D72: =MID(zapadalnosc[[#This Row],[data]],FIND(" ",zapadalnosc[[#This Row],[data]])+1,3) -> paź | E72: =_xlfn.XLOOKUP(zapadalnosc[[#This Row],[kod]],NEW_pomoc!$B$5:$B$52,NEW_pomoc!$C$5:$C$52) -> 1-7 paź | F72: Dolnośląskie | G72: 5635 | H72: 27.75 | I72: 1.62 | J72: 1377 | K72: 143.85 | L72: 843 | M72: 42.85 | N72: 2820 | O72: 20.55 | P72: 595 | Q72: 16.26 | V72: =_xlfn.CONCAT(zapadalnosc[[#This Row],[rok]],"-",zapadalnosc[[#This Row],[kod]]) -> 2019-10A | W72: =MID(zapadalnosc[[#This Row],[rok_kod]],1,LEN(zapadalnosc[[#This Row],[rok_kod]])-1) -> 2019-10
A73: 2019 | B73: 10A | C73: 615 | D73: =MID(zapadalnosc[[#This Row],[data]],FIND(" ",zapadalnosc[[#This Row],[data]])+1,3) -> paź | E73: =_xlfn.XLOOKUP(zapadalnosc[[#This Row],[kod]],NEW_pomoc!$B$5:$B$52,NEW_pomoc!$C$5:$C$52) -> 1-7 paź | F73: Kujawsko-Pomorskie | G73: 5109 | H73: 35.09 | I73: -3.19 | J73: 1379 | K73: 198.41 | L73: 1001 | M73: 66.38 | N73: 2287 | O73: 23.08 | P73: 442 | Q73: 18.06 | V73: =_xlfn.CONCAT(zapadalnosc[[#This Row],[rok]],"-",zapadalnosc[[#This Row],[kod]]) -> 2019-10A | W73: =MID(zapadalnosc[[#This Row],[rok_kod]],1,LEN(zapadalnosc[[#This Row],[rok_kod]])-1) -> 2019-10
A74: 2019 | B74: 10A | C74: 616 | D74: =MID(zapadalnosc[[#This Row],[data]],FIND(" ",zapadalnosc[[#This Row],[data]])+1,3) -> paź | E74: =_xlfn.XLOOKUP(zapadalnosc[[#This Row],[kod]],NEW_pomoc!$B$5:$B$52,NEW_pomoc!$C$5:$C$52) -> 1-7 paź | F74: Lubelskie | G74: 3469 | H74: 23.36 | I74: 5.56 | J74: 813 | K74: 117.79 | L74: 607 | M74: 40.61 | N74: 1687 | O74: 16.81 | P74: 362 | Q74: 13.77 | V74: =_xlfn.CONCAT(zapadalnosc[[#This Row],[rok]],"-",zapadalnosc[[#This Row],[kod]]) -> 2019-10A | W74: =MID(zapadalnosc[[#This Row],[rok_kod]],1,LEN(zapadalnosc[[#This Row],[rok_kod]])-1) -> 2019-10
A75: 2019 | B75: 10A | C75: 617 | D75: =MID(zapadalnosc[[#This Row],[data]],FIND(" ",zapadalnosc[[#This Row],[data]])+1,3) -> paź | E75: =_xlfn.XLOOKUP(zapadalnosc[[#This Row],[kod]],NEW_pomoc!$B$5:$B$52,NEW_pomoc!$C$5:$C$52) -> 1-7 paź | F75: Lubuskie | G75: 772 | H75: 10.86 | I75: -3.42 | J75: 298 | K75: 87.12 | L75: 192 | M75: 25.79 | N75: 241 | O75: 4.97 | P75: 41 | Q75: 3.49 | V75: =_xlfn.CONCAT(zapadalnosc[[#This Row],[rok]],"-",zapadalnosc[[#This Row],[kod]]) -> 2019-10A | W75: =MID(zapadalnosc[[#This Row],[rok_kod]],1,LEN(zapadalnosc[[#This Row],[rok_kod]])-1) -> 2019-10
A76: 2019 | B76: 10A | C76: 618 | D76: =MID(zapadalnosc[[#This Row],[data]],FIND(" ",zapadalnosc[[#This Row],[data]])+1,3) -> paź | E76: =_xlfn.XLOOKUP(zapadalnosc[[#This Row],[kod]],NEW_pomoc!$B$5:$B$52,NEW_pomoc!$C$5:$C$52) -> 1-7 paź | F76: Łódzkie | G76: 4913 | H76: 28.41 | I76: 4.98 | J76: 1399 | K76: 176.34 | L76: 1034 | M76: 61.77 | N76: 2053 | O76: 17.84 | P76: 427 | Q76: 12.87 | V76: =_xlfn.CONCAT(zapadalnosc[[#This Row],[rok]],"-",zapadalnosc[[#This Row],[kod]]) -> 2019-10A | W76: =MID(zapadalnosc[[#This Row],[rok_kod]],1,LEN(zapadalnosc[[#This Row],[rok_kod]])-1) -> 2019-10
A77: 2019 | B77: 10A | C77: 619 | D77: =MID(zapadalnosc[[#This Row],[data]],FIND(" ",zapadalnosc[[#This Row],[data]])+1,3) -> paź | E77: =_xlfn.XLOOKUP(zapadalnosc[[#This Row],[kod]],NEW_pomoc!$B$5:$B$52,NEW_pomoc!$C$5:$C$52) -> 1-7 paź | F77: Małopolskie | G77: 7651 | H77: 32.19 | I77: -5.13 | J77: 2194 | K77: 172.8 | L77: 1392 | M77: 55.13 | N77: 3413 | O77: 21.22 | P77: 652 | Q77: 16.76 | V77: =_xlfn.CONCAT(zapadalnosc[[#This Row],[rok]],"-",zapadalnosc[[#This Row],[kod]]) -> 2019-10A | W77: =MID(zapadalnosc[[#This Row],[rok_kod]],1,LEN(zapadalnosc[[#This Row],[rok_kod]])-1) -> 2019-10
A78: 2019 | B78: 10A | C78: 620 | D78: =MID(zapadalnosc[[#This Row],[data]],FIND(" ",zapadalnosc[[#This Row],[data]])+1,3) -> paź | E78: =_xlfn.XLOOKUP(zapadalnosc[[#This Row],[kod]],NEW_pomoc!$B$5:$B$52,NEW_pomoc!$C$5:$C$52) -> 1-7 paź | F78: Mazowieckie | G78: 21610 | H78: 57.26 | I78: 4.33 | J78: 5498 | K78: 266.28 | L78: 3741 | M78: 92.27 | N78: 10566 | O78: 42.17 | P78: 1805 | Q78: 27.47 | T78: 35 | U78: 0.16 | V78: =_xlfn.CONCAT(zapadalnosc[[#This Row],[rok]],"-",zapadalnosc[[#This Row],[kod]]) -> 2019-10A | W78: =MID(zapadalnosc[[#This Row],[rok_kod]],1,LEN(zapadalnosc[[#This Row],[rok_kod]])-1) -> 2019-10
A79: 2019 | B79: 10A | C79: 621 | D79: =MID(zapadalnosc[[#This Row],[data]],FIND(" ",zapadalnosc[[#This Row],[data]])+1,3) -> paź | E79: =_xlfn.XLOOKUP(zapadalnosc[[#This Row],[kod]],NEW_pomoc!$B$5:$B$52,NEW_pomoc!$C$5:$C$52) -> 1-7 paź | F79: Opolskie | G79: 1507 | H79: 21.79 | I79: 5.43 | J79: 338 | K79: 112.83 | L79: 203 | M79: 32.68 | N79: 799 | O79: 16.8 | P79: 167 | Q79: 13.48 | V79: =_xlfn.CONCAT(zapadalnosc[[#This Row],[rok]],"-",zapadalnosc[[#This Row],[kod]]) -> 2019-10A | W79: =MID(zapadalnosc[[#This Row],[rok_kod]],1,LEN(zapadalnosc[[#This Row],[rok_kod]])-1) -> 2019-10
A80: 2019 | B80: 10A | C80: 622 | D80: =MID(zapadalnosc[[#This Row],[data]],FIND(" ",zapadalnosc[[#This Row],[data]])+1,3) -> paź | E80: =_xlfn.XLOOKUP(zapadalnosc[[#This Row],[kod]],NEW_pomoc!$B$5:$B$52,NEW_pomoc!$C$5:$C$52) -> 1-7 paź | F80: Podkarpackie | G80: 920 | H80: 6.17 | I80: 1.99 | J80: 240 | K80: 33.29 | L80: 163 | M80: 10.62 | N80: 452 | O80: 4.41 | P80: 65 | Q80: 2.7 | V80: =_xlfn.CONCAT(zapadalnosc[[#This Row],[rok]],"-",zapadalnosc[[#This Row],[kod]]) -> 2019-10A | W80: =MID(zapadalnosc[[#This Row],[rok_kod]],1,LEN(zapadalnosc[[#This Row],[rok_kod]])-1) -> 2019-10
A81: 2019 | B81: 10A | C81: 623 | D81: =MID(zapadalnosc[[#This Row],[data]],FIND(" ",zapadalnosc[[#This Row],[data]])+1,3) -> paź | E81: =_xlfn.XLOOKUP(zapadalnosc[[#This Row],[kod]],NEW_pomoc!$B$5:$B$52,NEW_pomoc!$C$5:$C$52) -> 1-7 paź | F81: Podlaskie | G81: 1387 | H81: 16.75 | I81: 2.66 | J81: 399 | K81: 101.21 | L81: 211 | M81: 26.11 | N81: 651 | O81: 11.49 | P81: 126 | Q81: 8.92 | V81: =_xlfn.CONCAT(zapadalnosc[[#This Row],[rok]],"-",zapadalnosc[[#This Row],[kod]]) -> 2019-10A | W81: =MID(zapadalnosc[[#This Row],[rok_kod]],1,LEN(zapadalnosc[[#This Row],[rok_kod]])-1) -> 2019-10
A82: 2019 | B82: 10A | C82: 624 | D82: =MID(zapadalnosc[[#This Row],[data]],FIND(" ",zapadalnosc[[#This Row],[data]])+1,3) -> paź | E82: =_xlfn.XLOOKUP(zapadalnosc[[#This Row],[kod]],NEW_pomoc!$B$5:$B$52,NEW_pomoc!$C$5:$C$52) -> 1-7 paź | F82: Pomorskie | G82: 22701 | H82: 139.29 | I82: 11.92 | J82: 6936 | K82: 768.39 | L82: 3980 | M82: 219.78 | N82: 10201 | O82: 93.07 | P82: 1584 | Q82: 60.38 | V82: =_xlfn.CONCAT(zapadalnosc[[#This Row],[rok]],"-",zapadalnosc[[#This Row],[kod]]) -> 2019-10A | W82: =MID(zapadalnosc[[#This Row],[rok_kod]],1,LEN(zapadalnosc[[#This Row],[rok_kod]])-1) -> 2019-10
A83: 2019 | B83: 10A | C83: 625 | D83: =MID(zapadalnosc[[#This Row],[data]],FIND(" ",zapadalnosc[[#This Row],[data]])+1,3) -> paź | E83: =_xlfn.XLOOKUP(zapadalnosc[[#This Row],[kod]],NEW_pomoc!$B$5:$B$52,NEW_pomoc!$C$5:$C$52) -> 1-7 paź | F83: Śląskie | G83: 14627 | H83: 46.02 | I83: 18.25 | J83: 3978 | K83: 265.57 | L83: 2750 | M83: 89.33 | N83: 6764 | O83: 31.6 | P83: 1135 | Q83: 19.57 | V83: =_xlfn.CONCAT(zapadalnosc[[#This Row],[rok]],"-",zapadalnosc[[#This Row],[kod]]) -> 2019-10A | W83: =MID(zapadalnosc[[#This Row],[rok_kod]],1,LEN(zapadalnosc[[#This Row],[rok_kod]])-1) -> 2019-10
A84: 2019 | B84: 10A | C84: 626 | D84: =MID(zapadalnosc[[#This Row],[data]],FIND(" ",zapadalnosc[[#This Row],[data]])+1,3) -> paź | E84: =_xlfn.XLOOKUP(zapadalnosc[[#This Row],[kod]],NEW_pomoc!$B$5:$B$52,NEW_pomoc!$C$5:$C$52) -> 1-7 paź | F84: Świętokrzyskie | G84: 2390 | H84: 27.44 | I84: 8.78 | J84: 657 | K84: 176.54 | L84: 542 | M84: 65.61 | N84: 1003 | O84: 17.05 | P84: 188 | Q84: 11.54 | V84: =_xlfn.CONCAT(zapadalnosc[[#This Row],[rok]],"-",zapadalnosc[[#This Row],[kod]]) -> 2019-10A | W84: =MID(zapadalnosc[[#This Row],[rok_kod]],1,LEN(zapadalnosc[[#This Row],[rok_kod]])-1) -> 2019-10
A85: 2019 | B85: 10A | C85: 627 | D85: =MID(zapadalnosc[[#This Row],[data]],FIND(" ",zapadalnosc[[#This Row],[data]])+1,3) -> paź | E85: =_xlfn.XLOOKUP(zapadalnosc[[#This Row],[kod]],NEW_pomoc!$B$5:$B$52,NEW_pomoc!$C$5:$C$52) -> 1-7 paź | F85: Warmińsko-Mazurskie | G85: 1572 | H85: 15.69 | I85: 3.69 | J85: 338 | K85: 70.73 | L85: 330 | M85: 31.2 | N85: 757 | O85: 10.94 | P85: 147 | Q85: 9.42 | V85: =_xlfn.CONCAT(zapadalnosc[[#This Row],[rok]],"-",zapadalnosc[[#This Row],[kod]]) -> 2019-10A | W85: =MID(zapadalnosc[[#This Row],[rok_kod]],1,LEN(zapadalnosc[[#This Row],[rok_kod]])-1) -> 2019-10
A86: 2019 | B86: 10A | C86: 628 | D86: =MID(zapadalnosc[[#This Row],[data]],FIND(" ",zapadalnosc[[#This Row],[data]])+1,3) -> paź | E86: =_xlfn.XLOOKUP(zapadalnosc[[#This Row],[kod]],NEW_pomoc!$B$5:$B$52,NEW_pomoc!$C$5:$C$52) -> 1-7 paź | F86: Wielkopolskie | G86: 15506 | H86: 63.46 | I86: -6.46 | J86: 3990 | K86: 300.82 | L86: 2576 | M86: 96.24 | N86: 7617 | O86: 46.1 | P86: 1323 | Q86: 33.86 | V86: =_xlfn.CONCAT(zapadalnosc[[#This Row],[rok]],"-",zapadalnosc[[#This Row],[kod]]) -> 2019-10A | W86: =MID(zapadalnosc[[#This Row],[rok_kod]],1,LEN(zapadalnosc[[#This Row],[rok_kod]])-1) -> 2019-10
A87: 2019 | B87: 10A | C87: 629 | D87: =MID(zapadalnosc[[#This Row],[data]],FIND(" ",zapadalnosc[[#This Row],[data]])+1,3) -> paź | E87: =_xlfn.XLOOKUP(zapadalnosc[[#This Row],[kod]],NEW_pomoc!$B$5:$B$52,NEW_pomoc!$C$5:$C$52) -> 1-7 paź | F87: Zachodniopomorskie | G87: 1385 | H87: 11.62 | I87: 0.07 | J87: 343 | K87: 62.86 | L87: 274 | M87: 23.13 | N87: 654 | O87: 8.05 | P87: 114 | Q87: 5.52 | V87: =_xlfn.CONCAT(zapadalnosc[[#This Row],[rok]],"-",zapadalnosc[[#This Row],[kod]]) -> 2019-10A | W87: =MID(zapadalnosc[[#This Row],[rok_kod]],1,LEN(zapadalnosc[[#This Row],[rok_kod]])-1) -> 2019-10
A88: 2019 | B88: 10B | C88: 630 | D88: =MID(zapadalnosc[[#This Row],[data]],FIND(" ",zapadalnosc[[#This Row],[data]])+1,3) -> paź | E88: =_xlfn.XLOOKUP(zapadalnosc[[#This Row],[kod]],NEW_pomoc!$B$5:$B$52,NEW_pomoc!$C$5:$C$52) -> 8-15 paź | F88: POLSKA | G88: 117374 | H88: 38.19 | I88: -3.14 | J88: 32825 | K88: 215.15 | L88: 21095 | M88: 66.96 | N88: 52392 | O88: 25.24 | P88: 11062 | Q88: 20.89 | V88: =_xlfn.CONCAT(zapadalnosc[[#This Row],[rok]],"-",zapadalnosc[[#This Row],[kod]]) -> 2019-10B | W88: =MID(zapadalnosc[[#This Row],[rok_kod]],1,LEN(zapadalnosc[[#This Row],[rok_kod]])-1) -> 2019-10
A89: 2019 | B89: 10B | C89: 631 | D89: =MID(zapadalnosc[[#This Row],[data]],FIND(" ",zapadalnosc[[#This Row],[data]])+1,3) -> paź | E89: =_xlfn.XLOOKUP(zapadalnosc[[#This Row],[kod]],NEW_pomoc!$B$5:$B$52,NEW_pomoc!$C$5:$C$52) -> 8-15 paź | F89: Dolnośląskie | G89: 6623 | H89: 28.54 | I89: 0.79 | J89: 1733 | K89: 158.41 | L89: 1165 | M89: 51.82 | N89: 3023 | O89: 19.28 | P89: 702 | Q89: 16.78 | V89: =_xlfn.CONCAT(zapadalnosc[[#This Row],[rok]],"-",zapadalnosc[[#This Row],[kod]]) -> 2019-10B | W89: =MID(zapadalnosc[[#This Row],[rok_kod]],1,LEN(zapadalnosc[[#This Row],[rok_kod]])-1) -> 2019-10
A90: 2019 | B90: 10B | C90: 632 | D90: =MID(zapadalnosc[[#This Row],[data]],FIND(" ",zapadalnosc[[#This Row],[data]])+1,3) -> paź | E90: =_xlfn.XLOOKUP(zapadalnosc[[#This Row],[kod]],NEW_pomoc!$B$5:$B$52,NEW_pomoc!$C$5:$C$52) -> 8-15 paź | F90: Kujawsko-Pomorskie | G90: 6033 | H90: 36.26 | I90: 1.17 | J90: 1554 | K90: 195.64 | L90: 1248 | M90: 72.41 | N90: 2779 | O90: 24.54 | P90: 452 | Q90: 16.16 | V90: =_xlfn.CONCAT(zapadalnosc[[#This Row],[rok]],"-",zapadalnosc[[#This Row],[kod]]) -> 2019-10B | W90: =MID(zapadalnosc[[#This Row],[rok_kod]],1,LEN(zapadalnosc[[#This Row],[rok_kod]])-1) -> 2019-10
A91: 2019 | B91: 10B | C91: 633 | D91: =MID(zapadalnosc[[#This Row],[data]],FIND(" ",zapadalnosc[[#This Row],[data]])+1,3) -> paź | E91: =_xlfn.XLOOKUP(zapadalnosc[[#This Row],[kod]],NEW_pomoc!$B$5:$B$52,NEW_pomoc!$C$5:$C$52) -> 8-15 paź | F91: Lubelskie | G91: 3592 | H91: 21.16 | I91: -2.2 | J91: 992 | K91: 125.76 | L91: 644 | M91: 37.7 | N91: 1586 | O91: 13.82 | P91: 370 | Q91: 12.32 | V91: =_xlfn.CONCAT(zapadalnosc[[#This Row],[rok]],"-",zapadalnosc[[#This Row],[kod]]) -> 2019-10B | W91: =MID(zapadalnosc[[#This Row],[rok_kod]],1,LEN(zapadalnosc[[#This Row],[rok_kod]])-1) -> 2019-10
A92: 2019 | B92: 10B | C92: 634 | D92: =MID(zapadalnosc[[#This Row],[data]],FIND(" ",zapadalnosc[[#This Row],[data]])+1,3) -> paź | E92: =_xlfn.XLOOKUP(zapadalnosc[[#This Row],[kod]],NEW_pomoc!$B$5:$B$52,NEW_pomoc!$C$5:$C$52) -> 8-15 paź | F92: Lubuskie | G92: 1390 | H92: 17.11 | I92: 6.25 | J92: 409 | K92: 104.63 | L92: 316 | M92: 37.14 | N92: 408 | O92: 7.37 | P92: 257 | Q92: 19.13 | V92: =_xlfn.CONCAT(zapadalnosc[[#This Row],[rok]],"-",zapadalnosc[[#This Row],[kod]]) -> 2019-10B | W92: =MID(zapadalnosc[[#This Row],[rok_kod]],1,LEN(zapadalnosc[[#This Row],[rok_kod]])-1) -> 2019-10
A93: 2019 | B93: 10B | C93: 635 | D93: =MID(zapadalnosc[[#This Row],[data]],FIND(" ",zapadalnosc[[#This Row],[data]])+1,3) -> paź | E93: =_xlfn.XLOOKUP(zapadalnosc[[#This Row],[kod]],NEW_pomoc!$B$5:$B$52,NEW_pomoc!$C$5:$C$52) -> 8-15 paź | F93: Łódzkie | G93: 5811 | H93: 29.4 | I93: 0.99 | J93: 1617 | K93: 178.34 | L93: 1101 | M93: 57.56 | N93: 2404 | O93: 18.28 | P93: 689 | Q93: 18.17 | V93: =_xlfn.CONCAT(zapadalnosc[[#This Row],[rok]],"-",zapadalnosc[[#This Row],[kod]]) -> 2019-10B | W93: =MID(zapadalnosc[[#This Row],[rok_kod]],1,LEN(zapadalnosc[[#This Row],[rok_kod]])-1) -> 2019-10
A94: 2019 | B94: 10B | C94: 636 | D94: =MID(zapadalnosc[[#This Row],[data]],FIND(" ",zapadalnosc[[#This Row],[data]])+1,3) -> paź | E94: =_xlfn.XLOOKUP(zapadalnosc[[#This Row],[kod]],NEW_pomoc!$B$5:$B$52,NEW_pomoc!$C$5:$C$52) -> 8-15 paź | F94: Małopolskie | G94: 8887 | H94: 32.71 | I94: 0.53 | J94: 2599 | K94: 179.11 | L94: 1649 | M94: 57.14 | N94: 4018 | O94: 21.86 | P94: 621 | Q94: 13.97 | V94: =_xlfn.CONCAT(zapadalnosc[[#This Row],[rok]],"-",zapadalnosc[[#This Row],[kod]]) -> 2019-10B | W94: =MID(zapadalnosc[[#This Row],[rok_kod]],1,LEN(zapadalnosc[[#This Row],[rok_kod]])-1) -> 2019-10
A95: 2019 | B95: 10B | C95: 637 | D95: =MID(zapadalnosc[[#This Row],[data]],FIND(" ",zapadalnosc[[#This Row],[data]])+1,3) -> paź | E95: =_xlfn.XLOOKUP(zapadalnosc[[#This Row],[kod]],NEW_pomoc!$B$5:$B$52,NEW_pomoc!$C$5:$C$52) -> 8-15 paź | F95: Mazowieckie | G95: 24017 | H95: 55.68 | I95: -1.58 | J95: 6325 | K95: 268.05 | L95: 4126 | M95: 89.04 | N95: 10688 | O95: 37.33 | P95: 2878 | Q95: 38.33 | T95: 23 | U95: 0.1 | V95: =_xlfn.CONCAT(zapadalnosc[[#This Row],[rok]],"-",zapadalnosc[[#This Row],[kod]]) -> 2019-10B | W95: =MID(zapadalnosc[[#This Row],[rok_kod]],1,LEN(zapadalnosc[[#This Row],[rok_kod]])-1) -> 2019-10
A96: 2019 | B96: 10B | C96: 638 | D96: =MID(zapadalnosc[[#This Row],[data]],FIND(" ",zapadalnosc[[#This Row],[data]])+1,3) -> paź | E96: =_xlfn.XLOOKUP(zapadalnosc[[#This Row],[kod]],NEW_pomoc!$B$5:$B$52,NEW_pomoc!$C$5:$C$52) -> 8-15 paź | F96: Opolskie | G96: 1485 | H96: 18.79 | I96: -3 | J96: 396 | K96: 115.67 | L96: 234 | M96: 32.97 | N96: 720 | O96: 13.24 | P96: 135 | Q96: 9.53 | V96: =_xlfn.CONCAT(zapadalnosc[[#This Row],[rok]],"-",zapadalnosc[[#This Row],[kod]]) -> 2019-10B | W96: =MID(zapadalnosc[[#This Row],[rok_kod]],1,LEN(zapadalnosc[[#This Row],[rok_kod]])-1) -> 2019-10
A97: 2019 | B97: 10B | C97: 639 | D97: =MID(zapadalnosc[[#This Row],[data]],FIND(" ",zapadalnosc[[#This Row],[data]])+1,3) -> paź | E97: =_xlfn.XLOOKUP(zapadalnosc[[#This Row],[kod]],NEW_pomoc!$B$5:$B$52,NEW_pomoc!$C$5:$C$52) -> 8-15 paź | F97: Podkarpackie | G97: 1637 | H97: 9.61 | I97: 3.44 | J97: 496 | K97: 60.19 | L97: 326 | M97: 18.58 | N97: 679 | O97: 5.8 | P97: 136 | Q97: 4.95 | V97: =_xlfn.CONCAT(zapadalnosc[[#This Row],[rok]],"-",zapadalnosc[[#This Row],[kod]]) -> 2019-10B | W97: =MID(zapadalnosc[[#This Row],[rok_kod]],1,LEN(zapadalnosc[[#This Row],[rok_kod]])-1) -> 2019-10
A98: 2019 | B98: 10B | C98: 640 | D98: =MID(zapadalnosc[[#This Row],[data]],FIND(" ",zapadalnosc[[#This Row],[data]])+1,3) -> paź | E98: =_xlfn.XLOOKUP(zapadalnosc[[#This Row],[kod]],NEW_pomoc!$B$5:$B$52,NEW_pomoc!$C$5:$C$52) -> 8-15 paź | F98: Podlaskie | G98: 1557 | H98: 16.46 | I98: -0.3 | J98: 426 | K98: 94.55 | L98: 231 | M98: 25.01 | N98: 716 | O98: 11.06 | P98: 184 | Q98: 11.4 | V98: =_xlfn.CONCAT(zapadalnosc[[#This Row],[rok]],"-",zapadalnosc[[#This Row],[kod]]) -> 2019-10B | W98: =MID(zapadalnosc[[#This Row],[rok_kod]],1,LEN(zapadalnosc[[#This Row],[rok_kod]])-1) -> 2019-10
A99: 2019 | B99: 10B | C99: 641 | D99: =MID(zapadalnosc[[#This Row],[data]],FIND(" ",zapadalnosc[[#This Row],[data]])+1,3) -> paź | E99: =_xlfn.XLOOKUP(zapadalnosc[[#This Row],[kod]],NEW_pomoc!$B$5:$B$52,NEW_pomoc!$C$5:$C$52) -> 8-15 paź | F99: Pomorskie | G99: 21754 | H99: 116.8 | I99: -22.5 | J99: 6905 | K99: 669.33 | L99: 4045 | M99: 195.45 | N99: 9192 | O99: 73.38 | P99: 1612 | Q99: 53.77 | V99: =_xlfn.CONCAT(zapadalnosc[[#This Row],[rok]],"-",zapadalnosc[[#This Row],[kod]]) -> 2019-10B | W99: =MID(zapadalnosc[[#This Row],[rok_kod]],1,LEN(zapadalnosc[[#This Row],[rok_kod]])-1) -> 2019-10
A100: 2019 | B100: 10B | C100: 642 | D100: =MID(zapadalnosc[[#This Row],[data]],FIND(" ",zapadalnosc[[#This Row],[data]])+1,3) -> paź | E100: =_xlfn.XLOOKUP(zapadalnosc[[#This Row],[kod]],NEW_pomoc!$B$5:$B$52,NEW_pomoc!$C$5:$C$52) -> 8-15 paź | F100: Śląskie | G100: 10881 | H100: 29.96 | I100: -16.07 | J100: 3182 | K100: 185.87 | L100: 1854 | M100: 52.7 | N100: 4938 | O100: 20.19 | P100: 907 | Q100: 13.68 | V100: =_xlfn.CONCAT(zapadalnosc[[#This Row],[rok]],"-",zapadalnosc[[#This Row],[kod]]) -> 2019-10B | W100: =MID(zapadalnosc[[#This Row],[rok_kod]],1,LEN(zapadalnosc[[#This Row],[rok_kod]])-1) -> 2019-10
A101: 2019 | B101: 10B | C101: 643 | D101: =MID(zapadalnosc[[#This Row],[data]],FIND(" ",zapadalnosc[[#This Row],[data]])+1,3) -> paź | E101: =_xlfn.XLOOKUP(zapadalnosc[[#This Row],[kod]],NEW_pomoc!$B$5:$B$52,NEW_pomoc!$C$5:$C$52) -> 8-15 paź | F101: Świętokrzyskie | G101: 2533 | H101: 25.44 | I101: -1.99 | J101: 728 | K101: 171.17 | L101: 495 | M101: 52.43 | N101: 1112 | O101: 16.54 | P101: 198 | Q101: 10.63 | V101: =_xlfn.CONCAT(zapadalnosc[[#This Row],[rok]],"-",zapadalnosc[[#This Row],[kod]]) -> 2019-10B | W101: =MID(zapadalnosc[[#This Row],[rok_kod]],1,LEN(zapadalnosc[[#This Row],[rok_kod]])-1) -> 2019-10
A102: 2019 | B102: 10B | C102: 644 | D102: =MID(zapadalnosc[[#This Row],[data]],FIND(" ",zapadalnosc[[#This Row],[data]])+1,3) -> paź | E102: =_xlfn.XLOOKUP(zapadalnosc[[#This Row],[kod]],NEW_pomoc!$B$5:$B$52,NEW_pomoc!$C$5:$C$52) -> 8-15 paź | F102: Warmińsko-Mazurskie | G102: 1771 | H102: 15.47 | I102: -0.22 | J102: 444 | K102: 81.3 | L102: 343 | M102: 28.38 | N102: 776 | O102: 9.81 | P102: 208 | Q102: 11.66 | V102: =_xlfn.CONCAT(zapadalnosc[[#This Row],[rok]],"-",zapadalnosc[[#This Row],[kod]]) -> 2019-10B | W102: =MID(zapadalnosc[[#This Row],[rok_kod]],1,LEN(zapadalnosc[[#This Row],[rok_kod]])-1) -> 2019-10
A103: 2019 | B103: 10B | C103: 645 | D103: =MID(zapadalnosc[[#This Row],[data]],FIND(" ",zapadalnosc[[#This Row],[data]])+1,3) -> paź | E103: =_xlfn.XLOOKUP(zapadalnosc[[#This Row],[kod]],NEW_pomoc!$B$5:$B$52,NEW_pomoc!$C$5:$C$52) -> 8-15 paź | F103: Wielkopolskie | G103: 17685 | H103: 63.33 | I103: -0.13 | J103: 4585 | K103: 302.46 | L103: 3013 | M103: 98.5 | N103: 8543 | O103: 45.24 | P103: 1544 | Q103: 34.57 | V103: =_xlfn.CONCAT(zapadalnosc[[#This Row],[rok]],"-",zapadalnosc[[#This Row],[kod]]) -> 2019-10B | W103: =MID(zapadalnosc[[#This Row],[rok_kod]],1,LEN(zapadalnosc[[#This Row],[rok_kod]])-1) -> 2019-10
A104: 2019 | B104: 10B | C104: 646 | D104: =MID(zapadalnosc[[#This Row],[data]],FIND(" ",zapadalnosc[[#This Row],[data]])+1,3) -> paź | E104: =_xlfn.XLOOKUP(zapadalnosc[[#This Row],[kod]],NEW_pomoc!$B$5:$B$52,NEW_pomoc!$C$5:$C$52) -> 8-15 paź | F104: Zachodniopomorskie | G104: 1718 | H104: 12.61 | I104: 0.99 | J104: 434 | K104: 69.59 | L104: 305 | M104: 22.53 | N104: 810 | O104: 8.72 | P104: 169 | Q104: 7.17 | V104: =_xlfn.CONCAT(zapadalnosc[[#This Row],[rok]],"-",zapadalnosc[[#This Row],[kod]]) -> 2019-10B | W104: =MID(zapadalnosc[[#This Row],[rok_kod]],1,LEN(zapadalnosc[[#This Row],[rok_kod]])-1) -> 2019-10
A105: 2019 | B105: 10C | C105: 647 | D105: =MID(zapadalnosc[[#This Row],[data]],FIND(" ",zapadalnosc[[#This Row],[data]])+1,3) -> paź | E105: =_xlfn.XLOOKUP(zapadalnosc[[#This Row],[kod]],NEW_pomoc!$B$5:$B$52,NEW_pomoc!$C$5:$C$52) -> 16-22 paź | F105: POLSKA | G105: 112264 | H105: 41.75 | I105: 3.56 | J105: 31262 | K105: 234.18 | L105: 20350 | M105: 73.82 | N105: 50354 | O105: 27.72 | P105: 10298 | Q105: 22.23 | V105: =_xlfn.CONCAT(zapadalnosc[[#This Row],[rok]],"-",zapadalnosc[[#This Row],[kod]]) -> 2019-10C | W105: =MID(zapadalnosc[[#This Row],[rok_kod]],1,LEN(zapadalnosc[[#This Row],[rok_kod]])-1) -> 2019-10
A106: 2019 | B106: 10C | C106: 648 | D106: =MID(zapadalnosc[[#This Row],[data]],FIND(" ",zapadalnosc[[#This Row],[data]])+1,3) -> paź | E106: =_xlfn.XLOOKUP(zapadalnosc[[#This Row],[kod]],NEW_pomoc!$B$5:$B$52,NEW_pomoc!$C$5:$C$52) -> 16-22 paź | F106: Dolnośląskie | G106: 4973 | H106: 24.49 | I106: -4.05 | J106: 1308 | K106: 136.64 | L106: 839 | M106: 42.65 | N106: 2243 | O106: 16.34 | P106: 583 | Q106: 15.93 | V106: =_xlfn.CONCAT(zapadalnosc[[#This Row],[rok]],"-",zapadalnosc[[#This Row],[kod]]) -> 2019-10C | W106: =MID(zapadalnosc[[#This Row],[rok_kod]],1,LEN(zapadalnosc[[#This Row],[rok_kod]])-1) -> 2019-10
A107: 2019 | B107: 10C | C107: 649 | D107: =MID(zapadalnosc[[#This Row],[data]],FIND(" ",zapadalnosc[[#This Row],[data]])+1,3) -> paź | E107: =_xlfn.XLOOKUP(zapadalnosc[[#This Row],[kod]],NEW_pomoc!$B$5:$B$52,NEW_pomoc!$C$5:$C$52) -> 16-22 paź | F107: Kujawsko-Pomorskie | G107: 5015 | H107: 34.45 | I107: -1.81 | J107: 1453 | K107: 209.06 | L107: 1035 | M107: 68.63 | N107: 2127 | O107: 21.46 | P107: 400 | Q107: 16.35 | V107: =_xlfn.CONCAT(zapadalnosc[[#This Row],[rok]],"-",zapadalnosc[[#This Row],[kod]]) -> 2019-10C | W107: =MID(zapadalnosc[[#This Row],[rok_kod]],1,LEN(zapadalnosc[[#This Row],[rok_kod]])-1) -> 2019-10
A108: 2019 | B108: 10C | C108: 650 | D108: =MID(zapadalnosc[[#This Row],[data]],FIND(" ",zapadalnosc[[#This Row],[data]])+1,3) -> paź | E108: =_xlfn.XLOOKUP(zapadalnosc[[#This Row],[kod]],NEW_pomoc!$B$5:$B$52,NEW_pomoc!$C$5:$C$52) -> 16-22 paź | F108: Lubelskie | G108: 3757 | H108: 25.3 | I108: 4.13 | J108: 912 | K108: 132.13 | L108: 671 | M108: 44.89 | N108: 1817 | O108: 18.1 | P108: 357 | Q108: 13.58 | V108: =_xlfn.CONCAT(zapadalnosc[[#This Row],[rok]],"-",zapadalnosc[[#This Row],[kod]]) -> 2019-10C | W108: =MID(zapadalnosc[[#This Row],[rok_kod]],1,LEN(zapadalnosc[[#This Row],[rok_kod]])-1) -> 2019-10
A109: 2019 | B109: 10C | C109: 651 | D109: =MID(zapadalnosc[[#This Row],[data]],FIND(" ",zapadalnosc[[#This Row],[data]])+1,3) -> paź | E109: =_xlfn.XLOOKUP(zapadalnosc[[#This Row],[kod]],NEW_pomoc!$B$5:$B$52,NEW_pomoc!$C$5:$C$52) -> 16-22 paź | F109: Lubuskie | G109: 1059 | H109: 14.9 | I109: -2.21 | J109: 313 | K109: 91.51 | L109: 279 | M109: 37.47 | N109: 386 | O109: 7.96 | P109: 81 | Q109: 6.89 | V109: =_xlfn.CONCAT(zapadalnosc[[#This Row],[rok]],"-",zapadalnosc[[#This Row],[kod]]) -> 2019-10C | W109: =MID(zapadalnosc[[#This Row],[rok_kod]],1,LEN(zapadalnosc[[#This Row],[rok_kod]])-1) -> 2019-10
A110: 2019 | B110: 10C | C110: 652 | D110: =MID(zapadalnosc[[#This Row],[data]],FIND(" ",zapadalnosc[[#This Row],[data]])+1,3) -> paź | E110: =_xlfn.XLOOKUP(zapadalnosc[[#This Row],[kod]],NEW_pomoc!$B$5:$B$52,NEW_pomoc!$C$5:$C$52) -> 16-22 paź | F110: Łódzkie | G110: 5290 | H110: 30.59 | I110: 1.19 | J110: 1111 | K110: 140.04 | L110: 1163 | M110: 69.48 | N110: 2576 | O110: 22.38 | P110: 440 | Q110: 13.26 | V110: =_xlfn.CONCAT(zapadalnosc[[#This Row],[rok]],"-",zapadalnosc[[#This Row],[kod]]) -> 2019-10C | W110: =MID(zapadalnosc[[#This Row],[rok_kod]],1,LEN(zapadalnosc[[#This Row],[rok_kod]])-1) -> 2019-10
A111: 2019 | B111: 10C | C111: 653 | D111: =MID(zapadalnosc[[#This Row],[data]],FIND(" ",zapadalnosc[[#This Row],[data]])+1,3) -> paź | E111: =_xlfn.XLOOKUP(zapadalnosc[[#This Row],[kod]],NEW_pomoc!$B$5:$B$52,NEW_pomoc!$C$5:$C$52) -> 16-22 paź | F111: Małopolskie | G111: 10094 | H111: 42.47 | I111: 9.75 | J111: 2677 | K111: 210.84 | L111: 1771 | M111: 70.14 | N111: 4779 | O111: 29.71 | P111: 867 | Q111: 22.29 | V111: =_xlfn.CONCAT(zapadalnosc[[#This Row],[rok]],"-",zapadalnosc[[#This Row],[kod]]) -> 2019-10C | W111: =MID(zapadalnosc[[#This Row],[rok_kod]],1,LEN(zapadalnosc[[#This Row],[rok_kod]])-1) -> 2019-10
A112: 2019 | B112: 10C | C112: 654 | D112: =MID(zapadalnosc[[#This Row],[data]],FIND(" ",zapadalnosc[[#This Row],[data]])+1,3) -> paź | E112: =_xlfn.XLOOKUP(zapadalnosc[[#This Row],[kod]],NEW_pomoc!$B$5:$B$52,NEW_pomoc!$C$5:$C$52) -> 16-22 paź | F112: Mazowieckie | G112: 20229 | H112: 53.6 | I112: -2.08 | J112: 5650 | K112: 273.65 | L112: 3601 | M112: 88.82 | N112: 9111 | O112: 36.37 | P112: 1867 | Q112: 28.41 | T112: 23 | U112: 0.1 | V112: =_xlfn.CONCAT(zapadalnosc[[#This Row],[rok]],"-",zapadalnosc[[#This Row],[kod]]) -> 2019-10C | W112: =MID(zapadalnosc[[#This Row],[rok_kod]],1,LEN(zapadalnosc[[#This Row],[rok_kod]])-1) -> 2019-10
A113: 2019 | B113: 10C | C113: 655 | D113: =MID(zapadalnosc[[#This Row],[data]],FIND(" ",zapadalnosc[[#This Row],[data]])+1,3) -> paź | E113: =_xlfn.XLOOKUP(zapadalnosc[[#This Row],[kod]],NEW_pomoc!$B$5:$B$52,NEW_pomoc!$C$5:$C$52) -> 16-22 paź | F113: Opolskie | G113: 1149 | H113: 16.61 | I113: -2.17 | J113: 328 | K113: 109.49 | L113: 176 | M113: 28.34 | N113: 533 | O113: 11.21 | P113: 112 | Q113: 9.04 | V113: =_xlfn.CONCAT(zapadalnosc[[#This Row],[rok]],"-",zapadalnosc[[#This Row],[kod]]) -> 2019-10C | W113: =MID(zapadalnosc[[#This Row],[rok_kod]],1,LEN(zapadalnosc[[#This Row],[rok_kod]])-1) -> 2019-10
A114: 2019 | B114: 10C | C114: 656 | D114: =MID(zapadalnosc[[#This Row],[data]],FIND(" ",zapadalnosc[[#This Row],[data]])+1,3) -> paź | E114: =_xlfn.XLOOKUP(zapadalnosc[[#This Row],[kod]],NEW_pomoc!$B$5:$B$52,NEW_pomoc!$C$5:$C$52) -> 16-22 paź | F114: Podkarpackie | G114: 1371 | H114: 9.2 | I114: -0.41 | J114: 367 | K114: 50.9 | L114: 219 | M114: 14.26 | N114: 601 | O114: 5.87 | P114: 184 | Q114: 7.65 | V114: =_xlfn.CONCAT(zapadalnosc[[#This Row],[rok]],"-",zapadalnosc[[#This Row],[kod]]) -> 2019-10C | W114: =MID(zapadalnosc[[#This Row],[rok_kod]],1,LEN(zapadalnosc[[#This Row],[rok_kod]])-1) -> 2019-10
A115: 2019 | B115: 10C | C115: 657 | D115: =MID(zapadalnosc[[#This Row],[data]],FIND(" ",zapadalnosc[[#This Row],[data]])+1,3) -> paź | E115: =_xlfn.XLOOKUP(zapadalnosc[[#This Row],[kod]],NEW_pomoc!$B$5:$B$52,NEW_pomoc!$C$5:$C$52) -> 16-22 paź | F115: Podlaskie | G115: 1519 | H115: 18.35 | I115: 1.89 | J115: 462 | K115: 117.19 | L115: 256 | M115: 31.68 | N115: 647 | O115: 11.42 | P115: 154 | Q115: 10.91 | V115: =_xlfn.CONCAT(zapadalnosc[[#This Row],[rok]],"-",zapadalnosc[[#This Row],[kod]]) -> 2019-10C | W115: =MID(zapadalnosc[[#This Row],[rok_kod]],1,LEN(zapadalnosc[[#This Row],[rok_kod]])-1) -> 2019-10
A116: 2019 | B116: 10C | C116: 658 | D116: =MID(zapadalnosc[[#This Row],[data]],FIND(" ",zapadalnosc[[#This Row],[data]])+1,3) -> paź | E116: =_xlfn.XLOOKUP(zapadalnosc[[#This Row],[kod]],NEW_pomoc!$B$5:$B$52,NEW_pomoc!$C$5:$C$52) -> 16-22 paź | F116: Pomorskie | G116: 20795 | H116: 127.6 | I116: 10.8 | J116: 6451 | K116: 714.66 | L116: 3783 | M116: 208.9 | N116: 8945 | O116: 81.61 | P116: 1616 | Q116: 61.6 | V116: =_xlfn.CONCAT(zapadalnosc[[#This Row],[rok]],"-",zapadalnosc[[#This Row],[kod]]) -> 2019-10C | W116: =MID(zapadalnosc[[#This Row],[rok_kod]],1,LEN(zapadalnosc[[#This Row],[rok_kod]])-1) -> 2019-10
A117: 2019 | B117: 10C | C117: 659 | D117: =MID(zapadalnosc[[#This Row],[data]],FIND(" ",zapadalnosc[[#This Row],[data]])+1,3) -> paź | E117: =_xlfn.XLOOKUP(zapadalnosc[[#This Row],[kod]],NEW_pomoc!$B$5:$B$52,NEW_pomoc!$C$5:$C$52) -> 16-22 paź | F117: Śląskie | G117: 12145 | H117: 38.21 | I117: 8.26 | J117: 3589 | K117: 239.6 | L117: 2120 | M117: 68.86 | N117: 5411 | O117: 25.28 | P117: 1025 | Q117: 17.67 | V117: =_xlfn.CONCAT(zapadalnosc[[#This Row],[rok]],"-",zapadalnosc[[#This Row],[kod]]) -> 2019-10C | W117: =MID(zapadalnosc[[#This Row],[rok_kod]],1,LEN(zapadalnosc[[#This Row],[rok_kod]])-1) -> 2019-10
A118: 2019 | B118: 10C | C118: 660 | D118: =MID(zapadalnosc[[#This Row],[data]],FIND(" ",zapadalnosc[[#This Row],[data]])+1,3) -> paź | E118: =_xlfn.XLOOKUP(zapadalnosc[[#This Row],[kod]],NEW_pomoc!$B$5:$B$52,NEW_pomoc!$C$5:$C$52) -> 16-22 paź | F118: Świętokrzyskie | G118: 3011 | H118: 34.57 | I118: 9.12 | J118: 971 | K118: 260.91 | L118: 585 | M118: 70.81 | N118: 1189 | O118: 20.21 | P118: 266 | Q118: 16.32 | V118: =_xlfn.CONCAT(zapadalnosc[[#This Row],[rok]],"-",zapadalnosc[[#This Row],[kod]]) -> 2019-10C | W118: =MID(zapadalnosc[[#This Row],[rok_kod]],1,LEN(zapadalnosc[[#This Row],[rok_kod]])-1) -> 2019-10
A119: 2019 | B119: 10C | C119: 661 | D119: =MID(zapadalnosc[[#This Row],[data]],FIND(" ",zapadalnosc[[#This Row],[data]])+1,3) -> paź | E119: =_xlfn.XLOOKUP(zapadalnosc[[#This Row],[kod]],NEW_pomoc!$B$5:$B$52,NEW_pomoc!$C$5:$C$52) -> 16-22 paź | F119: Warmińsko-Mazurskie | G119: 1978 | H119: 19.74 | I119: 4.28 | J119: 533 | K119: 111.54 | L119: 440 | M119: 41.6 | N119: 792 | O119: 11.44 | P119: 213 | Q119: 13.65 | V119: =_xlfn.CONCAT(zapadalnosc[[#This Row],[rok]],"-",zapadalnosc[[#This Row],[kod]]) -> 2019-10C | W119: =MID(zapadalnosc[[#This Row],[rok_kod]],1,LEN(zapadalnosc[[#This Row],[rok_kod]])-1) -> 2019-10
A120: 2019 | B120: 10C | C120: 662 | D120: =MID(zapadalnosc[[#This Row],[data]],FIND(" ",zapadalnosc[[#This Row],[data]])+1,3) -> paź | E120: =_xlfn.XLOOKUP(zapadalnosc[[#This Row],[kod]],NEW_pomoc!$B$5:$B$52,NEW_pomoc!$C$5:$C$52) -> 16-22 paź | F120: Wielkopolskie | G120: 18233 | H120: 74.62 | I120: 11.29 | J120: 4753 | K120: 358.34 | L120: 3105 | M120: 116.01 | N120: 8426 | O120: 50.99 | P120: 1949 | Q120: 49.87 | V120: =_xlfn.CONCAT(zapadalnosc[[#This Row],[rok]],"-",zapadalnosc[[#This Row],[kod]]) -> 2019-10C | W120: =MID(zapadalnosc[[#This Row],[rok_kod]],1,LEN(zapadalnosc[[#This Row],[rok_kod]])-1) -> 2019-10
A121: 2019 | B121: 10C | C121: 663 | D121: =MID(zapadalnosc[[#This Row],[data]],FIND(" ",zapadalnosc[[#This Row],[data]])+1,3) -> paź | E121: =_xlfn.XLOOKUP(zapadalnosc[[#This Row],[kod]],NEW_pomoc!$B$5:$B$52,NEW_pomoc!$C$5:$C$52) -> 16-22 paź | F121: Zachodniopomorskie | G121: 1646 | H121: 13.81 | I121: 1.2 | J121: 384 | K121: 70.37 | L121: 307 | M121: 25.92 | N121: 771 | O121: 9.49 | P121: 184 | Q121: 8.92 | V121: =_xlfn.CONCAT(zapadalnosc[[#This Row],[rok]],"-",zapadalnosc[[#This Row],[kod]]) -> 2019-10C | W121: =MID(zapadalnosc[[#This Row],[rok_kod]],1,LEN(zapadalnosc[[#This Row],[rok_kod]])-1) -> 2019-10
A122: 2019 | B122: 10D | C122: 664 | D122: =MID(zapadalnosc[[#This Row],[data]],FIND(" ",zapadalnosc[[#This Row],[data]])+1,3) -> paź | E122: =_xlfn.XLOOKUP(zapadalnosc[[#This Row],[kod]],NEW_pomoc!$B$5:$B$52,NEW_pomoc!$C$5:$C$52) -> 23-31 paź | F122: POLSKA | G122: 129806 | H122: 37.55 | I122: -4.2 | J122: 37874 | K122: 219.55 | L122: 25679 | M122: 72.26 | N122: 54455 | O122: 23.44 | P122: 11798 | Q122: 19.47 | V122: =_xlfn.CONCAT(zapadalnosc[[#This Row],[rok]],"-",zapadalnosc[[#This Row],[kod]]) -> 2019-10D | W122: =MID(zapadalnosc[[#This Row],[rok_kod]],1,LEN(zapadalnosc[[#This Row],[rok_kod]])-1) -> 2019-10
A123: 2019 | B123: 10D | C123: 665 | D123: =MID(zapadalnosc[[#This Row],[data]],FIND(" ",zapadalnosc[[#This Row],[data]])+1,3) -> paź | E123: =_xlfn.XLOOKUP(zapadalnosc[[#This Row],[kod]],NEW_pomoc!$B$5:$B$52,NEW_pomoc!$C$5:$C$52) -> 23-31 paź | F123: Dolnośląskie | G123: 7212 | H123: 27.62 | I123: 3.13 | J123: 1862 | K123: 150.15 | L123: 1306 | M123: 51.38 | N123: 3113 | O123: 17.76 | P123: 931 | Q123: 19.4 | V123: =_xlfn.CONCAT(zapadalnosc[[#This Row],[rok]],"-",zapadalnosc[[#This Row],[kod]]) -> 2019-10D | W123: =MID(zapadalnosc[[#This Row],[rok_kod]],1,LEN(zapadalnosc[[#This Row],[rok_kod]])-1) -> 2019-10
A124: 2019 | B124: 10D | C124: 666 | D124: =MID(zapadalnosc[[#This Row],[data]],FIND(" ",zapadalnosc[[#This Row],[data]])+1,3) -> paź | E124: =_xlfn.XLOOKUP(zapadalnosc[[#This Row],[kod]],NEW_pomoc!$B$5:$B$52,NEW_pomoc!$C$5:$C$52) -> 23-31 paź | F124: Kujawsko-Pomorskie | G124: 6461 | H124: 34.55 | I124: 0.07 | J124: 1919 | K124: 214.88 | L124: 1494 | M124: 77.09 | N124: 2570 | O124: 20.29 | P124: 478 | Q124: 14.93 | V124: =_xlfn.CONCAT(zapadalnosc[[#This Row],[rok]],"-",zapadalnosc[[#This Row],[kod]]) -> 2019-10D | W124: =MID(zapadalnosc[[#This Row],[rok_kod]],1,LEN(zapadalnosc[[#This Row],[rok_kod]])-1) -> 2019-10
A125: 2019 | B125: 10D | C125: 667 | D125: =MID(zapadalnosc[[#This Row],[data]],FIND(" ",zapadalnosc[[#This Row],[data]])+1,3) -> paź | E125: =_xlfn.XLOOKUP(zapadalnosc[[#This Row],[kod]],NEW_pomoc!$B$5:$B$52,NEW_pomoc!$C$5:$C$52) -> 23-31 paź | F125: Lubelskie | G125: 4278 | H125: 22.45 | I125: -2.9 | J125: 1031 | K125: 116.04 | L125: 858 | M125: 44.78 | N125: 1871 | O125: 14.59 | P125: 518 | Q125: 15.09 | V125: =_xlfn.CONCAT(zapadalnosc[[#This Row],[rok]],"-",zapadalnosc[[#This Row],[kod]]) -> 2019-10D | W125: =MID(zapadalnosc[[#This Row],[rok_kod]],1,LEN(zapadalnosc[[#This Row],[rok_kod]])-1) -> 2019-10
A126: 2019 | B126: 10D | C126: 668 | D126: =MID(zapadalnosc[[#This Row],[data]],FIND(" ",zapadalnosc[[#This Row],[data]])+1,3) -> paź | E126: =_xlfn.XLOOKUP(zapadalnosc[[#This Row],[kod]],NEW_pomoc!$B$5:$B$52,NEW_pomoc!$C$5:$C$52) -> 23-31 paź | F126: Lubuskie | G126: 1376 | H126: 15.07 | I126: 0.16 | J126: 436 | K126: 99.63 | L126: 332 | M126: 34.59 | N126: 509 | O126: 8.22 | P126: 99 | Q126: 6.41 | V126: =_xlfn.CONCAT(zapadalnosc[[#This Row],[rok]],"-",zapadalnosc[[#This Row],[kod]]) -> 2019-10D | W126: =MID(zapadalnosc[[#This Row],[rok_kod]],1,LEN(zapadalnosc[[#This Row],[rok_kod]])-1) -> 2019-10
A127: 2019 | B127: 10D | C127: 669 | D127: =MID(zapadalnosc[[#This Row],[data]],FIND(" ",zapadalnosc[[#This Row],[data]])+1,3) -> paź | E127: =_xlfn.XLOOKUP(zapadalnosc[[#This Row],[kod]],NEW_pomoc!$B$5:$B$52,NEW_pomoc!$C$5:$C$52) -> 23-31 paź | F127: Łódzkie | G127: 5563 | H127: 25.06 | I127: -5.58 | J127: 1457 | K127: 142.64 | L127: 1273 | M127: 59.04 | N127: 2218 | O127: 15.1 | P127: 615 | Q127: 14.2 | V127: =_xlfn.CONCAT(zapadalnosc[[#This Row],[rok]],"-",zapadalnosc[[#This Row],[kod]]) -> 2019-10D | W127: =MID(zapadalnosc[[#This Row],[rok_kod]],1,LEN(zapadalnosc[[#This Row],[rok_kod]])-1) -> 2019-10
A128: 2019 | B128: 10D | C128: 670 | D128: =MID(zapadalnosc[[#This Row],[data]],FIND(" ",zapadalnosc[[#This Row],[data]])+1,3) -> paź | E128: =_xlfn.XLOOKUP(zapadalnosc[[#This Row],[kod]],NEW_pomoc!$B$5:$B$52,NEW_pomoc!$C$5:$C$52) -> 23-31 paź | F128: Małopolskie | G128: 11676 | H128: 38.15 | I128: -4.25 | J128: 3632 | K128: 220.34 | L128: 2285 | M128: 70.18 | N128: 4960 | O128: 24.05 | P128: 799 | Q128: 15.73 | V128: =_xlfn.CONCAT(zapadalnosc[[#This Row],[rok]],"-",zapadalnosc[[#This Row],[kod]]) -> 2019-10D | W128: =MID(zapadalnosc[[#This Row],[rok_kod]],1,LEN(zapadalnosc[[#This Row],[rok_kod]])-1) -> 2019-10
A129: 2019 | B129: 10D | C129: 671 | D129: =MID(zapadalnosc[[#This Row],[data]],FIND(" ",zapadalnosc[[#This Row],[data]])+1,3) -> paź | E129: =_xlfn.XLOOKUP(zapadalnosc[[#This Row],[kod]],NEW_pomoc!$B$5:$B$52,NEW_pomoc!$C$5:$C$52) -> 23-31 paź | F129: Mazowieckie | G129: 25049 | H129: 51.51 | I129: -1.97 | J129: 7252 | K129: 270.64 | L129: 5185 | M129: 98.78 | N129: 10418 | O129: 32.44 | P129: 2194 | Q129: 25.55 | T129: 41 | U129: 0.16 | V129: =_xlfn.CONCAT(zapadalnosc[[#This Row],[rok]],"-",zapadalnosc[[#This Row],[kod]]) -> 2019-10D | W129: =MID(zapadalnosc[[#This Row],[rok_kod]],1,LEN(zapadalnosc[[#This Row],[rok_kod]])-1) -> 2019-10
A130: 2019 | B130: 10D | C130: 672 | D130: =MID(zapadalnosc[[#This Row],[data]],FIND(" ",zapadalnosc[[#This Row],[data]])+1,3) -> paź | E130: =_xlfn.XLOOKUP(zapadalnosc[[#This Row],[kod]],NEW_pomoc!$B$5:$B$52,NEW_pomoc!$C$5:$C$52) -> 23-31 paź | F130: Opolskie | G130: 1601 | H130: 18.03 | I130: 1.39 | J130: 439 | K130: 113.14 | L130: 248 | M130: 31.05 | N130: 739 | O130: 12.17 | P130: 175 | Q130: 10.82 | V130: =_xlfn.CONCAT(zapadalnosc[[#This Row],[rok]],"-",zapadalnosc[[#This Row],[kod]]) -> 2019-10D | W130: =MID(zapadalnosc[[#This Row],[rok_kod]],1,LEN(zapadalnosc[[#This Row],[rok_kod]])-1) -> 2019-10
A131: 2019 | B131: 10D | C131: 673 | D131: =MID(zapadalnosc[[#This Row],[data]],FIND(" ",zapadalnosc[[#This Row],[data]])+1,3) -> paź | E131: =_xlfn.XLOOKUP(zapadalnosc[[#This Row],[kod]],NEW_pomoc!$B$5:$B$52,NEW_pomoc!$C$5:$C$52) -> 23-31 paź | F131: Podkarpackie | G131: 1882 | H131: 9.82 | I131: 0.62 | J131: 547 | K131: 58.66 | L131: 368 | M131: 18.66 | N131: 769 | O131: 5.86 | P131: 198 | Q131: 6.3 | V131: =_xlfn.CONCAT(zapadalnosc[[#This Row],[rok]],"-",zapadalnosc[[#This Row],[kod]]) -> 2019-10D | W131: =MID(zapadalnosc[[#This Row],[rok_kod]],1,LEN(zapadalnosc[[#This Row],[rok_kod]])-1) -> 2019-10
A132: 2019 | B132: 10D | C132: 674 | D132: =MID(zapadalnosc[[#This Row],[data]],FIND(" ",zapadalnosc[[#This Row],[data]])+1,3) -> paź | E132: =_xlfn.XLOOKUP(zapadalnosc[[#This Row],[kod]],NEW_pomoc!$B$5:$B$52,NEW_pomoc!$C$5:$C$52) -> 23-31 paź | F132: Podlaskie | G132: 2021 | H132: 19.01 | I132: 0.64 | J132: 642 | K132: 125.29 | L132: 374 | M132: 36.07 | N132: 794 | O132: 10.96 | P132: 211 | Q132: 11.47 | V132: =_xlfn.CONCAT(zapadalnosc[[#This Row],[rok]],"-",zapadalnosc[[#This Row],[kod]]) -> 2019-10D | W132: =MID(zapadalnosc[[#This Row],[rok_kod]],1,LEN(zapadalnosc[[#This Row],[rok_kod]])-1) -> 2019-10
A133: 2019 | B133: 10D | C133: 675 | D133: =MID(zapadalnosc[[#This Row],[data]],FIND(" ",zapadalnosc[[#This Row],[data]])+1,3) -> paź | E133: =_xlfn.XLOOKUP(zapadalnosc[[#This Row],[kod]],NEW_pomoc!$B$5:$B$52,NEW_pomoc!$C$5:$C$52) -> 23-31 paź | F133: Pomorskie | G133: 23963 | H133: 114.1 | I133: -13.21 | J133: 7576 | K133: 646.35 | L133: 4565 | M133: 195.22 | N133: 9875 | O133: 70.27 | P133: 1947 | Q133: 56.63 | V133: =_xlfn.CONCAT(zapadalnosc[[#This Row],[rok]],"-",zapadalnosc[[#This Row],[kod]]) -> 2019-10D | W133: =MID(zapadalnosc[[#This Row],[rok_kod]],1,LEN(zapadalnosc[[#This Row],[rok_kod]])-1) -> 2019-10
A134: 2019 | B134: 10D | C134: 676 | D134: =MID(zapadalnosc[[#This Row],[data]],FIND(" ",zapadalnosc[[#This Row],[data]])+1,3) -> paź | E134: =_xlfn.XLOOKUP(zapadalnosc[[#This Row],[kod]],NEW_pomoc!$B$5:$B$52,NEW_pomoc!$C$5:$C$52) -> 23-31 paź | F134: Śląskie | G134: 10930 | H134: 26.79 | I134: -11.48 | J134: 3350 | K134: 173.92 | L134: 2050 | M134: 51.54 | N134: 4575 | O134: 16.75 | P134: 955 | Q134: 12.6 | V134: =_xlfn.CONCAT(zapadalnosc[[#This Row],[rok]],"-",zapadalnosc[[#This Row],[kod]]) -> 2019-10D | W134: =MID(zapadalnosc[[#This Row],[rok_kod]],1,LEN(zapadalnosc[[#This Row],[rok_kod]])-1) -> 2019-10
A135: 2019 | B135: 10D | C135: 677 | D135: =MID(zapadalnosc[[#This Row],[data]],FIND(" ",zapadalnosc[[#This Row],[data]])+1,3) -> paź | E135: =_xlfn.XLOOKUP(zapadalnosc[[#This Row],[kod]],NEW_pomoc!$B$5:$B$52,NEW_pomoc!$C$5:$C$52) -> 23-31 paź | F135: Świętokrzyskie | G135: 1894 | H135: 16.95 | I135: -17.7 | J135: 567 | K135: 118.4 | L135: 379 | M135: 35.78 | N135: 793 | O135: 10.56 | P135: 155 | Q135: 7.28 | V135: =_xlfn.CONCAT(zapadalnosc[[#This Row],[rok]],"-",zapadalnosc[[#This Row],[kod]]) -> 2019-10D | W135: =MID(zapadalnosc[[#This Row],[rok_kod]],1,LEN(zapadalnosc[[#This Row],[rok_kod]])-1) -> 2019-10
A136: 2019 | B136: 10D | C136: 678 | D136: =MID(zapadalnosc[[#This Row],[data]],FIND(" ",zapadalnosc[[#This Row],[data]])+1,3) -> paź | E136: =_xlfn.XLOOKUP(zapadalnosc[[#This Row],[kod]],NEW_pomoc!$B$5:$B$52,NEW_pomoc!$C$5:$C$52) -> 23-31 paź | F136: Warmińsko-Mazurskie | G136: 2679 | H136: 20.83 | I136: 1.06 | J136: 716 | K136: 116.48 | L136: 569 | M136: 41.9 | N136: 1115 | O136: 12.61 | P136: 279 | Q136: 13.63 | V136: =_xlfn.CONCAT(zapadalnosc[[#This Row],[rok]],"-",zapadalnosc[[#This Row],[kod]]) -> 2019-10D | W136: =MID(zapadalnosc[[#This Row],[rok_kod]],1,LEN(zapadalnosc[[#This Row],[rok_kod]])-1) -> 2019-10
A137: 2019 | B137: 10D | C137: 679 | D137: =MID(zapadalnosc[[#This Row],[data]],FIND(" ",zapadalnosc[[#This Row],[data]])+1,3) -> paź | E137: =_xlfn.XLOOKUP(zapadalnosc[[#This Row],[kod]],NEW_pomoc!$B$5:$B$52,NEW_pomoc!$C$5:$C$52) -> 23-31 paź | F137: Wielkopolskie | G137: 20674 | H137: 65.75 | I137: -8.8 | J137: 5751 | K137: 335.06 | L137: 3903 | M137: 112.97 | N137: 9027 | O137: 42.67 | P137: 1993 | Q137: 38.95 | V137: =_xlfn.CONCAT(zapadalnosc[[#This Row],[rok]],"-",zapadalnosc[[#This Row],[kod]]) -> 2019-10D | W137: =MID(zapadalnosc[[#This Row],[rok_kod]],1,LEN(zapadalnosc[[#This Row],[rok_kod]])-1) -> 2019-10
A138: 2019 | B138: 10D | C138: 680 | D138: =MID(zapadalnosc[[#This Row],[data]],FIND(" ",zapadalnosc[[#This Row],[data]])+1,3) -> paź | E138: =_xlfn.XLOOKUP(zapadalnosc[[#This Row],[kod]],NEW_pomoc!$B$5:$B$52,NEW_pomoc!$C$5:$C$52) -> 23-31 paź | F138: Zachodniopomorskie | G138: 2547 | H138: 16.64 | I138: 2.81 | J138: 697 | K138: 99.48 | L138: 490 | M138: 32.16 | N138: 1109 | O138: 10.69 | P138: 251 | Q138: 9.26 | V138: =_xlfn.CONCAT(zapadalnosc[[#This Row],[rok]],"-",zapadalnosc[[#This Row],[kod]]) -> 2019-10D | W138: =MID(zapadalnosc[[#This Row],[rok_kod]],1,LEN(zapadalnosc[[#This Row],[rok_kod]])-1) -> 2019-10
A139: 2019 | B139: 11A | C139: 681 | D139: =MID(zapadalnosc[[#This Row],[data]],FIND(" ",zapadalnosc[[#This Row],[data]])+1,3) -> lis | E139: =_xlfn.XLOOKUP(zapadalnosc[[#This Row],[kod]],NEW_pomoc!$B$5:$B$52,NEW_pomoc!$C$5:$C$52) -> 1-7 lis | F139: POLSKA | G139: 93602 | H139: 34.81 | I139: -2.78 | J139: 26800 | K139: 199.74 | L139: 18570 | M139: 67.19 | N139: 39384 | O139: 21.8 | P139: 8848 | Q139: 18.77 | V139: =_xlfn.CONCAT(zapadalnosc[[#This Row],[rok]],"-",zapadalnosc[[#This Row],[kod]]) -> 2019-11A | W139: =MID(zapadalnosc[[#This Row],[rok_kod]],1,LEN(zapadalnosc[[#This Row],[rok_kod]])-1) -> 2019-11
A140: 2019 | B140: 11A | C140: 682 | D140: =MID(zapadalnosc[[#This Row],[data]],FIND(" ",zapadalnosc[[#This Row],[data]])+1,3) -> lis | E140: =_xlfn.XLOOKUP(zapadalnosc[[#This Row],[kod]],NEW_pomoc!$B$5:$B$52,NEW_pomoc!$C$5:$C$52) -> 1-7 lis | F140: Dolnośląskie | G140: 4409 | H140: 21.71 | I140: -5.91 | J140: 1107 | K140: 114.77 | L140: 818 | M140: 41.37 | N140: 1966 | O140: 14.42 | P140: 518 | Q140: 13.88 | V140: =_xlfn.CONCAT(zapadalnosc[[#This Row],[rok]],"-",zapadalnosc[[#This Row],[kod]]) -> 2019-11A | W140: =MID(zapadalnosc[[#This Row],[rok_kod]],1,LEN(zapadalnosc[[#This Row],[rok_kod]])-1) -> 2019-11
A141: 2019 | B141: 11A | C141: 683 | D141: =MID(zapadalnosc[[#This Row],[data]],FIND(" ",zapadalnosc[[#This Row],[data]])+1,3) -> lis | E141: =_xlfn.XLOOKUP(zapadalnosc[[#This Row],[kod]],NEW_pomoc!$B$5:$B$52,NEW_pomoc!$C$5:$C$52) -> 1-7 lis | F141: Kujawsko-Pomorskie | G141: 4068 | H141: 27.97 | I141: -6.58 | J141: 1060 | K141: 152.61 | L141: 904 | M141: 59.97 | N141: 1790 | O141: 18.17 | P141: 314 | Q141: 12.61 | V141: =_xlfn.CONCAT(zapadalnosc[[#This Row],[rok]],"-",zapadalnosc[[#This Row],[kod]]) -> 2019-11A | W141: =MID(zapadalnosc[[#This Row],[rok_kod]],1,LEN(zapadalnosc[[#This Row],[rok_kod]])-1) -> 2019-11
A142: 2019 | B142: 11A | C142: 684 | D142: =MID(zapadalnosc[[#This Row],[data]],FIND(" ",zapadalnosc[[#This Row],[data]])+1,3) -> lis | E142: =_xlfn.XLOOKUP(zapadalnosc[[#This Row],[kod]],NEW_pomoc!$B$5:$B$52,NEW_pomoc!$C$5:$C$52) -> 1-7 lis | F142: Lubelskie | G142: 3490 | H142: 23.54 | I142: 1.1 | J142: 922 | K142: 133.42 | L142: 626 | M142: 42 | N142: 1524 | O142: 15.28 | P142: 418 | Q142: 15.66 | V142: =_xlfn.CONCAT(zapadalnosc[[#This Row],[rok]],"-",zapadalnosc[[#This Row],[kod]]) -> 2019-11A | W142: =MID(zapadalnosc[[#This Row],[rok_kod]],1,LEN(zapadalnosc[[#This Row],[rok_kod]])-1) -> 2019-11
A143: 2019 | B143: 11A | C143: 685 | D143: =MID(zapadalnosc[[#This Row],[data]],FIND(" ",zapadalnosc[[#This Row],[data]])+1,3) -> lis | E143: =_xlfn.XLOOKUP(zapadalnosc[[#This Row],[kod]],NEW_pomoc!$B$5:$B$52,NEW_pomoc!$C$5:$C$52) -> 1-7 lis | F143: Lubuskie | G143: 784 | H143: 11.04 | I143: -5.55 | J143: 265 | K143: 77.86 | L143: 219 | M143: 29.33 | N143: 272 | O143: 5.65 | P143: 28 | Q143: 2.33 | V143: =_xlfn.CONCAT(zapadalnosc[[#This Row],[rok]],"-",zapadalnosc[[#This Row],[kod]]) -> 2019-11A | W143: =MID(zapadalnosc[[#This Row],[rok_kod]],1,LEN(zapadalnosc[[#This Row],[rok_kod]])-1) -> 2019-11
A144: 2019 | B144: 11A | C144: 686 | D144: =MID(zapadalnosc[[#This Row],[data]],FIND(" ",zapadalnosc[[#This Row],[data]])+1,3) -> lis | E144: =_xlfn.XLOOKUP(zapadalnosc[[#This Row],[kod]],NEW_pomoc!$B$5:$B$52,NEW_pomoc!$C$5:$C$52) -> 1-7 lis | F144: Łódzkie | G144: 4718 | H144: 27.33 | I144: 2.27 | J144: 1266 | K144: 159.35 | L144: 942 | M144: 56.17 | N144: 1968 | O144: 17.23 | P144: 542 | Q144: 16.09 | V144: =_xlfn.CONCAT(zapadalnosc[[#This Row],[rok]],"-",zapadalnosc[[#This Row],[kod]]) -> 2019-11A | W144: =MID(zapadalnosc[[#This Row],[rok_kod]],1,LEN(zapadalnosc[[#This Row],[rok_kod]])-1) -> 2019-11
A145: 2019 | B145: 11A | C145: 687 | D145: =MID(zapadalnosc[[#This Row],[data]],FIND(" ",zapadalnosc[[#This Row],[data]])+1,3) -> lis | E145: =_xlfn.XLOOKUP(zapadalnosc[[#This Row],[kod]],NEW_pomoc!$B$5:$B$52,NEW_pomoc!$C$5:$C$52) -> 1-7 lis | F145: Małopolskie | G145: 8039 | H145: 33.77 | I145: -4.38 | J145: 2271 | K145: 177.13 | L145: 1623 | M145: 64.09 | N145: 3396 | O145: 21.17 | P145: 749 | Q145: 18.95 | V145: =_xlfn.CONCAT(zapadalnosc[[#This Row],[rok]],"-",zapadalnosc[[#This Row],[kod]]) -> 2019-11A | W145: =MID(zapadalnosc[[#This Row],[rok_kod]],1,LEN(zapadalnosc[[#This Row],[rok_kod]])-1) -> 2019-11
A146: 2019 | B146: 11A | C146: 688 | D146: =MID(zapadalnosc[[#This Row],[data]],FIND(" ",zapadalnosc[[#This Row],[data]])+1,3) -> lis | E146: =_xlfn.XLOOKUP(zapadalnosc[[#This Row],[kod]],NEW_pomoc!$B$5:$B$52,NEW_pomoc!$C$5:$C$52) -> 1-7 lis | F146: Mazowieckie | G146: 20862 | H146: 55.16 | I146: 3.65 | J146: 5953 | K146: 285.63 | L146: 3872 | M146: 94.84 | N146: 9154 | O146: 36.65 | P146: 1883 | Q146: 28.19 | T146: 36 | U146: 0.17 | V146: =_xlfn.CONCAT(zapadalnosc[[#This Row],[rok]],"-",zapadalnosc[[#This Row],[kod]]) -> 2019-11A | W146: =MID(zapadalnosc[[#This Row],[rok_kod]],1,LEN(zapadalnosc[[#This Row],[rok_kod]])-1) -> 2019-11
A147: 2019 | B147: 11A | C147: 689 | D147: =MID(zapadalnosc[[#This Row],[data]],FIND(" ",zapadalnosc[[#This Row],[data]])+1,3) -> lis | E147: =_xlfn.XLOOKUP(zapadalnosc[[#This Row],[kod]],NEW_pomoc!$B$5:$B$52,NEW_pomoc!$C$5:$C$52) -> 1-7 lis | F147: Opolskie | G147: 721 | H147: 10.44 | I147: -7.59 | J147: 149 | K147: 49.37 | L147: 107 | M147: 17.23 | N147: 369 | O147: 7.81 | P147: 96 | Q147: 7.63 | V147: =_xlfn.CONCAT(zapadalnosc[[#This Row],[rok]],"-",zapadalnosc[[#This Row],[kod]]) -> 2019-11A | W147: =MID(zapadalnosc[[#This Row],[rok_kod]],1,LEN(zapadalnosc[[#This Row],[rok_kod]])-1) -> 2019-11
A148: 2019 | B148: 11A | C148: 690 | D148: =MID(zapadalnosc[[#This Row],[data]],FIND(" ",zapadalnosc[[#This Row],[data]])+1,3) -> lis | E148: =_xlfn.XLOOKUP(zapadalnosc[[#This Row],[kod]],NEW_pomoc!$B$5:$B$52,NEW_pomoc!$C$5:$C$52) -> 1-7 lis | F148: Podkarpackie | G148: 1318 | H148: 8.84 | I148: -0.98 | J148: 398 | K148: 54.87 | L148: 276 | M148: 17.99 | N148: 502 | O148: 4.92 | P148: 142 | Q148: 5.81 | V148: =_xlfn.CONCAT(zapadalnosc[[#This Row],[rok]],"-",zapadalnosc[[#This Row],[kod]]) -> 2019-11A | W148: =MID(zapadalnosc[[#This Row],[rok_kod]],1,LEN(zapadalnosc[[#This Row],[rok_kod]])-1) -> 2019-11
A149: 2019 | B149: 11A | C149: 691 | D149: =MID(zapadalnosc[[#This Row],[data]],FIND(" ",zapadalnosc[[#This Row],[data]])+1,3) -> lis | E149: =_xlfn.XLOOKUP(zapadalnosc[[#This Row],[kod]],NEW_pomoc!$B$5:$B$52,NEW_pomoc!$C$5:$C$52) -> 1-7 lis | F149: Podlaskie | G149: 1252 | H149: 15.14 | I149: -3.87 | J149: 338 | K149: 84.81 | L149: 239 | M149: 29.63 | N149: 540 | O149: 9.58 | P149: 135 | Q149: 9.44 | V149: =_xlfn.CONCAT(zapadalnosc[[#This Row],[rok]],"-",zapadalnosc[[#This Row],[kod]]) -> 2019-11A | W149: =MID(zapadalnosc[[#This Row],[rok_kod]],1,LEN(zapadalnosc[[#This Row],[rok_kod]])-1) -> 2019-11
A150: 2019 | B150: 11A | C150: 692 | D150: =MID(zapadalnosc[[#This Row],[data]],FIND(" ",zapadalnosc[[#This Row],[data]])+1,3) -> lis | E150: =_xlfn.XLOOKUP(zapadalnosc[[#This Row],[kod]],NEW_pomoc!$B$5:$B$52,NEW_pomoc!$C$5:$C$52) -> 1-7 lis | F150: Pomorskie | G150: 14357 | H150: 87.89 | I150: -26.21 | J150: 4679 | K150: 513.25 | L150: 2978 | M150: 163.74 | N150: 5575 | O150: 51.01 | P150: 1125 | Q150: 42.07 | V150: =_xlfn.CONCAT(zapadalnosc[[#This Row],[rok]],"-",zapadalnosc[[#This Row],[kod]]) -> 2019-11A | W150: =MID(zapadalnosc[[#This Row],[rok_kod]],1,LEN(zapadalnosc[[#This Row],[rok_kod]])-1) -> 2019-11
A151: 2019 | B151: 11A | C151: 693 | D151: =MID(zapadalnosc[[#This Row],[data]],FIND(" ",zapadalnosc[[#This Row],[data]])+1,3) -> lis | E151: =_xlfn.XLOOKUP(zapadalnosc[[#This Row],[kod]],NEW_pomoc!$B$5:$B$52,NEW_pomoc!$C$5:$C$52) -> 1-7 lis | F151: Śląskie | G151: 10183 | H151: 32.09 | I151: 5.3 | J151: 3130 | K151: 208.93 | L151: 2050 | M151: 66.26 | N151: 4049 | O151: 19.06 | P151: 954 | Q151: 16.18 | V151: =_xlfn.CONCAT(zapadalnosc[[#This Row],[rok]],"-",zapadalnosc[[#This Row],[kod]]) -> 2019-11A | W151: =MID(zapadalnosc[[#This Row],[rok_kod]],1,LEN(zapadalnosc[[#This Row],[rok_kod]])-1) -> 2019-11
A152: 2019 | B152: 11A | C152: 694 | D152: =MID(zapadalnosc[[#This Row],[data]],FIND(" ",zapadalnosc[[#This Row],[data]])+1,3) -> lis | E152: =_xlfn.XLOOKUP(zapadalnosc[[#This Row],[kod]],NEW_pomoc!$B$5:$B$52,NEW_pomoc!$C$5:$C$52) -> 1-7 lis | F152: Świętokrzyskie | G152: 2047 | H152: 23.55 | I152: 6.6 | J152: 577 | K152: 154.91 | L152: 380 | M152: 46.13 | N152: 877 | O152: 15.02 | P152: 213 | Q152: 12.87 | V152: =_xlfn.CONCAT(zapadalnosc[[#This Row],[rok]],"-",zapadalnosc[[#This Row],[kod]]) -> 2019-11A | W152: =MID(zapadalnosc[[#This Row],[rok_kod]],1,LEN(zapadalnosc[[#This Row],[rok_kod]])-1) -> 2019-11
A153: 2019 | B153: 11A | C153: 695 | D153: =MID(zapadalnosc[[#This Row],[data]],FIND(" ",zapadalnosc[[#This Row],[data]])+1,3) -> lis | E153: =_xlfn.XLOOKUP(zapadalnosc[[#This Row],[kod]],NEW_pomoc!$B$5:$B$52,NEW_pomoc!$C$5:$C$52) -> 1-7 lis | F153: Warmińsko-Mazurskie | G153: 2003 | H153: 20.02 | I153: -0.81 | J153: 447 | K153: 93.49 | L153: 492 | M153: 46.58 | N153: 829 | O153: 12.06 | P153: 235 | Q153: 14.76 | V153: =_xlfn.CONCAT(zapadalnosc[[#This Row],[rok]],"-",zapadalnosc[[#This Row],[kod]]) -> 2019-11A | W153: =MID(zapadalnosc[[#This Row],[rok_kod]],1,LEN(zapadalnosc[[#This Row],[rok_kod]])-1) -> 2019-11
A154: 2019 | B154: 11A | C154: 696 | D154: =MID(zapadalnosc[[#This Row],[data]],FIND(" ",zapadalnosc[[#This Row],[data]])+1,3) -> lis | E154: =_xlfn.XLOOKUP(zapadalnosc[[#This Row],[kod]],NEW_pomoc!$B$5:$B$52,NEW_pomoc!$C$5:$C$52) -> 1-7 lis | F154: Wielkopolskie | G154: 14111 | H154: 57.7 | I154: -8.05 | J154: 3955 | K154: 296.26 | L154: 2795 | M154: 104.01 | N154: 6020 | O154: 36.58 | P154: 1341 | Q154: 33.7 | V154: =_xlfn.CONCAT(zapadalnosc[[#This Row],[rok]],"-",zapadalnosc[[#This Row],[kod]]) -> 2019-11A | W154: =MID(zapadalnosc[[#This Row],[rok_kod]],1,LEN(zapadalnosc[[#This Row],[rok_kod]])-1) -> 2019-11
A155: 2019 | B155: 11A | C155: 697 | D155: =MID(zapadalnosc[[#This Row],[data]],FIND(" ",zapadalnosc[[#This Row],[data]])+1,3) -> lis | E155: =_xlfn.XLOOKUP(zapadalnosc[[#This Row],[kod]],NEW_pomoc!$B$5:$B$52,NEW_pomoc!$C$5:$C$52) -> 1-7 lis | F155: Zachodniopomorskie | G155: 1240 | H155: 10.41 | I155: -6.22 | J155: 283 | K155: 51.93 | L155: 249 | M155: 21.01 | N155: 553 | O155: 6.85 | P155: 155 | Q155: 7.35 | V155: =_xlfn.CONCAT(zapadalnosc[[#This Row],[rok]],"-",zapadalnosc[[#This Row],[kod]]) -> 2019-11A | W155: =MID(zapadalnosc[[#This Row],[rok_kod]],1,LEN(zapadalnosc[[#This Row],[rok_kod]])-1) -> 2019-11
A156: 2019 | B156: 11B | C156: 698 | D156: =MID(zapadalnosc[[#This Row],[data]],FIND(" ",zapadalnosc[[#This Row],[data]])+1,3) -> lis | E156: =_xlfn.XLOOKUP(zapadalnosc[[#This Row],[kod]],NEW_pomoc!$B$5:$B$52,NEW_pomoc!$C$5:$C$52) -> 8-15 lis | F156: POLSKA | G156: 110629 | H156: 36 | I156: 1.19 | J156: 31621 | K156: 206.22 | L156: 22662 | M156: 71.74 | N156: 45910 | O156: 22.23 | P156: 10436 | Q156: 19.38 | V156: =_xlfn.CONCAT(zapadalnosc[[#This Row],[rok]],"-",zapadalnosc[[#This Row],[kod]]) -> 2019-11B | W156: =MID(zapadalnosc[[#This Row],[rok_kod]],1,LEN(zapadalnosc[[#This Row],[rok_kod]])-1) -> 2019-11
A157: 2019 | B157: 11B | C157: 699 | D157: =MID(zapadalnosc[[#This Row],[data]],FIND(" ",zapadalnosc[[#This Row],[data]])+1,3) -> lis | E157: =_xlfn.XLOOKUP(zapadalnosc[[#This Row],[kod]],NEW_pomoc!$B$5:$B$52,NEW_pomoc!$C$5:$C$52) -> 8-15 lis | F157: Dolnośląskie | G157: 5332 | H157: 22.97 | I157: 1.26 | J157: 1331 | K157: 120.75 | L157: 1054 | M157: 46.65 | N157: 2306 | O157: 14.8 | P157: 641 | Q157: 15.03 | V157: =_xlfn.CONCAT(zapadalnosc[[#This Row],[rok]],"-",zapadalnosc[[#This Row],[kod]]) -> 2019-11B | W157: =MID(zapadalnosc[[#This Row],[rok_kod]],1,LEN(zapadalnosc[[#This Row],[rok_kod]])-1) -> 2019-11
A158: 2019 | B158: 11B | C158: 700 | D158: =MID(zapadalnosc[[#This Row],[data]],FIND(" ",zapadalnosc[[#This Row],[data]])+1,3) -> lis | E158: =_xlfn.XLOOKUP(zapadalnosc[[#This Row],[kod]],NEW_pomoc!$B$5:$B$52,NEW_pomoc!$C$5:$C$52) -> 8-15 lis | F158: Kujawsko-Pomorskie | G158: 5626 | H158: 33.85 | I158: 5.88 | J158: 1549 | K158: 195.13 | L158: 1241 | M158: 72.04 | N158: 2406 | O158: 21.37 | P158: 430 | Q158: 15.11 | V158: =_xlfn.CONCAT(zapadalnosc[[#This Row],[rok]],"-",zapadalnosc[[#This Row],[kod]]) -> 2019-11B | W158: =MID(zapadalnosc[[#This Row],[rok_kod]],1,LEN(zapadalnosc[[#This Row],[rok_kod]])-1) -> 2019-11
A159: 2019 | B159: 11B | C159: 701 | D159: =MID(zapadalnosc[[#This Row],[data]],FIND(" ",zapadalnosc[[#This Row],[data]])+1,3) -> lis | E159: =_xlfn.XLOOKUP(zapadalnosc[[#This Row],[kod]],NEW_pomoc!$B$5:$B$52,NEW_pomoc!$C$5:$C$52) -> 8-15 lis | F159: Lubelskie | G159: 2904 | H159: 17.14 | I159: -6.4 | J159: 792 | K159: 100.28 | L159: 593 | M159: 34.82 | N159: 1199 | O159: 10.52 | P159: 320 | Q159: 10.49 | V159: =_xlfn.CONCAT(zapadalnosc[[#This Row],[rok]],"-",zapadalnosc[[#This Row],[kod]]) -> 2019-11B | W159: =MID(zapadalnosc[[#This Row],[rok_kod]],1,LEN(zapadalnosc[[#This Row],[rok_kod]])-1) -> 2019-11
A160: 2019 | B160: 11B | C160: 702 | D160: =MID(zapadalnosc[[#This Row],[data]],FIND(" ",zapadalnosc[[#This Row],[data]])+1,3) -> lis | E160: =_xlfn.XLOOKUP(zapadalnosc[[#This Row],[kod]],NEW_pomoc!$B$5:$B$52,NEW_pomoc!$C$5:$C$52) -> 8-15 lis | F160: Lubuskie | G160: 1414 | H160: 17.42 | I160: 6.38 | J160: 415 | K160: 106.69 | L160: 290 | M160: 33.99 | N160: 610 | O160: 11.09 | P160: 99 | Q160: 7.22 | V160: =_xlfn.CONCAT(zapadalnosc[[#This Row],[rok]],"-",zapadalnosc[[#This Row],[kod]]) -> 2019-11B | W160: =MID(zapadalnosc[[#This Row],[rok_kod]],1,LEN(zapadalnosc[[#This Row],[rok_kod]])-1) -> 2019-11
A161: 2019 | B161: 11B | C161: 703 | D161: =MID(zapadalnosc[[#This Row],[data]],FIND(" ",zapadalnosc[[#This Row],[data]])+1,3) -> lis | E161: =_xlfn.XLOOKUP(zapadalnosc[[#This Row],[kod]],NEW_pomoc!$B$5:$B$52,NEW_pomoc!$C$5:$C$52) -> 8-15 lis | F161: Łódzkie | G161: 5587 | H161: 28.32 | I161: 0.99 | J161: 1507 | K161: 165.97 | L161: 1126 | M161: 58.75 | N161: 2202 | O161: 16.87 | P161: 752 | Q161: 19.53 | V161: =_xlfn.CONCAT(zapadalnosc[[#This Row],[rok]],"-",zapadalnosc[[#This Row],[kod]]) -> 2019-11B | W161: =MID(zapadalnosc[[#This Row],[rok_kod]],1,LEN(zapadalnosc[[#This Row],[rok_kod]])-1) -> 2019-11
A162: 2019 | B162: 11B | C162: 704 | D162: =MID(zapadalnosc[[#This Row],[data]],FIND(" ",zapadalnosc[[#This Row],[data]])+1,3) -> lis | E162: =_xlfn.XLOOKUP(zapadalnosc[[#This Row],[kod]],NEW_pomoc!$B$5:$B$52,NEW_pomoc!$C$5:$C$52) -> 8-15 lis | F162: Małopolskie | G162: 11463 | H162: 42.14 | I162: 8.36 | J162: 3119 | K162: 212.87 | L162: 2386 | M162: 82.45 | N162: 4926 | O162: 26.88 | P162: 1032 | Q162: 22.85 | V162: =_xlfn.CONCAT(zapadalnosc[[#This Row],[rok]],"-",zapadalnosc[[#This Row],[kod]]) -> 2019-11B | W162: =MID(zapadalnosc[[#This Row],[rok_kod]],1,LEN(zapadalnosc[[#This Row],[rok_kod]])-1) -> 2019-11
A163: 2019 | B163: 11B | C163: 705 | D163: =MID(zapadalnosc[[#This Row],[data]],FIND(" ",zapadalnosc[[#This Row],[data]])+1,3) -> lis | E163: =_xlfn.XLOOKUP(zapadalnosc[[#This Row],[kod]],NEW_pomoc!$B$5:$B$52,NEW_pomoc!$C$5:$C$52) -> 8-15 lis | F163: Mazowieckie | G163: 18464 | H163: 42.71 | I163: -12.44 | J163: 5232 | K163: 219.66 | L163: 3728 | M163: 79.9 | N163: 7831 | O163: 27.43 | P163: 1673 | Q163: 21.92 | T163: 47 | U163: 0.25 | V163: =_xlfn.CONCAT(zapadalnosc[[#This Row],[rok]],"-",zapadalnosc[[#This Row],[kod]]) -> 2019-11B | W163: =MID(zapadalnosc[[#This Row],[rok_kod]],1,LEN(zapadalnosc[[#This Row],[rok_kod]])-1) -> 2019-11
A164: 2019 | B164: 11B | C164: 706 | D164: =MID(zapadalnosc[[#This Row],[data]],FIND(" ",zapadalnosc[[#This Row],[data]])+1,3) -> lis | E164: =_xlfn.XLOOKUP(zapadalnosc[[#This Row],[kod]],NEW_pomoc!$B$5:$B$52,NEW_pomoc!$C$5:$C$52) -> 8-15 lis | F164: Opolskie | G164: 1053 | H164: 13.34 | I164: 2.9 | J164: 235 | K164: 68.14 | L164: 185 | M164: 26.06 | N164: 489 | O164: 9.06 | P164: 144 | Q164: 10.01 | V164: =_xlfn.CONCAT(zapadalnosc[[#This Row],[rok]],"-",zapadalnosc[[#This Row],[kod]]) -> 2019-11B | W164: =MID(zapadalnosc[[#This Row],[rok_kod]],1,LEN(zapadalnosc[[#This Row],[rok_kod]])-1) -> 2019-11
A165: 2019 | B165: 11B | C165: 707 | D165: =MID(zapadalnosc[[#This Row],[data]],FIND(" ",zapadalnosc[[#This Row],[data]])+1,3) -> lis | E165: =_xlfn.XLOOKUP(zapadalnosc[[#This Row],[kod]],NEW_pomoc!$B$5:$B$52,NEW_pomoc!$C$5:$C$52) -> 8-15 lis | F165: Podkarpackie | G165: 1902 | H165: 11.17 | I165: 2.32 | J165: 531 | K165: 64.06 | L165: 358 | M165: 20.42 | N165: 782 | O165: 6.71 | P165: 231 | Q165: 8.27 | V165: =_xlfn.CONCAT(zapadalnosc[[#This Row],[rok]],"-",zapadalnosc[[#This Row],[kod]]) -> 2019-11B | W165: =MID(zapadalnosc[[#This Row],[rok_kod]],1,LEN(zapadalnosc[[#This Row],[rok_kod]])-1) -> 2019-11
A166: 2019 | B166: 11B | C166: 708 | D166: =MID(zapadalnosc[[#This Row],[data]],FIND(" ",zapadalnosc[[#This Row],[data]])+1,3) -> lis | E166: =_xlfn.XLOOKUP(zapadalnosc[[#This Row],[kod]],NEW_pomoc!$B$5:$B$52,NEW_pomoc!$C$5:$C$52) -> 8-15 lis | F166: Podlaskie | G166: 1684 | H166: 17.82 | I166: 2.68 | J166: 473 | K166: 103.85 | L166: 328 | M166: 35.58 | N166: 723 | O166: 11.23 | P166: 160 | Q166: 9.79 | V166: =_xlfn.CONCAT(zapadalnosc[[#This Row],[rok]],"-",zapadalnosc[[#This Row],[kod]]) -> 2019-11B | W166: =MID(zapadalnosc[[#This Row],[rok_kod]],1,LEN(zapadalnosc[[#This Row],[rok_kod]])-1) -> 2019-11
A167: 2019 | B167: 11B | C167: 709 | D167: =MID(zapadalnosc[[#This Row],[data]],FIND(" ",zapadalnosc[[#This Row],[data]])+1,3) -> lis | E167: =_xlfn.XLOOKUP(zapadalnosc[[#This Row],[kod]],NEW_pomoc!$B$5:$B$52,NEW_pomoc!$C$5:$C$52) -> 8-15 lis | F167: Pomorskie | G167: 20691 | H167: 110.84 | I167: 22.94 | J167: 6587 | K167: 632.22 | L167: 4233 | M167: 203.65 | N167: 8147 | O167: 65.22 | P167: 1724 | Q167: 56.41 | V167: =_xlfn.CONCAT(zapadalnosc[[#This Row],[rok]],"-",zapadalnosc[[#This Row],[kod]]) -> 2019-11B | W167: =MID(zapadalnosc[[#This Row],[rok_kod]],1,LEN(zapadalnosc[[#This Row],[rok_kod]])-1) -> 2019-11
A168: 2019 | B168: 11B | C168: 710 | D168: =MID(zapadalnosc[[#This Row],[data]],FIND(" ",zapadalnosc[[#This Row],[data]])+1,3) -> lis | E168: =_xlfn.XLOOKUP(zapadalnosc[[#This Row],[kod]],NEW_pomoc!$B$5:$B$52,NEW_pomoc!$C$5:$C$52) -> 8-15 lis | F168: Śląskie | G168: 8993 | H168: 24.8 | I168: -7.29 | J168: 2481 | K168: 144.91 | L168: 1787 | M168: 50.54 | N168: 3922 | O168: 16.15 | P168: 803 | Q168: 11.92 | V168: =_xlfn.CONCAT(zapadalnosc[[#This Row],[rok]],"-",zapadalnosc[[#This Row],[kod]]) -> 2019-11B | W168: =MID(zapadalnosc[[#This Row],[rok_kod]],1,LEN(zapadalnosc[[#This Row],[rok_kod]])-1) -> 2019-11
A169: 2019 | B169: 11B | C169: 711 | D169: =MID(zapadalnosc[[#This Row],[data]],FIND(" ",zapadalnosc[[#This Row],[data]])+1,3) -> lis | E169: =_xlfn.XLOOKUP(zapadalnosc[[#This Row],[kod]],NEW_pomoc!$B$5:$B$52,NEW_pomoc!$C$5:$C$52) -> 8-15 lis | F169: Świętokrzyskie | G169: 2717 | H169: 27.36 | I169: 3.8 | J169: 891 | K169: 209.31 | L169: 660 | M169: 70.11 | N169: 935 | O169: 14.01 | P169: 231 | Q169: 12.21 | V169: =_xlfn.CONCAT(zapadalnosc[[#This Row],[rok]],"-",zapadalnosc[[#This Row],[kod]]) -> 2019-11B | W169: =MID(zapadalnosc[[#This Row],[rok_kod]],1,LEN(zapadalnosc[[#This Row],[rok_kod]])-1) -> 2019-11
A170: 2019 | B170: 11B | C170: 712 | D170: =MID(zapadalnosc[[#This Row],[data]],FIND(" ",zapadalnosc[[#This Row],[data]])+1,3) -> lis | E170: =_xlfn.XLOOKUP(zapadalnosc[[#This Row],[kod]],NEW_pomoc!$B$5:$B$52,NEW_pomoc!$C$5:$C$52) -> 8-15 lis | F170: Warmińsko-Mazurskie | G170: 2040 | H170: 17.84 | I170: -2.18 | J170: 574 | K170: 105.05 | L170: 453 | M170: 37.52 | N170: 818 | O170: 10.41 | P170: 195 | Q170: 10.72 | V170: =_xlfn.CONCAT(zapadalnosc[[#This Row],[rok]],"-",zapadalnosc[[#This Row],[kod]]) -> 2019-11B | W170: =MID(zapadalnosc[[#This Row],[rok_kod]],1,LEN(zapadalnosc[[#This Row],[rok_kod]])-1) -> 2019-11
A171: 2019 | B171: 11B | C171: 713 | D171: =MID(zapadalnosc[[#This Row],[data]],FIND(" ",zapadalnosc[[#This Row],[data]])+1,3) -> lis | E171: =_xlfn.XLOOKUP(zapadalnosc[[#This Row],[kod]],NEW_pomoc!$B$5:$B$52,NEW_pomoc!$C$5:$C$52) -> 8-15 lis | F171: Wielkopolskie | G171: 18605 | H171: 66.56 | I171: 8.87 | J171: 5310 | K171: 348.03 | L171: 3790 | M171: 123.41 | N171: 7721 | O171: 41.05 | P171: 1784 | Q171: 39.22 | V171: =_xlfn.CONCAT(zapadalnosc[[#This Row],[rok]],"-",zapadalnosc[[#This Row],[kod]]) -> 2019-11B | W171: =MID(zapadalnosc[[#This Row],[rok_kod]],1,LEN(zapadalnosc[[#This Row],[rok_kod]])-1) -> 2019-11
A172: 2019 | B172: 11B | C172: 714 | D172: =MID(zapadalnosc[[#This Row],[data]],FIND(" ",zapadalnosc[[#This Row],[data]])+1,3) -> lis | E172: =_xlfn.XLOOKUP(zapadalnosc[[#This Row],[kod]],NEW_pomoc!$B$5:$B$52,NEW_pomoc!$C$5:$C$52) -> 8-15 lis | F172: Zachodniopomorskie | G172: 2154 | H172: 15.83 | I172: 5.41 | J172: 594 | K172: 95.38 | L172: 450 | M172: 33.23 | N172: 893 | O172: 9.68 | P172: 217 | Q172: 9.01 | V172: =_xlfn.CONCAT(zapadalnosc[[#This Row],[rok]],"-",zapadalnosc[[#This Row],[kod]]) -> 2019-11B | W172: =MID(zapadalnosc[[#This Row],[rok_kod]],1,LEN(zapadalnosc[[#This Row],[rok_kod]])-1) -> 2019-11
A173: 2019 | B173: 11C | C173: 715 | D173: =MID(zapadalnosc[[#This Row],[data]],FIND(" ",zapadalnosc[[#This Row],[data]])+1,3) -> lis | E173: =_xlfn.XLOOKUP(zapadalnosc[[#This Row],[kod]],NEW_pomoc!$B$5:$B$52,NEW_pomoc!$C$5:$C$52) -> 16-22 lis | F173: POLSKA | G173: 106546 | H173: 39.63 | I173: 3.62 | J173: 29693 | K173: 221.31 | L173: 22754 | M173: 82.32 | N173: 44097 | O173: 24.4 | P173: 10002 | Q173: 21.22 | V173: =_xlfn.CONCAT(zapadalnosc[[#This Row],[rok]],"-",zapadalnosc[[#This Row],[kod]]) -> 2019-11C | W173: =MID(zapadalnosc[[#This Row],[rok_kod]],1,LEN(zapadalnosc[[#This Row],[rok_kod]])-1) -> 2019-11
A174: 2019 | B174: 11C | C174: 716 | D174: =MID(zapadalnosc[[#This Row],[data]],FIND(" ",zapadalnosc[[#This Row],[data]])+1,3) -> lis | E174: =_xlfn.XLOOKUP(zapadalnosc[[#This Row],[kod]],NEW_pomoc!$B$5:$B$52,NEW_pomoc!$C$5:$C$52) -> 16-22 lis | F174: Dolnośląskie | G174: 5656 | H174: 27.85 | I174: 4.88 | J174: 1409 | K174: 146.08 | L174: 1225 | M174: 61.96 | N174: 2347 | O174: 17.21 | P174: 675 | Q174: 18.09 | V174: =_xlfn.CONCAT(zapadalnosc[[#This Row],[rok]],"-",zapadalnosc[[#This Row],[kod]]) -> 2019-11C | W174: =MID(zapadalnosc[[#This Row],[rok_kod]],1,LEN(zapadalnosc[[#This Row],[rok_kod]])-1) -> 2019-11
A175: 2019 | B175: 11C | C175: 717 | D175: =MID(zapadalnosc[[#This Row],[data]],FIND(" ",zapadalnosc[[#This Row],[data]])+1,3) -> lis | E175: =_xlfn.XLOOKUP(zapadalnosc[[#This Row],[kod]],NEW_pomoc!$B$5:$B$52,NEW_pomoc!$C$5:$C$52) -> 16-22 lis | F175: Kujawsko-Pomorskie | G175: 5293 | H175: 36.39 | I175: 2.55 | J175: 1440 | K175: 207.31 | L175: 1275 | M175: 84.58 | N175: 2191 | O175: 22.24 | P175: 387 | Q175: 15.54 | V175: =_xlfn.CONCAT(zapadalnosc[[#This Row],[rok]],"-",zapadalnosc[[#This Row],[kod]]) -> 2019-11C | W175: =MID(zapadalnosc[[#This Row],[rok_kod]],1,LEN(zapadalnosc[[#This Row],[rok_kod]])-1) -> 2019-11
A176: 2019 | B176: 11C | C176: 718 | D176: =MID(zapadalnosc[[#This Row],[data]],FIND(" ",zapadalnosc[[#This Row],[data]])+1,3) -> lis | E176: =_xlfn.XLOOKUP(zapadalnosc[[#This Row],[kod]],NEW_pomoc!$B$5:$B$52,NEW_pomoc!$C$5:$C$52) -> 16-22 lis | F176: Lubelskie | G176: 3955 | H176: 26.68 | I176: 9.54 | J176: 904 | K176: 130.81 | L176: 798 | M176: 53.55 | N176: 1649 | O176: 16.54 | P176: 604 | Q176: 22.63 | V176: =_xlfn.CONCAT(zapadalnosc[[#This Row],[rok]],"-",zapadalnosc[[#This Row],[kod]]) -> 2019-11C | W176: =MID(zapadalnosc[[#This Row],[rok_kod]],1,LEN(zapadalnosc[[#This Row],[rok_kod]])-1) -> 2019-11
A177: 2019 | B177: 11C | C177: 719 | D177: =MID(zapadalnosc[[#This Row],[data]],FIND(" ",zapadalnosc[[#This Row],[data]])+1,3) -> lis | E177: =_xlfn.XLOOKUP(zapadalnosc[[#This Row],[kod]],NEW_pomoc!$B$5:$B$52,NEW_pomoc!$C$5:$C$52) -> 16-22 lis | F177: Lubuskie | G177: 1282 | H177: 18.05 | I177: 0.63 | J177: 401 | K177: 117.82 | L177: 293 | M177: 39.24 | N177: 500 | O177: 10.39 | P177: 88 | Q177: 7.33 | V177: =_xlfn.CONCAT(zapadalnosc[[#This Row],[rok]],"-",zapadalnosc[[#This Row],[kod]]) -> 2019-11C | W177: =MID(zapadalnosc[[#This Row],[rok_kod]],1,LEN(zapadalnosc[[#This Row],[rok_kod]])-1) -> 2019-11
A178: 2019 | B178: 11C | C178: 720 | D178: =MID(zapadalnosc[[#This Row],[data]],FIND(" ",zapadalnosc[[#This Row],[data]])+1,3) -> lis | E178: =_xlfn.XLOOKUP(zapadalnosc[[#This Row],[kod]],NEW_pomoc!$B$5:$B$52,NEW_pomoc!$C$5:$C$52) -> 16-22 lis | F178: Łódzkie | G178: 4461 | H178: 25.84 | I178: -2.48 | J178: 1206 | K178: 151.8 | L178: 997 | M178: 59.45 | N178: 1812 | O178: 15.86 | P178: 446 | Q178: 13.24 | V178: =_xlfn.CONCAT(zapadalnosc[[#This Row],[rok]],"-",zapadalnosc[[#This Row],[kod]]) -> 2019-11C | W178: =MID(zapadalnosc[[#This Row],[rok_kod]],1,LEN(zapadalnosc[[#This Row],[rok_kod]])-1) -> 2019-11
A179: 2019 | B179: 11C | C179: 721 | D179: =MID(zapadalnosc[[#This Row],[data]],FIND(" ",zapadalnosc[[#This Row],[data]])+1,3) -> lis | E179: =_xlfn.XLOOKUP(zapadalnosc[[#This Row],[kod]],NEW_pomoc!$B$5:$B$52,NEW_pomoc!$C$5:$C$52) -> 16-22 lis | F179: Małopolskie | G179: 10758 | H179: 45.19 | I179: 3.06 | J179: 2878 | K179: 224.48 | L179: 2299 | M179: 90.79 | N179: 4553 | O179: 28.39 | P179: 1028 | Q179: 26.01 | V179: =_xlfn.CONCAT(zapadalnosc[[#This Row],[rok]],"-",zapadalnosc[[#This Row],[kod]]) -> 2019-11C | W179: =MID(zapadalnosc[[#This Row],[rok_kod]],1,LEN(zapadalnosc[[#This Row],[rok_kod]])-1) -> 2019-11
A180: 2019 | B180: 11C | C180: 722 | D180: =MID(zapadalnosc[[#This Row],[data]],FIND(" ",zapadalnosc[[#This Row],[data]])+1,3) -> lis | E180: =_xlfn.XLOOKUP(zapadalnosc[[#This Row],[kod]],NEW_pomoc!$B$5:$B$52,NEW_pomoc!$C$5:$C$52) -> 16-22 lis | F180: Mazowieckie | G180: 17843 | H180: 47.17 | I180: 4.46 | J180: 4930 | K180: 236.55 | L180: 3831 | M180: 93.84 | N180: 7524 | O180: 30.12 | P180: 1558 | Q180: 23.33 | T180: 39 | U180: 0.22 | V180: =_xlfn.CONCAT(zapadalnosc[[#This Row],[rok]],"-",zapadalnosc[[#This Row],[kod]]) -> 2019-11C | W180: =MID(zapadalnosc[[#This Row],[rok_kod]],1,LEN(zapadalnosc[[#This Row],[rok_kod]])-1) -> 2019-11
A181: 2019 | B181: 11C | C181: 723 | D181: =MID(zapadalnosc[[#This Row],[data]],FIND(" ",zapadalnosc[[#This Row],[data]])+1,3) -> lis | E181: =_xlfn.XLOOKUP(zapadalnosc[[#This Row],[kod]],NEW_pomoc!$B$5:$B$52,NEW_pomoc!$C$5:$C$52) -> 16-22 lis | F181: Opolskie | G181: 1089 | H181: 15.77 | I181: 2.43 | J181: 294 | K181: 97.42 | L181: 173 | M181: 27.85 | N181: 494 | O181: 10.46 | P181: 128 | Q181: 10.17 | V181: =_xlfn.CONCAT(zapadalnosc[[#This Row],[rok]],"-",zapadalnosc[[#This Row],[kod]]) -> 2019-11C | W181: =MID(zapadalnosc[[#This Row],[rok_kod]],1,LEN(zapadalnosc[[#This Row],[rok_kod]])-1) -> 2019-11
A182: 2019 | B182: 11C | C182: 724 | D182: =MID(zapadalnosc[[#This Row],[data]],FIND(" ",zapadalnosc[[#This Row],[data]])+1,3) -> lis | E182: =_xlfn.XLOOKUP(zapadalnosc[[#This Row],[kod]],NEW_pomoc!$B$5:$B$52,NEW_pomoc!$C$5:$C$52) -> 16-22 lis | F182: Podkarpackie | G182: 2087 | H182: 14 | I182: 2.84 | J182: 544 | K182: 75 | L182: 433 | M182: 28.23 | N182: 812 | O182: 7.96 | P182: 298 | Q182: 12.19 | V182: =_xlfn.CONCAT(zapadalnosc[[#This Row],[rok]],"-",zapadalnosc[[#This Row],[kod]]) -> 2019-11C | W182: =MID(zapadalnosc[[#This Row],[rok_kod]],1,LEN(zapadalnosc[[#This Row],[rok_kod]])-1) -> 2019-11
A183: 2019 | B183: 11C | C183: 725 | D183: =MID(zapadalnosc[[#This Row],[data]],FIND(" ",zapadalnosc[[#This Row],[data]])+1,3) -> lis | E183: =_xlfn.XLOOKUP(zapadalnosc[[#This Row],[kod]],NEW_pomoc!$B$5:$B$52,NEW_pomoc!$C$5:$C$52) -> 16-22 lis | F183: Podlaskie | G183: 1617 | H183: 19.55 | I183: 1.74 | J183: 501 | K183: 125.71 | L183: 275 | M183: 34.1 | N183: 661 | O183: 11.73 | P183: 180 | Q183: 12.58 | V183: =_xlfn.CONCAT(zapadalnosc[[#This Row],[rok]],"-",zapadalnosc[[#This Row],[kod]]) -> 2019-11C | W183: =MID(zapadalnosc[[#This Row],[rok_kod]],1,LEN(zapadalnosc[[#This Row],[rok_kod]])-1) -> 2019-11
A184: 2019 | B184: 11C | C184: 726 | D184: =MID(zapadalnosc[[#This Row],[data]],FIND(" ",zapadalnosc[[#This Row],[data]])+1,3) -> lis | E184: =_xlfn.XLOOKUP(zapadalnosc[[#This Row],[kod]],NEW_pomoc!$B$5:$B$52,NEW_pomoc!$C$5:$C$52) -> 16-22 lis | F184: Pomorskie | G184: 18695 | H184: 114.45 | I184: 3.61 | J184: 5696 | K184: 624.8 | L184: 3946 | M184: 216.96 | N184: 7564 | O184: 69.2 | P184: 1489 | Q184: 55.68 | V184: =_xlfn.CONCAT(zapadalnosc[[#This Row],[rok]],"-",zapadalnosc[[#This Row],[kod]]) -> 2019-11C | W184: =MID(zapadalnosc[[#This Row],[rok_kod]],1,LEN(zapadalnosc[[#This Row],[rok_kod]])-1) -> 2019-11
A185: 2019 | B185: 11C | C185: 727 | D185: =MID(zapadalnosc[[#This Row],[data]],FIND(" ",zapadalnosc[[#This Row],[data]])+1,3) -> lis | E185: =_xlfn.XLOOKUP(zapadalnosc[[#This Row],[kod]],NEW_pomoc!$B$5:$B$52,NEW_pomoc!$C$5:$C$52) -> 16-22 lis | F185: Śląskie | G185: 11226 | H185: 35.37 | I185: 10.58 | J185: 3414 | K185: 227.89 | L185: 2358 | M185: 76.22 | N185: 4580 | O185: 21.55 | P185: 874 | Q185: 14.83 | V185: =_xlfn.CONCAT(zapadalnosc[[#This Row],[rok]],"-",zapadalnosc[[#This Row],[kod]]) -> 2019-11C | W185: =MID(zapadalnosc[[#This Row],[rok_kod]],1,LEN(zapadalnosc[[#This Row],[rok_kod]])-1) -> 2019-11
A186: 2019 | B186: 11C | C186: 728 | D186: =MID(zapadalnosc[[#This Row],[data]],FIND(" ",zapadalnosc[[#This Row],[data]])+1,3) -> lis | E186: =_xlfn.XLOOKUP(zapadalnosc[[#This Row],[kod]],NEW_pomoc!$B$5:$B$52,NEW_pomoc!$C$5:$C$52) -> 16-22 lis | F186: Świętokrzyskie | G186: 2088 | H186: 24.03 | I186: -3.33 | J186: 631 | K186: 169.41 | L186: 446 | M186: 54.14 | N186: 759 | O186: 13 | P186: 252 | Q186: 15.23 | V186: =_xlfn.CONCAT(zapadalnosc[[#This Row],[rok]],"-",zapadalnosc[[#This Row],[kod]]) -> 2019-11C | W186: =MID(zapadalnosc[[#This Row],[rok_kod]],1,LEN(zapadalnosc[[#This Row],[rok_kod]])-1) -> 2019-11
A187: 2019 | B187: 11C | C187: 729 | D187: =MID(zapadalnosc[[#This Row],[data]],FIND(" ",zapadalnosc[[#This Row],[data]])+1,3) -> lis | E187: =_xlfn.XLOOKUP(zapadalnosc[[#This Row],[kod]],NEW_pomoc!$B$5:$B$52,NEW_pomoc!$C$5:$C$52) -> 16-22 lis | F187: Warmińsko-Mazurskie | G187: 1887 | H187: 18.86 | I187: 1.02 | J187: 439 | K187: 91.82 | L187: 474 | M187: 44.87 | N187: 720 | O187: 10.47 | P187: 254 | Q187: 15.95 | V187: =_xlfn.CONCAT(zapadalnosc[[#This Row],[rok]],"-",zapadalnosc[[#This Row],[kod]]) -> 2019-11C | W187: =MID(zapadalnosc[[#This Row],[rok_kod]],1,LEN(zapadalnosc[[#This Row],[rok_kod]])-1) -> 2019-11
A188: 2019 | B188: 11C | C188: 730 | D188: =MID(zapadalnosc[[#This Row],[data]],FIND(" ",zapadalnosc[[#This Row],[data]])+1,3) -> lis | E188: =_xlfn.XLOOKUP(zapadalnosc[[#This Row],[kod]],NEW_pomoc!$B$5:$B$52,NEW_pomoc!$C$5:$C$52) -> 16-22 lis | F188: Wielkopolskie | G188: 17122 | H188: 70.01 | I188: 3.45 | J188: 4657 | K188: 348.84 | L188: 3631 | M188: 135.12 | N188: 7244 | O188: 44.02 | P188: 1590 | Q188: 39.95 | V188: =_xlfn.CONCAT(zapadalnosc[[#This Row],[rok]],"-",zapadalnosc[[#This Row],[kod]]) -> 2019-11C | W188: =MID(zapadalnosc[[#This Row],[rok_kod]],1,LEN(zapadalnosc[[#This Row],[rok_kod]])-1) -> 2019-11
A189: 2019 | B189: 11C | C189: 731 | D189: =MID(zapadalnosc[[#This Row],[data]],FIND(" ",zapadalnosc[[#This Row],[data]])+1,3) -> lis | E189: =_xlfn.XLOOKUP(zapadalnosc[[#This Row],[kod]],NEW_pomoc!$B$5:$B$52,NEW_pomoc!$C$5:$C$52) -> 16-22 lis | F189: Zachodniopomorskie | G189: 1487 | H189: 12.49 | I189: -3.34 | J189: 349 | K189: 64.05 | L189: 300 | M189: 25.32 | N189: 687 | O189: 8.51 | P189: 151 | Q189: 7.16 | V189: =_xlfn.CONCAT(zapadalnosc[[#This Row],[rok]],"-",zapadalnosc[[#This Row],[kod]]) -> 2019-11C | W189: =MID(zapadalnosc[[#This Row],[rok_kod]],1,LEN(zapadalnosc[[#This Row],[rok_kod]])-1) -> 2019-11
A190: 2019 | B190: 11D | C190: 732 | D190: =MID(zapadalnosc[[#This Row],[data]],FIND(" ",zapadalnosc[[#This Row],[data]])+1,3) -> lis | E190: =_xlfn.XLOOKUP(zapadalnosc[[#This Row],[kod]],NEW_pomoc!$B$5:$B$52,NEW_pomoc!$C$5:$C$52) -> 23-30 lis | F190: POLSKA | G190: 112575 | H190: 36.63 | I190: -2.99 | J190: 31186 | K190: 203.38 | L190: 24526 | M190: 77.64 | N190: 47057 | O190: 22.79 | P190: 9806 | Q190: 18.21 | S190: 2 | V190: =_xlfn.CONCAT(zapadalnosc[[#This Row],[rok]],"-",zapadalnosc[[#This Row],[kod]]) -> 2019-11D | W190: =MID(zapadalnosc[[#This Row],[rok_kod]],1,LEN(zapadalnosc[[#This Row],[rok_kod]])-1) -> 2019-11
A191: 2019 | B191: 11D | C191: 733 | D191: =MID(zapadalnosc[[#This Row],[data]],FIND(" ",zapadalnosc[[#This Row],[data]])+1,3) -> lis | E191: =_xlfn.XLOOKUP(zapadalnosc[[#This Row],[kod]],NEW_pomoc!$B$5:$B$52,NEW_pomoc!$C$5:$C$52) -> 23-30 lis | F191: Dolnośląskie | G191: 6470 | H191: 27.88 | I191: 0.03 | J191: 1523 | K191: 138.16 | L191: 1395 | M191: 61.74 | N191: 2801 | O191: 17.97 | P191: 751 | Q191: 17.61 | V191: =_xlfn.CONCAT(zapadalnosc[[#This Row],[rok]],"-",zapadalnosc[[#This Row],[kod]]) -> 2019-11D | W191: =MID(zapadalnosc[[#This Row],[rok_kod]],1,LEN(zapadalnosc[[#This Row],[rok_kod]])-1) -> 2019-11
A192: 2019 | B192: 11D | C192: 734 | D192: =MID(zapadalnosc[[#This Row],[data]],FIND(" ",zapadalnosc[[#This Row],[data]])+1,3) -> lis | E192: =_xlfn.XLOOKUP(zapadalnosc[[#This Row],[kod]],NEW_pomoc!$B$5:$B$52,NEW_pomoc!$C$5:$C$52) -> 23-30 lis | F192: Kujawsko-Pomorskie | G192: 5696 | H192: 34.27 | I192: -2.12 | J192: 1455 | K192: 183.29 | L192: 1334 | M192: 77.43 | N192: 2516 | O192: 22.34 | P192: 391 | Q192: 13.74 | V192: =_xlfn.CONCAT(zapadalnosc[[#This Row],[rok]],"-",zapadalnosc[[#This Row],[kod]]) -> 2019-11D | W192: =MID(zapadalnosc[[#This Row],[rok_kod]],1,LEN(zapadalnosc[[#This Row],[rok_kod]])-1) -> 2019-11
A193: 2019 | B193: 11D | C193: 735 | D193: =MID(zapadalnosc[[#This Row],[data]],FIND(" ",zapadalnosc[[#This Row],[data]])+1,3) -> lis | E193: =_xlfn.XLOOKUP(zapadalnosc[[#This Row],[kod]],NEW_pomoc!$B$5:$B$52,NEW_pomoc!$C$5:$C$52) -> 23-30 lis | F193: Lubelskie | G193: 3777 | H193: 22.3 | I193: -4.39 | J193: 1002 | K193: 126.87 | L193: 873 | M193: 51.26 | N193: 1557 | O193: 13.66 | P193: 345 | Q193: 11.31 | V193: =_xlfn.CONCAT(zapadalnosc[[#This Row],[rok]],"-",zapadalnosc[[#This Row],[kod]]) -> 2019-11D | W193: =MID(zapadalnosc[[#This Row],[rok_kod]],1,LEN(zapadalnosc[[#This Row],[rok_kod]])-1) -> 2019-11
A194: 2019 | B194: 11D | C194: 736 | D194: =MID(zapadalnosc[[#This Row],[data]],FIND(" ",zapadalnosc[[#This Row],[data]])+1,3) -> lis | E194: =_xlfn.XLOOKUP(zapadalnosc[[#This Row],[kod]],NEW_pomoc!$B$5:$B$52,NEW_pomoc!$C$5:$C$52) -> 23-30 lis | F194: Lubuskie | G194: 1412 | H194: 17.4 | I194: -0.65 | J194: 383 | K194: 98.46 | L194: 451 | M194: 52.85 | N194: 512 | O194: 9.31 | P194: 66 | Q194: 4.81 | V194: =_xlfn.CONCAT(zapadalnosc[[#This Row],[rok]],"-",zapadalnosc[[#This Row],[kod]]) -> 2019-11D | W194: =MID(zapadalnosc[[#This Row],[rok_kod]],1,LEN(zapadalnosc[[#This Row],[rok_kod]])-1) -> 2019-11
A195: 2019 | B195: 11D | C195: 737 | D195: =MID(zapadalnosc[[#This Row],[data]],FIND(" ",zapadalnosc[[#This Row],[data]])+1,3) -> lis | E195: =_xlfn.XLOOKUP(zapadalnosc[[#This Row],[kod]],NEW_pomoc!$B$5:$B$52,NEW_pomoc!$C$5:$C$52) -> 23-30 lis | F195: Łódzkie | G195: 4375 | H195: 22.17 | I195: -3.67 | J195: 1187 | K195: 130.73 | L195: 1024 | M195: 53.43 | N195: 1666 | O195: 12.76 | P195: 498 | Q195: 12.93 | V195: =_xlfn.CONCAT(zapadalnosc[[#This Row],[rok]],"-",zapadalnosc[[#This Row],[kod]]) -> 2019-11D | W195: =MID(zapadalnosc[[#This Row],[rok_kod]],1,LEN(zapadalnosc[[#This Row],[rok_kod]])-1) -> 2019-11
A196: 2019 | B196: 11D | C196: 738 | D196: =MID(zapadalnosc[[#This Row],[data]],FIND(" ",zapadalnosc[[#This Row],[data]])+1,3) -> lis | E196: =_xlfn.XLOOKUP(zapadalnosc[[#This Row],[kod]],NEW_pomoc!$B$5:$B$52,NEW_pomoc!$C$5:$C$52) -> 23-30 lis | F196: Małopolskie | G196: 10698 | H196: 39.32 | I196: -5.87 | J196: 2837 | K196: 193.62 | L196: 2392 | M196: 82.65 | N196: 4630 | O196: 25.26 | P196: 839 | Q196: 18.58 | V196: =_xlfn.CONCAT(zapadalnosc[[#This Row],[rok]],"-",zapadalnosc[[#This Row],[kod]]) -> 2019-11D | W196: =MID(zapadalnosc[[#This Row],[rok_kod]],1,LEN(zapadalnosc[[#This Row],[rok_kod]])-1) -> 2019-11
A197: 2019 | B197: 11D | C197: 739 | D197: =MID(zapadalnosc[[#This Row],[data]],FIND(" ",zapadalnosc[[#This Row],[data]])+1,3) -> lis | E197: =_xlfn.XLOOKUP(zapadalnosc[[#This Row],[kod]],NEW_pomoc!$B$5:$B$52,NEW_pomoc!$C$5:$C$52) -> 23-30 lis | F197: Mazowieckie | G197: 18143 | H197: 41.97 | I197: -5.2 | J197: 4920 | K197: 206.56 | L197: 3955 | M197: 84.77 | N197: 7853 | O197: 27.51 | P197: 1415 | Q197: 18.54 | T197: 37 | U197: 0.2 | V197: =_xlfn.CONCAT(zapadalnosc[[#This Row],[rok]],"-",zapadalnosc[[#This Row],[kod]]) -> 2019-11D | W197: =MID(zapadalnosc[[#This Row],[rok_kod]],1,LEN(zapadalnosc[[#This Row],[rok_kod]])-1) -> 2019-11
A198: 2019 | B198: 11D | C198: 740 | D198: =MID(zapadalnosc[[#This Row],[data]],FIND(" ",zapadalnosc[[#This Row],[data]])+1,3) -> lis | E198: =_xlfn.XLOOKUP(zapadalnosc[[#This Row],[kod]],NEW_pomoc!$B$5:$B$52,NEW_pomoc!$C$5:$C$52) -> 23-30 lis | F198: Opolskie | G198: 1057 | H198: 13.39 | I198: -2.38 | J198: 269 | K198: 77.99 | L198: 185 | M198: 26.06 | N198: 490 | O198: 9.08 | P198: 113 | Q198: 7.86 | V198: =_xlfn.CONCAT(zapadalnosc[[#This Row],[rok]],"-",zapadalnosc[[#This Row],[kod]]) -> 2019-11D | W198: =MID(zapadalnosc[[#This Row],[rok_kod]],1,LEN(zapadalnosc[[#This Row],[rok_kod]])-1) -> 2019-11
A199: 2019 | B199: 11D | C199: 741 | D199: =MID(zapadalnosc[[#This Row],[data]],FIND(" ",zapadalnosc[[#This Row],[data]])+1,3) -> lis | E199: =_xlfn.XLOOKUP(zapadalnosc[[#This Row],[kod]],NEW_pomoc!$B$5:$B$52,NEW_pomoc!$C$5:$C$52) -> 23-30 lis | F199: Podkarpackie | G199: 1980 | H199: 11.63 | I199: -2.38 | J199: 544 | K199: 65.63 | L199: 435 | M199: 24.81 | N199: 817 | O199: 7.01 | P199: 184 | Q199: 6.59 | V199: =_xlfn.CONCAT(zapadalnosc[[#This Row],[rok]],"-",zapadalnosc[[#This Row],[kod]]) -> 2019-11D | W199: =MID(zapadalnosc[[#This Row],[rok_kod]],1,LEN(zapadalnosc[[#This Row],[rok_kod]])-1) -> 2019-11
A200: 2019 | B200: 11D | C200: 742 | D200: =MID(zapadalnosc[[#This Row],[data]],FIND(" ",zapadalnosc[[#This Row],[data]])+1,3) -> lis | E200: =_xlfn.XLOOKUP(zapadalnosc[[#This Row],[kod]],NEW_pomoc!$B$5:$B$52,NEW_pomoc!$C$5:$C$52) -> 23-30 lis | F200: Podlaskie | G200: 1855 | H200: 19.62 | I200: 0.07 | J200: 562 | K200: 123.39 | L200: 356 | M200: 38.62 | N200: 757 | O200: 11.75 | P200: 180 | Q200: 11.01 | V200: =_xlfn.CONCAT(zapadalnosc[[#This Row],[rok]],"-",zapadalnosc[[#This Row],[kod]]) -> 2019-11D | W200: =MID(zapadalnosc[[#This Row],[rok_kod]],1,LEN(zapadalnosc[[#This Row],[rok_kod]])-1) -> 2019-11
... 1366 more rows

Sheet Arkusz4 (hidden)
A1: Obszar | B1: POLSKA
A2: kod | B2: (Wiele elementów)
A4: Etykiety wierszy | B4: data | C4: Suma z liczba | D4: Suma z liczba2 | E4: Średnia z zapadalnosc | F4: Średnia z zapadalnosc3 | G4: Suma z liczba3 | H4: Średnia z odsetek | I4: Suma z zgony10 | J4: Liczba z zgony
A5: 545 | B5: 1-7 wrz | C5: 29553 | D5: 8715 | E5: 10.99 | F5: 65.28 | G5: 78 | H5: 0.26
A6: 562 | B6: 8-15 wrz | C6: 54216 | D6: 17255 | E6: 17.64 | F6: 113.1
A7: 579 | B7: 16-22 wrz | C7: 87589 | D7: 25224 | E7: 32.57 | F7: 188.95
A8: 596 | B8: 23-30 wrz | C8: 115689 | D8: 31865 | E8: 37.65 | F8: 208.86
A9: 613 | B9: 1-7 paź | C9: 111154 | D9: 30177 | E9: 41.34 | F9: 226.05
A10: 630 | B10: 8-15 paź | C10: 117374 | D10: 32825 | E10: 38.19 | F10: 215.15
A11: 647 | B11: 16-22 paź | C11: 112264 | D11: 31262 | E11: 41.75 | F11: 234.18
A12: 664 | B12: 23-31 paź | C12: 129806 | D12: 37874 | E12: 37.55 | F12: 219.55
A13: 681 | B13: 1-7 lis | C13: 93602 | D13: 26800 | E13: 34.81 | F13: 199.74
A14: 698 | B14: 8-15 lis | C14: 110629 | D14: 31621 | E14: 36 | F14: 206.22
A15: 715 | B15: 16-22 lis | C15: 106546 | D15: 29693 | E15: 39.63 | F15: 221.31
A16: 732 | B16: 23-30 lis | C16: 112575 | D16: 31186 | E16: 36.63 | F16: 203.38 | I16: 2
A17: 749 | B17: 1-7 gru | C17: 115623 | D17: 30823 | E17: 43 | F17: 229.73 | I17: 1
A18: 766 | B18: 8-15 gru | C18: 124181 | D18: 32738 | E18: 40.41 | F18: 213.5
A19: 783 | B19: 16-22 gru | C19: 130460 | D19: 34553 | E19: 48.52 | F19: 257.53
A20: 800 | B20: 23-31 gru | C20: 138171 | D20: 38222 | E20: 39.97 | F20: 221.57
A21: 817 | B21: 1-7 sty | C21: 89211 | D21: 21843 | E21: 33.2 | F21: 163.05
A22: 834 | B22: 8-15 sty | C22: 122430 | D22: 27980 | E22: 39.87 | F22: 182.75 | I22: 3
A23: 851 | B23: 16-22 sty | C23: 127696 | D23: 30925 | E23: 47.52 | F23: 230.85 | I23: 2
A24: 868 | B24: 23-31 sty | C24: 204726 | D24: 49708 | E24: 59.26 | F24: 288.6 | I24: 5
A25: 885 | B25: 1-7 lut | C25: 193482 | D25: 43757 | E25: 72.01 | F25: 326.63 | I25: 2
A26: 902 | B26: 8-15 lut | C26: 200194 | D26: 43185 | E26: 65.19 | F26: 282.07 | I26: 4
A27: 919 | B27: 16-22 lut | C27: 211983 | D27: 44319 | E27: 78.89 | F27: 330.83 | I27: 9
A28: 936 | B28: 23-28 lut | C28: 215994 | D28: 43015 | E28: 80.38 | F28: 321.09 | I28: 8
A29: 953 | B29: 1-7 mar | C29: 211572 | D29: 40267 | E29: 78.74 | F29: 300.58 | I29: 7
A30: 970 | B30: 8-15 mar | C30: 158677 | D30: 29748 | E30: 51.67 | F30: 194.3 | I30: 7
A31: 987 | B31: 16-22 mar | C31: 109281 | D31: 15393 | E31: 40.67 | F31: 114.9
A32: 1004 | B32: 23-31 mar | C32: 102272 | D32: 11857 | E32: 29.6 | F32: 68.84 | I32: 6
A33: (puste) | B33: 16-22 gru | C33: 124773 | D33: 32081 | E33: 46.38 | F33: 241.7
B34: 16-22 lis | C34: 99355 | D34: 26838 | E34: 36.93 | F34: 202.2
B35: 16-22 lut | C35: 199472 | D35: 39196 | E35: 74.18 | F35: 293.61 | I35: 19
B36: 16-22 mar | C36: 133758 | D36: 29735 | E36: 49.74 | F36: 222.74 | I36: 10 | J36: 1
B37: 16-22 paź | C37: 95948 | D37: 28092 | E37: 35.66 | F37: 211.65
B38: 16-22 sty | C38: 158756 | D38: 35196 | E38: 59.04 | F38: 263.65
B39: 1-7 gru | C39: 117370 | D39: 29799 | E39: 43.63 | F39: 224.51
B40: 1-7 lis | C40: 96062 | D40: 27239 | E40: 35.71 | F40: 205.22
B41: 1-7 lut | C41: 236454 | D41: 47512 | E41: 87.94 | F41: 355.9 | I41: 15
B42: 1-7 mar | C42: 155213 | D42: 31265 | E42: 57.72 | F42: 234.2 | I42: 8
B43: 1-7 paź | C43: 91078 | D43: 25817 | E43: 33.85 | F43: 194.51
B44: 1-7 sty | C44: 115901 | D44: 27110 | E44: 43.08 | F44: 204.25
B45: 1-7 wrz | C45: 25239 | D45: 7336 | E45: 9.39 | F45: 54.76
B46: 23-28 lut | C46: 158698 | D46: 30956 | E46: 68.86 | F46: 270.53 | I46: 22
B47: 23-30 lis | C47: 125794 | D47: 33965 | E47: 40.91 | F47: 223.91
B48: 23-31 gru | C48: 104905 | D48: 28514 | E48: 30.33 | F48: 167.09
B49: 23-31 mar | C49: 119224 | D49: 27242 | E49: 34.49 | F49: 158.72 | I49: 6
B50: 23-31 paź | C50: 106851 | D50: 30327 | E50: 30.89 | F50: 177.71
B51: 23-31 sty | C51: 227951 | D51: 48749 | E51: 65.94 | F51: 284.02 | I51: 7
B52: 8-15 gru | C52: 125159 | D52: 32001 | E52: 40.71 | F52: 210.96
B53: 8-15 lis | C53: 95589 | D53: 27155 | E53: 31.09 | F53: 179.01
B54: 8-15 lut | C54: 250131 | D54: 48727 | E54: 81.4 | F54: 319.38 | I54: 25
B55: 8-15 mar | C55: 157867 | D55: 34715 | E55: 51.37 | F55: 227.54 | I55: 11
B56: 8-15 paź | C56: 106831 | D56: 30766 | E56: 34.75 | F56: 202.82
B57: 8-15 sty | C57: 142768 | D57: 30068 | E57: 46.43 | F57: 198.22 | I57: 1
A58: Suma końcowa | C58: 7008097 | D58: 1663231 | E58: 45.73716981 | F58: 218.0641509 | I58: 180 | J58: 1

Sheet Arkusz5 (hidden)
A1: Obszar | B1: Mazowieckie
A3: Etykiety wierszy | B3: data | C3: Suma z liczba | D3: 0-4 | E3: '4-15 | F3: '15-64 | G3: 65+
A4: 552 | B4: 1-7 wrz | C4: 6655 | D4: 1827 | E4: 1015 | F4: 3064 | G4: 749
A5: 569 | B5: 8-15 wrz | C5: 9756 | D5: 3009 | E5: 2153 | F5: 3846 | G5: 748
A6: 586 | B6: 16-22 wrz | C6: 15667 | D6: 4495 | E6: 3791 | F6: 6374 | G6: 1007
A7: 603 | B7: 23-30 wrz | C7: 22829 | D7: 6143 | E7: 4696 | F7: 10434 | G7: 1556
A8: 620 | B8: 1-7 paź | C8: 21610 | D8: 5498 | E8: 3741 | F8: 10566 | G8: 1805
A9: 637 | B9: 8-15 paź | C9: 24017 | D9: 6325 | E9: 4126 | F9: 10688 | G9: 2878
A10: 654 | B10: 16-22 paź | C10: 20229 | D10: 5650 | E10: 3601 | F10: 9111 | G10: 1867
A11: 671 | B11: 23-31 paź | C11: 25049 | D11: 7252 | E11: 5185 | F11: 10418 | G11: 2194
A12: 688 | B12: 1-7 lis | C12: 20862 | D12: 5953 | E12: 3872 | F12: 9154 | G12: 1883
A13: 705 | B13: 8-15 lis | C13: 18464 | D13: 5232 | E13: 3728 | F13: 7831 | G13: 1673
A14: 722 | B14: 16-22 lis | C14: 17843 | D14: 4930 | E14: 3831 | F14: 7524 | G14: 1558
A15: 739 | B15: 23-30 lis | C15: 18143 | D15: 4920 | E15: 3955 | F15: 7853 | G15: 1415
A16: 756 | B16: 1-7 gru | C16: 20777 | D16: 5237 | E16: 4428 | F16: 9333 | G16: 1779
A17: 773 | B17: 8-15 gru | C17: 20335 | D17: 5314 | E17: 4508 | F17: 8940 | G17: 1573
A18: 790 | B18: 16-22 gru | C18: 21104 | D18: 5704 | E18: 4596 | F18: 9049 | G18: 1755
A19: 807 | B19: 23-31 gru | C19: 26454 | D19: 6881 | E19: 5550 | F19: 11779 | G19: 2244
A20: 824 | B20: 1-7 sty | C20: 17530 | D20: 4235 | E20: 3169 | F20: 8199 | G20: 1927
A21: 841 | B21: 8-15 sty | C21: 19134 | D21: 4244 | E21: 3322 | F21: 9299 | G21: 2269
A22: 858 | B22: 16-22 sty | C22: 21493 | D22: 4806 | E22: 4762 | F22: 9737 | G22: 2188
A23: 875 | B23: 23-31 sty | C23: 32840 | D23: 7353 | E23: 9230 | F23: 13538 | G23: 2719
A24: 892 | B24: 1-7 lut | C24: 42833 | D24: 8925 | E24: 12459 | F24: 18010 | G24: 3439
A25: 909 | B25: 8-15 lut | C25: 36582 | D25: 7422 | E25: 10552 | F25: 15609 | G25: 2999
A26: 926 | B26: 16-22 lut | C26: 35870 | D26: 7989 | E26: 8389 | F26: 16030 | G26: 3462
A27: 943 | B27: 23-28 lut | C27: 28473 | D27: 5516 | E27: 5627 | F27: 14377 | G27: 2953
A28: 960 | B28: 1-7 mar | C28: 24451 | D28: 4843 | E28: 5200 | F28: 11933 | G28: 2475
A29: 977 | B29: 8-15 mar | C29: 22722 | D29: 3981 | E29: 4953 | F29: 11584 | G29: 2204
A30: 994 | B30: 16-22 mar | C30: 15643 | D30: 2284 | E30: 2875 | F30: 9174 | G30: 1310
A31: 1011 | B31: 23-31 mar | C31: 16737 | D31: 2013 | E31: 2170 | F31: 11129 | G31: 1425
A32: 1028 | B32: 1-7 kwi | C32: 9195 | D32: 740 | E32: 904 | F32: 6588 | G32: 963
A33: 1045 | B33: 8-15 kwi | C33: 8049 | D33: 718 | E33: 886 | F33: 5509 | G33: 936
A34: (puste) | B34: 16-22 gru | C34: 20421 | D34: 4705 | E34: 4079 | F34: 9966 | G34: 1671
B35: 16-22 lis | C35: 18611 | D35: 4819 | E35: 3864 | F35: 8267 | G35: 1661
B36: 16-22 lut | C36: 26306 | D36: 5103 | E36: 5135 | F36: 12856 | G36: 3212
B37: 16-22 mar | C37: 26208 | D37: 5464 | E37: 6346 | F37: 11827 | G37: 2571
B38: 16-22 paź | C38: 20319 | D38: 5614 | E38: 3743 | F38: 9254 | G38: 1708 | K38: data | L38: 0-4 | M38: 4-15 | N38: 15-64 | O38: 65+ | P38: Suma z liczba
B39: 16-22 sty | C39: 23580 | D39: 4825 | E39: 5295 | F39: 11311 | G39: 2149 | K39: 1-7 wrz | L39: 1827 | M39: 1015 | N39: 3064 | O39: 749 | P39: 6655
B40: 1-7 gru | C40: 21184 | D40: 5049 | E40: 4601 | F40: 9732 | G40: 1802 | K40: 8-15 wrz | L40: 3009 | M40: 2153 | N40: 3846 | O40: 748 | P40: 9756
B41: 1-7 kwi | C41: 21623 | D41: 4844 | E41: 4965 | F41: 9456 | G41: 2358 | K41: 16-22 wrz | L41: 4495 | M41: 3791 | N41: 6374 | O41: 1007 | P41: 15667
B42: 1-7 lis | C42: 22058 | D42: 6180 | E42: 4485 | F42: 9523 | G42: 1870 | K42: 23-30 wrz | L42: 6143 | M42: 4696 | N42: 10434 | O42: 1556 | P42: 22829
B43: 1-7 lut | C43: 37894 | D43: 7884 | E43: 7732 | F43: 18530 | G43: 3748 | K43: 1-7 paź | L43: 5498 | M43: 3741 | N43: 10566 | O43: 1805 | P43: 21610
B44: 1-7 mar | C44: 27481 | D44: 5329 | E44: 6594 | F44: 12907 | G44: 2651 | K44: 8-15 paź | L44: 6325 | M44: 4126 | N44: 10688 | O44: 2878 | P44: 24017
B45: 1-7 paź | C45: 20456 | D45: 5476 | E45: 3379 | F45: 9960 | G45: 1641 | K45: 16-22 paź | L45: 5650 | M45: 3601 | N45: 9111 | O45: 1867 | P45: 20229
B46: 1-7 sty | C46: 25275 | D46: 5811 | E46: 4279 | F46: 12722 | G46: 2463 | K46: 23-31 paź | L46: 7252 | M46: 5185 | N46: 10418 | O46: 2194 | P46: 25049
B47: 1-7 wrz | C47: 7498 | D47: 2020 | E47: 1313 | F47: 3531 | G47: 634 | K47: 1-7 lis | L47: 5953 | M47: 3872 | N47: 9154 | O47: 1883 | P47: 20862
B48: 23-28 lut | C48: 25021 | D48: 5023 | E48: 5692 | F48: 11740 | G48: 2566 | K48: 8-15 lis | L48: 5232 | M48: 3728 | N48: 7831 | O48: 1673 | P48: 18464
B49: 23-30 lis | C49: 21655 | D49: 5523 | E49: 4723 | F49: 9703 | G49: 1706 | K49: 16-22 lis | L49: 4930 | M49: 3831 | N49: 7524 | O49: 1558 | P49: 17843
B50: 23-31 gru | C50: 19741 | D50: 5223 | E50: 3925 | F50: 8790 | G50: 1803 | K50: 23-30 lis | L50: 4920 | M50: 3955 | N50: 7853 | O50: 1415 | P50: 18143
B51: 23-31 mar | C51: 22262 | D51: 4838 | E51: 5014 | F51: 10211 | G51: 2199 | K51: 1-7 gru | L51: 5237 | M51: 4428 | N51: 9333 | O51: 1779 | P51: 20777
B52: 23-31 paź | C52: 18224 | D52: 5074 | E52: 3547 | F52: 7991 | G52: 1612 | K52: 8-15 gru | L52: 5314 | M52: 4508 | N52: 8940 | O52: 1573 | P52: 20335
B53: 23-31 sty | C53: 39237 | D53: 8600 | E53: 9398 | F53: 17882 | G53: 3357 | K53: 16-22 gru | L53: 5704 | M53: 4596 | N53: 9049 | O53: 1755 | P53: 21104
B54: 8-15 gru | C54: 21427 | D54: 5083 | E54: 4702 | F54: 9757 | G54: 1885 | K54: 23-31 gru | L54: 6881 | M54: 5550 | N54: 11779 | O54: 2244 | P54: 26454
B55: 8-15 kwi | C55: 18403 | D55: 4455 | E55: 3915 | F55: 8278 | G55: 1755 | K55: 1-7 sty | L55: 4235 | M55: 3169 | N55: 8199 | O55: 1927 | P55: 17530
B56: 8-15 lis | C56: 19974 | D56: 5523 | E56: 4084 | F56: 8634 | G56: 1733 | K56: 8-15 sty | L56: 4244 | M56: 3322 | N56: 9299 | O56: 2269 | P56: 19134
B57: 8-15 lut | C57: 31991 | D57: 6726 | E57: 5229 | F57: 16514 | G57: 3522 | K57: 16-22 sty | L57: 4806 | M57: 4762 | N57: 9737 | O57: 2188 | P57: 21493
B58: 8-15 mar | C58: 27909 | D58: 5829 | E58: 6927 | F58: 12438 | G58: 2715 | K58: 23-31 sty | L58: 7353 | M58: 9230 | N58: 13538 | O58: 2719 | P58: 32840
B59: 8-15 paź | C59: 22078 | D59: 5849 | E59: 4086 | F59: 10287 | G59: 1856 | K59: 1-7 lut | L59: 8925 | M59: 12459 | N59: 18010 | O59: 3439 | P59: 42833
B60: 8-15 sty | C60: 26070 | D60: 5283 | E60: 4777 | F60: 13352 | G60: 2658 | K60: 8-15 lut | L60: 7422 | M60: 10552 | N60: 15609 | O60: 2999 | P60: 36582
B61: 16-22 kwi | C61: 19674 | D61: 4060 | E61: 3218 | F61: 10304 | G61: 2092 | K61: 16-22 lut | L61: 7989 | M61: 8389 | N61: 16030 | O61: 3462 | P61: 35870
B62: 23-30 kwi | C62: 15382 | D62: 3278 | E62: 2297 | F62: 7878 | G62: 1929 | K62: 23-28 lut | L62: 5516 | M62: 5627 | N62: 14377 | O62: 2953 | P62: 28473
B63: 1-7 maj | C63: 4734 | D63: 582 | E63: 693 | F63: 2738 | G63: 721 | K63: 1-7 mar | L63: 4843 | M63: 5200 | N63: 11933 | O63: 2475 | P63: 24451
B64: 8-15 maj | C64: 2457 | D64: 316 | E64: 317 | F64: 1443 | G64: 381 | K64: 8-15 mar | L64: 3981 | M64: 4953 | N64: 11584 | O64: 2204 | P64: 22722
B65: 16-22 maj | C65: 2394 | D65: 289 | E65: 333 | F65: 1409 | G65: 363 | K65: 16-22 mar | L65: 2284 | M65: 2875 | N65: 9174 | O65: 1310 | P65: 15643
B66: 23-31 maj | C66: 1871 | D66: 225 | E66: 223 | F66: 1134 | G66: 289 | K66: 23-31 mar | L66: 2013 | M66: 2170 | N66: 11129 | O66: 1425 | P66: 16737
B67: 1-7 cze | C67: 1909 | D67: 236 | E67: 210 | F67: 1161 | G67: 302 | K67: 1-7 kwi | L67: 740 | M67: 904 | N67: 6588 | O67: 963 | P67: 9195
B68: 8-15 cze | C68: 1850 | D68: 289 | E68: 262 | F68: 1048 | G68: 251 | K68: 8-15 kwi | L68: 718 | M68: 886 | N68: 5509 | O68: 936 | P68: 8049
B69: 16-22 cze | C69: 1351 | D69: 194 | E69: 137 | F69: 759 | G69: 261 | P69: 641346
B70: 23-30 cze | C70: 1811 | D70: 254 | E70: 206 | F70: 1064 | G70: 287
B71: 1-7 lip | C71: 1659 | D71: 252 | E71: 171 | F71: 957 | G71: 279
B72: 8-15 lip | C72: 1656 | D72: 278 | E72: 197 | F72: 935 | G72: 246
B73: 16-22 lip | C73: 2103 | D73: 446 | E73: 259 | F73: 1108 | G73: 290 | P73: 636824
B74: 23-31 lip | C74: 2436 | D74: 592 | E74: 368 | F74: 1185 | G74: 291 | P74: =P73/P69-1 -> -0.007050796294
B75: 1-7 sie | C75: 2752 | D75: 714 | E75: 347 | F75: 1367 | G75: 324
B76: 16-22 sie | C76: 1292 | D76: 346 | E76: 205 | F76: 614 | G76: 127
B77: 23-31 sie | C77: 4233 | D77: 1174 | E77: 617 | F77: 2016 | G77: 426
A78: Suma końcowa | C78: 1343816 | D78: 309116 | E78: 279163 | F78: 629219 | G78: 126318

Sheet Arkusz6 (hidden)
A2: Obszar | B2: Mazowieckie
A4: Etykiety wierszy | B4: Suma z liczba | C4: Suma z liczba2 | D4: Suma z liczba3 | E4: Suma z zgony10
A5: sty | B5: 205159 | C5: 45157 | D5: 604 | E5: 1
A6: lut | B6: 264970 | C6: 54588 | D6: 1448 | E6: 16
A7: mar | B7: 183413 | C7: 34581 | D7: 928 | E7: 6
A8: wrz | B8: 59991 | C8: 16834 | D8: 104
A9: paź | B9: 174396 | C9: 47398 | D9: 220
A10: lis | B10: 157610 | C10: 43080 | D10: 354
A11: gru | B11: 171443 | C11: 43196 | D11: 251
A12: Suma końcowa | B12: 1216982 | C12: 284834 | D12: 3909 | E12: 23

Sheet NEW_pomoc (hidden)
B4: kod | C4: daty
B5: 1A | C5: 1-7 sty
B6: 1B | C6: 8-15 sty
B7: 1C | C7: 16-22 sty
B8: 1D | C8: 23-31 sty
B9: 2A | C9: 1-7 lut
B10: 2B | C10: 8-15 lut
B11: 2C | C11: 16-22 lut
B12: 2D | C12: 23-28 lut
B13: 3A | C13: 1-7 mar
B14: 3B | C14: 8-15 mar
B15: 3C | C15: 16-22 mar
B16: 3D | C16: 23-31 mar
B17: 4A | C17: 1-7 kwi
B18: 4B | C18: 8-15 kwi
B19: 4C | C19: 16-22 kwi
B20: 4D | C20: 23-30 kwi
B21: 5A | C21: 1-7 maj
B22: 5B | C22: 8-15 maj
B23: 5C | C23: 16-22 maj
B24: 5D | C24: 23-31 maj
B25: 6A | C25: 1-7 cze
B26: 6B | C26: 8-15 cze
B27: 6C | C27: 16-22 cze
B28: 6D | C28: 23-30 cze
B29: 7A | C29: 1-7 lip
B30: 7B | C30: 8-15 lip
B31: 7C | C31: 16-22 lip
B32: 7D | C32: 23-31 lip
B33: 8A | C33: 1-7 sie
B34: 8B | C34: 8-15 sie
B35: 8C | C35: 16-22 sie
B36: 8D | C36: 23-31 sie
B37: 9A | C37: 1-7 wrz
B38: 9B | C38: 8-15 wrz
B39: 9C | C39: 16-22 wrz
B40: 9D | C40: 23-30 wrz
B41: 10A | C41: 1-7 paź
B42: 10B | C42: 8-15 paź
B43: 10C | C43: 16-22 paź
B44: 10D | C44: 23-31 paź
B45: 11A | C45: 1-7 lis
B46: 11B | C46: 8-15 lis
B47: 11C | C47: 16-22 lis
B48: 11D | C48: 23-30 lis
B49: 12A | C49: 1-7 gru
B50: 12B | C50: 8-15 gru
B51: 12C | C51: 16-22 gru
B52: 12D | C52: 23-31 gru

Sheet Lista województw (hidden)
B3: Dolnośląskie | C3: Kujawsko-pomorskie | D3: Lubelskie | E3: Lubuskie | F3: Łódzkie | G3: Małopolskie | H3: Mazowieckie | I3: Opolskie | J3: Podkarpackie | K3: Podlaskie | L3: Pomorskie | M3: Śląskie | N3: Świętokrzyskie | O3: Warmińsko-mazurskie | P3: Wielkopolskie | Q3: Zachodniopomorskie | R3: Wszystkie
B4: Jelenia Góra | C4: Bydgoszcz | D4: Biała Podlaska | E4: Gorzów Wielkopolski | F4: Łódź | G4: Kraków | H4: Ostrołęka | I4: Opole | J4: Krosno | K4: Białystok | L4: Gdańsk | M4: Bielsko-Biała | N4: Kielce | O4: Elbląg | P4: Kalisz | Q4: Koszalin
B5: Legnica | C5: Grudziądz | D5: Chełm | E5: Zielona Góra | F5: Piotrków Trybunalski | G5: Nowy Sącz | H5: Płock | I5: brzeski | J5: Przemyśl | K5: Łomża | L5: Gdynia | M5: Bytom | N5: buski | O5: Olsztyn | P5: Konin | Q5: Szczecin
B6: Wrocław | C6: Toruń | D6: Lublin | E6: gorzowski | F6: Skierniewice | G6: Tarnów | H6: Radom | I6: głubczycki | J6: Rzeszów | K6: Suwałki | L6: Słupsk | M6: Chorzów | N6: jędrzejowski | O6: bartoszycki | P6: Leszno | Q6: Świnoujście
B7: Wałbrzych | C7: Włocławek | D7: Zamość | E7: krośnieński | F7: bełchatowski | G7: bocheński | H7: Siedlce | I7: kędzierzyńsko-kozielski | J7: Tarnobrzeg | K7: augustowski | L7: Sopot | M7: Częstochowa | N7: kazimierski | O7: braniewski | P7: Poznań | Q7: białogardzki
B8: bolesławiecki | C8: aleksandrowski | D8: bialski | E8: międzyrzecki | F8: kutnowski | G8: brzeski | H8: Warszawa | I8: kluczborski | J8: bieszczadzki | K8: białostocki | L8: bytowski | M8: Dąbrowa Górnicza | N8: kielecki | O8: działdowski | P8: chodzieski | Q8: choszczeński
B9: dzierżoniowski | C9: brodnicki | D9: biłgorajski | E9: nowosolski | F9: łaski | G9: chrzanowski | H9: białobrzeski | I9: krapkowicki | J9: brzozowski | K9: bielski | L9: chojnicki | M9: Gliwice | N9: konecki | O9: elbląski | P9: czarnkowsko-trzcianecki | Q9: drawski
B10: głogowski | C10: bydgoski | D10: chełmski | E10: słubicki | F10: łęczycki | G10: dąbrowski | H10: ciechanowski | I10: namysłowski | J10: dębicki | K10: grajewski | L10: człuchowski | M10: Jastrzębie-Zdrój | N10: opatowski | O10: ełcki | P10: gnieźnieński | Q10: goleniowski
B11: górowski | C11: chełmiński | D11: hrubieszowski | E11: strzelecko-drezdenecki | F11: łowicki | G11: gorlicki | H11: garwoliński | I11: nyski | J11: jarosławski | K11: hajnowski | L11: gdański | M11: Jaworzno | N11: ostrowiecki | O11: giżycki | P11: gostyński | Q11: gryficki
B12: jaworski | C12: golubsko-dobrzyński | D12: janowski | E12: sulęciński | F12: łódzkiwschodni | G12: krakowski | H12: gostyniński | I12: oleski | J12: jasielski | K12: kolneński | L12: kartuski | M12: Katowice | N12: pińczowski | O12: iławski | P12: grodziski | Q12: gryfiński
B13: jeleniogórski | C13: grudziądzki | D13: krasnostawski | E13: świebodziński | F13: opoczyński | G13: limanowski | H13: grodziski | I13: opolski | J13: kolbuszowski | K13: łomżyński | L13: kościerski | M13: Mysłowice | N13: sandomierski | O13: kętrzyński | P13: jarociński | Q13: kamieński
B14: kamiennogórski | C14: inowrocławski | D14: kraśnicki | E14: zielonogórski | F14: pabianicki | G14: miechowski | H14: grójecki | I14: prudnicki | J14: krośnieński | K14: moniecki | L14: kwidzyński | M14: Piekary Śląskie | N14: skarżyski | O14: lidzbarski | P14: kaliski | Q14: kołobrzeski
B15: kłodzki | C15: lipnowski | D15: lubartowski | E15: żagański | F15: pajęczański | G15: myślenicki | H15: kozienicki | I15: strzelecki | J15: leżajski | K15: sejneński | L15: lęborski | M15: Ruda Śląska | N15: starachowicki | O15: mrągowski | P15: kępiński | Q15: koszaliński
B16: legnicki | C16: mogileński | D16: lubelski | E16: żarski | F16: piotrkowski | G16: nowosądecki | H16: legionowski | I16: Wszystkie | J16: lubaczowski | K16: siemiatycki | L16: malborski | M16: Rybnik | N16: staszowski | O16: nidzicki | P16: kolski | Q16: myśliborski
B17: lubański | C17: nakielski | D17: łęczyński | E17: wschowski | F17: poddębicki | G17: nowotarski | H17: lipski | J17: łańcucki | K17: sokólski | L17: nowodworski | M17: Siemianowice Śląskie | N17: włoszczowski | O17: nowomiejski | P17: koniński | Q17: policki
B18: lubiński | C18: radziejowski | D18: łukowski | E18: Wszystkie | F18: radomszczański | G18: olkuski | H18: łosicki | J18: mielecki | K18: suwalski | L18: pucki | M18: Sosnowiec | N18: Wszystkie | O18: olecki | P18: kościański | Q18: pyrzycki
B19: lwówecki | C19: rypiński | D19: opolski | F19: rawski | G19: oświęcimski | H19: makowski | J19: niżański | K19: wysokomazowiecki | L19: słupski | M19: Świętochłowice | O19: olsztyński | P19: krotoszyński | Q19: sławieński
B20: milicki | C20: sępoleński | D20: parczewski | F20: sieradzki | G20: proszowicki | H20: miński | J20: przemyski | K20: zambrowski | L20: starogardzki | M20: Tychy | O20: ostródzki | P20: leszczyński | Q20: stargardzki
B21: oleśnicki | C21: świecki | D21: puławski | F21: skierniewicki | G21: suski | H21: mławski | J21: przeworski | K21: Wszystkie | L21: tczewski | M21: Zabrze | O21: piski | P21: międzychodzki | Q21: szczecinecki
B22: oławski | C22: toruński | D22: radzyński | F22: tomaszowski | G22: tarnowski | H22: nowodworski | J22: ropczycko-sędziszowski | L22: wejherowski | M22: Żory | O22: szczycieński | P22: nowotomyski | Q22: świdwiński
B23: polkowicki | C23: tucholski | D23: rycki | F23: wieluński | G23: tatrzański | H23: ostrołęcki | J23: rzeszowski | L23: sztumski | M23: będziński | O23: gołdapski | P23: obornicki | Q23: wałecki
B24: strzeliński | C24: wąbrzeski | D24: świdnicki | F24: wieruszowski | G24: wadowicki | H24: ostrowski | J24: sanocki | L24: Wszystkie | M24: bielski | O24: węgorzewski | P24: ostrowski | Q24: łobeski
B25: średzki | C25: włocławski | D25: tomaszowski | F25: zduńskowolski | G25: wielicki | H25: otwocki | J25: stalowowolski | M25: cieszyński | O25: Wszystkie | P25: ostrzeszowski | Q25: Wszystkie
B26: świdnicki | C26: żniński | D26: włodawski | F26: zgierski | G26: Wszystkie | H26: piaseczyński | J26: strzyżowski | M26: częstochowski | P26: pilski
B27: trzebnicki | C27: Wszystkie | D27: zamojski | F27: brzeziński | H27: płocki | J27: tarnobrzeski | M27: gliwicki | P27: pleszewski
B28: wałbrzyski | D28: Wszystkie | F28: Wszystkie | H28: płoński | J28: leski | M28: kłobucki | P28: poznański
B29: wołowski | H29: pruszkowski | J29: Wszystkie | M29: lubliniecki | P29: rawicki
B30: wrocławski | H30: przasnyski | M30: mikołowski | P30: słupecki
B31: ząbkowicki | H31: przysuski | M31: myszkowski | P31: szamotulski
B32: zgorzelecki | H32: pułtuski | M32: pszczyński | P32: średzki
B33: złotoryjski | H33: radomski | M33: raciborski | P33: śremski
B34: Wszystkie | H34: siedlecki | M34: rybnicki | P34: turecki
H35: sierpecki | M35: tarnogórski | P35: wągrowiecki
H36: sochaczewski | M36: bieruńsko-lędziński | P36: wolsztyński
H37: sokołowski | M37: wodzisławski | P37: wrzesiński
H38: szydłowiecki | M38: zawierciański | P38: złotowski
H39: warszawskizachodni | M39: żywiecki | P39: Wszystkie
H40: węgrowski | M40: Wszystkie
H41: wołomiński
H42: wyszkowski
H43: zwoleński
H44: żuromiński
H45: żyrardowski
H46: Wszystkie

Sheet Wszystkie województwa (hidden)
C1: Województwa Powiaty Grupy wieku | D1: Ogółem | E1: Mężczyźni | F1: Kobiety
A3: woj. | B3: pow
A4: DOLNOŚLĄSKIE | B4: Wszystkie | C4: DOLNOŚLĄSKIE | D4: 2900163 | E4: 1394635 | F4: 1505528 | G4: =IFERROR(IF(SEARCH(" - ",C4)>0,FALSE,TRUE),TRUE) -> TRUE | H4: =IFERROR(IF(SEARCH("70",C4)>0,FALSE,TRUE),TRUE) -> TRUE | I4: =IFERROR(IF(SEARCH("65+",C4)>0,FALSE,TRUE),TRUE) -> TRUE | J4: =AND(G4:I4) -> TRUE
A5: DOLNOŚLĄSKIE | B5: Wszystkie | C5: 0 - 4 | D5: 137786 | E5: 70898 | F5: 66888 | G5: =IFERROR(IF(SEARCH(" - ",C5)>0,FALSE,TRUE),TRUE) -> FALSE | H5: =IFERROR(IF(SEARCH("70",C5)>0,FALSE,TRUE),TRUE) -> TRUE | I5: =IFERROR(IF(SEARCH("65+",C5)>0,FALSE,TRUE),TRUE) -> TRUE | J5: =AND(G5:I5) -> FALSE
A6: DOLNOŚLĄSKIE | B6: Wszystkie | C6: 5 - 9 | D6: 140203 | E6: 72130 | F6: 68073 | G6: FALSE | H6: TRUE | I6: TRUE | J6: FALSE
A7: DOLNOŚLĄSKIE | B7: Wszystkie | C7: 10 - 14 | D7: 145228 | E7: 74159 | F7: 71069 | G7: FALSE | H7: TRUE | I7: TRUE | J7: FALSE
A8: DOLNOŚLĄSKIE | B8: Wszystkie | C8: 15 - 19 | D8: 124085 | E8: 63638 | F8: 60447 | G8: FALSE | H8: TRUE | I8: TRUE | J8: FALSE
A9: DOLNOŚLĄSKIE | B9: Wszystkie | C9: 20 - 24 | D9: 141819 | E9: 72422 | F9: 69397 | G9: FALSE | H9: TRUE | I9: TRUE | J9: FALSE
A10: DOLNOŚLĄSKIE | B10: Wszystkie | C10: 25 - 29 | D10: 179655 | E10: 90542 | F10: 89113 | G10: FALSE | H10: TRUE | I10: TRUE | J10: FALSE
A11: DOLNOŚLĄSKIE | B11: Wszystkie | C11: 30 - 34 | D11: 225124 | E11: 112852 | F11: 112272 | G11: FALSE | H11: TRUE | I11: TRUE | J11: FALSE
A12: DOLNOŚLĄSKIE | B12: Wszystkie | C12: 35 - 39 | D12: 258845 | E12: 130917 | F12: 127928 | G12: FALSE | H12: TRUE | I12: TRUE | J12: FALSE
A13: DOLNOŚLĄSKIE | B13: Wszystkie | C13: 40 - 44 | D13: 237339 | E13: 120205 | F13: 117134 | G13: FALSE | H13: TRUE | I13: TRUE | J13: FALSE
A14: DOLNOŚLĄSKIE | B14: Wszystkie | C14: 45 - 49 | D14: 194509 | E14: 98218 | F14: 96291 | G14: FALSE | H14: TRUE | I14: TRUE | J14: FALSE
A15: DOLNOŚLĄSKIE | B15: Wszystkie | C15: 50 - 54 | D15: 161086 | E15: 80170 | F15: 80916 | G15: FALSE | H15: TRUE | I15: TRUE | J15: FALSE
A16: DOLNOŚLĄSKIE | B16: Wszystkie | C16: 55 - 59 | D16: 179370 | E16: 86232 | F16: 93138 | G16: FALSE | H16: TRUE | I16: TRUE | J16: FALSE
A17: DOLNOŚLĄSKIE | B17: Wszystkie | C17: 60 - 64 | D17: 223066 | E17: 104203 | F17: 118863 | G17: FALSE | H17: TRUE | I17: TRUE | J17: FALSE
A18: DOLNOŚLĄSKIE | B18: Wszystkie | C18: 65 - 69 | D18: 207828 | E18: 92453 | F18: 115375 | G18: FALSE | H18: TRUE | I18: TRUE | J18: FALSE
A19: DOLNOŚLĄSKIE | B19: Wszystkie | C19: 70 i więcej | D19: 344220 | E19: 125596 | F19: 218624 | G19: TRUE | H19: FALSE | I19: TRUE | J19: FALSE
A20: DOLNOŚLĄSKIE | B20: Wszystkie | C20: 65+ | D20: 552048 | E20: 218049 | F20: 333999 | G20: TRUE | H20: TRUE | I20: FALSE | J20: FALSE
A21: DOLNOŚLĄSKIE | B21: Jelenia Góra | C21: Jelenia Góra | D21: 79061 | E21: 36714 | F21: 42347 | G21: TRUE | H21: TRUE | I21: TRUE | J21: TRUE
A22: DOLNOŚLĄSKIE | B22: Jelenia Góra | C22: 0 - 4 | D22: 3015 | E22: 1571 | F22: 1444 | G22: FALSE | H22: TRUE | I22: TRUE | J22: FALSE
A23: DOLNOŚLĄSKIE | B23: Jelenia Góra | C23: 5 - 9 | D23: 3280 | E23: 1660 | F23: 1620 | G23: FALSE | H23: TRUE | I23: TRUE | J23: FALSE
A24: DOLNOŚLĄSKIE | B24: Jelenia Góra | C24: 10 - 14 | D24: 3391 | E24: 1733 | F24: 1658 | G24: FALSE | H24: TRUE | I24: TRUE | J24: FALSE
A25: DOLNOŚLĄSKIE | B25: Jelenia Góra | C25: 15 - 19 | D25: 3014 | E25: 1517 | F25: 1497 | G25: FALSE | H25: TRUE | I25: TRUE | J25: FALSE
A26: DOLNOŚLĄSKIE | B26: Jelenia Góra | C26: 20 - 24 | D26: 3380 | E26: 1664 | F26: 1716 | G26: FALSE | H26: TRUE | I26: TRUE | J26: FALSE
A27: DOLNOŚLĄSKIE | B27: Jelenia Góra | C27: 25 - 29 | D27: 4244 | E27: 2133 | F27: 2111 | G27: FALSE | H27: TRUE | I27: TRUE | J27: FALSE
A28: DOLNOŚLĄSKIE | B28: Jelenia Góra | C28: 30 - 34 | D28: 5369 | E28: 2681 | F28: 2688 | G28: FALSE | H28: TRUE | I28: TRUE | J28: FALSE
A29: DOLNOŚLĄSKIE | B29: Jelenia Góra | C29: 35 - 39 | D29: 6596 | E29: 3317 | F29: 3279 | G29: FALSE | H29: TRUE | I29: TRUE | J29: FALSE
A30: DOLNOŚLĄSKIE | B30: Jelenia Góra | C30: 40 - 44 | D30: 6368 | E30: 3216 | F30: 3152 | G30: FALSE | H30: TRUE | I30: TRUE | J30: FALSE
A31: DOLNOŚLĄSKIE | B31: Jelenia Góra | C31: 45 - 49 | D31: 5025 | E31: 2477 | F31: 2548 | G31: FALSE | H31: TRUE | I31: TRUE | J31: FALSE
A32: DOLNOŚLĄSKIE | B32: Jelenia Góra | C32: 50 - 54 | D32: 4431 | E32: 2151 | F32: 2280 | G32: FALSE | H32: TRUE | I32: TRUE | J32: FALSE
A33: DOLNOŚLĄSKIE | B33: Jelenia Góra | C33: 55 - 59 | D33: 5119 | E33: 2315 | F33: 2804 | G33: FALSE | H33: TRUE | I33: TRUE | J33: FALSE
A34: DOLNOŚLĄSKIE | B34: Jelenia Góra | C34: 60 - 64 | D34: 6997 | E34: 3110 | F34: 3887 | G34: FALSE | H34: TRUE | I34: TRUE | J34: FALSE
A35: DOLNOŚLĄSKIE | B35: Jelenia Góra | C35: 65 - 69 | D35: 6944 | E35: 2950 | F35: 3994 | G35: FALSE | H35: TRUE | I35: TRUE | J35: FALSE
A36: DOLNOŚLĄSKIE | B36: Jelenia Góra | C36: 70 i więcej | D36: 11888 | E36: 4219 | F36: 7669 | G36: TRUE | H36: FALSE | I36: TRUE | J36: FALSE
A37: DOLNOŚLĄSKIE | B37: Jelenia Góra | C37: 65+ | D37: 18832 | E37: 7169 | F37: 11663 | G37: TRUE | H37: TRUE | I37: FALSE | J37: FALSE
A38: DOLNOŚLĄSKIE | B38: Legnica | C38: Legnica | D38: 99350 | E38: 47071 | F38: 52279 | G38: TRUE | H38: TRUE | I38: TRUE | J38: TRUE
A39: DOLNOŚLĄSKIE | B39: Legnica | C39: 0 - 4 | D39: 4760 | E39: 2482 | F39: 2278 | G39: FALSE | H39: TRUE | I39: TRUE | J39: FALSE
A40: DOLNOŚLĄSKIE | B40: Legnica | C40: 5 - 9 | D40: 4515 | E40: 2317 | F40: 2198 | G40: FALSE | H40: TRUE | I40: TRUE | J40: FALSE
A41: DOLNOŚLĄSKIE | B41: Legnica | C41: 10 - 14 | D41: 4699 | E41: 2421 | F41: 2278 | G41: FALSE | H41: TRUE | I41: TRUE | J41: FALSE
A42: DOLNOŚLĄSKIE | B42: Legnica | C42: 15 - 19 | D42: 4222 | E42: 2267 | F42: 1955 | G42: FALSE | H42: TRUE | I42: TRUE | J42: FALSE
A43: DOLNOŚLĄSKIE | B43: Legnica | C43: 20 - 24 | D43: 4888 | E43: 2519 | F43: 2369 | G43: FALSE | H43: TRUE | I43: TRUE | J43: FALSE
A44: DOLNOŚLĄSKIE | B44: Legnica | C44: 25 - 29 | D44: 6075 | E44: 3149 | F44: 2926 | G44: FALSE | H44: TRUE | I44: TRUE | J44: FALSE
A45: DOLNOŚLĄSKIE | B45: Legnica | C45: 30 - 34 | D45: 7306 | E45: 3611 | F45: 3695 | G45: FALSE | H45: TRUE | I45: TRUE | J45: FALSE
A46: DOLNOŚLĄSKIE | B46: Legnica | C46: 35 - 39 | D46: 8563 | E46: 4346 | F46: 4217 | G46: FALSE | H46: TRUE | I46: TRUE | J46: FALSE
A47: DOLNOŚLĄSKIE | B47: Legnica | C47: 40 - 44 | D47: 7807 | E47: 3863 | F47: 3944 | G47: FALSE | H47: TRUE | I47: TRUE | J47: FALSE
A48: DOLNOŚLĄSKIE | B48: Legnica | C48: 45 - 49 | D48: 6688 | E48: 3291 | F48: 3397 | G48: FALSE | H48: TRUE | I48: TRUE | J48: FALSE
A49: DOLNOŚLĄSKIE | B49: Legnica | C49: 50 - 54 | D49: 5673 | E49: 2746 | F49: 2927 | G49: FALSE | H49: TRUE | I49: TRUE | J49: FALSE
A50: DOLNOŚLĄSKIE | B50: Legnica | C50: 55 - 59 | D50: 6243 | E50: 2874 | F50: 3369 | G50: FALSE | H50: TRUE | I50: TRUE | J50: FALSE
A51: DOLNOŚLĄSKIE | B51: Legnica | C51: 60 - 64 | D51: 7989 | E51: 3540 | F51: 4449 | G51: FALSE | H51: TRUE | I51: TRUE | J51: FALSE
A52: DOLNOŚLĄSKIE | B52: Legnica | C52: 65 - 69 | D52: 7670 | E52: 3221 | F52: 4449 | G52: FALSE | H52: TRUE | I52: TRUE | J52: FALSE
A53: DOLNOŚLĄSKIE | B53: Legnica | C53: 70 i więcej | D53: 12252 | E53: 4424 | F53: 7828 | G53: TRUE | H53: FALSE | I53: TRUE | J53: FALSE
A54: DOLNOŚLĄSKIE | B54: Legnica | C54: 65+ | D54: 19922 | E54: 7645 | F54: 12277 | G54: TRUE | H54: TRUE | I54: FALSE | J54: FALSE
A55: DOLNOŚLĄSKIE | B55: Wrocław | C55: Wrocław | D55: 642869 | E55: 300293 | F55: 342576 | G55: TRUE | H55: TRUE | I55: TRUE | J55: TRUE
A56: DOLNOŚLĄSKIE | B56: Wrocław | C56: 0 - 4 | D56: 36193 | E56: 18573 | F56: 17620 | G56: FALSE | H56: TRUE | I56: TRUE | J56: FALSE
A57: DOLNOŚLĄSKIE | B57: Wrocław | C57: 5 - 9 | D57: 31641 | E57: 16440 | F57: 15201 | G57: FALSE | H57: TRUE | I57: TRUE | J57: FALSE
A58: DOLNOŚLĄSKIE | B58: Wrocław | C58: 10 - 14 | D58: 27698 | E58: 14092 | F58: 13606 | G58: FALSE | H58: TRUE | I58: TRUE | J58: FALSE
A59: DOLNOŚLĄSKIE | B59: Wrocław | C59: 15 - 19 | D59: 22234 | E59: 11147 | F59: 11087 | G59: FALSE | H59: TRUE | I59: TRUE | J59: FALSE
A60: DOLNOŚLĄSKIE | B60: Wrocław | C60: 20 - 24 | D60: 24428 | E60: 12474 | F60: 11954 | G60: FALSE | H60: TRUE | I60: TRUE | J60: FALSE
A61: DOLNOŚLĄSKIE | B61: Wrocław | C61: 25 - 29 | D61: 36225 | E61: 17405 | F61: 18820 | G61: FALSE | H61: TRUE | I61: TRUE | J61: FALSE
A62: DOLNOŚLĄSKIE | B62: Wrocław | C62: 30 - 34 | D62: 60482 | E62: 28718 | F62: 31764 | G62: FALSE | H62: TRUE | I62: TRUE | J62: FALSE
A63: DOLNOŚLĄSKIE | B63: Wrocław | C63: 35 - 39 | D63: 66514 | E63: 32924 | F63: 33590 | G63: FALSE | H63: TRUE | I63: TRUE | J63: FALSE
A64: DOLNOŚLĄSKIE | B64: Wrocław | C64: 40 - 44 | D64: 53857 | E64: 26625 | F64: 27232 | G64: FALSE | H64: TRUE | I64: TRUE | J64: FALSE
A65: DOLNOŚLĄSKIE | B65: Wrocław | C65: 45 - 49 | D65: 40635 | E65: 20119 | F65: 20516 | G65: FALSE | H65: TRUE | I65: TRUE | J65: FALSE
A66: DOLNOŚLĄSKIE | B66: Wrocław | C66: 50 - 54 | D66: 31605 | E66: 15341 | F66: 16264 | G66: FALSE | H66: TRUE | I66: TRUE | J66: FALSE
A67: DOLNOŚLĄSKIE | B67: Wrocław | C67: 55 - 59 | D67: 33640 | E67: 15512 | F67: 18128 | G67: FALSE | H67: TRUE | I67: TRUE | J67: FALSE
A68: DOLNOŚLĄSKIE | B68: Wrocław | C68: 60 - 64 | D68: 44600 | E68: 19957 | F68: 24643 | G68: FALSE | H68: TRUE | I68: TRUE | J68: FALSE
A69: DOLNOŚLĄSKIE | B69: Wrocław | C69: 65 - 69 | D69: 45675 | E69: 19334 | F69: 26341 | G69: =IFERROR(IF(SEARCH(" - ",C69)>0,FALSE,TRUE),TRUE) -> FALSE | H69: =IFERROR(IF(SEARCH("70",C69)>0,FALSE,TRUE),TRUE) -> TRUE | I69: =IFERROR(IF(SEARCH("65+",C69)>0,FALSE,TRUE),TRUE) -> TRUE | J69: =AND(G69:I69) -> FALSE
A70: DOLNOŚLĄSKIE | B70: Wrocław | C70: 70 i więcej | D70: 87442 | E70: 31632 | F70: 55810 | G70: TRUE | H70: FALSE | I70: TRUE | J70: FALSE
A71: DOLNOŚLĄSKIE | B71: Wrocław | C71: 65+ | D71: 133117 | E71: 50966 | F71: 82151 | G71: TRUE | H71: TRUE | I71: FALSE | J71: FALSE
A72: DOLNOŚLĄSKIE | B72: Wałbrzych | C72: Wałbrzych | D72: 111356 | E72: 52459 | F72: 58897 | G72: TRUE | H72: TRUE | I72: TRUE | J72: TRUE
A73: DOLNOŚLĄSKIE | B73: Wałbrzych | C73: 0 - 4 | D73: 4078 | E73: 2079 | F73: 1999 | G73: FALSE | H73: TRUE | I73: TRUE | J73: FALSE
A74: DOLNOŚLĄSKIE | B74: Wałbrzych | C74: 5 - 9 | D74: 4524 | E74: 2340 | F74: 2184 | G74: FALSE | H74: TRUE | I74: TRUE | J74: FALSE
A75: DOLNOŚLĄSKIE | B75: Wałbrzych | C75: 10 - 14 | D75: 4954 | E75: 2520 | F75: 2434 | G75: FALSE | H75: TRUE | I75: TRUE | J75: FALSE
A76: DOLNOŚLĄSKIE | B76: Wałbrzych | C76: 15 - 19 | D76: 4570 | E76: 2332 | F76: 2238 | G76: FALSE | H76: TRUE | I76: TRUE | J76: FALSE
A77: DOLNOŚLĄSKIE | B77: Wałbrzych | C77: 20 - 24 | D77: 5125 | E77: 2561 | F77: 2564 | G77: FALSE | H77: TRUE | I77: TRUE | J77: FALSE
A78: DOLNOŚLĄSKIE | B78: Wałbrzych | C78: 25 - 29 | D78: 6283 | E78: 3201 | F78: 3082 | G78: FALSE | H78: TRUE | I78: TRUE | J78: FALSE
A79: DOLNOŚLĄSKIE | B79: Wałbrzych | C79: 30 - 34 | D79: 7755 | E79: 4017 | F79: 3738 | G79: FALSE | H79: TRUE | I79: TRUE | J79: FALSE
A80: DOLNOŚLĄSKIE | B80: Wałbrzych | C80: 35 - 39 | D80: 9462 | E80: 4830 | F80: 4632 | G80: FALSE | H80: TRUE | I80: TRUE | J80: FALSE
A81: DOLNOŚLĄSKIE | B81: Wałbrzych | C81: 40 - 44 | D81: 8612 | E81: 4419 | F81: 4193 | G81: FALSE | H81: TRUE | I81: TRUE | J81: FALSE
A82: DOLNOŚLĄSKIE | B82: Wałbrzych | C82: 45 - 49 | D82: 6940 | E82: 3459 | F82: 3481 | G82: FALSE | H82: TRUE | I82: TRUE | J82: FALSE
A83: DOLNOŚLĄSKIE | B83: Wałbrzych | C83: 50 - 54 | D83: 6118 | E83: 2941 | F83: 3177 | G83: FALSE | H83: TRUE | I83: TRUE | J83: FALSE
A84: DOLNOŚLĄSKIE | B84: Wałbrzych | C84: 55 - 59 | D84: 7885 | E84: 3689 | F84: 4196 | G84: FALSE | H84: TRUE | I84: TRUE | J84: FALSE
A85: DOLNOŚLĄSKIE | B85: Wałbrzych | C85: 60 - 64 | D85: 10480 | E85: 4773 | F85: 5707 | G85: FALSE | H85: TRUE | I85: TRUE | J85: FALSE
A86: DOLNOŚLĄSKIE | B86: Wałbrzych | C86: 65 - 69 | D86: 9005 | E86: 3878 | F86: 5127 | G86: FALSE | H86: TRUE | I86: TRUE | J86: FALSE
A87: DOLNOŚLĄSKIE | B87: Wałbrzych | C87: 70 i więcej | D87: 15565 | E87: 5420 | F87: 10145 | G87: TRUE | H87: FALSE | I87: TRUE | J87: FALSE
A88: DOLNOŚLĄSKIE | B88: Wałbrzych | C88: 65+ | D88: 24570 | E88: 9298 | F88: 15272 | G88: TRUE | H88: TRUE | I88: FALSE | J88: FALSE
A89: DOLNOŚLĄSKIE | B89: bolesławiecki | C89: bolesławiecki | D89: 90103 | E89: 43739 | F89: 46364 | G89: TRUE | H89: TRUE | I89: TRUE | J89: TRUE
A90: DOLNOŚLĄSKIE | B90: bolesławiecki | C90: 0 - 4 | D90: 4259 | E90: 2175 | F90: 2084 | G90: FALSE | H90: TRUE | I90: TRUE | J90: FALSE
A91: DOLNOŚLĄSKIE | B91: bolesławiecki | C91: 5 - 9 | D91: 4375 | E91: 2221 | F91: 2154 | G91: FALSE | H91: TRUE | I91: TRUE | J91: FALSE
A92: DOLNOŚLĄSKIE | B92: bolesławiecki | C92: 10 - 14 | D92: 4773 | E92: 2425 | F92: 2348 | G92: FALSE | H92: TRUE | I92: TRUE | J92: FALSE
A93: DOLNOŚLĄSKIE | B93: bolesławiecki | C93: 15 - 19 | D93: 4221 | E93: 2214 | F93: 2007 | G93: FALSE | H93: TRUE | I93: TRUE | J93: FALSE
A94: DOLNOŚLĄSKIE | B94: bolesławiecki | C94: 20 - 24 | D94: 4885 | E94: 2537 | F94: 2348 | G94: FALSE | H94: TRUE | I94: TRUE | J94: FALSE
A95: DOLNOŚLĄSKIE | B95: bolesławiecki | C95: 25 - 29 | D95: 5995 | E95: 2983 | F95: 3012 | G95: FALSE | H95: TRUE | I95: TRUE | J95: FALSE
A96: DOLNOŚLĄSKIE | B96: bolesławiecki | C96: 30 - 34 | D96: 6933 | E96: 3547 | F96: 3386 | G96: FALSE | H96: TRUE | I96: TRUE | J96: FALSE
A97: DOLNOŚLĄSKIE | B97: bolesławiecki | C97: 35 - 39 | D97: 7414 | E97: 3831 | F97: 3583 | G97: FALSE | H97: TRUE | I97: TRUE | J97: FALSE
A98: DOLNOŚLĄSKIE | B98: bolesławiecki | C98: 40 - 44 | D98: 7227 | E98: 3658 | F98: 3569 | G98: FALSE | H98: TRUE | I98: TRUE | J98: FALSE
A99: DOLNOŚLĄSKIE | B99: bolesławiecki | C99: 45 - 49 | D99: 6140 | E99: 3109 | F99: 3031 | G99: FALSE | H99: TRUE | I99: TRUE | J99: FALSE
A100: DOLNOŚLĄSKIE | B100: bolesławiecki | C100: 50 - 54 | D100: 5143 | E100: 2586 | F100: 2557 | G100: FALSE | H100: TRUE | I100: TRUE | J100: FALSE
A101: DOLNOŚLĄSKIE | B101: bolesławiecki | C101: 55 - 59 | D101: 5885 | E101: 2870 | F101: 3015 | G101: FALSE | H101: TRUE | I101: TRUE | J101: FALSE
A102: DOLNOŚLĄSKIE | B102: bolesławiecki | C102: 60 - 64 | D102: 6939 | E102: 3300 | F102: 3639 | G102: FALSE | H102: TRUE | I102: TRUE | J102: FALSE
A103: DOLNOŚLĄSKIE | B103: bolesławiecki | C103: 65 - 69 | D103: 6113 | E103: 2749 | F103: 3364 | G103: FALSE | H103: TRUE | I103: TRUE | J103: FALSE
A104: DOLNOŚLĄSKIE | B104: bolesławiecki | C104: 70 i więcej | D104: 9801 | E104: 3534 | F104: 6267 | G104: TRUE | H104: FALSE | I104: TRUE | J104: FALSE
A105: DOLNOŚLĄSKIE | B105: bolesławiecki | C105: 65+ | D105: 15914 | E105: 6283 | F105: 9631 | G105: TRUE | H105: TRUE | I105: FALSE | J105: FALSE
A106: DOLNOŚLĄSKIE | B106: dzierżoniowski | C106: dzierżoniowski | D106: 100813 | E106: 48017 | F106: 52796 | G106: TRUE | H106: TRUE | I106: TRUE | J106: TRUE
A107: DOLNOŚLĄSKIE | B107: dzierżoniowski | C107: 0 - 4 | D107: 4081 | E107: 2040 | F107: 2041 | G107: FALSE | H107: TRUE | I107: TRUE | J107: FALSE
A108: DOLNOŚLĄSKIE | B108: dzierżoniowski | C108: 5 - 9 | D108: 4400 | E108: 2278 | F108: 2122 | G108: FALSE | H108: TRUE | I108: TRUE | J108: FALSE
A109: DOLNOŚLĄSKIE | B109: dzierżoniowski | C109: 10 - 14 | D109: 4652 | E109: 2341 | F109: 2311 | G109: FALSE | H109: TRUE | I109: TRUE | J109: FALSE
A110: DOLNOŚLĄSKIE | B110: dzierżoniowski | C110: 15 - 19 | D110: 4277 | E110: 2183 | F110: 2094 | G110: FALSE | H110: TRUE | I110: TRUE | J110: FALSE
A111: DOLNOŚLĄSKIE | B111: dzierżoniowski | C111: 20 - 24 | D111: 4900 | E111: 2508 | F111: 2392 | G111: FALSE | H111: TRUE | I111: TRUE | J111: FALSE
A112: DOLNOŚLĄSKIE | B112: dzierżoniowski | C112: 25 - 29 | D112: 6151 | E112: 3143 | F112: 3008 | G112: FALSE | H112: TRUE | I112: TRUE | J112: FALSE
A113: DOLNOŚLĄSKIE | B113: dzierżoniowski | C113: 30 - 34 | D113: 7106 | E113: 3611 | F113: 3495 | G113: FALSE | H113: TRUE | I113: TRUE | J113: FALSE
A114: DOLNOŚLĄSKIE | B114: dzierżoniowski | C114: 35 - 39 | D114: 8376 | E114: 4257 | F114: 4119 | G114: FALSE | H114: TRUE | I114: TRUE | J114: FALSE
A115: DOLNOŚLĄSKIE | B115: dzierżoniowski | C115: 40 - 44 | D115: 7902 | E115: 4065 | F115: 3837 | G115: FALSE | H115: TRUE | I115: TRUE | J115: FALSE
A116: DOLNOŚLĄSKIE | B116: dzierżoniowski | C116: 45 - 49 | D116: 6693 | E116: 3347 | F116: 3346 | G116: FALSE | H116: TRUE | I116: TRUE | J116: FALSE
A117: DOLNOŚLĄSKIE | B117: dzierżoniowski | C117: 50 - 54 | D117: 5988 | E117: 3019 | F117: 2969 | G117: FALSE | H117: TRUE | I117: TRUE | J117: FALSE
A118: DOLNOŚLĄSKIE | B118: dzierżoniowski | C118: 55 - 59 | D118: 6803 | E118: 3253 | F118: 3550 | G118: FALSE | H118: TRUE | I118: TRUE | J118: FALSE
A119: DOLNOŚLĄSKIE | B119: dzierżoniowski | C119: 60 - 64 | D119: 8535 | E119: 4015 | F119: 4520 | G119: FALSE | H119: TRUE | I119: TRUE | J119: FALSE
A120: DOLNOŚLĄSKIE | B120: dzierżoniowski | C120: 65 - 69 | D120: 7805 | E120: 3470 | F120: 4335 | G120: FALSE | H120: TRUE | I120: TRUE | J120: FALSE
A121: DOLNOŚLĄSKIE | B121: dzierżoniowski | C121: 70 i więcej | D121: 13144 | E121: 4487 | F121: 8657 | G121: TRUE | H121: FALSE | I121: TRUE | J121: FALSE
A122: DOLNOŚLĄSKIE | B122: dzierżoniowski | C122: 65+ | D122: 20949 | E122: 7957 | F122: 12992 | G122: TRUE | H122: TRUE | I122: FALSE | J122: FALSE
A123: DOLNOŚLĄSKIE | B123: głogowski | C123: głogowski | D123: 89102 | E123: 43353 | F123: 45749 | G123: TRUE | H123: TRUE | I123: TRUE | J123: TRUE
A124: DOLNOŚLĄSKIE | B124: głogowski | C124: 0 - 4 | D124: 3943 | E124: 2029 | F124: 1914 | G124: FALSE | H124: TRUE | I124: TRUE | J124: FALSE
A125: DOLNOŚLĄSKIE | B125: głogowski | C125: 5 - 9 | D125: 4612 | E125: 2328 | F125: 2284 | G125: FALSE | H125: TRUE | I125: TRUE | J125: FALSE
A126: DOLNOŚLĄSKIE | B126: głogowski | C126: 10 - 14 | D126: 5076 | E126: 2561 | F126: 2515 | G126: FALSE | H126: TRUE | I126: TRUE | J126: FALSE
A127: DOLNOŚLĄSKIE | B127: głogowski | C127: 15 - 19 | D127: 4252 | E127: 2213 | F127: 2039 | G127: FALSE | H127: TRUE | I127: TRUE | J127: FALSE
A128: DOLNOŚLĄSKIE | B128: głogowski | C128: 20 - 24 | D128: 4683 | E128: 2364 | F128: 2319 | G128: FALSE | H128: TRUE | I128: TRUE | J128: FALSE
A129: DOLNOŚLĄSKIE | B129: głogowski | C129: 25 - 29 | D129: 5235 | E129: 2656 | F129: 2579 | G129: FALSE | H129: TRUE | I129: TRUE | J129: FALSE
A130: DOLNOŚLĄSKIE | B130: głogowski | C130: 30 - 34 | D130: 6398 | E130: 3321 | F130: 3077 | G130: FALSE | H130: TRUE | I130: TRUE | J130: FALSE
A131: DOLNOŚLĄSKIE | B131: głogowski | C131: 35 - 39 | D131: 7566 | E131: 3846 | F131: 3720 | G131: FALSE | H131: TRUE | I131: TRUE | J131: FALSE
A132: DOLNOŚLĄSKIE | B132: głogowski | C132: 40 - 44 | D132: 7781 | E132: 3951 | F132: 3830 | G132: FALSE | H132: TRUE | I132: TRUE | J132: FALSE
A133: DOLNOŚLĄSKIE | B133: głogowski | C133: 45 - 49 | D133: 6048 | E133: 3090 | F133: 2958 | G133: =IFERROR(IF(SEARCH(" - ",C133)>0,FALSE,TRUE),TRUE) -> FALSE | H133: =IFERROR(IF(SEARCH("70",C133)>0,FALSE,TRUE),TRUE) -> TRUE | I133: =IFERROR(IF(SEARCH("65+",C133)>0,FALSE,TRUE),TRUE) -> TRUE | J133: =AND(G133:I133) -> FALSE
A134: DOLNOŚLĄSKIE | B134: głogowski | C134: 50 - 54 | D134: 4632 | E134: 2275 | F134: 2357 | G134: FALSE | H134: TRUE | I134: TRUE | J134: FALSE
A135: DOLNOŚLĄSKIE | B135: głogowski | C135: 55 - 59 | D135: 5197 | E135: 2396 | F135: 2801 | G135: FALSE | H135: TRUE | I135: TRUE | J135: FALSE
A136: DOLNOŚLĄSKIE | B136: głogowski | C136: 60 - 64 | D136: 7047 | E136: 3233 | F136: 3814 | G136: FALSE | H136: TRUE | I136: TRUE | J136: FALSE
A137: DOLNOŚLĄSKIE | B137: głogowski | C137: 65 - 69 | D137: 7047 | E137: 3250 | F137: 3797 | G137: FALSE | H137: TRUE | I137: TRUE | J137: FALSE
A138: DOLNOŚLĄSKIE | B138: głogowski | C138: 70 i więcej | D138: 9585 | E138: 3840 | F138: 5745 | G138: TRUE | H138: FALSE | I138: TRUE | J138: FALSE
A139: DOLNOŚLĄSKIE | B139: głogowski | C139: 65+ | D139: 16632 | E139: 7090 | F139: 9542 | G139: TRUE | H139: TRUE | I139: FALSE | J139: FALSE
A140: DOLNOŚLĄSKIE | B140: górowski | C140: górowski | D140: 34870 | E140: 17278 | F140: 17592 | G140: TRUE | H140: TRUE | I140: TRUE | J140: TRUE
A141: DOLNOŚLĄSKIE | B141: górowski | C141: 0 - 4 | D141: 1549 | E141: 803 | F141: 746 | G141: FALSE | H141: TRUE | I141: TRUE | J141: FALSE
A142: DOLNOŚLĄSKIE | B142: górowski | C142: 5 - 9 | D142: 1762 | E142: 900 | F142: 862 | G142: FALSE | H142: TRUE | I142: TRUE | J142: FALSE
A143: DOLNOŚLĄSKIE | B143: górowski | C143: 10 - 14 | D143: 1958 | E143: 1033 | F143: 925 | G143: FALSE | H143: TRUE | I143: TRUE | J143: FALSE
A144: DOLNOŚLĄSKIE | B144: górowski | C144: 15 - 19 | D144: 1844 | E144: 954 | F144: 890 | G144: FALSE | H144: TRUE | I144: TRUE | J144: FALSE
A145: DOLNOŚLĄSKIE | B145: górowski | C145: 20 - 24 | D145: 2279 | E145: 1135 | F145: 1144 | G145: FALSE | H145: TRUE | I145: TRUE | J145: FALSE
A146: DOLNOŚLĄSKIE | B146: górowski | C146: 25 - 29 | D146: 2534 | E146: 1295 | F146: 1239 | G146: FALSE | H146: TRUE | I146: TRUE | J146: FALSE
A147: DOLNOŚLĄSKIE | B147: górowski | C147: 30 - 34 | D147: 2520 | E147: 1341 | F147: 1179 | G147: FALSE | H147: TRUE | I147: TRUE | J147: FALSE
A148: DOLNOŚLĄSKIE | B148: górowski | C148: 35 - 39 | D148: 2674 | E148: 1412 | F148: 1262 | G148: FALSE | H148: TRUE | I148: TRUE | J148: FALSE
A149: DOLNOŚLĄSKIE | B149: górowski | C149: 40 - 44 | D149: 2552 | E149: 1315 | F149: 1237 | G149: FALSE | H149: TRUE | I149: TRUE | J149: FALSE
A150: DOLNOŚLĄSKIE | B150: górowski | C150: 45 - 49 | D150: 2236 | E150: 1151 | F150: 1085 | G150: FALSE | H150: TRUE | I150: TRUE | J150: FALSE
A151: DOLNOŚLĄSKIE | B151: górowski | C151: 50 - 54 | D151: 2072 | E151: 1029 | F151: 1043 | G151: FALSE | H151: TRUE | I151: TRUE | J151: FALSE
A152: DOLNOŚLĄSKIE | B152: górowski | C152: 55 - 59 | D152: 2280 | E152: 1123 | F152: 1157 | G152: FALSE | H152: TRUE | I152: TRUE | J152: FALSE
A153: DOLNOŚLĄSKIE | B153: górowski | C153: 60 - 64 | D153: 2643 | E153: 1309 | F153: 1334 | G153: FALSE | H153: TRUE | I153: TRUE | J153: FALSE
A154: DOLNOŚLĄSKIE | B154: górowski | C154: 65 - 69 | D154: 2277 | E154: 1083 | F154: 1194 | G154: FALSE | H154: TRUE | I154: TRUE | J154: FALSE
A155: DOLNOŚLĄSKIE | B155: górowski | C155: 70 i więcej | D155: 3690 | E155: 1395 | F155: 2295 | G155: TRUE | H155: FALSE | I155: TRUE | J155: FALSE
A156: DOLNOŚLĄSKIE | B156: górowski | C156: 65+ | D156: 5967 | E156: 2478 | F156: 3489 | G156: TRUE | H156: TRUE | I156: FALSE | J156: FALSE
A157: DOLNOŚLĄSKIE | B157: jaworski | C157: jaworski | D157: 50116 | E157: 24573 | F157: 25543 | G157: TRUE | H157: TRUE | I157: TRUE | J157: TRUE
A158: DOLNOŚLĄSKIE | B158: jaworski | C158: 0 - 4 | D158: 2151 | E158: 1109 | F158: 1042 | G158: FALSE | H158: TRUE | I158: TRUE | J158: FALSE
A159: DOLNOŚLĄSKIE | B159: jaworski | C159: 5 - 9 | D159: 2241 | E159: 1141 | F159: 1100 | G159: FALSE | H159: TRUE | I159: TRUE | J159: FALSE
A160: DOLNOŚLĄSKIE | B160: jaworski | C160: 10 - 14 | D160: 2601 | E160: 1351 | F160: 1250 | G160: FALSE | H160: TRUE | I160: TRUE | J160: FALSE
A161: DOLNOŚLĄSKIE | B161: jaworski | C161: 15 - 19 | D161: 2253 | E161: 1162 | F161: 1091 | G161: FALSE | H161: TRUE | I161: TRUE | J161: FALSE
A162: DOLNOŚLĄSKIE | B162: jaworski | C162: 20 - 24 | D162: 2722 | E162: 1390 | F162: 1332 | G162: FALSE | H162: TRUE | I162: TRUE | J162: FALSE
A163: DOLNOŚLĄSKIE | B163: jaworski | C163: 25 - 29 | D163: 3194 | E163: 1689 | F163: 1505 | G163: FALSE | H163: TRUE | I163: TRUE | J163: FALSE
A164: DOLNOŚLĄSKIE | B164: jaworski | C164: 30 - 34 | D164: 3747 | E164: 1937 | F164: 1810 | G164: FALSE | H164: TRUE | I164: TRUE | J164: FALSE
A165: DOLNOŚLĄSKIE | B165: jaworski | C165: 35 - 39 | D165: 4168 | E165: 2092 | F165: 2076 | G165: FALSE | H165: TRUE | I165: TRUE | J165: FALSE
A166: DOLNOŚLĄSKIE | B166: jaworski | C166: 40 - 44 | D166: 3887 | E166: 2001 | F166: 1886 | G166: FALSE | H166: TRUE | I166: TRUE | J166: FALSE
A167: DOLNOŚLĄSKIE | B167: jaworski | C167: 45 - 49 | D167: 3229 | E167: 1660 | F167: 1569 | G167: FALSE | H167: TRUE | I167: TRUE | J167: FALSE
A168: DOLNOŚLĄSKIE | B168: jaworski | C168: 50 - 54 | D168: 2966 | E168: 1477 | F168: 1489 | G168: FALSE | H168: TRUE | I168: TRUE | J168: FALSE
A169: DOLNOŚLĄSKIE | B169: jaworski | C169: 55 - 59 | D169: 3435 | E169: 1712 | F169: 1723 | G169: FALSE | H169: TRUE | I169: TRUE | J169: FALSE
A170: DOLNOŚLĄSKIE | B170: jaworski | C170: 60 - 64 | D170: 4270 | E170: 2049 | F170: 2221 | G170: FALSE | H170: TRUE | I170: TRUE | J170: FALSE
A171: DOLNOŚLĄSKIE | B171: jaworski | C171: 65 - 69 | D171: 3677 | E171: 1737 | F171: 1940 | G171: FALSE | H171: TRUE | I171: TRUE | J171: FALSE
A172: DOLNOŚLĄSKIE | B172: jaworski | C172: 70 i więcej | D172: 5575 | E172: 2066 | F172: 3509 | G172: TRUE | H172: FALSE | I172: TRUE | J172: FALSE
A173: DOLNOŚLĄSKIE | B173: jaworski | C173: 65+ | D173: 9252 | E173: 3803 | F173: 5449 | G173: TRUE | H173: TRUE | I173: FALSE | J173: FALSE
A174: DOLNOŚLĄSKIE | B174: jeleniogórski | C174: jeleniogórski | D174: 63591 | E174: 30760 | F174: 32831 | G174: TRUE | H174: TRUE | I174: TRUE | J174: TRUE
A175: DOLNOŚLĄSKIE | B175: jeleniogórski | C175: 0 - 4 | D175: 2327 | E175: 1175 | F175: 1152 | G175: FALSE | H175: TRUE | I175: TRUE | J175: FALSE
A176: DOLNOŚLĄSKIE | B176: jeleniogórski | C176: 5 - 9 | D176: 2655 | E176: 1392 | F176: 1263 | G176: FALSE | H176: TRUE | I176: TRUE | J176: FALSE
A177: DOLNOŚLĄSKIE | B177: jeleniogórski | C177: 10 - 14 | D177: 3217 | E177: 1649 | F177: 1568 | G177: FALSE | H177: TRUE | I177: TRUE | J177: FALSE
A178: DOLNOŚLĄSKIE | B178: jeleniogórski | C178: 15 - 19 | D178: 2950 | E178: 1497 | F178: 1453 | G178: FALSE | H178: TRUE | I178: TRUE | J178: FALSE
A179: DOLNOŚLĄSKIE | B179: jeleniogórski | C179: 20 - 24 | D179: 3238 | E179: 1671 | F179: 1567 | G179: FALSE | H179: TRUE | I179: TRUE | J179: FALSE
A180: DOLNOŚLĄSKIE | B180: jeleniogórski | C180: 25 - 29 | D180: 3886 | E180: 1972 | F180: 1914 | G180: FALSE | H180: TRUE | I180: TRUE | J180: FALSE
A181: DOLNOŚLĄSKIE | B181: jeleniogórski | C181: 30 - 34 | D181: 4358 | E181: 2219 | F181: 2139 | G181: FALSE | H181: TRUE | I181: TRUE | J181: FALSE
A182: DOLNOŚLĄSKIE | B182: jeleniogórski | C182: 35 - 39 | D182: 5272 | E182: 2640 | F182: 2632 | G182: FALSE | H182: TRUE | I182: TRUE | J182: FALSE
A183: DOLNOŚLĄSKIE | B183: jeleniogórski | C183: 40 - 44 | D183: 5333 | E183: 2736 | F183: 2597 | G183: FALSE | H183: TRUE | I183: TRUE | J183: FALSE
A184: DOLNOŚLĄSKIE | B184: jeleniogórski | C184: 45 - 49 | D184: 4597 | E184: 2323 | F184: 2274 | G184: FALSE | H184: TRUE | I184: TRUE | J184: FALSE
A185: DOLNOŚLĄSKIE | B185: jeleniogórski | C185: 50 - 54 | D185: 3796 | E185: 1844 | F185: 1952 | G185: FALSE | H185: TRUE | I185: TRUE | J185: FALSE
A186: DOLNOŚLĄSKIE | B186: jeleniogórski | C186: 55 - 59 | D186: 4287 | E186: 2089 | F186: 2198 | G186: FALSE | H186: TRUE | I186: TRUE | J186: FALSE
A187: DOLNOŚLĄSKIE | B187: jeleniogórski | C187: 60 - 64 | D187: 5653 | E187: 2674 | F187: 2979 | G187: FALSE | H187: TRUE | I187: TRUE | J187: FALSE
A188: DOLNOŚLĄSKIE | B188: jeleniogórski | C188: 65 - 69 | D188: 5201 | E188: 2371 | F188: 2830 | G188: FALSE | H188: TRUE | I188: TRUE | J188: FALSE
A189: DOLNOŚLĄSKIE | B189: jeleniogórski | C189: 70 i więcej | D189: 6821 | E189: 2508 | F189: 4313 | G189: TRUE | H189: FALSE | I189: TRUE | J189: FALSE
A190: DOLNOŚLĄSKIE | B190: jeleniogórski | C190: 65+ | D190: 12022 | E190: 4879 | F190: 7143 | G190: TRUE | H190: TRUE | I190: FALSE | J190: FALSE
A191: DOLNOŚLĄSKIE | B191: kamiennogórski | C191: kamiennogórski | D191: 43239 | E191: 21140 | F191: 22099 | G191: TRUE | H191: TRUE | I191: TRUE | J191: TRUE
A192: DOLNOŚLĄSKIE | B192: kamiennogórski | C192: 0 - 4 | D192: 1709 | E192: 872 | F192: 837 | G192: FALSE | H192: TRUE | I192: TRUE | J192: FALSE
A193: DOLNOŚLĄSKIE | B193: kamiennogórski | C193: 5 - 9 | D193: 1846 | E193: 977 | F193: 869 | G193: FALSE | H193: TRUE | I193: TRUE | J193: FALSE
A194: DOLNOŚLĄSKIE | B194: kamiennogórski | C194: 10 - 14 | D194: 2219 | E194: 1143 | F194: 1076 | G194: FALSE | H194: TRUE | I194: TRUE | J194: FALSE
A195: DOLNOŚLĄSKIE | B195: kamiennogórski | C195: 15 - 19 | D195: 2031 | E195: 1087 | F195: 944 | G195: FALSE | H195: TRUE | I195: TRUE | J195: FALSE
A196: DOLNOŚLĄSKIE | B196: kamiennogórski | C196: 20 - 24 | D196: 2446 | E196: 1258 | F196: 1188 | G196: FALSE | H196: TRUE | I196: TRUE | J196: FALSE
A197: DOLNOŚLĄSKIE | B197: kamiennogórski | C197: 25 - 29 | D197: 2809 | E197: 1458 | F197: 1351 | G197: =IFERROR(IF(SEARCH(" - ",C197)>0,FALSE,TRUE),TRUE) -> FALSE | H197: =IFERROR(IF(SEARCH("70",C197)>0,FALSE,TRUE),TRUE) -> TRUE | I197: =IFERROR(IF(SEARCH("65+",C197)>0,FALSE,TRUE),TRUE) -> TRUE | J197: =AND(G197:I197) -> FALSE
A198: DOLNOŚLĄSKIE | B198: kamiennogórski | C198: 30 - 34 | D198: 3032 | E198: 1603 | F198: 1429 | G198: FALSE | H198: TRUE | I198: TRUE | J198: FALSE
A199: DOLNOŚLĄSKIE | B199: kamiennogórski | C199: 35 - 39 | D199: 3555 | E199: 1869 | F199: 1686 | G199: FALSE | H199: TRUE | I199: TRUE | J199: FALSE
A200: DOLNOŚLĄSKIE | B200: kamiennogórski | C200: 40 - 44 | D200: 3316 | E200: 1719 | F200: 1597 | G200: FALSE | H200: TRUE | I200: TRUE | J200: FALSE
A201: DOLNOŚLĄSKIE | B201: kamiennogórski | C201: 45 - 49 | D201: 2909 | E201: 1481 | F201: 1428 | G201: FALSE | H201: TRUE | I201: TRUE | J201: FALSE
... 6534 more rows

Sheet Dolnośląskie (hidden)
A1: Województwa Powiaty Grupy wieku | B1: Ogółem | C1: Mężczyźni | D1: Kobiety
A4: Dolnośląskie | B4: 2903812 | C4: 1396008 | D4: 1507804 | E4: =IFERROR(IF(SEARCH(" - ",A4)>0,FALSE,TRUE),TRUE) -> TRUE | F4: =IFERROR(IF(SEARCH("70",A4)>0,FALSE,TRUE),TRUE) -> TRUE | G4: =IFERROR(IF(SEARCH("65+",A4)>0,FALSE,TRUE),TRUE) -> TRUE | H4: =AND(E4:G4) -> TRUE
A5: 0 - 4 | B5: 134844 | C5: 69399 | D5: 65445 | E5: =IFERROR(IF(SEARCH(" - ",A5)>0,FALSE,TRUE),TRUE) -> FALSE | F5: =IFERROR(IF(SEARCH("70",A5)>0,FALSE,TRUE),TRUE) -> TRUE | G5: =IFERROR(IF(SEARCH("65+",A5)>0,FALSE,TRUE),TRUE) -> TRUE | H5: =AND(E5:G5) -> FALSE
A6: 5 - 9 | B6: 149467 | C6: 76437 | D6: 73030 | E6: FALSE | F6: TRUE | G6: TRUE | H6: FALSE
A7: 10 - 14 | B7: 125044 | C7: 64220 | D7: 60824 | E7: FALSE | F7: TRUE | G7: TRUE | H7: FALSE
A8: 15 - 19 | B8: 134228 | C8: 68615 | D8: 65613 | E8: FALSE | F8: TRUE | G8: TRUE | H8: FALSE
A9: 20 - 24 | B9: 165968 | C9: 84367 | D9: 81601 | E9: FALSE | F9: TRUE | G9: TRUE | H9: FALSE
A10: 25 - 29 | B10: 206978 | C10: 104098 | D10: 102880 | E10: FALSE | F10: TRUE | G10: TRUE | H10: FALSE
A11: 30 - 34 | B11: 255384 | C11: 128986 | D11: 126398 | E11: FALSE | F11: TRUE | G11: TRUE | H11: FALSE
A12: 35 - 39 | B12: 244691 | C12: 124016 | D12: 120675 | E12: FALSE | F12: TRUE | G12: TRUE | H12: FALSE
A13: 40 - 44 | B13: 212062 | C13: 107643 | D13: 104419 | E13: FALSE | F13: TRUE | G13: TRUE | H13: FALSE
A14: 45 - 49 | B14: 168041 | C14: 84678 | D14: 83363 | E14: FALSE | F14: TRUE | G14: TRUE | H14: FALSE
A15: 50 - 54 | B15: 173873 | C15: 85461 | D15: 88412 | E15: FALSE | F15: TRUE | G15: TRUE | H15: FALSE
A16: 55 - 59 | B16: 221686 | C16: 106311 | D16: 115375 | E16: FALSE | F16: TRUE | G16: TRUE | H16: FALSE
A17: 60 - 64 | B17: 229985 | C17: 106679 | D17: 123306 | E17: FALSE | F17: TRUE | G17: TRUE | H17: FALSE
A18: 65 - 69 | B18: 185548 | C18: 82887 | D18: 102661 | E18: FALSE | F18: TRUE | G18: TRUE | H18: FALSE
A19: 70 i więcej | B19: 296013 | C19: 102211 | D19: 193802 | E19: TRUE | F19: FALSE | G19: TRUE | H19: FALSE
A20: 65+ | B20: =SUM(B18:B19) -> 481561 | C20: =SUM(C18:C19) -> 185098 | D20: =SUM(D18:D19) -> 296463 | E20: TRUE | F20: TRUE | G20: FALSE | H20: FALSE
A21: Jelenia Góra | B21: 80889 | C21: 37678 | D21: 43211 | E21: TRUE | F21: TRUE | G21: TRUE | H21: TRUE
A22: 0 - 4 | B22: 3183 | C22: 1618 | D22: 1565 | E22: FALSE | F22: TRUE | G22: TRUE | H22: FALSE
A23: 5 - 9 | B23: 3523 | C23: 1806 | D23: 1717 | E23: FALSE | F23: TRUE | G23: TRUE | H23: FALSE
A24: 10 - 14 | B24: 3023 | C24: 1562 | D24: 1461 | E24: FALSE | F24: TRUE | G24: TRUE | H24: FALSE
A25: 15 - 19 | B25: 3241 | C25: 1581 | D25: 1660 | E25: FALSE | F25: TRUE | G25: TRUE | H25: FALSE
A26: 20 - 24 | B26: 3983 | C26: 2014 | D26: 1969 | E26: FALSE | F26: TRUE | G26: TRUE | H26: FALSE
A27: 25 - 29 | B27: 4920 | C27: 2453 | D27: 2467 | E27: FALSE | F27: TRUE | G27: TRUE | H27: FALSE
A28: 30 - 34 | B28: 6508 | C28: 3347 | D28: 3161 | E28: FALSE | F28: TRUE | G28: TRUE | H28: FALSE
A29: 35 - 39 | B29: 6547 | C29: 3285 | D29: 3262 | E29: FALSE | F29: TRUE | G29: TRUE | H29: FALSE
A30: 40 - 44 | B30: 5591 | C30: 2767 | D30: 2824 | E30: FALSE | F30: TRUE | G30: TRUE | H30: FALSE
A31: 45 - 49 | B31: 4561 | C31: 2289 | D31: 2272 | E31: FALSE | F31: TRUE | G31: TRUE | H31: FALSE
A32: 50 - 54 | B32: 4840 | C32: 2282 | D32: 2558 | E32: FALSE | F32: TRUE | G32: TRUE | H32: FALSE
A33: 55 - 59 | B33: 6747 | C33: 3064 | D33: 3683 | E33: FALSE | F33: TRUE | G33: TRUE | H33: FALSE
A34: 60 - 64 | B34: 7669 | C34: 3408 | D34: 4261 | E34: FALSE | F34: TRUE | G34: TRUE | H34: FALSE
A35: 65 - 69 | B35: 6113 | C35: 2551 | D35: 3562 | E35: FALSE | F35: TRUE | G35: TRUE | H35: FALSE
A36: 70 i więcej | B36: 10440 | C36: 3651 | D36: 6789 | E36: TRUE | F36: FALSE | G36: TRUE | H36: FALSE
A37: 65+ | B37: =SUM(B35:B36) -> 16553 | C37: =SUM(C35:C36) -> 6202 | D37: =SUM(D35:D36) -> 10351 | E37: TRUE | F37: TRUE | G37: FALSE | H37: FALSE
A38: Legnica | B38: 100769 | C38: 47653 | D38: 53116 | E38: TRUE | F38: TRUE | G38: TRUE | H38: TRUE
A39: 0 - 4 | B39: 4552 | C39: 2329 | D39: 2223 | E39: FALSE | F39: TRUE | G39: TRUE | H39: FALSE
A40: 5 - 9 | B40: 4981 | C40: 2589 | D40: 2392 | E40: FALSE | F40: TRUE | G40: TRUE | H40: FALSE
A41: 10 - 14 | B41: 4158 | C41: 2147 | D41: 2011 | E41: FALSE | F41: TRUE | G41: TRUE | H41: FALSE
A42: 15 - 19 | B42: 4640 | C42: 2401 | D42: 2239 | E42: FALSE | F42: TRUE | G42: TRUE | H42: FALSE
A43: 20 - 24 | B43: 5708 | C43: 2954 | D43: 2754 | E43: FALSE | F43: TRUE | G43: TRUE | H43: FALSE
A44: 25 - 29 | B44: 6988 | C44: 3511 | D44: 3477 | E44: FALSE | F44: TRUE | G44: TRUE | H44: FALSE
A45: 30 - 34 | B45: 8503 | C45: 4301 | D45: 4202 | E45: FALSE | F45: TRUE | G45: TRUE | H45: FALSE
A46: 35 - 39 | B46: 8228 | C46: 4102 | D46: 4126 | E46: FALSE | F46: TRUE | G46: TRUE | H46: FALSE
A47: 40 - 44 | B47: 7239 | C47: 3585 | D47: 3654 | E47: FALSE | F47: TRUE | G47: TRUE | H47: FALSE
A48: 45 - 49 | B48: 5993 | C48: 2928 | D48: 3065 | E48: FALSE | F48: TRUE | G48: TRUE | H48: FALSE
A49: 50 - 54 | B49: 6103 | C49: 2924 | D49: 3179 | E49: FALSE | F49: TRUE | G49: TRUE | H49: FALSE
A50: 55 - 59 | B50: 7907 | C50: 3599 | D50: 4308 | E50: FALSE | F50: TRUE | G50: TRUE | H50: FALSE
A51: 60 - 64 | B51: 8566 | C51: 3786 | D51: 4780 | E51: FALSE | F51: TRUE | G51: TRUE | H51: FALSE
A52: 65 - 69 | B52: 6936 | C52: 2981 | D52: 3955 | E52: FALSE | F52: TRUE | G52: TRUE | H52: FALSE
A53: 70 i więcej | B53: 10267 | C53: 3516 | D53: 6751 | E53: TRUE | F53: FALSE | G53: TRUE | H53: FALSE
A54: 65+ | B54: =SUM(B52:B53) -> 17203 | C54: =SUM(C52:C53) -> 6497 | D54: =SUM(D52:D53) -> 10706 | E54: TRUE | F54: TRUE | G54: FALSE | H54: FALSE
A55: Wrocław | B55: 637075 | C55: 297249 | D55: 339826 | E55: TRUE | F55: TRUE | G55: TRUE | H55: TRUE
A56: 0 - 4 | B56: 33184 | C56: 17229 | D56: 15955 | E56: FALSE | F56: TRUE | G56: TRUE | H56: FALSE
A57: 5 - 9 | B57: 30861 | C57: 15760 | D57: 15101 | E57: FALSE | F57: TRUE | G57: TRUE | H57: FALSE
A58: 10 - 14 | B58: 22113 | C58: 11256 | D58: 10857 | E58: FALSE | F58: TRUE | G58: TRUE | H58: FALSE
A59: 15 - 19 | B59: 23032 | C59: 11688 | D59: 11344 | E59: FALSE | F59: TRUE | G59: TRUE | H59: FALSE
A60: 20 - 24 | B60: 29838 | C60: 14972 | D60: 14866 | E60: FALSE | F60: TRUE | G60: TRUE | H60: FALSE
A61: 25 - 29 | B61: 49126 | C61: 23333 | D61: 25793 | E61: FALSE | F61: TRUE | G61: TRUE | H61: FALSE
A62: 30 - 34 | B62: 67222 | C62: 32808 | D62: 34414 | E62: FALSE | F62: TRUE | G62: TRUE | H62: FALSE
A63: 35 - 39 | B63: 57696 | C63: 28691 | D63: 29005 | E63: FALSE | F63: TRUE | G63: TRUE | H63: FALSE
A64: 40 - 44 | B64: 45928 | C64: 22714 | D64: 23214 | E64: FALSE | F64: TRUE | G64: TRUE | H64: FALSE
A65: 45 - 49 | B65: 33605 | C65: 16581 | D65: 17024 | E65: FALSE | F65: TRUE | G65: TRUE | H65: FALSE
A66: 50 - 54 | B66: 33188 | C66: 15757 | D66: 17431 | E66: FALSE | F66: TRUE | G66: TRUE | H66: FALSE
A67: 55 - 59 | B67: 43122 | C67: 19795 | D67: 23327 | E67: FALSE | F67: TRUE | G67: TRUE | H67: FALSE
A68: 60 - 64 | B68: 49355 | C68: 21666 | D68: 27689 | E68: FALSE | F68: TRUE | G68: TRUE | H68: FALSE
A69: 65 - 69 | B69: 41922 | C69: 17842 | D69: 24080 | E69: =IFERROR(IF(SEARCH(" - ",A69)>0,FALSE,TRUE),TRUE) -> FALSE | F69: =IFERROR(IF(SEARCH("70",A69)>0,FALSE,TRUE),TRUE) -> TRUE | G69: =IFERROR(IF(SEARCH("65+",A69)>0,FALSE,TRUE),TRUE) -> TRUE | H69: =AND(E69:G69) -> FALSE
A70: 70 i więcej | B70: 76883 | C70: 27157 | D70: 49726 | E70: TRUE | F70: FALSE | G70: TRUE | H70: FALSE
A71: 65+ | B71: =SUM(B69:B70) -> 118805 | C71: =SUM(C69:C70) -> 44999 | D71: =SUM(D69:D70) -> 73806 | E71: TRUE | F71: TRUE | G71: FALSE | H71: FALSE
A72: Wałbrzych | B72: 114930 | C72: 54112 | D72: 60818 | E72: TRUE | F72: TRUE | G72: TRUE | H72: TRUE
A73: 0 - 4 | B73: 4390 | C73: 2255 | D73: 2135 | E73: FALSE | F73: TRUE | G73: TRUE | H73: FALSE
A74: 5 - 9 | B74: 5064 | C74: 2551 | D74: 2513 | E74: FALSE | F74: TRUE | G74: TRUE | H74: FALSE
A75: 10 - 14 | B75: 4536 | C75: 2344 | D75: 2192 | E75: FALSE | F75: TRUE | G75: TRUE | H75: FALSE
A76: 15 - 19 | B76: 4809 | C76: 2422 | D76: 2387 | E76: FALSE | F76: TRUE | G76: TRUE | H76: FALSE
A77: 20 - 24 | B77: 6043 | C77: 3058 | D77: 2985 | E77: FALSE | F77: TRUE | G77: TRUE | H77: FALSE
A78: 25 - 29 | B78: 7392 | C78: 3820 | D78: 3572 | E78: FALSE | F78: TRUE | G78: TRUE | H78: FALSE
A79: 30 - 34 | B79: 9377 | C79: 4730 | D79: 4647 | E79: FALSE | F79: TRUE | G79: TRUE | H79: FALSE
A80: 35 - 39 | B80: 9169 | C80: 4750 | D80: 4419 | E80: FALSE | F80: TRUE | G80: TRUE | H80: FALSE
A81: 40 - 44 | B81: 7514 | C81: 3774 | D81: 3740 | E81: FALSE | F81: TRUE | G81: TRUE | H81: FALSE
A82: 45 - 49 | B82: 6322 | C82: 3148 | D82: 3174 | E82: FALSE | F82: TRUE | G82: TRUE | H82: FALSE
A83: 50 - 54 | B83: 7339 | C83: 3523 | D83: 3816 | E83: FALSE | F83: TRUE | G83: TRUE | H83: FALSE
A84: 55 - 59 | B84: 10596 | C84: 5005 | D84: 5591 | E84: FALSE | F84: TRUE | G84: TRUE | H84: FALSE
A85: 60 - 64 | B85: 10467 | C85: 4689 | D85: 5778 | E85: FALSE | F85: TRUE | G85: TRUE | H85: FALSE
A86: 65 - 69 | B86: 7825 | C86: 3310 | D86: 4515 | E86: FALSE | F86: TRUE | G86: TRUE | H86: FALSE
A87: 70 i więcej | B87: 14087 | C87: 4733 | D87: 9354 | E87: TRUE | F87: FALSE | G87: TRUE | H87: FALSE
A88: 65+ | B88: =SUM(B86:B87) -> 21912 | C88: =SUM(C86:C87) -> 8043 | D88: =SUM(D86:D87) -> 13869 | E88: TRUE | F88: TRUE | G88: FALSE | H88: FALSE
A89: bolesławiecki | B89: 90195 | C89: 43801 | D89: 46394 | E89: TRUE | F89: TRUE | G89: TRUE | H89: TRUE
A90: 0 - 4 | B90: 4148 | C90: 2089 | D90: 2059 | E90: FALSE | F90: TRUE | G90: TRUE | H90: FALSE
A91: 5 - 9 | B91: 4876 | C91: 2507 | D91: 2369 | E91: FALSE | F91: TRUE | G91: TRUE | H91: FALSE
A92: 10 - 14 | B92: 4292 | C92: 2179 | D92: 2113 | E92: FALSE | F92: TRUE | G92: TRUE | H92: FALSE
A93: 15 - 19 | B93: 4686 | C93: 2480 | D93: 2206 | E93: FALSE | F93: TRUE | G93: TRUE | H93: FALSE
A94: 20 - 24 | B94: 5522 | C94: 2776 | D94: 2746 | E94: FALSE | F94: TRUE | G94: TRUE | H94: FALSE
A95: 25 - 29 | B95: 6716 | C95: 3415 | D95: 3301 | E95: FALSE | F95: TRUE | G95: TRUE | H95: FALSE
A96: 30 - 34 | B96: 7369 | C96: 3828 | D96: 3541 | E96: FALSE | F96: TRUE | G96: TRUE | H96: FALSE
A97: 35 - 39 | B97: 7319 | C97: 3711 | D97: 3608 | E97: FALSE | F97: TRUE | G97: TRUE | H97: FALSE
A98: 40 - 44 | B98: 6737 | C98: 3433 | D98: 3304 | E98: FALSE | F98: TRUE | G98: TRUE | H98: FALSE
A99: 45 - 49 | B99: 5317 | C99: 2701 | D99: 2616 | E99: FALSE | F99: TRUE | G99: TRUE | H99: FALSE
A100: 50 - 54 | B100: 5640 | C100: 2820 | D100: 2820 | E100: FALSE | F100: TRUE | G100: TRUE | H100: FALSE
A101: 55 - 59 | B101: 7048 | C101: 3446 | D101: 3602 | E101: FALSE | F101: TRUE | G101: TRUE | H101: FALSE
A102: 60 - 64 | B102: 6749 | C102: 3145 | D102: 3604 | E102: FALSE | F102: TRUE | G102: TRUE | H102: FALSE
A103: 65 - 69 | B103: 5285 | C103: 2330 | D103: 2955 | E103: FALSE | F103: TRUE | G103: TRUE | H103: FALSE
A104: 70 i więcej | B104: 8491 | C104: 2941 | D104: 5550 | E104: TRUE | F104: FALSE | G104: TRUE | H104: FALSE
A105: 65+ | B105: =SUM(B103:B104) -> 13776 | C105: =SUM(C103:C104) -> 5271 | D105: =SUM(D103:D104) -> 8505 | E105: TRUE | F105: TRUE | G105: FALSE | H105: FALSE
A106: dzierżoniowski | B106: 102977 | C106: 49060 | D106: 53917 | E106: TRUE | F106: TRUE | G106: TRUE | H106: TRUE
A107: 0 - 4 | B107: 4230 | C107: 2181 | D107: 2049 | E107: FALSE | F107: TRUE | G107: TRUE | H107: FALSE
A108: 5 - 9 | B108: 4813 | C108: 2415 | D108: 2398 | E108: FALSE | F108: TRUE | G108: TRUE | H108: FALSE
A109: 10 - 14 | B109: 4242 | C109: 2178 | D109: 2064 | E109: FALSE | F109: TRUE | G109: TRUE | H109: FALSE
A110: 15 - 19 | B110: 4645 | C110: 2378 | D110: 2267 | E110: FALSE | F110: TRUE | G110: TRUE | H110: FALSE
A111: 20 - 24 | B111: 5806 | C111: 2974 | D111: 2832 | E111: FALSE | F111: TRUE | G111: TRUE | H111: FALSE
A112: 25 - 29 | B112: 6953 | C112: 3494 | D112: 3459 | E112: FALSE | F112: TRUE | G112: TRUE | H112: FALSE
A113: 30 - 34 | B113: 8331 | C113: 4268 | D113: 4063 | E113: FALSE | F113: TRUE | G113: TRUE | H113: FALSE
A114: 35 - 39 | B114: 8280 | C114: 4230 | D114: 4050 | E114: FALSE | F114: TRUE | G114: TRUE | H114: FALSE
A115: 40 - 44 | B115: 7230 | C115: 3683 | D115: 3547 | E115: FALSE | F115: TRUE | G115: TRUE | H115: FALSE
A116: 45 - 49 | B116: 6052 | C116: 3070 | D116: 2982 | E116: FALSE | F116: TRUE | G116: TRUE | H116: FALSE
A117: 50 - 54 | B117: 6615 | C117: 3266 | D117: 3349 | E117: FALSE | F117: TRUE | G117: TRUE | H117: FALSE
A118: 55 - 59 | B118: 8616 | C118: 4146 | D118: 4470 | E118: FALSE | F118: TRUE | G118: TRUE | H118: FALSE
A119: 60 - 64 | B119: 8652 | C119: 4005 | D119: 4647 | E119: FALSE | F119: TRUE | G119: TRUE | H119: FALSE
A120: 65 - 69 | B120: 6656 | C120: 2979 | D120: 3677 | E120: FALSE | F120: TRUE | G120: TRUE | H120: FALSE
A121: 70 i więcej | B121: 11856 | C121: 3793 | D121: 8063 | E121: TRUE | F121: FALSE | G121: TRUE | H121: FALSE
A122: 65+ | B122: =SUM(B120:B121) -> 18512 | C122: =SUM(C120:C121) -> 6772 | D122: =SUM(D120:D121) -> 11740 | E122: TRUE | F122: TRUE | G122: FALSE | H122: FALSE
A123: głogowski | B123: 90060 | C123: 43769 | D123: 46291 | E123: TRUE | F123: TRUE | G123: TRUE | H123: TRUE
A124: 0 - 4 | B124: 4349 | C124: 2229 | D124: 2120 | E124: FALSE | F124: TRUE | G124: TRUE | H124: FALSE
A125: 5 - 9 | B125: 5179 | C125: 2565 | D125: 2614 | E125: FALSE | F125: TRUE | G125: TRUE | H125: FALSE
A126: 10 - 14 | B126: 4323 | C126: 2196 | D126: 2127 | E126: FALSE | F126: TRUE | G126: TRUE | H126: FALSE
A127: 15 - 19 | B127: 4530 | C127: 2289 | D127: 2241 | E127: FALSE | F127: TRUE | G127: TRUE | H127: FALSE
A128: 20 - 24 | B128: 5028 | C128: 2573 | D128: 2455 | E128: FALSE | F128: TRUE | G128: TRUE | H128: FALSE
A129: 25 - 29 | B129: 6255 | C129: 3183 | D129: 3072 | E129: FALSE | F129: TRUE | G129: TRUE | H129: FALSE
A130: 30 - 34 | B130: 7526 | C130: 3855 | D130: 3671 | E130: FALSE | F130: TRUE | G130: TRUE | H130: FALSE
A131: 35 - 39 | B131: 7979 | C131: 4060 | D131: 3919 | E131: FALSE | F131: TRUE | G131: TRUE | H131: FALSE
A132: 40 - 44 | B132: 6791 | C132: 3469 | D132: 3322 | E132: FALSE | F132: TRUE | G132: TRUE | H132: FALSE
A133: 45 - 49 | B133: 4995 | C133: 2507 | D133: 2488 | E133: =IFERROR(IF(SEARCH(" - ",A133)>0,FALSE,TRUE),TRUE) -> FALSE | F133: =IFERROR(IF(SEARCH("70",A133)>0,FALSE,TRUE),TRUE) -> TRUE | G133: =IFERROR(IF(SEARCH("65+",A133)>0,FALSE,TRUE),TRUE) -> TRUE | H133: =AND(E133:G133) -> FALSE
A134: 50 - 54 | B134: 5063 | C134: 2370 | D134: 2693 | E134: FALSE | F134: TRUE | G134: TRUE | H134: FALSE
A135: 55 - 59 | B135: 6781 | C135: 3180 | D135: 3601 | E135: FALSE | F135: TRUE | G135: TRUE | H135: FALSE
A136: 60 - 64 | B136: 7697 | C136: 3611 | D136: 4086 | E136: FALSE | F136: TRUE | G136: TRUE | H136: FALSE
A137: 65 - 69 | B137: 6430 | C137: 2993 | D137: 3437 | E137: FALSE | F137: TRUE | G137: TRUE | H137: FALSE
A138: 70 i więcej | B138: 7134 | C138: 2689 | D138: 4445 | E138: TRUE | F138: FALSE | G138: TRUE | H138: FALSE
A139: 65+ | B139: =SUM(B137:B138) -> 13564 | C139: =SUM(C137:C138) -> 5682 | D139: =SUM(D137:D138) -> 7882 | E139: TRUE | F139: TRUE | G139: FALSE | H139: FALSE
A140: górowski | B140: 35847 | C140: 17735 | D140: 18112 | E140: TRUE | F140: TRUE | G140: TRUE | H140: TRUE
A141: 0 - 4 | B141: 1702 | C141: 868 | D141: 834 | E141: FALSE | F141: TRUE | G141: TRUE | H141: FALSE
A142: 5 - 9 | B142: 1970 | C142: 1025 | D142: 945 | E142: FALSE | F142: TRUE | G142: TRUE | H142: FALSE
A143: 10 - 14 | B143: 1930 | C143: 993 | D143: 937 | E143: FALSE | F143: TRUE | G143: TRUE | H143: FALSE
A144: 15 - 19 | B144: 2062 | C144: 1043 | D144: 1019 | E144: FALSE | F144: TRUE | G144: TRUE | H144: FALSE
A145: 20 - 24 | B145: 2641 | C145: 1311 | D145: 1330 | E145: FALSE | F145: TRUE | G145: TRUE | H145: FALSE
A146: 25 - 29 | B146: 2662 | C146: 1402 | D146: 1260 | E146: FALSE | F146: TRUE | G146: TRUE | H146: FALSE
A147: 30 - 34 | B147: 2823 | C147: 1484 | D147: 1339 | E147: FALSE | F147: TRUE | G147: TRUE | H147: FALSE
A148: 35 - 39 | B148: 2643 | C148: 1396 | D148: 1247 | E148: FALSE | F148: TRUE | G148: TRUE | H148: FALSE
A149: 40 - 44 | B149: 2455 | C149: 1236 | D149: 1219 | E149: FALSE | F149: TRUE | G149: TRUE | H149: FALSE
A150: 45 - 49 | B150: 2134 | C150: 1098 | D150: 1036 | E150: FALSE | F150: TRUE | G150: TRUE | H150: FALSE
A151: 50 - 54 | B151: 2211 | C151: 1101 | D151: 1110 | E151: FALSE | F151: TRUE | G151: TRUE | H151: FALSE
A152: 55 - 59 | B152: 2707 | C152: 1359 | D152: 1348 | E152: FALSE | F152: TRUE | G152: TRUE | H152: FALSE
A153: 60 - 64 | B153: 2595 | C153: 1296 | D153: 1299 | E153: FALSE | F153: TRUE | G153: TRUE | H153: FALSE
A154: 65 - 69 | B154: 2059 | C154: 999 | D154: 1060 | E154: FALSE | F154: TRUE | G154: TRUE | H154: FALSE
A155: 70 i więcej | B155: 3253 | C155: 1124 | D155: 2129 | E155: TRUE | F155: FALSE | G155: TRUE | H155: FALSE
A156: 65+ | B156: =SUM(B154:B155) -> 5312 | C156: =SUM(C154:C155) -> 2123 | D156: =SUM(D154:D155) -> 3189 | E156: TRUE | F156: TRUE | G156: FALSE | H156: FALSE
A157: jaworski | B157: 51324 | C157: 25158 | D157: 26166 | E157: TRUE | F157: TRUE | G157: TRUE | H157: TRUE
A158: 0 - 4 | B158: 2190 | C158: 1125 | D158: 1065 | E158: FALSE | F158: TRUE | G158: TRUE | H158: FALSE
A159: 5 - 9 | B159: 2612 | C159: 1339 | D159: 1273 | E159: FALSE | F159: TRUE | G159: TRUE | H159: FALSE
A160: 10 - 14 | B160: 2298 | C160: 1202 | D160: 1096 | E160: FALSE | F160: TRUE | G160: TRUE | H160: FALSE
A161: 15 - 19 | B161: 2600 | C161: 1316 | D161: 1284 | E161: FALSE | F161: TRUE | G161: TRUE | H161: FALSE
A162: 20 - 24 | B162: 3155 | C162: 1613 | D162: 1542 | E162: FALSE | F162: TRUE | G162: TRUE | H162: FALSE
A163: 25 - 29 | B163: 3746 | C163: 1974 | D163: 1772 | E163: FALSE | F163: TRUE | G163: TRUE | H163: FALSE
A164: 30 - 34 | B164: 4286 | C164: 2129 | D164: 2157 | E164: FALSE | F164: TRUE | G164: TRUE | H164: FALSE
A165: 35 - 39 | B165: 4080 | C165: 2116 | D165: 1964 | E165: FALSE | F165: TRUE | G165: TRUE | H165: FALSE
A166: 40 - 44 | B166: 3511 | C166: 1830 | D166: 1681 | E166: FALSE | F166: TRUE | G166: TRUE | H166: FALSE
A167: 45 - 49 | B167: 2989 | C167: 1523 | D167: 1466 | E167: FALSE | F167: TRUE | G167: TRUE | H167: FALSE
A168: 50 - 54 | B168: 3320 | C168: 1652 | D168: 1668 | E168: FALSE | F168: TRUE | G168: TRUE | H168: FALSE
A169: 55 - 59 | B169: 4237 | C169: 2060 | D169: 2177 | E169: FALSE | F169: TRUE | G169: TRUE | H169: FALSE
A170: 60 - 64 | B170: 4210 | C170: 2093 | D170: 2117 | E170: FALSE | F170: TRUE | G170: TRUE | H170: FALSE
A171: 65 - 69 | B171: 3235 | C171: 1537 | D171: 1698 | E171: FALSE | F171: TRUE | G171: TRUE | H171: FALSE
A172: 70 i więcej | B172: 4855 | C172: 1649 | D172: 3206 | E172: TRUE | F172: FALSE | G172: TRUE | H172: FALSE
A173: 65+ | B173: =SUM(B171:B172) -> 8090 | C173: =SUM(C171:C172) -> 3186 | D173: =SUM(D171:D172) -> 4904 | E173: TRUE | F173: TRUE | G173: FALSE | H173: FALSE
A174: jeleniogórski | B174: 64430 | C174: 31104 | D174: 33326 | E174: TRUE | F174: TRUE | G174: TRUE | H174: TRUE
A175: 0 - 4 | B175: 2496 | C175: 1303 | D175: 1193 | E175: FALSE | F175: TRUE | G175: TRUE | H175: FALSE
A176: 5 - 9 | B176: 3024 | C176: 1540 | D176: 1484 | E176: FALSE | F176: TRUE | G176: TRUE | H176: FALSE
A177: 10 - 14 | B177: 2886 | C177: 1502 | D177: 1384 | E177: FALSE | F177: TRUE | G177: TRUE | H177: FALSE
A178: 15 - 19 | B178: 3146 | C178: 1613 | D178: 1533 | E178: FALSE | F178: TRUE | G178: TRUE | H178: FALSE
A179: 20 - 24 | B179: 3748 | C179: 1909 | D179: 1839 | E179: FALSE | F179: TRUE | G179: TRUE | H179: FALSE
A180: 25 - 29 | B180: 4221 | C180: 2137 | D180: 2084 | E180: FALSE | F180: TRUE | G180: TRUE | H180: FALSE
A181: 30 - 34 | B181: 5117 | C181: 2550 | D181: 2567 | E181: FALSE | F181: TRUE | G181: TRUE | H181: FALSE
A182: 35 - 39 | B182: 5287 | C182: 2720 | D182: 2567 | E182: FALSE | F182: TRUE | G182: TRUE | H182: FALSE
A183: 40 - 44 | B183: 4886 | C183: 2503 | D183: 2383 | E183: FALSE | F183: TRUE | G183: TRUE | H183: FALSE
A184: 45 - 49 | B184: 3908 | C184: 1933 | D184: 1975 | E184: FALSE | F184: TRUE | G184: TRUE | H184: FALSE
A185: 50 - 54 | B185: 4124 | C185: 2029 | D185: 2095 | E185: FALSE | F185: TRUE | G185: TRUE | H185: FALSE
A186: 55 - 59 | B186: 5499 | C186: 2645 | D186: 2854 | E186: FALSE | F186: TRUE | G186: TRUE | H186: FALSE
A187: 60 - 64 | B187: 5891 | C187: 2785 | D187: 3106 | E187: FALSE | F187: TRUE | G187: TRUE | H187: FALSE
A188: 65 - 69 | B188: 4263 | C188: 1967 | D188: 2296 | E188: FALSE | F188: TRUE | G188: TRUE | H188: FALSE
A189: 70 i więcej | B189: 5934 | C189: 1968 | D189: 3966 | E189: TRUE | F189: FALSE | G189: TRUE | H189: FALSE
A190: 65+ | B190: =SUM(B188:B189) -> 10197 | C190: =SUM(C188:C189) -> 3935 | D190: =SUM(D188:D189) -> 6262 | E190: TRUE | F190: TRUE | G190: FALSE | H190: FALSE
A191: kamiennogórski | B191: 44280 | C191: 21635 | D191: 22645 | E191: TRUE | F191: TRUE | G191: TRUE | H191: TRUE
A192: 0 - 4 | B192: 1725 | C192: 891 | D192: 834 | E192: FALSE | F192: TRUE | G192: TRUE | H192: FALSE
A193: 5 - 9 | B193: 2204 | C193: 1167 | D193: 1037 | E193: FALSE | F193: TRUE | G193: TRUE | H193: FALSE
A194: 10 - 14 | B194: 2141 | C194: 1121 | D194: 1020 | E194: FALSE | F194: TRUE | G194: TRUE | H194: FALSE
A195: 15 - 19 | B195: 2291 | C195: 1185 | D195: 1106 | E195: FALSE | F195: TRUE | G195: TRUE | H195: FALSE
A196: 20 - 24 | B196: 2790 | C196: 1462 | D196: 1328 | E196: FALSE | F196: TRUE | G196: TRUE | H196: FALSE
A197: 25 - 29 | B197: 3007 | C197: 1582 | D197: 1425 | E197: =IFERROR(IF(SEARCH(" - ",A197)>0,FALSE,TRUE),TRUE) -> FALSE | F197: =IFERROR(IF(SEARCH("70",A197)>0,FALSE,TRUE),TRUE) -> TRUE | G197: =IFERROR(IF(SEARCH("65+",A197)>0,FALSE,TRUE),TRUE) -> TRUE | H197: =AND(E197:G197) -> FALSE
A198: 30 - 34 | B198: 3557 | C198: 1869 | D198: 1688 | E198: FALSE | F198: TRUE | G198: TRUE | H198: FALSE
A199: 35 - 39 | B199: 3510 | C199: 1839 | D199: 1671 | E199: FALSE | F199: TRUE | G199: TRUE | H199: FALSE
A200: 40 - 44 | B200: 3064 | C200: 1564 | D200: 1500 | E200: FALSE | F200: TRUE | G200: TRUE | H200: FALSE
A201: 45 - 49 | B201: 2582 | C201: 1347 | D201: 1235 | E201: FALSE | F201: TRUE | G201: TRUE | H201: FALSE
A202: 50 - 54 | B202: 2953 | C202: 1501 | D202: 1452 | E202: FALSE | F202: TRUE | G202: TRUE | H202: FALSE
... 328 more rows

Sheet Kujawsko-pomorskie (hidden)
A1: Województwa Powiaty Grupy wieku | B1: Ogółem | C1: Mężczyźni | D1: Kobiety
A4: Kujawsko-pomorskie | B4: 2084524 | C4: 1010102 | D4: 1074422 | E4: =IFERROR(IF(SEARCH(" - ",A4)>0,FALSE,TRUE),TRUE) -> TRUE | F4: =IFERROR(IF(SEARCH("70",A4)>0,FALSE,TRUE),TRUE) -> TRUE | G4: =IFERROR(IF(SEARCH("65+",A4)>0,FALSE,TRUE),TRUE) -> TRUE | H4: =AND(E4:G4) -> TRUE
A5: 0 - 4 | B5: 99362 | C5: 51276 | D5: 48086 | E5: =IFERROR(IF(SEARCH(" - ",A5)>0,FALSE,TRUE),TRUE) -> FALSE | F5: =IFERROR(IF(SEARCH("70",A5)>0,FALSE,TRUE),TRUE) -> TRUE | G5: =IFERROR(IF(SEARCH("65+",A5)>0,FALSE,TRUE),TRUE) -> TRUE | H5: =AND(E5:G5) -> FALSE
A6: 5 - 9 | B6: 113956 | C6: 58353 | D6: 55603 | E6: FALSE | F6: TRUE | G6: TRUE | H6: FALSE
A7: 10 - 14 | B7: 100283 | C7: 51457 | D7: 48826 | E7: FALSE | F7: TRUE | G7: TRUE | H7: FALSE
A8: 15 - 19 | B8: 110268 | C8: 56611 | D8: 53657 | E8: FALSE | F8: TRUE | G8: TRUE | H8: FALSE
A9: 20 - 24 | B9: 133515 | C9: 67711 | D9: 65804 | E9: FALSE | F9: TRUE | G9: TRUE | H9: FALSE
A10: 25 - 29 | B10: 151784 | C10: 77181 | D10: 74603 | E10: FALSE | F10: TRUE | G10: TRUE | H10: FALSE
A11: 30 - 34 | B11: 172960 | C11: 88242 | D11: 84718 | E11: FALSE | F11: TRUE | G11: TRUE | H11: FALSE
A12: 35 - 39 | B12: 164228 | C12: 83407 | D12: 80821 | E12: FALSE | F12: TRUE | G12: TRUE | H12: FALSE
A13: 40 - 44 | B13: 150711 | C13: 76016 | D13: 74695 | E13: FALSE | F13: TRUE | G13: TRUE | H13: FALSE
A14: 45 - 49 | B14: 128755 | C14: 64072 | D14: 64683 | E14: FALSE | F14: TRUE | G14: TRUE | H14: FALSE
A15: 50 - 54 | B15: 130323 | C15: 64229 | D15: 66094 | E15: FALSE | F15: TRUE | G15: TRUE | H15: FALSE
A16: 55 - 59 | B16: 154119 | C16: 74357 | D16: 79762 | E16: FALSE | F16: TRUE | G16: TRUE | H16: FALSE
A17: 60 - 64 | B17: 148542 | C17: 69574 | D17: 78968 | E17: FALSE | F17: TRUE | G17: TRUE | H17: FALSE
A18: 65 - 69 | B18: 123556 | C18: 54761 | D18: 68795 | E18: FALSE | F18: TRUE | G18: TRUE | H18: FALSE
A19: 70 i więcej | B19: 202162 | C19: 72855 | D19: 129307 | E19: TRUE | F19: FALSE | G19: TRUE | H19: FALSE
A20: 65+ | B20: =SUM(B18:B19) -> 325718 | C20: =SUM(C18:C19) -> 127616 | D20: =SUM(D18:D19) -> 198102 | E20: TRUE | F20: TRUE | G20: FALSE | H20: FALSE
A21: Bydgoszcz | B21: 354990 | C21: 166985 | D21: 188005 | E21: TRUE | F21: TRUE | G21: TRUE | H21: TRUE
A22: 0 - 4 | B22: 15713 | C22: 8106 | D22: 7607 | E22: FALSE | F22: TRUE | G22: TRUE | H22: FALSE
A23: 5 - 9 | B23: 17067 | C23: 8780 | D23: 8287 | E23: FALSE | F23: TRUE | G23: TRUE | H23: FALSE
A24: 10 - 14 | B24: 13943 | C24: 7175 | D24: 6768 | E24: FALSE | F24: TRUE | G24: TRUE | H24: FALSE
A25: 15 - 19 | B25: 15430 | C25: 7888 | D25: 7542 | E25: FALSE | F25: TRUE | G25: TRUE | H25: FALSE
A26: 20 - 24 | B26: 19017 | C26: 9481 | D26: 9536 | E26: FALSE | F26: TRUE | G26: TRUE | H26: FALSE
A27: 25 - 29 | B27: 24790 | C27: 12190 | D27: 12600 | E27: FALSE | F27: TRUE | G27: TRUE | H27: FALSE
A28: 30 - 34 | B28: 31061 | C28: 15475 | D28: 15586 | E28: FALSE | F28: TRUE | G28: TRUE | H28: FALSE
A29: 35 - 39 | B29: 28940 | C29: 14486 | D29: 14454 | E29: FALSE | F29: TRUE | G29: TRUE | H29: FALSE
A30: 40 - 44 | B30: 25198 | C30: 12434 | D30: 12764 | E30: FALSE | F30: TRUE | G30: TRUE | H30: FALSE
A31: 45 - 49 | B31: 20827 | C31: 10058 | D31: 10769 | E31: FALSE | F31: TRUE | G31: TRUE | H31: FALSE
A32: 50 - 54 | B32: 20739 | C32: 9963 | D32: 10776 | E32: FALSE | F32: TRUE | G32: TRUE | H32: FALSE
A33: 55 - 59 | B33: 26125 | C33: 12124 | D33: 14001 | E33: FALSE | F33: TRUE | G33: TRUE | H33: FALSE
A34: 60 - 64 | B34: 28127 | C34: 12527 | D34: 15600 | E34: FALSE | F34: TRUE | G34: TRUE | H34: FALSE
A35: 65 - 69 | B35: 24681 | C35: 10427 | D35: 14254 | E35: FALSE | F35: TRUE | G35: TRUE | H35: FALSE
A36: 70 i więcej | B36: 43332 | C36: 15871 | D36: 27461 | E36: TRUE | F36: FALSE | G36: TRUE | H36: FALSE
A37: 65+ | B37: =SUM(B35:B36) -> 68013 | C37: =SUM(C35:C36) -> 26298 | D37: =SUM(D35:D36) -> 41715 | E37: TRUE | F37: TRUE | G37: FALSE | H37: FALSE
A38: Grudziądz | B38: 96111 | C38: 45728 | D38: 50383 | E38: TRUE | F38: TRUE | G38: TRUE | H38: TRUE
A39: 0 - 4 | B39: 4388 | C39: 2239 | D39: 2149 | E39: FALSE | F39: TRUE | G39: TRUE | H39: FALSE
A40: 5 - 9 | B40: 5162 | C40: 2684 | D40: 2478 | E40: FALSE | F40: TRUE | G40: TRUE | H40: FALSE
A41: 10 - 14 | B41: 4287 | C41: 2213 | D41: 2074 | E41: FALSE | F41: TRUE | G41: TRUE | H41: FALSE
A42: 15 - 19 | B42: 4775 | C42: 2408 | D42: 2367 | E42: FALSE | F42: TRUE | G42: TRUE | H42: FALSE
A43: 20 - 24 | B43: 5168 | C43: 2580 | D43: 2588 | E43: FALSE | F43: TRUE | G43: TRUE | H43: FALSE
A44: 25 - 29 | B44: 6710 | C44: 3422 | D44: 3288 | E44: FALSE | F44: TRUE | G44: TRUE | H44: FALSE
A45: 30 - 34 | B45: 7864 | C45: 4018 | D45: 3846 | E45: FALSE | F45: TRUE | G45: TRUE | H45: FALSE
A46: 35 - 39 | B46: 7414 | C46: 3791 | D46: 3623 | E46: FALSE | F46: TRUE | G46: TRUE | H46: FALSE
A47: 40 - 44 | B47: 6511 | C47: 3323 | D47: 3188 | E47: FALSE | F47: TRUE | G47: TRUE | H47: FALSE
A48: 45 - 49 | B48: 5606 | C48: 2723 | D48: 2883 | E48: FALSE | F48: TRUE | G48: TRUE | H48: FALSE
A49: 50 - 54 | B49: 6315 | C49: 2990 | D49: 3325 | E49: FALSE | F49: TRUE | G49: TRUE | H49: FALSE
A50: 55 - 59 | B50: 7746 | C50: 3582 | D50: 4164 | E50: FALSE | F50: TRUE | G50: TRUE | H50: FALSE
A51: 60 - 64 | B51: 7621 | C51: 3488 | D51: 4133 | E51: FALSE | F51: TRUE | G51: TRUE | H51: FALSE
A52: 65 - 69 | B52: 6080 | C52: 2624 | D52: 3456 | E52: FALSE | F52: TRUE | G52: TRUE | H52: FALSE
A53: 70 i więcej | B53: 10464 | C53: 3643 | D53: 6821 | E53: TRUE | F53: FALSE | G53: TRUE | H53: FALSE
A54: 65+ | B54: =SUM(B52:B53) -> 16544 | C54: =SUM(C52:C53) -> 6267 | D54: =SUM(D52:D53) -> 10277 | E54: TRUE | F54: TRUE | G54: FALSE | H54: FALSE
A55: Toruń | B55: 202591 | C55: 94223 | D55: 108368 | E55: TRUE | F55: TRUE | G55: TRUE | H55: TRUE
A56: 0 - 4 | B56: 9553 | C56: 4873 | D56: 4680 | E56: FALSE | F56: TRUE | G56: TRUE | H56: FALSE
A57: 5 - 9 | B57: 9978 | C57: 5048 | D57: 4930 | E57: FALSE | F57: TRUE | G57: TRUE | H57: FALSE
A58: 10 - 14 | B58: 8335 | C58: 4238 | D58: 4097 | E58: FALSE | F58: TRUE | G58: TRUE | H58: FALSE
A59: 15 - 19 | B59: 9521 | C59: 4805 | D59: 4716 | E59: FALSE | F59: TRUE | G59: TRUE | H59: FALSE
A60: 20 - 24 | B60: 11461 | C60: 5629 | D60: 5832 | E60: FALSE | F60: TRUE | G60: TRUE | H60: FALSE
A61: 25 - 29 | B61: 14720 | C61: 7186 | D61: 7534 | E61: FALSE | F61: TRUE | G61: TRUE | H61: FALSE
A62: 30 - 34 | B62: 18897 | C62: 9320 | D62: 9577 | E62: FALSE | F62: TRUE | G62: TRUE | H62: FALSE
A63: 35 - 39 | B63: 17129 | C63: 8485 | D63: 8644 | E63: FALSE | F63: TRUE | G63: TRUE | H63: FALSE
A64: 40 - 44 | B64: 14531 | C64: 7090 | D64: 7441 | E64: FALSE | F64: TRUE | G64: TRUE | H64: FALSE
A65: 45 - 49 | B65: 11551 | C65: 5486 | D65: 6065 | E65: FALSE | F65: TRUE | G65: TRUE | H65: FALSE
A66: 50 - 54 | B66: 11649 | C66: 5392 | D66: 6257 | E66: FALSE | F66: TRUE | G66: TRUE | H66: FALSE
A67: 55 - 59 | B67: 14878 | C67: 6627 | D67: 8251 | E67: FALSE | F67: TRUE | G67: TRUE | H67: FALSE
A68: 60 - 64 | B68: 15475 | C68: 6692 | D68: 8783 | E68: FALSE | F68: TRUE | G68: TRUE | H68: FALSE
A69: 65 - 69 | B69: 13538 | C69: 5733 | D69: 7805 | E69: =IFERROR(IF(SEARCH(" - ",A69)>0,FALSE,TRUE),TRUE) -> FALSE | F69: =IFERROR(IF(SEARCH("70",A69)>0,FALSE,TRUE),TRUE) -> TRUE | G69: =IFERROR(IF(SEARCH("65+",A69)>0,FALSE,TRUE),TRUE) -> TRUE | H69: =AND(E69:G69) -> FALSE
A70: 70 i więcej | B70: 21375 | C70: 7619 | D70: 13756 | E70: TRUE | F70: FALSE | G70: TRUE | H70: FALSE
A71: 65+ | B71: =SUM(B69:B70) -> 34913 | C71: =SUM(C69:C70) -> 13352 | D71: =SUM(D69:D70) -> 21561 | E71: TRUE | F71: TRUE | G71: FALSE | H71: FALSE
A72: Włocławek | B72: 112635 | C72: 53071 | D72: 59564 | E72: TRUE | F72: TRUE | G72: TRUE | H72: TRUE
A73: 0 - 4 | B73: 4663 | C73: 2399 | D73: 2264 | E73: FALSE | F73: TRUE | G73: TRUE | H73: FALSE
A74: 5 - 9 | B74: 5345 | C74: 2730 | D74: 2615 | E74: FALSE | F74: TRUE | G74: TRUE | H74: FALSE
A75: 10 - 14 | B75: 4856 | C75: 2458 | D75: 2398 | E75: FALSE | F75: TRUE | G75: TRUE | H75: FALSE
A76: 15 - 19 | B76: 5475 | C76: 2862 | D76: 2613 | E76: FALSE | F76: TRUE | G76: TRUE | H76: FALSE
A77: 20 - 24 | B77: 6342 | C77: 3250 | D77: 3092 | E77: FALSE | F77: TRUE | G77: TRUE | H77: FALSE
A78: 25 - 29 | B78: 7228 | C78: 3671 | D78: 3557 | E78: FALSE | F78: TRUE | G78: TRUE | H78: FALSE
A79: 30 - 34 | B79: 8635 | C79: 4451 | D79: 4184 | E79: FALSE | F79: TRUE | G79: TRUE | H79: FALSE
A80: 35 - 39 | B80: 8952 | C80: 4491 | D80: 4461 | E80: FALSE | F80: TRUE | G80: TRUE | H80: FALSE
A81: 40 - 44 | B81: 8497 | C81: 4268 | D81: 4229 | E81: FALSE | F81: TRUE | G81: TRUE | H81: FALSE
A82: 45 - 49 | B82: 7210 | C82: 3511 | D82: 3699 | E82: FALSE | F82: TRUE | G82: TRUE | H82: FALSE
A83: 50 - 54 | B83: 6958 | C83: 3220 | D83: 3738 | E83: FALSE | F83: TRUE | G83: TRUE | H83: FALSE
A84: 55 - 59 | B84: 8865 | C84: 4019 | D84: 4846 | E84: FALSE | F84: TRUE | G84: TRUE | H84: FALSE
A85: 60 - 64 | B85: 9357 | C85: 4051 | D85: 5306 | E85: FALSE | F85: TRUE | G85: TRUE | H85: FALSE
A86: 65 - 69 | B86: 8189 | C86: 3446 | D86: 4743 | E86: FALSE | F86: TRUE | G86: TRUE | H86: FALSE
A87: 70 i więcej | B87: 12063 | C87: 4244 | D87: 7819 | E87: TRUE | F87: FALSE | G87: TRUE | H87: FALSE
A88: 65+ | B88: =SUM(B86:B87) -> 20252 | C88: =SUM(C86:C87) -> 7690 | D88: =SUM(D86:D87) -> 12562 | E88: TRUE | F88: TRUE | G88: FALSE | H88: FALSE
A89: aleksandrowski | B89: 55477 | C89: 26898 | D89: 28579 | E89: TRUE | F89: TRUE | G89: TRUE | H89: TRUE
A90: 0 - 4 | B90: 2455 | C90: 1261 | D90: 1194 | E90: FALSE | F90: TRUE | G90: TRUE | H90: FALSE
A91: 5 - 9 | B91: 2934 | C91: 1468 | D91: 1466 | E91: FALSE | F91: TRUE | G91: TRUE | H91: FALSE
A92: 10 - 14 | B92: 2682 | C92: 1396 | D92: 1286 | E92: FALSE | F92: TRUE | G92: TRUE | H92: FALSE
A93: 15 - 19 | B93: 2928 | C93: 1556 | D93: 1372 | E93: FALSE | F93: TRUE | G93: TRUE | H93: FALSE
A94: 20 - 24 | B94: 3513 | C94: 1777 | D94: 1736 | E94: FALSE | F94: TRUE | G94: TRUE | H94: FALSE
A95: 25 - 29 | B95: 4058 | C95: 2072 | D95: 1986 | E95: FALSE | F95: TRUE | G95: TRUE | H95: FALSE
A96: 30 - 34 | B96: 4492 | C96: 2345 | D96: 2147 | E96: FALSE | F96: TRUE | G96: TRUE | H96: FALSE
A97: 35 - 39 | B97: 4174 | C97: 2110 | D97: 2064 | E97: FALSE | F97: TRUE | G97: TRUE | H97: FALSE
A98: 40 - 44 | B98: 3992 | C98: 2074 | D98: 1918 | E98: FALSE | F98: TRUE | G98: TRUE | H98: FALSE
A99: 45 - 49 | B99: 3387 | C99: 1695 | D99: 1692 | E99: FALSE | F99: TRUE | G99: TRUE | H99: FALSE
A100: 50 - 54 | B100: 3483 | C100: 1682 | D100: 1801 | E100: FALSE | F100: TRUE | G100: TRUE | H100: FALSE
A101: 55 - 59 | B101: 4260 | C101: 2068 | D101: 2192 | E101: FALSE | F101: TRUE | G101: TRUE | H101: FALSE
A102: 60 - 64 | B102: 4008 | C102: 1913 | D102: 2095 | E102: FALSE | F102: TRUE | G102: TRUE | H102: FALSE
A103: 65 - 69 | B103: 3353 | C103: 1450 | D103: 1903 | E103: FALSE | F103: TRUE | G103: TRUE | H103: FALSE
A104: 70 i więcej | B104: 5758 | C104: 2031 | D104: 3727 | E104: TRUE | F104: FALSE | G104: TRUE | H104: FALSE
A105: 65+ | B105: =SUM(B103:B104) -> 9111 | C105: =SUM(C103:C104) -> 3481 | D105: =SUM(D103:D104) -> 5630 | E105: TRUE | F105: TRUE | G105: FALSE | H105: FALSE
A106: brodnicki | B106: 78411 | C106: 38886 | D106: 39525 | E106: TRUE | F106: TRUE | G106: TRUE | H106: TRUE
A107: 0 - 4 | B107: 4301 | C107: 2215 | D107: 2086 | E107: FALSE | F107: TRUE | G107: TRUE | H107: FALSE
A108: 5 - 9 | B108: 4858 | C108: 2536 | D108: 2322 | E108: FALSE | F108: TRUE | G108: TRUE | H108: FALSE
A109: 10 - 14 | B109: 4149 | C109: 2166 | D109: 1983 | E109: FALSE | F109: TRUE | G109: TRUE | H109: FALSE
A110: 15 - 19 | B110: 4587 | C110: 2408 | D110: 2179 | E110: FALSE | F110: TRUE | G110: TRUE | H110: FALSE
A111: 20 - 24 | B111: 5552 | C111: 2815 | D111: 2737 | E111: FALSE | F111: TRUE | G111: TRUE | H111: FALSE
A112: 25 - 29 | B112: 6218 | C112: 3210 | D112: 3008 | E112: FALSE | F112: TRUE | G112: TRUE | H112: FALSE
A113: 30 - 34 | B113: 6626 | C113: 3458 | D113: 3168 | E113: FALSE | F113: TRUE | G113: TRUE | H113: FALSE
A114: 35 - 39 | B114: 6054 | C114: 3160 | D114: 2894 | E114: FALSE | F114: TRUE | G114: TRUE | H114: FALSE
A115: 40 - 44 | B115: 5514 | C115: 2788 | D115: 2726 | E115: FALSE | F115: TRUE | G115: TRUE | H115: FALSE
A116: 45 - 49 | B116: 4695 | C116: 2385 | D116: 2310 | E116: FALSE | F116: TRUE | G116: TRUE | H116: FALSE
A117: 50 - 54 | B117: 4963 | C117: 2509 | D117: 2454 | E117: FALSE | F117: TRUE | G117: TRUE | H117: FALSE
A118: 55 - 59 | B118: 5448 | C118: 2746 | D118: 2702 | E118: FALSE | F118: TRUE | G118: TRUE | H118: FALSE
A119: 60 - 64 | B119: 4924 | C119: 2391 | D119: 2533 | E119: FALSE | F119: TRUE | G119: TRUE | H119: FALSE
A120: 65 - 69 | B120: 3928 | C120: 1774 | D120: 2154 | E120: FALSE | F120: TRUE | G120: TRUE | H120: FALSE
A121: 70 i więcej | B121: 6594 | C121: 2325 | D121: 4269 | E121: TRUE | F121: FALSE | G121: TRUE | H121: FALSE
A122: 65+ | B122: =SUM(B120:B121) -> 10522 | C122: =SUM(C120:C121) -> 4099 | D122: =SUM(D120:D121) -> 6423 | E122: TRUE | F122: TRUE | G122: FALSE | H122: FALSE
A123: bydgoski | B123: 113680 | C123: 56262 | D123: 57418 | E123: TRUE | F123: TRUE | G123: TRUE | H123: TRUE
A124: 0 - 4 | B124: 5604 | C124: 2947 | D124: 2657 | E124: FALSE | F124: TRUE | G124: TRUE | H124: FALSE
A125: 5 - 9 | B125: 7271 | C125: 3715 | D125: 3556 | E125: FALSE | F125: TRUE | G125: TRUE | H125: FALSE
A126: 10 - 14 | B126: 6571 | C126: 3433 | D126: 3138 | E126: FALSE | F126: TRUE | G126: TRUE | H126: FALSE
A127: 15 - 19 | B127: 6652 | C127: 3384 | D127: 3268 | E127: FALSE | F127: TRUE | G127: TRUE | H127: FALSE
A128: 20 - 24 | B128: 7674 | C128: 3923 | D128: 3751 | E128: FALSE | F128: TRUE | G128: TRUE | H128: FALSE
A129: 25 - 29 | B129: 7916 | C129: 4021 | D129: 3895 | E129: FALSE | F129: TRUE | G129: TRUE | H129: FALSE
A130: 30 - 34 | B130: 9191 | C130: 4600 | D130: 4591 | E130: FALSE | F130: TRUE | G130: TRUE | H130: FALSE
A131: 35 - 39 | B131: 9583 | C131: 4711 | D131: 4872 | E131: FALSE | F131: TRUE | G131: TRUE | H131: FALSE
A132: 40 - 44 | B132: 9399 | C132: 4778 | D132: 4621 | E132: FALSE | F132: TRUE | G132: TRUE | H132: FALSE
A133: 45 - 49 | B133: 7848 | C133: 4010 | D133: 3838 | E133: =IFERROR(IF(SEARCH(" - ",A133)>0,FALSE,TRUE),TRUE) -> FALSE | F133: =IFERROR(IF(SEARCH("70",A133)>0,FALSE,TRUE),TRUE) -> TRUE | G133: =IFERROR(IF(SEARCH("65+",A133)>0,FALSE,TRUE),TRUE) -> TRUE | H133: =AND(E133:G133) -> FALSE
A134: 50 - 54 | B134: 7189 | C134: 3614 | D134: 3575 | E134: FALSE | F134: TRUE | G134: TRUE | H134: FALSE
A135: 55 - 59 | B135: 7849 | C135: 3952 | D135: 3897 | E135: FALSE | F135: TRUE | G135: TRUE | H135: FALSE
A136: 60 - 64 | B136: 6985 | C136: 3391 | D136: 3594 | E136: FALSE | F136: TRUE | G136: TRUE | H136: FALSE
A137: 65 - 69 | B137: 5699 | C137: 2664 | D137: 3035 | E137: FALSE | F137: TRUE | G137: TRUE | H137: FALSE
A138: 70 i więcej | B138: 8249 | C138: 3119 | D138: 5130 | E138: TRUE | F138: FALSE | G138: TRUE | H138: FALSE
A139: 65+ | B139: =SUM(B137:B138) -> 13948 | C139: =SUM(C137:C138) -> 5783 | D139: =SUM(D137:D138) -> 8165 | E139: TRUE | F139: TRUE | G139: FALSE | H139: FALSE
A140: chełmiński | B140: 52345 | C140: 25713 | D140: 26632 | E140: TRUE | F140: TRUE | G140: TRUE | H140: TRUE
A141: 0 - 4 | B141: 2591 | C141: 1343 | D141: 1248 | E141: FALSE | F141: TRUE | G141: TRUE | H141: FALSE
A142: 5 - 9 | B142: 3057 | C142: 1588 | D142: 1469 | E142: FALSE | F142: TRUE | G142: TRUE | H142: FALSE
A143: 10 - 14 | B143: 2753 | C143: 1400 | D143: 1353 | E143: FALSE | F143: TRUE | G143: TRUE | H143: FALSE
A144: 15 - 19 | B144: 2929 | C144: 1493 | D144: 1436 | E144: FALSE | F144: TRUE | G144: TRUE | H144: FALSE
A145: 20 - 24 | B145: 3582 | C145: 1832 | D145: 1750 | E145: FALSE | F145: TRUE | G145: TRUE | H145: FALSE
A146: 25 - 29 | B146: 3915 | C146: 2031 | D146: 1884 | E146: FALSE | F146: TRUE | G146: TRUE | H146: FALSE
A147: 30 - 34 | B147: 4493 | C147: 2295 | D147: 2198 | E147: FALSE | F147: TRUE | G147: TRUE | H147: FALSE
A148: 35 - 39 | B148: 4034 | C148: 2047 | D148: 1987 | E148: FALSE | F148: TRUE | G148: TRUE | H148: FALSE
A149: 40 - 44 | B149: 3739 | C149: 1903 | D149: 1836 | E149: FALSE | F149: TRUE | G149: TRUE | H149: FALSE
A150: 45 - 49 | B150: 3263 | C150: 1647 | D150: 1616 | E150: FALSE | F150: TRUE | G150: TRUE | H150: FALSE
A151: 50 - 54 | B151: 3358 | C151: 1668 | D151: 1690 | E151: FALSE | F151: TRUE | G151: TRUE | H151: FALSE
A152: 55 - 59 | B152: 3847 | C152: 1903 | D152: 1944 | E152: FALSE | F152: TRUE | G152: TRUE | H152: FALSE
A153: 60 - 64 | B153: 3520 | C153: 1686 | D153: 1834 | E153: FALSE | F153: TRUE | G153: TRUE | H153: FALSE
A154: 65 - 69 | B154: 2746 | C154: 1238 | D154: 1508 | E154: FALSE | F154: TRUE | G154: TRUE | H154: FALSE
A155: 70 i więcej | B155: 4518 | C155: 1639 | D155: 2879 | E155: TRUE | F155: FALSE | G155: TRUE | H155: FALSE
A156: 65+ | B156: =SUM(B154:B155) -> 7264 | C156: =SUM(C154:C155) -> 2877 | D156: =SUM(D154:D155) -> 4387 | E156: TRUE | F156: TRUE | G156: FALSE | H156: FALSE
A157: golubsko-dobrzyński | B157: 45290 | C157: 22408 | D157: 22882 | E157: TRUE | F157: TRUE | G157: TRUE | H157: TRUE
A158: 0 - 4 | B158: 2336 | C158: 1165 | D158: 1171 | E158: FALSE | F158: TRUE | G158: TRUE | H158: FALSE
A159: 5 - 9 | B159: 2582 | C159: 1350 | D159: 1232 | E159: FALSE | F159: TRUE | G159: TRUE | H159: FALSE
A160: 10 - 14 | B160: 2431 | C160: 1257 | D160: 1174 | E160: FALSE | F160: TRUE | G160: TRUE | H160: FALSE
A161: 15 - 19 | B161: 2658 | C161: 1366 | D161: 1292 | E161: FALSE | F161: TRUE | G161: TRUE | H161: FALSE
A162: 20 - 24 | B162: 3343 | C162: 1676 | D162: 1667 | E162: FALSE | F162: TRUE | G162: TRUE | H162: FALSE
A163: 25 - 29 | B163: 3564 | C163: 1785 | D163: 1779 | E163: FALSE | F163: TRUE | G163: TRUE | H163: FALSE
A164: 30 - 34 | B164: 3674 | C164: 1965 | D164: 1709 | E164: FALSE | F164: TRUE | G164: TRUE | H164: FALSE
A165: 35 - 39 | B165: 3376 | C165: 1762 | D165: 1614 | E165: FALSE | F165: TRUE | G165: TRUE | H165: FALSE
A166: 40 - 44 | B166: 3048 | C166: 1537 | D166: 1511 | E166: FALSE | F166: TRUE | G166: TRUE | H166: FALSE
A167: 45 - 49 | B167: 2886 | C167: 1463 | D167: 1423 | E167: FALSE | F167: TRUE | G167: TRUE | H167: FALSE
A168: 50 - 54 | B168: 2954 | C168: 1561 | D168: 1393 | E168: FALSE | F168: TRUE | G168: TRUE | H168: FALSE
A169: 55 - 59 | B169: 3157 | C169: 1589 | D169: 1568 | E169: FALSE | F169: TRUE | G169: TRUE | H169: FALSE
A170: 60 - 64 | B170: 2912 | C170: 1406 | D170: 1506 | E170: FALSE | F170: TRUE | G170: TRUE | H170: FALSE
A171: 65 - 69 | B171: 2268 | C171: 1055 | D171: 1213 | E171: FALSE | F171: TRUE | G171: TRUE | H171: FALSE
A172: 70 i więcej | B172: 4101 | C172: 1471 | D172: 2630 | E172: TRUE | F172: FALSE | G172: TRUE | H172: FALSE
A173: 65+ | B173: =SUM(B171:B172) -> 6369 | C173: =SUM(C171:C172) -> 2526 | D173: =SUM(D171:D172) -> 3843 | E173: TRUE | F173: TRUE | G173: FALSE | H173: FALSE
A174: grudziądzki | B174: 40316 | C174: 20166 | D174: 20150 | E174: TRUE | F174: TRUE | G174: TRUE | H174: TRUE
A175: 0 - 4 | B175: 2113 | C175: 1058 | D175: 1055 | E175: FALSE | F175: TRUE | G175: TRUE | H175: FALSE
A176: 5 - 9 | B176: 2552 | C176: 1289 | D176: 1263 | E176: FALSE | F176: TRUE | G176: TRUE | H176: FALSE
A177: 10 - 14 | B177: 2302 | C177: 1220 | D177: 1082 | E177: FALSE | F177: TRUE | G177: TRUE | H177: FALSE
A178: 15 - 19 | B178: 2403 | C178: 1279 | D178: 1124 | E178: FALSE | F178: TRUE | G178: TRUE | H178: FALSE
A179: 20 - 24 | B179: 3053 | C179: 1549 | D179: 1504 | E179: FALSE | F179: TRUE | G179: TRUE | H179: FALSE
A180: 25 - 29 | B180: 3026 | C180: 1577 | D180: 1449 | E180: FALSE | F180: TRUE | G180: TRUE | H180: FALSE
A181: 30 - 34 | B181: 3048 | C181: 1571 | D181: 1477 | E181: FALSE | F181: TRUE | G181: TRUE | H181: FALSE
A182: 35 - 39 | B182: 3028 | C182: 1550 | D182: 1478 | E182: FALSE | F182: TRUE | G182: TRUE | H182: FALSE
A183: 40 - 44 | B183: 3002 | C183: 1533 | D183: 1469 | E183: FALSE | F183: TRUE | G183: TRUE | H183: FALSE
A184: 45 - 49 | B184: 2632 | C184: 1355 | D184: 1277 | E184: FALSE | F184: TRUE | G184: TRUE | H184: FALSE
A185: 50 - 54 | B185: 2660 | C185: 1359 | D185: 1301 | E185: FALSE | F185: TRUE | G185: TRUE | H185: FALSE
A186: 55 - 59 | B186: 2828 | C186: 1468 | D186: 1360 | E186: FALSE | F186: TRUE | G186: TRUE | H186: FALSE
A187: 60 - 64 | B187: 2477 | C187: 1218 | D187: 1259 | E187: FALSE | F187: TRUE | G187: TRUE | H187: FALSE
A188: 65 - 69 | B188: 2024 | C188: 979 | D188: 1045 | E188: FALSE | F188: TRUE | G188: TRUE | H188: FALSE
A189: 70 i więcej | B189: 3168 | C189: 1161 | D189: 2007 | E189: TRUE | F189: FALSE | G189: TRUE | H189: FALSE
A190: 65+ | B190: =SUM(B188:B189) -> 5192 | C190: =SUM(C188:C189) -> 2140 | D190: =SUM(D188:D189) -> 3052 | E190: TRUE | F190: TRUE | G190: FALSE | H190: FALSE
A191: inowrocławski | B191: 162157 | C191: 78648 | D191: 83509 | E191: TRUE | F191: TRUE | G191: TRUE | H191: TRUE
A192: 0 - 4 | B192: 7075 | C192: 3665 | D192: 3410 | E192: FALSE | F192: TRUE | G192: TRUE | H192: FALSE
A193: 5 - 9 | B193: 8204 | C193: 4192 | D193: 4012 | E193: FALSE | F193: TRUE | G193: TRUE | H193: FALSE
A194: 10 - 14 | B194: 7344 | C194: 3756 | D194: 3588 | E194: FALSE | F194: TRUE | G194: TRUE | H194: FALSE
A195: 15 - 19 | B195: 8307 | C195: 4178 | D195: 4129 | E195: FALSE | F195: TRUE | G195: TRUE | H195: FALSE
A196: 20 - 24 | B196: 10417 | C196: 5369 | D196: 5048 | E196: FALSE | F196: TRUE | G196: TRUE | H196: FALSE
A197: 25 - 29 | B197: 11762 | C197: 6123 | D197: 5639 | E197: =IFERROR(IF(SEARCH(" - ",A197)>0,FALSE,TRUE),TRUE) -> FALSE | F197: =IFERROR(IF(SEARCH("70",A197)>0,FALSE,TRUE),TRUE) -> TRUE | G197: =IFERROR(IF(SEARCH("65+",A197)>0,FALSE,TRUE),TRUE) -> TRUE | H197: =AND(E197:G197) -> FALSE
A198: 30 - 34 | B198: 13295 | C198: 6913 | D198: 6382 | E198: FALSE | F198: TRUE | G198: TRUE | H198: FALSE
A199: 35 - 39 | B199: 12598 | C199: 6470 | D199: 6128 | E199: FALSE | F199: TRUE | G199: TRUE | H199: FALSE
A200: 40 - 44 | B200: 11722 | C200: 5943 | D200: 5779 | E200: FALSE | F200: TRUE | G200: TRUE | H200: FALSE
A201: 45 - 49 | B201: 10370 | C201: 5139 | D201: 5231 | E201: FALSE | F201: TRUE | G201: TRUE | H201: FALSE
A202: 50 - 54 | B202: 10949 | C202: 5304 | D202: 5645 | E202: FALSE | F202: TRUE | G202: TRUE | H202: FALSE
... 209 more rows

Sheet Lubelskie (hidden)
A1: Województwa Powiaty Grupy wieku | B1: Ogółem | C1: Mężczyźni | D1: Kobiety
A4: Lubelskie | B4: 2135715 | C4: 1034911 | D4: 1100804 | E4: =IFERROR(IF(SEARCH(" - ",A4)>0,FALSE,TRUE),TRUE) -> TRUE | F4: =IFERROR(IF(SEARCH(" 70 ",A4)>0,FALSE,TRUE),TRUE) -> TRUE | G4: =IFERROR(IF(SEARCH("65+",A4)>0,FALSE,TRUE),TRUE) -> TRUE | H4: =AND(E4:G4) -> TRUE
A5: 0 - 4 | B5: 98952 | C5: 50350 | D5: 48602 | E5: =IFERROR(IF(SEARCH(" - ",A5)>0,FALSE,TRUE),TRUE) -> FALSE | F5: =IFERROR(IF(SEARCH(" 70 ",A5)>0,FALSE,TRUE),TRUE) -> TRUE | G5: =IFERROR(IF(SEARCH(" 65+ ",A5)>0,FALSE,TRUE),TRUE) -> TRUE | H5: =AND(E5:G5) -> FALSE
A6: 5 - 9 | B6: 111204 | C6: 56772 | D6: 54432 | E6: FALSE | F6: TRUE | G6: TRUE | H6: FALSE
A7: 10 - 14 | B7: 102783 | C7: 52759 | D7: 50024 | E7: FALSE | F7: TRUE | G7: TRUE | H7: FALSE
A8: 15 - 19 | B8: 116259 | C8: 59596 | D8: 56663 | E8: FALSE | F8: TRUE | G8: TRUE | H8: FALSE
A9: 20 - 24 | B9: 141054 | C9: 72041 | D9: 69013 | E9: FALSE | F9: TRUE | G9: TRUE | H9: FALSE
A10: 25 - 29 | B10: 159367 | C10: 82407 | D10: 76960 | E10: FALSE | F10: TRUE | G10: TRUE | H10: FALSE
A11: 30 - 34 | B11: 173253 | C11: 89846 | D11: 83407 | E11: FALSE | F11: TRUE | G11: TRUE | H11: FALSE
A12: 35 - 39 | B12: 163050 | C12: 84003 | D12: 79047 | E12: FALSE | F12: TRUE | G12: TRUE | H12: FALSE
A13: 40 - 44 | B13: 149100 | C13: 76112 | D13: 72988 | E13: FALSE | F13: TRUE | G13: TRUE | H13: FALSE
A14: 45 - 49 | B14: 131321 | C14: 66235 | D14: 65086 | E14: FALSE | F14: TRUE | G14: TRUE | H14: FALSE
A15: 50 - 54 | B15: 133476 | C15: 66383 | D15: 67093 | E15: FALSE | F15: TRUE | G15: TRUE | H15: FALSE
A16: 55 - 59 | B16: 152026 | C16: 73801 | D16: 78225 | E16: FALSE | F16: TRUE | G16: TRUE | H16: FALSE
A17: 60 - 64 | B17: 148679 | C17: 69529 | D17: 79150 | E17: FALSE | F17: TRUE | G17: TRUE | H17: FALSE
A18: 65 - 69 | B18: 119104 | C18: 51977 | D18: 67127 | E18: FALSE | F18: TRUE | G18: TRUE | H18: FALSE
A19: 70 i więcej | B19: 236087 | C19: 83100 | D19: 152987 | E19: TRUE | F19: FALSE | G19: TRUE | H19: FALSE
A20: 65+ | B20: =SUM(B18:B19) -> 355191 | C20: =SUM(C18:C19) -> 135077 | D20: =SUM(D18:D19) -> 220114 | E20: TRUE | F20: TRUE | G20: =IFERROR(IF(SEARCH("65+",A20)>0,FALSE,TRUE),TRUE) -> FALSE | H20: FALSE
A21: Biała Podlaska | B21: 57389 | C21: 27527 | D21: 29862 | E21: TRUE | F21: TRUE | G21: TRUE | H21: TRUE
A22: 0 - 4 | B22: 2778 | C22: 1401 | D22: 1377 | E22: FALSE | F22: TRUE | G22: TRUE | H22: FALSE
A23: 5 - 9 | B23: 3075 | C23: 1574 | D23: 1501 | E23: FALSE | F23: TRUE | G23: TRUE | H23: FALSE
A24: 10 - 14 | B24: 2564 | C24: 1318 | D24: 1246 | E24: FALSE | F24: TRUE | G24: TRUE | H24: FALSE
A25: 15 - 19 | B25: 3162 | C25: 1558 | D25: 1604 | E25: FALSE | F25: TRUE | G25: TRUE | H25: FALSE
A26: 20 - 24 | B26: 3526 | C26: 1783 | D26: 1743 | E26: FALSE | F26: TRUE | G26: TRUE | H26: FALSE
A27: 25 - 29 | B27: 4794 | C27: 2584 | D27: 2210 | E27: FALSE | F27: TRUE | G27: TRUE | H27: FALSE
A28: 30 - 34 | B28: 4959 | C28: 2599 | D28: 2360 | E28: FALSE | F28: TRUE | G28: TRUE | H28: FALSE
A29: 35 - 39 | B29: 4441 | C29: 2236 | D29: 2205 | E29: FALSE | F29: TRUE | G29: TRUE | H29: FALSE
A30: 40 - 44 | B30: 4020 | C30: 2017 | D30: 2003 | E30: FALSE | F30: TRUE | G30: TRUE | H30: FALSE
A31: 45 - 49 | B31: 3422 | C31: 1637 | D31: 1785 | E31: FALSE | F31: TRUE | G31: TRUE | H31: FALSE
A32: 50 - 54 | B32: 3688 | C32: 1691 | D32: 1997 | E32: FALSE | F32: TRUE | G32: TRUE | H32: FALSE
A33: 55 - 59 | B33: 4602 | C33: 2081 | D33: 2521 | E33: FALSE | F33: TRUE | G33: TRUE | H33: FALSE
A34: 60 - 64 | B34: 4527 | C34: 1930 | D34: 2597 | E34: FALSE | F34: TRUE | G34: TRUE | H34: FALSE
A35: 65 - 69 | B35: 3157 | C35: 1402 | D35: 1755 | E35: FALSE | F35: TRUE | G35: TRUE | H35: FALSE
A36: 70 i więcej | B36: 4674 | C36: 1716 | D36: 2958 | E36: TRUE | F36: FALSE | G36: TRUE | H36: FALSE
A37: 65+ | B37: =SUM(B35:B36) -> 7831 | C37: =SUM(C35:C36) -> 3118 | D37: =SUM(D35:D36) -> 4713 | E37: TRUE | F37: TRUE | G37: =IFERROR(IF(SEARCH("65+",A37)>0,FALSE,TRUE),TRUE) -> FALSE | H37: FALSE
A38: Chełm | B38: 63949 | C38: 30070 | D38: 33879 | E38: TRUE | F38: TRUE | G38: TRUE | H38: TRUE
A39: 0 - 4 | B39: 2555 | C39: 1278 | D39: 1277 | E39: FALSE | F39: TRUE | G39: TRUE | H39: FALSE
A40: 5 - 9 | B40: 3022 | C40: 1530 | D40: 1492 | E40: FALSE | F40: TRUE | G40: TRUE | H40: FALSE
A41: 10 - 14 | B41: 2604 | C41: 1371 | D41: 1233 | E41: FALSE | F41: TRUE | G41: TRUE | H41: FALSE
A42: 15 - 19 | B42: 2960 | C42: 1512 | D42: 1448 | E42: FALSE | F42: TRUE | G42: TRUE | H42: FALSE
A43: 20 - 24 | B43: 3775 | C43: 1974 | D43: 1801 | E43: FALSE | F43: TRUE | G43: TRUE | H43: FALSE
A44: 25 - 29 | B44: 4668 | C44: 2408 | D44: 2260 | E44: FALSE | F44: TRUE | G44: TRUE | H44: FALSE
A45: 30 - 34 | B45: 5300 | C45: 2737 | D45: 2563 | E45: FALSE | F45: TRUE | G45: TRUE | H45: FALSE
A46: 35 - 39 | B46: 5052 | C46: 2546 | D46: 2506 | E46: FALSE | F46: TRUE | G46: TRUE | H46: FALSE
A47: 40 - 44 | B47: 4498 | C47: 2233 | D47: 2265 | E47: FALSE | F47: TRUE | G47: TRUE | H47: FALSE
A48: 45 - 49 | B48: 3952 | C48: 1876 | D48: 2076 | E48: FALSE | F48: TRUE | G48: TRUE | H48: FALSE
A49: 50 - 54 | B49: 4250 | C49: 1970 | D49: 2280 | E49: FALSE | F49: TRUE | G49: TRUE | H49: FALSE
A50: 55 - 59 | B50: 5194 | C50: 2274 | D50: 2920 | E50: FALSE | F50: TRUE | G50: TRUE | H50: FALSE
A51: 60 - 64 | B51: 5428 | C51: 2316 | D51: 3112 | E51: FALSE | F51: TRUE | G51: TRUE | H51: FALSE
A52: 65 - 69 | B52: 4133 | C52: 1715 | D52: 2418 | E52: FALSE | F52: TRUE | G52: TRUE | H52: FALSE
A53: 70 i więcej | B53: 6558 | C53: 2330 | D53: 4228 | E53: TRUE | F53: FALSE | G53: TRUE | H53: FALSE
A54: 65+ | B54: =SUM(B52:B53) -> 10691 | C54: =SUM(C52:C53) -> 4045 | D54: =SUM(D52:D53) -> 6646 | E54: TRUE | F54: TRUE | G54: =IFERROR(IF(SEARCH("65+",A54)>0,FALSE,TRUE),TRUE) -> FALSE | H54: FALSE
A55: Lublin | B55: 340745 | C55: 156905 | D55: 183840 | E55: TRUE | F55: TRUE | G55: TRUE | H55: TRUE
A56: 0 - 4 | B56: 16551 | C56: 8388 | D56: 8163 | E56: FALSE | F56: TRUE | G56: TRUE | H56: FALSE
A57: 5 - 9 | B57: 16840 | C57: 8510 | D57: 8330 | E57: FALSE | F57: TRUE | G57: TRUE | H57: FALSE
A58: 10 - 14 | B58: 14135 | C58: 7165 | D58: 6970 | E58: FALSE | F58: TRUE | G58: TRUE | H58: FALSE
A59: 15 - 19 | B59: 14884 | C59: 7357 | D59: 7527 | E59: FALSE | F59: TRUE | G59: TRUE | H59: FALSE
A60: 20 - 24 | B60: 16735 | C60: 8388 | D60: 8347 | E60: FALSE | F60: TRUE | G60: TRUE | H60: FALSE
A61: 25 - 29 | B61: 26552 | C61: 12667 | D61: 13885 | E61: FALSE | F61: TRUE | G61: TRUE | H61: FALSE
A62: 30 - 34 | B62: 31055 | C62: 15215 | D62: 15840 | E62: FALSE | F62: TRUE | G62: TRUE | H62: FALSE
A63: 35 - 39 | B63: 27941 | C63: 13780 | D63: 14161 | E63: FALSE | F63: TRUE | G63: TRUE | H63: FALSE
A64: 40 - 44 | B64: 24982 | C64: 12127 | D64: 12855 | E64: FALSE | F64: TRUE | G64: TRUE | H64: FALSE
A65: 45 - 49 | B65: 20340 | C65: 9787 | D65: 10553 | E65: FALSE | F65: TRUE | G65: TRUE | H65: FALSE
A66: 50 - 54 | B66: 20009 | C66: 9323 | D66: 10686 | E66: FALSE | F66: TRUE | G66: TRUE | H66: FALSE
A67: 55 - 59 | B67: 23803 | C67: 10617 | D67: 13186 | E67: FALSE | F67: TRUE | G67: TRUE | H67: FALSE
A68: 60 - 64 | B68: 25738 | C68: 10944 | D68: 14794 | E68: FALSE | F68: TRUE | G68: TRUE | H68: FALSE
A69: 65 - 69 | B69: 21161 | C69: 8638 | D69: 12523 | E69: =IFERROR(IF(SEARCH(" - ",A69)>0,FALSE,TRUE),TRUE) -> FALSE | F69: =IFERROR(IF(SEARCH(" 70 ",A69)>0,FALSE,TRUE),TRUE) -> TRUE | G69: =IFERROR(IF(SEARCH(" 65+ ",A69)>0,FALSE,TRUE),TRUE) -> TRUE | H69: =AND(E69:G69) -> FALSE
A70: 70 i więcej | B70: 40019 | C70: 13999 | D70: 26020 | E70: TRUE | F70: FALSE | G70: TRUE | H70: FALSE
A71: 65+ | B71: =SUM(B69:B70) -> 61180 | C71: =SUM(C69:C70) -> 22637 | D71: =SUM(D69:D70) -> 38543 | E71: TRUE | F71: TRUE | G71: =IFERROR(IF(SEARCH("65+",A71)>0,FALSE,TRUE),TRUE) -> FALSE | H71: FALSE
A72: Zamość | B72: 64746 | C72: 30544 | D72: 34202 | E72: TRUE | F72: TRUE | G72: TRUE | H72: TRUE
A73: 0 - 4 | B73: 2848 | C73: 1426 | D73: 1422 | E73: FALSE | F73: TRUE | G73: TRUE | H73: FALSE
A74: 5 - 9 | B74: 3170 | C74: 1624 | D74: 1546 | E74: FALSE | F74: TRUE | G74: TRUE | H74: FALSE
A75: 10 - 14 | B75: 2684 | C75: 1380 | D75: 1304 | E75: FALSE | F75: TRUE | G75: TRUE | H75: FALSE
A76: 15 - 19 | B76: 3571 | C76: 1815 | D76: 1756 | E76: FALSE | F76: TRUE | G76: TRUE | H76: FALSE
A77: 20 - 24 | B77: 3779 | C77: 1921 | D77: 1858 | E77: FALSE | F77: TRUE | G77: TRUE | H77: FALSE
A78: 25 - 29 | B78: 4814 | C78: 2419 | D78: 2395 | E78: FALSE | F78: TRUE | G78: TRUE | H78: FALSE
A79: 30 - 34 | B79: 5790 | C79: 2982 | D79: 2808 | E79: FALSE | F79: TRUE | G79: TRUE | H79: FALSE
A80: 35 - 39 | B80: 5045 | C80: 2580 | D80: 2465 | E80: FALSE | F80: TRUE | G80: TRUE | H80: FALSE
A81: 40 - 44 | B81: 4246 | C81: 2089 | D81: 2157 | E81: FALSE | F81: TRUE | G81: TRUE | H81: FALSE
A82: 45 - 49 | B82: 3814 | C82: 1753 | D82: 2061 | E82: FALSE | F82: TRUE | G82: TRUE | H82: FALSE
A83: 50 - 54 | B83: 4119 | C83: 1862 | D83: 2257 | E83: FALSE | F83: TRUE | G83: TRUE | H83: FALSE
A84: 55 - 59 | B84: 5435 | C84: 2401 | D84: 3034 | E84: FALSE | F84: TRUE | G84: TRUE | H84: FALSE
A85: 60 - 64 | B85: 5298 | C85: 2371 | D85: 2927 | E85: FALSE | F85: TRUE | G85: TRUE | H85: FALSE
A86: 65 - 69 | B86: 3747 | C86: 1593 | D86: 2154 | E86: FALSE | F86: TRUE | G86: TRUE | H86: FALSE
A87: 70 i więcej | B87: 6386 | C87: 2328 | D87: 4058 | E87: TRUE | F87: FALSE | G87: TRUE | H87: FALSE
A88: 65+ | B88: =SUM(B86:B87) -> 10133 | C88: =SUM(C86:C87) -> 3921 | D88: =SUM(D86:D87) -> 6212 | E88: TRUE | F88: TRUE | G88: =IFERROR(IF(SEARCH("65+",A88)>0,FALSE,TRUE),TRUE) -> FALSE | H88: FALSE
A89: bialski | B89: 112330 | C89: 55703 | D89: 56627 | E89: TRUE | F89: TRUE | G89: TRUE | H89: TRUE
A90: 0 - 4 | B90: 5566 | C90: 2882 | D90: 2684 | E90: FALSE | F90: TRUE | G90: TRUE | H90: FALSE
A91: 5 - 9 | B91: 6217 | C91: 3176 | D91: 3041 | E91: FALSE | F91: TRUE | G91: TRUE | H91: FALSE
A92: 10 - 14 | B92: 5929 | C92: 3044 | D92: 2885 | E92: FALSE | F92: TRUE | G92: TRUE | H92: FALSE
A93: 15 - 19 | B93: 6946 | C93: 3543 | D93: 3403 | E93: FALSE | F93: TRUE | G93: TRUE | H93: FALSE
A94: 20 - 24 | B94: 8665 | C94: 4381 | D94: 4284 | E94: FALSE | F94: TRUE | G94: TRUE | H94: FALSE
A95: 25 - 29 | B95: 8535 | C95: 4472 | D95: 4063 | E95: FALSE | F95: TRUE | G95: TRUE | H95: FALSE
A96: 30 - 34 | B96: 8483 | C96: 4591 | D96: 3892 | E96: FALSE | F96: TRUE | G96: TRUE | H96: FALSE
A97: 35 - 39 | B97: 7933 | C97: 4175 | D97: 3758 | E97: FALSE | F97: TRUE | G97: TRUE | H97: FALSE
A98: 40 - 44 | B98: 7624 | C98: 4023 | D98: 3601 | E98: FALSE | F98: TRUE | G98: TRUE | H98: FALSE
A99: 45 - 49 | B99: 7151 | C99: 3669 | D99: 3482 | E99: FALSE | F99: TRUE | G99: TRUE | H99: FALSE
A100: 50 - 54 | B100: 7078 | C100: 3701 | D100: 3377 | E100: FALSE | F100: TRUE | G100: TRUE | H100: FALSE
A101: 55 - 59 | B101: 7578 | C101: 3885 | D101: 3693 | E101: FALSE | F101: TRUE | G101: TRUE | H101: FALSE
A102: 60 - 64 | B102: 6754 | C102: 3360 | D102: 3394 | E102: FALSE | F102: TRUE | G102: TRUE | H102: FALSE
A103: 65 - 69 | B103: 5502 | C103: 2442 | D103: 3060 | E103: FALSE | F103: TRUE | G103: TRUE | H103: FALSE
A104: 70 i więcej | B104: 12369 | C104: 4359 | D104: 8010 | E104: TRUE | F104: FALSE | G104: TRUE | H104: FALSE
A105: 65+ | B105: =SUM(B103:B104) -> 17871 | C105: =SUM(C103:C104) -> 6801 | D105: =SUM(D103:D104) -> 11070 | E105: TRUE | F105: TRUE | G105: =IFERROR(IF(SEARCH("65+",A105)>0,FALSE,TRUE),TRUE) -> FALSE | H105: FALSE
A106: biłgorajski | B106: 102341 | C106: 50440 | D106: 51901 | E106: TRUE | F106: TRUE | G106: TRUE | H106: TRUE
A107: 0 - 4 | B107: 4619 | C107: 2424 | D107: 2195 | E107: FALSE | F107: TRUE | G107: TRUE | H107: FALSE
A108: 5 - 9 | B108: 5350 | C108: 2729 | D108: 2621 | E108: FALSE | F108: TRUE | G108: TRUE | H108: FALSE
A109: 10 - 14 | B109: 5197 | C109: 2652 | D109: 2545 | E109: FALSE | F109: TRUE | G109: TRUE | H109: FALSE
A110: 15 - 19 | B110: 5988 | C110: 3162 | D110: 2826 | E110: FALSE | F110: TRUE | G110: TRUE | H110: FALSE
A111: 20 - 24 | B111: 6976 | C111: 3521 | D111: 3455 | E111: FALSE | F111: TRUE | G111: TRUE | H111: FALSE
A112: 25 - 29 | B112: 7634 | C112: 4048 | D112: 3586 | E112: FALSE | F112: TRUE | G112: TRUE | H112: FALSE
A113: 30 - 34 | B113: 8339 | C113: 4421 | D113: 3918 | E113: FALSE | F113: TRUE | G113: TRUE | H113: FALSE
A114: 35 - 39 | B114: 7917 | C114: 4058 | D114: 3859 | E114: FALSE | F114: TRUE | G114: TRUE | H114: FALSE
A115: 40 - 44 | B115: 7132 | C115: 3742 | D115: 3390 | E115: FALSE | F115: TRUE | G115: TRUE | H115: FALSE
A116: 45 - 49 | B116: 6133 | C116: 3189 | D116: 2944 | E116: FALSE | F116: TRUE | G116: TRUE | H116: FALSE
A117: 50 - 54 | B117: 6593 | C117: 3369 | D117: 3224 | E117: FALSE | F117: TRUE | G117: TRUE | H117: FALSE
A118: 55 - 59 | B118: 7222 | C118: 3614 | D118: 3608 | E118: FALSE | F118: TRUE | G118: TRUE | H118: FALSE
A119: 60 - 64 | B119: 6594 | C119: 3127 | D119: 3467 | E119: FALSE | F119: TRUE | G119: TRUE | H119: FALSE
A120: 65 - 69 | B120: 5521 | C120: 2519 | D120: 3002 | E120: FALSE | F120: TRUE | G120: TRUE | H120: FALSE
A121: 70 i więcej | B121: 11126 | C121: 3865 | D121: 7261 | E121: TRUE | F121: FALSE | G121: TRUE | H121: FALSE
A122: 65+ | B122: =SUM(B120:B121) -> 16647 | C122: =SUM(C120:C121) -> 6384 | D122: =SUM(D120:D121) -> 10263 | E122: TRUE | F122: TRUE | G122: =IFERROR(IF(SEARCH("65+",A122)>0,FALSE,TRUE),TRUE) -> FALSE | H122: FALSE
A123: chełmski | B123: 79239 | C123: 39045 | D123: 40194 | E123: TRUE | F123: TRUE | G123: TRUE | H123: TRUE
A124: 0 - 4 | B124: 3627 | C124: 1801 | D124: 1826 | E124: FALSE | F124: TRUE | G124: TRUE | H124: FALSE
A125: 5 - 9 | B125: 4300 | C125: 2210 | D125: 2090 | E125: FALSE | F125: TRUE | G125: TRUE | H125: FALSE
A126: 10 - 14 | B126: 3933 | C126: 2009 | D126: 1924 | E126: FALSE | F126: TRUE | G126: TRUE | H126: FALSE
A127: 15 - 19 | B127: 4620 | C127: 2374 | D127: 2246 | E127: FALSE | F127: TRUE | G127: TRUE | H127: FALSE
A128: 20 - 24 | B128: 5902 | C128: 3024 | D128: 2878 | E128: FALSE | F128: TRUE | G128: TRUE | H128: FALSE
A129: 25 - 29 | B129: 6128 | C129: 3250 | D129: 2878 | E129: FALSE | F129: TRUE | G129: TRUE | H129: FALSE
A130: 30 - 34 | B130: 6351 | C130: 3349 | D130: 3002 | E130: FALSE | F130: TRUE | G130: TRUE | H130: FALSE
A131: 35 - 39 | B131: 6006 | C131: 3165 | D131: 2841 | E131: FALSE | F131: TRUE | G131: TRUE | H131: FALSE
A132: 40 - 44 | B132: 5504 | C132: 2874 | D132: 2630 | E132: FALSE | F132: TRUE | G132: TRUE | H132: FALSE
A133: 45 - 49 | B133: 4876 | C133: 2453 | D133: 2423 | E133: =IFERROR(IF(SEARCH(" - ",A133)>0,FALSE,TRUE),TRUE) -> FALSE | F133: =IFERROR(IF(SEARCH(" 70 ",A133)>0,FALSE,TRUE),TRUE) -> TRUE | G133: =IFERROR(IF(SEARCH(" 65+ ",A133)>0,FALSE,TRUE),TRUE) -> TRUE | H133: =AND(E133:G133) -> FALSE
A134: 50 - 54 | B134: 5012 | C134: 2620 | D134: 2392 | E134: FALSE | F134: TRUE | G134: TRUE | H134: FALSE
A135: 55 - 59 | B135: 5664 | C135: 2877 | D135: 2787 | E135: FALSE | F135: TRUE | G135: TRUE | H135: FALSE
A136: 60 - 64 | B136: 5259 | C136: 2662 | D136: 2597 | E136: FALSE | F136: TRUE | G136: TRUE | H136: FALSE
A137: 65 - 69 | B137: 3993 | C137: 1814 | D137: 2179 | E137: FALSE | F137: TRUE | G137: TRUE | H137: FALSE
A138: 70 i więcej | B138: 8064 | C138: 2563 | D138: 5501 | E138: TRUE | F138: FALSE | G138: TRUE | H138: FALSE
A139: 65+ | B139: =SUM(B137:B138) -> 12057 | C139: =SUM(C137:C138) -> 4377 | D139: =SUM(D137:D138) -> 7680 | E139: TRUE | F139: TRUE | G139: =IFERROR(IF(SEARCH("65+",A139)>0,FALSE,TRUE),TRUE) -> FALSE | H139: FALSE
A140: hrubieszowski | B140: 65562 | C140: 32140 | D140: 33422 | E140: TRUE | F140: TRUE | G140: TRUE | H140: TRUE
A141: 0 - 4 | B141: 2692 | C141: 1369 | D141: 1323 | E141: FALSE | F141: TRUE | G141: TRUE | H141: FALSE
A142: 5 - 9 | B142: 3139 | C142: 1617 | D142: 1522 | E142: FALSE | F142: TRUE | G142: TRUE | H142: FALSE
A143: 10 - 14 | B143: 3038 | C143: 1554 | D143: 1484 | E143: FALSE | F143: TRUE | G143: TRUE | H143: FALSE
A144: 15 - 19 | B144: 3569 | C144: 1809 | D144: 1760 | E144: FALSE | F144: TRUE | G144: TRUE | H144: FALSE
A145: 20 - 24 | B145: 4616 | C145: 2380 | D145: 2236 | E145: FALSE | F145: TRUE | G145: TRUE | H145: FALSE
A146: 25 - 29 | B146: 4633 | C146: 2444 | D146: 2189 | E146: FALSE | F146: TRUE | G146: TRUE | H146: FALSE
A147: 30 - 34 | B147: 5060 | C147: 2728 | D147: 2332 | E147: FALSE | F147: TRUE | G147: TRUE | H147: FALSE
A148: 35 - 39 | B148: 4728 | C148: 2529 | D148: 2199 | E148: FALSE | F148: TRUE | G148: TRUE | H148: FALSE
A149: 40 - 44 | B149: 4370 | C149: 2267 | D149: 2103 | E149: FALSE | F149: TRUE | G149: TRUE | H149: FALSE
A150: 45 - 49 | B150: 4022 | C150: 2086 | D150: 1936 | E150: FALSE | F150: TRUE | G150: TRUE | H150: FALSE
A151: 50 - 54 | B151: 4228 | C151: 2090 | D151: 2138 | E151: FALSE | F151: TRUE | G151: TRUE | H151: FALSE
A152: 55 - 59 | B152: 4928 | C152: 2477 | D152: 2451 | E152: FALSE | F152: TRUE | G152: TRUE | H152: FALSE
A153: 60 - 64 | B153: 4702 | C153: 2290 | D153: 2412 | E153: FALSE | F153: TRUE | G153: TRUE | H153: FALSE
A154: 65 - 69 | B154: 3875 | C154: 1711 | D154: 2164 | E154: FALSE | F154: TRUE | G154: TRUE | H154: FALSE
A155: 70 i więcej | B155: 7962 | C155: 2789 | D155: 5173 | E155: TRUE | F155: FALSE | G155: TRUE | H155: FALSE
A156: 65+ | B156: =SUM(B154:B155) -> 11837 | C156: =SUM(C154:C155) -> 4500 | D156: =SUM(D154:D155) -> 7337 | E156: TRUE | F156: TRUE | G156: =IFERROR(IF(SEARCH("65+",A156)>0,FALSE,TRUE),TRUE) -> FALSE | H156: FALSE
A157: janowski | B157: 46742 | C157: 23135 | D157: 23607 | E157: TRUE | F157: TRUE | G157: TRUE | H157: TRUE
A158: 0 - 4 | B158: 2042 | C158: 996 | D158: 1046 | E158: FALSE | F158: TRUE | G158: TRUE | H158: FALSE
A159: 5 - 9 | B159: 2348 | C159: 1211 | D159: 1137 | E159: FALSE | F159: TRUE | G159: TRUE | H159: FALSE
A160: 10 - 14 | B160: 2407 | C160: 1242 | D160: 1165 | E160: FALSE | F160: TRUE | G160: TRUE | H160: FALSE
A161: 15 - 19 | B161: 2756 | C161: 1416 | D161: 1340 | E161: FALSE | F161: TRUE | G161: TRUE | H161: FALSE
A162: 20 - 24 | B162: 3529 | C162: 1820 | D162: 1709 | E162: FALSE | F162: TRUE | G162: TRUE | H162: FALSE
A163: 25 - 29 | B163: 3315 | C163: 1743 | D163: 1572 | E163: FALSE | F163: TRUE | G163: TRUE | H163: FALSE
A164: 30 - 34 | B164: 3414 | C164: 1837 | D164: 1577 | E164: FALSE | F164: TRUE | G164: TRUE | H164: FALSE
A165: 35 - 39 | B165: 3444 | C165: 1762 | D165: 1682 | E165: FALSE | F165: TRUE | G165: TRUE | H165: FALSE
A166: 40 - 44 | B166: 3322 | C166: 1733 | D166: 1589 | E166: FALSE | F166: TRUE | G166: TRUE | H166: FALSE
A167: 45 - 49 | B167: 3017 | C167: 1608 | D167: 1409 | E167: FALSE | F167: TRUE | G167: TRUE | H167: FALSE
A168: 50 - 54 | B168: 3065 | C168: 1591 | D168: 1474 | E168: FALSE | F168: TRUE | G168: TRUE | H168: FALSE
A169: 55 - 59 | B169: 3164 | C169: 1617 | D169: 1547 | E169: FALSE | F169: TRUE | G169: TRUE | H169: FALSE
A170: 60 - 64 | B170: 2874 | C170: 1428 | D170: 1446 | E170: FALSE | F170: TRUE | G170: TRUE | H170: FALSE
A171: 65 - 69 | B171: 2537 | C171: 1159 | D171: 1378 | E171: FALSE | F171: TRUE | G171: TRUE | H171: FALSE
A172: 70 i więcej | B172: 5508 | C172: 1972 | D172: 3536 | E172: TRUE | F172: FALSE | G172: TRUE | H172: FALSE
A173: 65+ | B173: =SUM(B171:B172) -> 8045 | C173: =SUM(C171:C172) -> 3131 | D173: =SUM(D171:D172) -> 4914 | E173: TRUE | F173: TRUE | G173: =IFERROR(IF(SEARCH("65+",A173)>0,FALSE,TRUE),TRUE) -> FALSE | H173: FALSE
A174: krasnostawski | B174: 65142 | C174: 31696 | D174: 33446 | E174: TRUE | F174: TRUE | G174: TRUE | H174: TRUE
A175: 0 - 4 | B175: 2572 | C175: 1261 | D175: 1311 | E175: FALSE | F175: TRUE | G175: TRUE | H175: FALSE
A176: 5 - 9 | B176: 2903 | C176: 1504 | D176: 1399 | E176: FALSE | F176: TRUE | G176: TRUE | H176: FALSE
A177: 10 - 14 | B177: 2939 | C177: 1553 | D177: 1386 | E177: FALSE | F177: TRUE | G177: TRUE | H177: FALSE
A178: 15 - 19 | B178: 3369 | C178: 1774 | D178: 1595 | E178: FALSE | F178: TRUE | G178: TRUE | H178: FALSE
A179: 20 - 24 | B179: 4372 | C179: 2237 | D179: 2135 | E179: FALSE | F179: TRUE | G179: TRUE | H179: FALSE
A180: 25 - 29 | B180: 4416 | C180: 2311 | D180: 2105 | E180: FALSE | F180: TRUE | G180: TRUE | H180: FALSE
A181: 30 - 34 | B181: 4930 | C181: 2583 | D181: 2347 | E181: FALSE | F181: TRUE | G181: TRUE | H181: FALSE
A182: 35 - 39 | B182: 4938 | C182: 2609 | D182: 2329 | E182: FALSE | F182: TRUE | G182: TRUE | H182: FALSE
A183: 40 - 44 | B183: 4395 | C183: 2339 | D183: 2056 | E183: FALSE | F183: TRUE | G183: TRUE | H183: FALSE
A184: 45 - 49 | B184: 3782 | C184: 1918 | D184: 1864 | E184: FALSE | F184: TRUE | G184: TRUE | H184: FALSE
A185: 50 - 54 | B185: 3944 | C185: 1974 | D185: 1970 | E185: FALSE | F185: TRUE | G185: TRUE | H185: FALSE
A186: 55 - 59 | B186: 4901 | C186: 2479 | D186: 2422 | E186: FALSE | F186: TRUE | G186: TRUE | H186: FALSE
A187: 60 - 64 | B187: 4979 | C187: 2365 | D187: 2614 | E187: FALSE | F187: TRUE | G187: TRUE | H187: FALSE
A188: 65 - 69 | B188: 3967 | C188: 1743 | D188: 2224 | E188: FALSE | F188: TRUE | G188: TRUE | H188: FALSE
A189: 70 i więcej | B189: 8735 | C189: 3046 | D189: 5689 | E189: TRUE | F189: FALSE | G189: TRUE | H189: FALSE
A190: 65+ | B190: =SUM(B188:B189) -> 12702 | C190: =SUM(C188:C189) -> 4789 | D190: =SUM(D188:D189) -> 7913 | E190: TRUE | F190: TRUE | G190: =IFERROR(IF(SEARCH("65+",A190)>0,FALSE,TRUE),TRUE) -> FALSE | H190: FALSE
A191: kraśnicki | B191: 97244 | C191: 47321 | D191: 49923 | E191: TRUE | F191: TRUE | G191: TRUE | H191: TRUE
A192: 0 - 4 | B192: 3977 | C192: 2038 | D192: 1939 | E192: FALSE | F192: TRUE | G192: TRUE | H192: FALSE
A193: 5 - 9 | B193: 4845 | C193: 2453 | D193: 2392 | E193: FALSE | F193: TRUE | G193: TRUE | H193: FALSE
A194: 10 - 14 | B194: 4699 | C194: 2425 | D194: 2274 | E194: FALSE | F194: TRUE | G194: TRUE | H194: FALSE
A195: 15 - 19 | B195: 5261 | C195: 2731 | D195: 2530 | E195: FALSE | F195: TRUE | G195: TRUE | H195: FALSE
A196: 20 - 24 | B196: 6589 | C196: 3443 | D196: 3146 | E196: FALSE | F196: TRUE | G196: TRUE | H196: FALSE
A197: 25 - 29 | B197: 6868 | C197: 3557 | D197: 3311 | E197: =IFERROR(IF(SEARCH(" - ",A197)>0,FALSE,TRUE),TRUE) -> FALSE | F197: =IFERROR(IF(SEARCH(" 70 ",A197)>0,FALSE,TRUE),TRUE) -> TRUE | G197: =IFERROR(IF(SEARCH(" 65+ ",A197)>0,FALSE,TRUE),TRUE) -> TRUE | H197: =AND(E197:G197) -> FALSE
A198: 30 - 34 | B198: 7643 | C198: 3920 | D198: 3723 | E198: FALSE | F198: TRUE | G198: TRUE | H198: FALSE
A199: 35 - 39 | B199: 7526 | C199: 3893 | D199: 3633 | E199: FALSE | F199: TRUE | G199: TRUE | H199: FALSE
A200: 40 - 44 | B200: 6693 | C200: 3389 | D200: 3304 | E200: FALSE | F200: TRUE | G200: TRUE | H200: FALSE
A201: 45 - 49 | B201: 5976 | C201: 3041 | D201: 2935 | E201: FALSE | F201: TRUE | G201: TRUE | H201: FALSE
A202: 50 - 54 | B202: 6031 | C202: 3040 | D202: 2991 | E202: FALSE | F202: TRUE | G202: TRUE | H202: FALSE
... 226 more rows

Sheet Lubuskie (hidden)
A1: Województwa Powiaty Grupy wieku | B1: Ogółem | C1: Mężczyźni | D1: Kobiety
A4: Lubuskie | B4: 1017450 | C4: 495223 | D4: 522227 | E4: =IFERROR(IF(SEARCH(" - ",A4)>0,FALSE,TRUE),TRUE) -> TRUE | F4: =IFERROR(IF(SEARCH("65+",A4)>0,FALSE,TRUE),TRUE) -> TRUE | G4: =IFERROR(IF(SEARCH("70",A4)>0,FALSE,TRUE),TRUE) -> TRUE | H4: =AND(E4:G4) -> TRUE
A5: 0 - 4 | B5: 49362 | C5: 25234 | D5: 24128 | E5: =IFERROR(IF(SEARCH(" - ",A5)>0,FALSE,TRUE),TRUE) -> FALSE | F5: =IFERROR(IF(SEARCH("65+",A5)>0,FALSE,TRUE),TRUE) -> TRUE | G5: =IFERROR(IF(SEARCH("70",A5)>0,FALSE,TRUE),TRUE) -> TRUE | H5: =AND(E5:G5) -> FALSE
A6: 5 - 9 | B6: 56462 | C6: 28894 | D6: 27568 | E6: FALSE | F6: TRUE | G6: TRUE | H6: FALSE
A7: 10 - 14 | B7: 48135 | C7: 24658 | D7: 23477 | E7: FALSE | F7: TRUE | G7: TRUE | H7: FALSE
A8: 15 - 19 | B8: 51974 | C8: 26759 | D8: 25215 | E8: FALSE | F8: TRUE | G8: TRUE | H8: FALSE
A9: 20 - 24 | B9: 62341 | C9: 31657 | D9: 30684 | E9: FALSE | F9: TRUE | G9: TRUE | H9: FALSE
A10: 25 - 29 | B10: 73181 | C10: 37404 | D10: 35777 | E10: FALSE | F10: TRUE | G10: TRUE | H10: FALSE
A11: 30 - 34 | B11: 87258 | C11: 44488 | D11: 42770 | E11: FALSE | F11: TRUE | G11: TRUE | H11: FALSE
A12: 35 - 39 | B12: 84314 | C12: 43133 | D12: 41181 | E12: FALSE | F12: TRUE | G12: TRUE | H12: FALSE
A13: 40 - 44 | B13: 74216 | C13: 37941 | D13: 36275 | E13: FALSE | F13: TRUE | G13: TRUE | H13: FALSE
A14: 45 - 49 | B14: 59644 | C14: 30061 | D14: 29583 | E14: FALSE | F14: TRUE | G14: TRUE | H14: FALSE
A15: 50 - 54 | B15: 62240 | C15: 30941 | D15: 31299 | E15: FALSE | F15: TRUE | G15: TRUE | H15: FALSE
A16: 55 - 59 | B16: 77542 | C16: 37662 | D16: 39880 | E16: FALSE | F16: TRUE | G16: TRUE | H16: FALSE
A17: 60 - 64 | B17: 76928 | C17: 36130 | D17: 40798 | E17: FALSE | F17: TRUE | G17: TRUE | H17: FALSE
A18: 65 - 69 | B18: 62251 | C18: 28379 | D18: 33872 | E18: FALSE | F18: TRUE | G18: TRUE | H18: FALSE
A19: 70 i więcej | B19: 91602 | C19: 31882 | D19: 59720 | E19: TRUE | F19: TRUE | G19: FALSE | H19: FALSE
A20: 65+ | B20: =SUM(B18:B19) -> 153853 | C20: =SUM(C18:C19) -> 60261 | D20: =SUM(D18:D19) -> 93592 | E20: TRUE | F20: FALSE | G20: TRUE | H20: FALSE
A21: Gorzów Wielkopolski | B21: 123911 | C21: 58980 | D21: 64931 | E21: TRUE | F21: TRUE | G21: TRUE | H21: TRUE
A22: 0 - 4 | B22: 6038 | C22: 3098 | D22: 2940 | E22: FALSE | F22: TRUE | G22: TRUE | H22: FALSE
A23: 5 - 9 | B23: 6601 | C23: 3403 | D23: 3198 | E23: FALSE | F23: TRUE | G23: TRUE | H23: FALSE
A24: 10 - 14 | B24: 5272 | C24: 2761 | D24: 2511 | E24: FALSE | F24: TRUE | G24: TRUE | H24: FALSE
A25: 15 - 19 | B25: 5609 | C25: 2879 | D25: 2730 | E25: FALSE | F25: TRUE | G25: TRUE | H25: FALSE
A26: 20 - 24 | B26: 6033 | C26: 3145 | D26: 2888 | E26: FALSE | F26: TRUE | G26: TRUE | H26: FALSE
A27: 25 - 29 | B27: 8483 | C27: 4234 | D27: 4249 | E27: FALSE | F27: TRUE | G27: TRUE | H27: FALSE
A28: 30 - 34 | B28: 10929 | C28: 5497 | D28: 5432 | E28: FALSE | F28: TRUE | G28: TRUE | H28: FALSE
A29: 35 - 39 | B29: 10859 | C29: 5353 | D29: 5506 | E29: FALSE | F29: TRUE | G29: TRUE | H29: FALSE
A30: 40 - 44 | B30: 9042 | C30: 4506 | D30: 4536 | E30: FALSE | F30: TRUE | G30: TRUE | H30: FALSE
A31: 45 - 49 | B31: 7250 | C31: 3620 | D31: 3630 | E31: FALSE | F31: TRUE | G31: TRUE | H31: FALSE
A32: 50 - 54 | B32: 7091 | C32: 3475 | D32: 3616 | E32: FALSE | F32: TRUE | G32: TRUE | H32: FALSE
A33: 55 - 59 | B33: 9274 | C33: 4280 | D33: 4994 | E33: FALSE | F33: TRUE | G33: TRUE | H33: FALSE
A34: 60 - 64 | B34: 10366 | C34: 4533 | D34: 5833 | E34: FALSE | F34: TRUE | G34: TRUE | H34: FALSE
A35: 65 - 69 | B35: 8611 | C35: 3779 | D35: 4832 | E35: FALSE | F35: TRUE | G35: TRUE | H35: FALSE
A36: 70 i więcej | B36: 12453 | C36: 4417 | D36: 8036 | E36: TRUE | F36: TRUE | G36: FALSE | H36: FALSE
A37: 65+ | B37: =SUM(B35:B36) -> 21064 | C37: =SUM(C35:C36) -> 8196 | D37: =SUM(D35:D36) -> 12868 | E37: TRUE | F37: FALSE | G37: TRUE | H37: FALSE
A38: Zielona Góra | B38: 138898 | C38: 65952 | D38: 72946 | E38: TRUE | F38: TRUE | G38: TRUE | H38: TRUE
A39: 0 - 4 | B39: 6960 | C39: 3543 | D39: 3417 | E39: FALSE | F39: TRUE | G39: TRUE | H39: FALSE
A40: 5 - 9 | B40: 7398 | C40: 3780 | D40: 3618 | E40: FALSE | F40: TRUE | G40: TRUE | H40: FALSE
A41: 10 - 14 | B41: 5880 | C41: 2960 | D41: 2920 | E41: FALSE | F41: TRUE | G41: TRUE | H41: FALSE
A42: 15 - 19 | B42: 6435 | C42: 3254 | D42: 3181 | E42: FALSE | F42: TRUE | G42: TRUE | H42: FALSE
A43: 20 - 24 | B43: 6743 | C43: 3464 | D43: 3279 | E43: FALSE | F43: TRUE | G43: TRUE | H43: FALSE
